Workbook

Sheet COMPILADO (hidden)
B4: Eje | C4: Adaptación | D4: Adaptación | E4: Adaptación | F4: Adaptación | G4: Adaptación | H4: Mitigación | I4: Mitigación | J4: Ambiental | K4: Ambiental | L4: Ambiental | M4: Ambiental | N4: Ambiental | O4: Ambiental | P4: Social | Q4: Social | R4: Sociales | S4: Social | T4: Social | U4: Económicos | V4: Económicos
B5: Impacto | C5: 1 | D5: 2 | E5: 3 | F5: 4 | G5: 5 | H5: 6 | I5: 7 | J5: 8 | K5: 9 | L5: 10 | M5: 11 | N5: 12 | O5: 13 | P5: 14 | Q5: 15 | R5: 16 | S5: 17 | T5: 18 | U5: 19 | V5: 20
B6: Agua | C6: 5 | D6: 3 | E6: 3 | F6: 1 | G6: 0 | H6: 0 | I6: 0 | J6: 0 | K6: 5 | L6: 1 | M6: 2 | N6: 0 | O6: 0 | P6: 1 | Q6: 1 | R6: 0 | S6: 0 | T6: 1 | U6: 1 | V6: 1
B7: Biodiversidad | C7: 3 | D7: 3 | E7: 3 | F7: 3 | G7: 3 | H7: 3 | I7: 0 | J7: 3 | K7: 2 | L7: 3 | M7: 3 | N7: 3 | O7: 3 | P7: 3 | Q7: 1 | R7: 2 | S7: 3 | T7: 2 | U7: 1 | V7: 1
B8: Movilidad | C8: 0 | D8: 0 | E8: 0 | F8: 0 | G8: 0 | H8: 0 | I8: 0 | J8: 0 | K8: 0 | L8: 0 | M8: 0 | N8: 0 | O8: 0 | P8: 0 | Q8: 0 | R8: 0 | S8: 0 | T8: 0 | U8: 0 | V8: 0
B9: Espacio Público | C9: 0 | D9: 1 | E9: 1 | F9: 4 | G9: 0 | H9: 1 | I9: 2 | J9: 1 | K9: 1 | L9: 0 | M9: 0 | N9: 0 | O9: 1 | P9: 4 | Q9: 3 | R9: 0 | S9: 2 | T9: 0 | U9: 0 | V9: 1
B10: Total impacto | C10: =SUM(C6:C9) -> 8 | D10: =SUM(D6:D9) -> 7 | E10: 7 | F10: 8 | G10: 3 | H10: 4 | I10: 2 | J10: 4 | K10: 8 | L10: 4 | M10: 5 | N10: 3 | O10: 4 | P10: 8 | Q10: 5 | R10: 2 | S10: 5 | T10: 3 | U10: 2 | V10: 3
B13: Adaptación | C13: =SUM(C10:G10) -> 33 | D13: =C13/SUM($C$13:$C$17) -> 0.3473684211
B14: Mitigación | C14: =SUM(H10:I10) -> 6 | D14: =C14/SUM($C$13:$C$17) -> 0.06315789474
B15: Ambientales | C15: =SUM(J10:O10) -> 28 | D15: 0.2947368421
B16: Sociales | C16: =SUM(P10:T10) -> 23 | D16: 0.2421052632
B17: Económicos | C17: =SUM(U10:V10) -> 5 | D17: 0.05263157895

Sheet Resultados Consolidados (hidden)
B2: Herramienta para la estimación y la evaluación de los impactos de la infraestructura verde
F4: 1. Introducción | K4: Instrucciones Consolidar
B8: Número de proyectos
B16: Contribución total de Impactos | J16: Mapa de impactos consolidado
AA18: 0.1 | AB18: 0.15 | AC18: 0.2 | AD18: 0.3
J19: Adaptación | L19: =" "&Impactos!C2 -> Prevención de inundaciones, regulación de escorrentías | V19: =COMPILADO!C10 -> 8 | X19: =Z19*F$8 -> 0 | Y19: =IF(V19<=AA19,"Muy Bajo",IF(AND(V19>AA19,V19<AB19),"Bajo",IF(AND(V19>AB19,V19<AC19),"Medio",IF(AND(V19>AC19,V19<AD19)," Alto",IF(V19>=AD19,"Muy Alto"))))) -> Muy Alto | Z19: 40.25 | AA19: =X19*$AA$18 -> 0 | AB19: =X19*$AB$18 -> 0 | AC19: =X19*$AC$18 -> 0 | AD19: =X19*$AD$18 -> 0
L20: =" "&Impactos!C3 -> Reducción de los riesgos derivados de las inundaciones, regulación de avenidas. | V20: =COMPILADO!D10 -> 7 | X20: =Z20*F$8 -> 0 | Y20: =IF(V20<=AA20,"Muy Bajo",IF(AND(V20>AA20,V20<AB20),"Bajo",IF(AND(V20>AB20,V20<AC20),"Medio",IF(AND(V20>AC20,V20<AD20)," Alto",IF(V20>=AD20,"Muy Alto"))))) -> Muy Alto | Z20: 36.5 | AA20: =X20*$AA$18 -> 0 | AB20: =X20*$AB$18 -> 0 | AC20: =X20*$AC$18 -> 0 | AD20: =X20*$AD$18 -> 0
L21: =" "&Impactos!C4 -> Incremento de la recarga de agua de los acuíferos | V21: =COMPILADO!E10 -> 7 | X21: 0 | Y21: Muy Alto | Z21: 39 | AA21: 0 | AB21: 0 | AC21: 0 | AD21: 0
L22: =" "&Impactos!C5 -> Regulación térmica y disminución de las islas urbanas de calor | V22: =COMPILADO!F10 -> 8 | X22: 0 | Y22: Muy Alto | Z22: 35.25 | AA22: 0 | AB22: 0 | AC22: 0 | AD22: 0
L23: =" "&Impactos!C6 -> Mejora de la conectividad ecológica. | V23: =COMPILADO!G10 -> 3 | X23: 0 | Y23: Muy Alto | Z23: 33.25 | AA23: 0 | AB23: 0 | AC23: 0 | AD23: 0
J24: Mitigación | L24: =" "&Impactos!C7 -> Secuestro de carbono | V24: =COMPILADO!H10 -> 4 | X24: 0 | Y24: Muy Alto | Z24: 26.75 | AA24: 0 | AB24: 0 | AC24: 0 | AD24: 0
L25: =" "&Impactos!C8 -> Reducción de emisiones de GEI | V25: =COMPILADO!I10 -> 2 | X25: 0 | Y25: Muy Alto | Z25: 25.25 | AA25: 0 | AB25: 0 | AC25: 0 | AD25: 0
J26: Ambientales | L26: =" "&Impactos!C9 -> Mejora de la calidad del aire | V26: =COMPILADO!J10 -> 4 | X26: 0 | Y26: Muy Alto | Z26: 29.25 | AA26: 0 | AB26: 0 | AC26: 0 | AD26: 0
L27: =" "&Impactos!C10 -> Mejora de la calidad del agua (purificación del agua) | V27: =COMPILADO!K10 -> 8 | X27: 0 | Y27: Muy Alto | Z27: 35.25 | AA27: 0 | AB27: 0 | AC27: 0 | AD27: 0
L28: =" "&Impactos!C11 -> Reducción de la contaminación por ruido | V28: =COMPILADO!L10 -> 4 | X28: 0 | Y28: Muy Alto | Z28: 29.5 | AA28: 0 | AB28: 0 | AC28: 0 | AD28: 0
L29: =" "&Impactos!C12 -> Control de la erosión del suelo | V29: =COMPILADO!M10 -> 5 | X29: 0 | Y29: Muy Alto | Z29: 27.75 | AA29: 0 | AB29: 0 | AC29: 0 | AD29: 0
L30: =" "&Impactos!C13 -> Mantenimiento, protección y mejora de hábitats, vida silvestre y biodiversidad | V30: =COMPILADO!N10 -> 3 | X30: 0 | Y30: Muy Alto | Z30: 32.25 | AA30: 0 | AB30: 0 | AC30: 0 | AD30: 0
L31: =" "&Impactos!C14 -> Producción de servicios ecosistémicos | V31: =COMPILADO!O10 -> 4 | X31: 0 | Y31: Muy Alto | Z31: 31.25 | AA31: 0 | AB31: 0 | AC31: 0 | AD31: 0
J32: Sociales | L32: =" "&Impactos!C15 -> Mejora de los valores estéticos | V32: =COMPILADO!P10 -> 8 | X32: 0 | Y32: Muy Alto | Z32: 49.5 | AA32: 0 | AB32: 0 | AC32: 0 | AD32: 0
L33: =" "&Impactos!C16 -> Mejora accesibilidad de recursos para deporte, cultura, formación y recreación | V33: =COMPILADO!Q10 -> 5 | X33: 0 | Y33: Muy Alto | Z33: 38 | AA33: 0 | AB33: 0 | AC33: 0 | AD33: 0
L34: =" "&Impactos!C17 -> Mejora de la salud y bienestar | V34: =COMPILADO!R10 -> 2 | X34: 0 | Y34: Muy Alto | Z34: 29.25 | AA34: 0 | AB34: 0 | AC34: 0 | AD34: 0
L35: =" "&Impactos!C18 -> Generación de recursos comunitarios (fortalecimiento de la ciudadanía) | V35: =COMPILADO!S10 -> 5 | X35: 0 | Y35: Muy Alto | Z35: 39.25 | AA35: 0 | AB35: 0 | AC35: 0 | AD35: 0
L36: =" "&Impactos!C19 -> Fortalecimiento de sentimiento de pertenencia e identidad | V36: =COMPILADO!T10 -> 3 | X36: 0 | Y36: Muy Alto | Z36: 35.25 | AA36: 0 | AB36: 0 | AC36: 0 | AD36: 0
J37: Económicos | L37: =" "&Impactos!C20 -> Optimización de la inversión pública | V37: =COMPILADO!U10 -> 2 | X37: 0 | Y37: Muy Alto | Z37: 30.75 | AA37: 0 | AB37: 0 | AC37: 0 | AD37: 0
L38: =" "&Impactos!C21 -> Atracción para negocios, turismo y economía verde | V38: =COMPILADO!V10 -> 3 | X38: 0 | Y38: Muy Alto | Z38: 40.75 | AA38: 0 | AB38: 0 | AC38: 0 | AD38: 0
P40: 17
J43: Proyectos Seleccionados
J45: Nombre Proyecto | R45: Estado | Y45: Año ejecución

Sheet Instrucciones Consolidar (hidden)
B2: Herramienta para la estimación y evaluación de los impactos de la infraestructura verde
F4: 1. Introducción | K4: Resultados Consolidados
B8: Acerca de esta pestaña:
B9: Detalla los pasos a seguir e información relevante sobre la administración del workbook
B14: Instrucciones para consolidar la evaluación de varios proyectos
B17: Pasos
B18: 1. Abrir todos los archivos excel de los proyectos que se requieren consolidar. 2. En la pestaña Resultados Consolidados dar click en el ícono Importar Proyectos 3. Seleccionar los archivos y dar click en Importar 4. Revisar el mapa de impactos consolidado IMPORTANTE: Para que funcione correctamente el macro de consolidación requiere importar todos los proyectos al mismo tiempo.

Sheet Bienvenida
D2: Herramienta para la estimación y evaluación de los impactos de la infraestructura verde
B12: Bienvenida
C16: ¿Qué deseas realizar?

Sheet 1. Introducción
B2: Herramienta para la estimación y evaluación de los impactos de la infraestructura verde
F4: 1. Introducción | J4: 2. Preparar evaluación | O4: 3. Recolección de datos | T4: 4. Impactos/Resultados
G6: 1a. Instrucciones de trabajo | L6: 1b. Flujo de trabajo | P6: 1c. Registrar datos de proyecto
B8: Acerca de esta pestaña:
B9: Esta pestaña presenta los propósitos de la herramienta y la metodología
B14: 1. Introducción
E17: El concepto de Infraestructura Verde (IV) da cuenta de la gran cantidad de definiciones, no solamente por la disciplina desde la cuál se está proponiendo la definición (no es lo mismo que se defina desde la ingeniería civil, la arquitectura, la biología, el urbanismo, etc.), sino por la gran cantidad de componentes que la integran de acuerdo con expertos y defensores de ella, desde elementos físicos que forman parte del espacio urbano (desde jardineras, pavimentos, arbolado, etc.) hasta las instalaciones hidráulicas, sanitarias y en general la edificación.
E26: Evaluar un proyecto Esta herramienta permite evaluar a través de los elementos que constituyen cada uno de los ejes de Infraestructura verde, agua, biodiversidad, movilidad y espacio público, el impacto de un proyecto en la mitigación y adaptación al cambio climático. Se han propuesto como base principal de la herramienta 20 impactos destacados, clasificados en impactos de adaptación-mitigación, social, ambiental y económico. A su vez se han identificado y definido 25 componentes de la infraestructura verde que se catalogan en cada uno de los ejes citados. Utilizando como indicador los resultados que ofrecen los componentes por cada uno de los impactos, se ha podido generar una matriz que explicita el grado de intervención de un elemento (p.e, arbolado urbano) sobre un impacto (p.e, Mejora de la calidad del aire). Finalmente, al desarrollar la evaluación de doble dirección por cada uno impactos frente a componentes, obtenemos una matriz que evalúa el gradiente de implicación (directa, media, indirecta o nula) del elemento sobre el impacto específico, pudiendo finalmente obtener la evaluación cualitativa global de un proyecto dependiendo de los elementos de IV que incorpora. Consolidar resultados de evaluación La herramienta cuenta con un módulo para consolidar los resultados de evaluaciones individuales de proyectos permitiendo de manera fácil generar un mapa de impactos de un grupo de proyectos.
E49: La herramienta está diseñada para dotar a los usuarios de un marco sólido para evaluar los proyectos de la vertiente Mejoramiento Integral de Barrios del Programa de Mejoramiento Urbano de la SEDATU. Se considera que los usuarios serán fundamentalmente los servidores públicos de la SEDATU, responsables de dar seguimiento a los proyectos, obras y acciones financiadas a través de esta vertiente, en particular, proyectos de mejoramiento del espacio público, ámbito territorial susceptible de incorporar elementos de Infraestructura Verde (IV).
E57: La metodología está diseñada para evaluar proyectos que tienen al menos algún componente de infraestructura verde. Los elementos de la metodología propuesta adoptan los siguientes principios: orientación imparcial, impactos positivos, enfoque de arriba hacia abajo, impacto contingente y agregación de impactos Se utiliza la lógica de intervención o teoría del cambio como fundamento teórico para dar respuesta a cómo los componentes de la IV de un proyecto conducen a resultados e impactos o beneficios concretos. El mapeo de los impactos establece la estructura general de la metodología y guía la evaluación de los proyectos ya que identifica todas las interconexiones entre los componentes de infraestructura verde y cada uno de los 20 impactos de la clasificación. Los mapas son una simplificación de la realidad, son modelos de las situaciones observadas que informan sus vínculos teóricos de causalidad, pero no son específicas del contexto; lo que significa que ilustran los potenciales impactos de la implementación de los componentes de IV en cualquier lugar. La definición de la relación se basa en información empírica, datos recopilados, informes de evaluación y casos de estudio según el componente de análisis. En otras palabras, los mapas desarrollados se basan en evidencia de relaciones causales de impactos observados luego de intervenciones reales (ex-post).

Sheet 1a. Instrucciones de Trabajo
B2: Herramienta para la estimación y evaluación de los impactos de la infraestructura verde
F4: 1. Introducción | J4: 2. Preparar evaluación | O4: 3. Recolección de datos | T4: 4. Impactos/Resultados
G6: 1a. Instrucciones de trabajo | L6: 1b. Flujo de trabajo | P6: 1c. Registrar datos de proyecto
B8: Acerca de esta pestaña:
B9: Detalla los pasos a seguir e información relevante sobre la administración del workbook
B14: 1a. Instrucciones de trabajo
B17: Pasos | Q17: Versión de la herramienta | U17: V1
B18: 1 | C18: Registrar datos de proyecto
B19: 2 | C19: Seleccionar los ejes en los que se quiere realizar la evaluación | Q19: Password | U19: 333
B20: 3 | C20: Seleccionar los componentes de infraestructura verde que son implementados en el proyecto
B21: 4 | C21: Responder a las preguntas de cada componente seleccionado | Q21: Mostrar celdas de trabajo | T21: Ocultar celdas de trabajo
B22: 5 | C22: Generar el resumen de resultados
B24: Contenidos | Q24: Recomendaciones
B26: Nombre pestaña | F26: Contenidos | Q26: Para el correcto funcionamiento de la herramienta se recomienda: 1. Habilitar los macros 2. No cambiar el formato 3. No añadir filas ni columnas 4. No eliminar las pestañas ocultas 5. Utilizar un archivo por proyecto
B28: 1. Introducción | F28: Esta pestaña presenta los propósitos de la herramienta y la metodología
B29: 1a. Instrucciones de Trabajo | F29: Detalla los pasos a seguir e información relevante sobre la administración del workbook
B30: 1b. Flujo de trabajo | F30: Esta sección describe el flujo de trabajo de la herramienta y los pasos necesarios para realizar la evaluación del proyecto del PMU.
B31: 1c. Registrar datos proyecto | F31: En esta pestaña se piden registrar los datos generales del proyecto.
B32: 2. Preparar evaluación | F32: Esta sección permite habilitar las pestañas de los componentes de cada eje para su evaluación. Seleccionando el eje aparece la pestaña correspondiente.
B33: 2a. Componentes Agua | F33: Esta pestaña tiene la definición de los componentes de IV del eje de Agua
B34: 2b. Componentes Biodiversidad | F34: Esta pestaña tiene la definición de los componentes de IV del eje de Biodiversidad
B35: 2c. Componentes Movilidad | F35: Esta pestaña tiene la definición de los componentes de IV del eje de Movilidad
B36: 2d. Componentes Espacio Público | F36: Esta pestaña tiene la definición de los componentes de IV del eje de Espacio Público
B37: 3. Recolección de datos | F37: Esta pestaña recolecta los datos necesarios para la estimación de GEI y otros impactos relevantes
B38: 4. Impactos/Resultados | F38: Esta sección presenta el mapa de impactos de los componentes de infraestructura verde seleccionados y permite generar un reporte de resultados en un archivo aparte.

Sheet 1b. Flujo de trabajo
B2: Herramienta para la estimación y evaluación de los impactos de la infraestructura verde
F4: 1. Introducción | J4: 2. Preparar evaluación | O4: 3. Recolección de datos | T4: 4. Impactos/Resultados
G6: 1a. Instrucciones de trabajo | L6: 1b. Flujo de trabajo | P6: 1c. Registrar datos de proyecto
B8: Acerca de esta pestaña:
B9: Esta sección describe el flujo de trabajo de la herramienta y los pasos necesarios para realizar la evaluación del proyecto del PMU.
B14: 1b. Flujo de trabajo
C17: Registrar el proyecto:
C18: El primer paso es registrar la información del proyecto que permita conocer las características específicas de la actividad, dar detalle de la situación antes del proyecto y anotar datos del ejercicio de evaluación. La pestaña de registro puede ser accesada dando clik a la flecha o usando los links de navegación en la parte superior de la pestaña.
C23: Preparar la evaluación:
C24: El segundo paso es registrar los componentes de Infraestructura Verde (IV) que contienen los proyectos para cada uno de los ejes: AGUA, BIODIVERSIDAD, MOVILIDAD y ESPACIO PÚBLICO. Para algunos componentes identificados se contestan algunas preguntas para registrar la presencia o ausencia de ciertas características para poder identificar en qué grupos de impactos el proyecto está contribuyendo positivamente y con qué grado de impacto. La pestaña para identificar los componentes de IV puede ser accesada dando clik a la flecha o usando los links de navegación en la parte superior de la pestaña.
C32: Recolección de datos:
C33: El siguiente paso es recopilar los datos de los impactos del proyecto. Se hace énfasis en la estimación de la reducción de emisiones GEI y en algunos otros impactos que sean relevantes para el contexto mexicano. La pestaña de registro puede ser accesada dando clik a la flecha o usando los links de navegación en la parte superior de la pestaña.
C38: Presentación de resultados:
C39: El último paso es revisar el mapa de impactos generado con base a los componente de IV elegidos y las respuestas dadas. Los impactos están orginazados por Climáticos (Mitigación y Adaptación), Ambientales, Sociales y Económicos. La pestaña de resultados puede ser accesada dando clik a la flecha o usando los links de navegación en la parte superior de la pestaña.

Sheet 1c. Registrar datos proyecto
B2: Herramienta para la estimación y evaluación de los impactos de la infraestructura verde
F4: 1. Introducción | J4: 2. Preparar evaluación | O4: 3. Recolección de datos | T4: 4. Impactos/Resultados
G6: 1a. Instrucciones de trabajo | L6: 1b. Flujo de trabajo | P6: 1c. Registrar datos de proyecto
B8: Acerca de esta pestaña:
B9: En esta pestaña se piden registrar los datos generales del proyecto.
B14: 1c. Registrar datos de proyecto
B17: Clave del Proyecto | N17: Nombre del Proyecto
B18: Estado
B19: Municipio
B20: Año de ejecución
B21: Superficie/ área de intervención (m2) | N21: Notas y observaciones:
B22: Modalidad
B23: Clima
B24: Presupuesto total
B25: Población beneficiaria
B26: Situación antes del proyecto

Sheet 2. Preparar evaluación
B2: Herramienta para la estimación y evaluación de los impactos de la infraestructura verde
F4: 1. Introducción | J4: 2. Preparar evaluación | O4: 3. Recolección de datos | T4: 4. Impactos/Resultados
B8: Acerca de esta pestaña:
B9: Esta sección permite habilitar las pestañas de los componentes de cada eje para su evaluación.
B14: 2. Preparar evaluación
B17: Selecciona el eje para que aparezca la pestaña de evaluación correspondiente.
D27: P | I27: P | N27: P | S27: P

Sheet 2a. Componentes Agua (hidden)
B2: Herramienta para la estimación y evaluación de los impactos de la infraestructura verde
F4: 1. Introducción | J4: 2. Preparar evaluación | O4: 3. Recolección de datos | T4: 4. Impactos/Resultados
G6: 2a. Componentes AGUA | K6: 2b. Componentes BIODIVERSIDAD | P6: 2c. Componentes MOVILIDAD | U6: 2d. Componentes ESPACIO PUBLICO
B8: Acerca de esta pestaña:
B9: Esta pestaña tiene la definición de los componentes de IV del eje de Agua
B14: 2a. Selección de componentes de IV del eje AGUA
B23: =" "&Agua!B3 -> BIODIGESTORES
O24: Presupuesto asignado | R24: 0 | V24: =Agua!B2 -> CA1
C27: =Agua!B4 -> Se refiere a un contenedor cerrado de forma hermética que contiene residuos orgánicos de origen vegetal o animal para generar biogas con trazas de otros gases como fuente de energía. | O27: =" "&Agua!B7 -> Número de biodigestores
O30: =" "&Agua!B8 -> Capacidad de los biodigestores (aproximada)
O33: =" "&Agua!B12 -> El biodigestor contiene algún sistema de filtración del agua restante que evite la contaminación de los acuíferos? (humedal artificial, plantas filtrantes,…)
C37: =IF(D37=0," ","Fuente:") -> Fuente: | D37: =Agua!B5 -> Ortiz-Moreno, J. A., Masera-Cerutti, O., & Fuentes-Gutierrez, A. F. (2014). La ecotecnología en México (Primera ed., p. 126). México, D. F.: Imagia. https://ecotec.unam.mx/ecoteca/biodigestores-2 http://www.scielo.org.mx/scielo.php?script=sci_arttext&pid=S1870-57662018000200235
B41: =" "&Agua!C3 -> PRESAS FILTRANTES
O42: Presupuesto asignado | R42: 0 | V42: =Agua!C2 -> CA2
C45: =Agua!C4 -> Se refiere a la acumulación de tierras/piedra/arena anexa a las las banquetas (aceras) que tiene por objeto retener sólidos y aumentar la infiltración de un cauce proximo a la infraestructura. | O45: =" "&Agua!C7 -> Superficie aproximada (m2)
O48: =" "&Agua!C12 -> ¿El área de la presa es protegida (cerca y tapa) evitando la contaminación por agentes externos (hojas, animales, etc.)?
C52: =IF(D52=0," ","Fuente:") -> Fuente: | D52: =Agua!C5 -> El anillo verde Interior. Hacia una infraestructura Verde Urbana en Vitoria-Gasteiz. Ayuntamiento de Vitoria-Gasteiz https://silo.tips/queue/cultura-y-manejo-adecuado-del-agua?&queue_id=-1&v=1632729959&u=MzEuNC4yNDcuMjI4
B56: =" "&Agua!D3 -> CUNETAS VERDES
O57: Presupuesto asignado | R57: 0 | V57: =Agua!D2 -> CA3
C60: =Agua!D4 -> Se refiere a la franja a lo largo de las banquetas (aceras) que tradicionalmente tiene una función de soterrar la infraestructura eléctrica e hidráulica. En este caso, se busca que tenga una función de ralentizar, conducir, contener e infiltrar las escorrentías en lluvias extraordinarias, además de acojer vegetación. | O60: =" "&Agua!D7 -> metros lineales (promedio ancho de cuneta)
O63: =" "&Agua!D8 -> ¿Se incluye arbolado urbano y plantas?
O66: =" "&Agua!D12 -> ¿Cuál es la pendiente de la cuneta verde?
C70: =IF(D70=0," ","Fuente:") -> Fuente: | D70: =Agua!D5 -> Infografías de soluciones de infraestructura verde. GIZ y SEDATU. Ejemplo de biozanja como solución de gestión alternativa del agua de lluvia en la Ciudad de Mérida. http://www.consorciodesantiago.org/sites/default/files/anexo_2-funcionalidad_de_los_espacios_verdes.pdf
B74: =" "&Agua!E3 -> DRENAJE SEPARATIVO
O75: Presupuesto asignado | R75: 0 | V75: =Agua!E2 -> CA4
C78: =Agua!E4 -> Se refiere a la existencia de conductos independientes para el agua de lluvia y para las aguas servidas que surgen bien de la infraestructuras o de las edificaciones colindantes. | O78: =" "&Agua!E7 -> metros lineales conducto para aguas de lluvia
O81: =" "&Agua!E8 -> metros lineales conducto para aguas negras
O84: =" "&Agua!E9 -> ¿m3 de agua de lluvia que no es contaminada con aguas negras?
C87: =IF(D87=0," ","Fuente:") -> Fuente: | D87: =Agua!E5 -> Manejo de aguas grises y residuales del “Curso de calles e infraestructura Verde del programa CiClim. GIZ, SEDATU y SEMARNAT”.
B91: =" "&Agua!F3 -> HUMEDAL SEMIARTIFICIAL
O92: Presupuesto asignado | R92: 0 | V92: =Agua!F2 -> CA5
C95: =Agua!F4 -> Se refiere a sistemas acuáticos que replican los procesos de descomposición que ocurren naturalmente en medios lacustres o marinos. La estructura más común es un lecho relleno de grava y arena colocado en una superficie impermeable (arcilla o gomembrana) y plantas acuáticas macrófitas cuyas raíces liberan oxígeno y evitan la sedimentación anóxica. | O95: =" "&Agua!F7 -> m2
O98: =" "&Agua!F8 -> ¿Incluye especies herbáceas que sirven a polinizadores?
O101: =" "&Agua!F12 -> ¿El humedal tiene una función para la purificación de agua?
O104: =" "&Agua!F17 -> ¿La ubicación del humedal está en constante asoleamiento?
O107: =" "&Agua!F24 -> ¿Qué tipo de especies se eligen en los humedales o riberas de los ríos?
O110: =" "&Agua!F33 -> ¿Los criterios de diseño valoran aspectos estéticos y generan recursos comunitarios con áreas deportivas y culturales ?
C114: =IF(D114=0," ","Fuente:") -> Fuente: | D114: =Agua!F5 -> https://ecotec.unam.mx/ecoteca/humedales-artificiales-2. 20/agosto/2021) https://www.ipcc-nggip.iges.or.jp/public/2006gl/spanish/pdf/4_Volume4/V4_07_Ch7_Wetlands.pdf | O114: =" "&Agua!F40 -> ¿La intervención carece de costoso mantenimiento?
B119: =" "&Agua!G3 -> PAVIMENTOS PERMEABLES
O120: Presupuesto asignado | R120: 0 | V120: =Agua!G2 -> CA6
C123: =Agua!G4 -> Son pavimentos, continuos o modulares, que se componen de materiales que dejan pasar el agua a su través. Permiten que ésta se infiltre por el terreno o sea captada y retenida en capas subsuperficiales para su posterior reutilización o evacuación. El objetivo de estos sistemas es generar zonas donde el agua se infiltre o se almacene amortiguando la cantidad de agua lluvia precipitada y aumentando los tiempos de concentración de la misma. | O123: =" "&Agua!G7 -> ¿Cuál es % del total del suelo antropizado con pavimento permeable?
C132: =IF(D132=0," ","Fuente:") -> Fuente: | D132: =Agua!G5 -> Legret et al., 1999; EPA,1999.
B136: =" "&Agua!H3 -> POZOS DE ABSORCIÓN/INFILTRACIÓN
O137: Presupuesto asignado | R137: 0 | V137: =Agua!H2 -> CA7
C140: =Agua!H4 -> Los pozos de absorción permiten que el subsuelo capte la mayor cantidad de agua de lluvia en caso de eventos meteorológicos excepcionales y permite que el subsuelo absorba poco a poco el exceso de agua; su constitución debe ser de materiales pétreos gruesos. Por lo general es de 1 m de diámetro que conduce el agua a una capa del subsuelo que facilita la infiltración del agua en comparación a superficies impermeables a nivel de calle. Es posible que haya pozos de absorción para aguas de lluvia y aguas negras o grises. | O140: =" "&Agua!H7 -> Número de pozos
O143: =" "&Agua!H12 -> ¿Las dimensiones cumplen con el criterio de diseño que evita la colmatación (ancho menor de 7.5m y profundidad entre 1 -2 m) ?
C150: =IF(D150=0," ","Fuente:") -> Fuente: | D150: =Agua!H5 -> Curso de calles e infraestructura Verde del programa CiClim. GIZ, SEDATU y SEMARNAT https://www.canaldeisabelsegunda.es/documents/20143/79037/2016_Normas_Redes_Saneamiento.pdf/e1461e6b-3e64-8356-2b8f-05ee9845c4d8
B154: =" "&Agua!I3 -> JARDINERAS FILTRANTES
O155: Presupuesto asignado | R155: 0 | V155: =Agua!I2 -> CA8
C158: =Agua!I4 -> Las jardineras filtrantes son sistemas de absorción y filtrado de aguas pluviales. Consiste en una depresión o pozo relleno con distintas capas de material filtrante (piedras porosas de diferentes granulometría), encima de las cuales se planta un jardín. Este sistema permite que el agua de lluvia fluya a través de las superficies impermeables como pavimentos, azoteas, banquetas para ser absorbida, filtrada y regresada al acuífero. El jardín infiltrante cumple varios propósitos. Por un lado, evita las inundaciones que se generan cuando el agua sobrepasa la capacidad de drenaje de una ciudad: y por otro lado, evita que el agua se estanque y se acumule en depresiones impermeables y permite que se filtre hacia el subsuelo y se recargue el acuífero. | O158: =" "&Agua!I7 -> Superficie aproximada (m2)
O160: =" "&Agua!I8 -> 
O161: =" "&Agua!I12 -> ¿Incluye especies vegetales, arbustos y/o herbaceas que resisten al encharcamiento y protége a los polinizadores?
C171: =IF(D171=0," ","Fuente:") -> Fuente: | D171: =Agua!I5 -> Asimilado a los Jardines de lluvia de: 1) “Catalogación de las NBS implementadas y previstas en Vitoria-Gasteiz”, 2) Jardines para infiltración de “Curso de calles e infraestructura Verde del programa CiClim. GIZ, SEDATU y SEMARNAT”. http://sudsostenible.com/elementos-de-una-calle-verde-el-arbolado/
B175: =" "&Agua!J3 -> 
O179: =" "&Agua!J7 -> 
O182: =" "&Agua!J8 -> 
C189: =IF(D189=0," ","Fuente:") -> 

Sheet Agua (hidden)
A1: Eje | B1: Agua | C1: Agua | D1: Agua | E1: Agua | F1: Agua | G1: Agua | H1: Agua | I1: Agua
A2: Código | B2: CA1 | C2: CA2 | D2: CA3 | E2: CA4 | F2: CA5 | G2: CA6 | H2: CA7 | I2: CA8
A3: Componentes | B3: BIODIGESTORES | C3: PRESAS FILTRANTES | D3: CUNETAS VERDES | E3: DRENAJE SEPARATIVO | F3: HUMEDAL SEMIARTIFICIAL | G3: PAVIMENTOS PERMEABLES | H3: POZOS DE ABSORCIÓN/INFILTRACIÓN | I3: JARDINERAS FILTRANTES
A4: Descripción | B4: Se refiere a un contenedor cerrado de forma hermética que contiene residuos orgánicos de origen vegetal o animal para generar biogas con trazas de otros gases como fuente de energía. | C4: Se refiere a la acumulación de tierras/piedra/arena anexa a las las banquetas (aceras) que tiene por objeto retener sólidos y aumentar la infiltración de un cauce proximo a la infraestructura. | D4: Se refiere a la franja a lo largo de las banquetas (aceras) que tradicionalmente tiene una función de soterrar la infraestructura eléctrica e hidráulica. En este caso, se busca que tenga una función de ralentizar, conducir, contener e infiltrar las escorrentías en lluvias extraordinarias, además de acojer vegetación. | E4: Se refiere a la existencia de conductos independientes para el agua de lluvia y para las aguas servidas que surgen bien de la infraestructuras o de las edificaciones colindantes. | F4: Se refiere a sistemas acuáticos que replican los procesos de descomposición que ocurren naturalmente en medios lacustres o marinos. La estructura más común es un lecho relleno de grava y arena colocado en una superficie impermeable (arcilla o gomembrana) y plantas acuáticas macrófitas cuyas raíces liberan oxígeno y evitan la sedimentación anóxica. | G4: Son pavimentos, continuos o modulares, que se componen de materiales que dejan pasar el agua a su través. Permiten que ésta se infiltre por el terreno o sea captada y retenida en capas subsuperficiales para su posterior reutilización o evacuación. El objetivo de estos sistemas es generar zonas donde el agua se infiltre o se almacene amortiguando la cantidad de agua lluvia precipitada y aumentando los tiempos de concentración de la misma. | H4: Los pozos de absorción permiten que el subsuelo capte la mayor cantidad de agua de lluvia en caso de eventos meteorológicos excepcionales y permite que el subsuelo absorba poco a poco el exceso de agua; su constitución debe ser de materiales pétreos gruesos. Por lo general es de 1 m de diámetro que conduce el agua a una capa del subsuelo que facilita la infiltración del agua en comparación a superficies impermeables a nivel de calle. Es posible que haya pozos de absorción para aguas de lluvia y aguas negras o grises. | I4: Las jardineras filtrantes son sistemas de absorción y filtrado de aguas pluviales. Consiste en una depresión o pozo relleno con distintas capas de material filtrante (piedras porosas de diferentes granulometría), encima de las cuales se planta un jardín. Este sistema permite que el agua de lluvia fluya a través de las superficies impermeables como pavimentos, azoteas, banquetas para ser absorbida, filtrada y regresada al acuífero. El jardín infiltrante cumple varios propósitos. Por un lado, evita las inundaciones que se generan cuando el agua sobrepasa la capacidad de drenaje de una ciudad: y por otro lado, evita que el agua se estanque y se acumule en depresiones impermeables y permite que se filtre hacia el subsuelo y se recargue el acuífero.
A5: Referencia | B5: Ortiz-Moreno, J. A., Masera-Cerutti, O., & Fuentes-Gutierrez, A. F. (2014). La ecotecnología en México (Primera ed., p. 126). México, D. F.: Imagia. https://ecotec.unam.mx/ecoteca/biodigestores-2 http://www.scielo.org.mx/scielo.php?script=sci_arttext&pid=S1870-57662018000200235 | C5: El anillo verde Interior. Hacia una infraestructura Verde Urbana en Vitoria-Gasteiz. Ayuntamiento de Vitoria-Gasteiz https://silo.tips/queue/cultura-y-manejo-adecuado-del-agua?&queue_id=-1&v=1632729959&u=MzEuNC4yNDcuMjI4 | D5: Infografías de soluciones de infraestructura verde. GIZ y SEDATU. Ejemplo de biozanja como solución de gestión alternativa del agua de lluvia en la Ciudad de Mérida. http://www.consorciodesantiago.org/sites/default/files/anexo_2-funcionalidad_de_los_espacios_verdes.pdf | E5: Manejo de aguas grises y residuales del “Curso de calles e infraestructura Verde del programa CiClim. GIZ, SEDATU y SEMARNAT”. | F5: https://ecotec.unam.mx/ecoteca/humedales-artificiales-2. 20/agosto/2021) https://www.ipcc-nggip.iges.or.jp/public/2006gl/spanish/pdf/4_Volume4/V4_07_Ch7_Wetlands.pdf | G5: Legret et al., 1999; EPA,1999. | H5: Curso de calles e infraestructura Verde del programa CiClim. GIZ, SEDATU y SEMARNAT https://www.canaldeisabelsegunda.es/documents/20143/79037/2016_Normas_Redes_Saneamiento.pdf/e1461e6b-3e64-8356-2b8f-05ee9845c4d8 | I5: Asimilado a los Jardines de lluvia de: 1) “Catalogación de las NBS implementadas y previstas en Vitoria-Gasteiz”, 2) Jardines para infiltración de “Curso de calles e infraestructura Verde del programa CiClim. GIZ, SEDATU y SEMARNAT”. http://sudsostenible.com/elementos-de-una-calle-verde-el-arbolado/
A6: Pregunta 1 | B6: ¿El proyecto incluye instalación de biodigestor? | C6: ¿El proyecto incluye presas filtrantes? | D6: ¿El proyecto incluye cunetas verdes? | E6: ¿El proyecto cuenta con drenaje separativo? | F6: ¿El proyecto cuenta con humedal artificial? | G6: ¿El proyecto cuenta con Pavimentos Permeables? | H6: ¿El proyecto cuenta con pozos de absorción? | I6: ¿Incluye jardineras filtrantes,zanjas o pozos de infiltración?
A7: Pregunta 1SI | B7: Número de biodigestores | C7: Superficie aproximada (m2) | D7: metros lineales (promedio ancho de cuneta) | E7: metros lineales conducto para aguas de lluvia | F7: m2 | G7: ¿Cuál es % del total del suelo antropizado con pavimento permeable? | H7: Número de pozos | I7: Superficie aproximada (m2)
B8: Capacidad de los biodigestores (aproximada) | D8: ¿Se incluye arbolado urbano y plantas? | E8: metros lineales conducto para aguas negras | F8: ¿Incluye especies herbáceas que sirven a polinizadores? | G8: 0
E9: ¿m3 de agua de lluvia que no es contaminada con aguas negras? | G9: <30%
G10: 31% - 49%
G11: >50%
A12: Pregunta Q1 | B12: El biodigestor contiene algún sistema de filtración del agua restante que evite la contaminación de los acuíferos? (humedal artificial, plantas filtrantes,…) | C12: ¿El área de la presa es protegida (cerca y tapa) evitando la contaminación por agentes externos (hojas, animales, etc.)? | D12: ¿Cuál es la pendiente de la cuneta verde? | F12: ¿El humedal tiene una función para la purificación de agua? | H12: ¿Las dimensiones cumplen con el criterio de diseño que evita la colmatación (ancho menor de 7.5m y profundidad entre 1 -2 m) ? | I12: ¿Incluye especies vegetales, arbustos y/o herbaceas que resisten al encharcamiento y protége a los polinizadores?
A13: RQ1 | B13: SI | C13: SI | D13: entre 1 - 6 % | F13: SI | H13: SI | I13: SI
A14: RQ2 | B14: NO | C14: NO | D14: > 6% | F14: NO | H14: NO | I14: NO
A15: QSI | B15: 1 | C15: 1 | D15: 1 | F15: 1 | H15: 1 | I15: 1
A16: QNO | B16: 0.5 | C16: 0.5 | D16: 0.5 | F16: 0.5 | H16: 0.5 | I16: 0.5
A17: Adaptación/Mitigación | F17: ¿La ubicación del humedal está en constante asoleamiento?
A18: Adaptación/Mitigación | F18: SI
A19: Adaptación/Mitigación | F19: NO
F20: NO SE
A21: Adaptación/Mitigación | F21: 1.25
A22: Adaptación/Mitigación | F22: 0.75
F23: 1
A24: Ambientales | F24: ¿Qué tipo de especies se eligen en los humedales o riberas de los ríos?
A25: Ambientales | F25: Nativas
A26: Ambientales | F26: No Nativas
A27: Ambientales | F27: Ambas
A28: Ambientales | F28: No sé
A29: Ambientales | F29: 1.25
A30: Ambientales | F30: 0.75
A31: Ambientales | F31: 1.05
A32: Ambientales | F32: 1
A33: Sociales | F33: ¿Los criterios de diseño valoran aspectos estéticos y generan recursos comunitarios con áreas deportivas y culturales ?
A34: Sociales | F34: SI
A35: Sociales | F35: NO
A36: Sociales | F36: NO SE
A37: Sociales | F37: 1.25
A38: Sociales | F38: 0.75
F39: 1
A40: Económicos | F40: ¿La intervención carece de costoso mantenimiento?
A41: Económicos | F41: SI
A42: Económicos | F42: NO
F43: NO SE
A44: Económicos | F44: 1.25
A45: Económicos | F45: 0.75
F46: 1

Sheet RegistroA (hidden)
A1: Código | B1: Componentes | C1: Presupuesto | D1: Pregunta 1 | E1: Respuesta | F1: Valor | G1: Pregunta 1SI | H1: Dato 1 | I1: Pregunta 2SI | J1: Dato 2 | K1: Pregunta 3SI | L1: Dato 3 | O1: Pregunta clave | P1: Dato Q | Q1: Dato q1 | R1: Climático | S1: β1 | T1: Ambientales | U1: β2 | V1: Sociales | W1: β3 | X1: Económicos | Y1: β4 | AA1: 1 | AB1: 2 | AC1: 3 | AD1: 4 | AE1: 5 | AF1: 6 | AG1: 7 | AH1: 8 | AI1: 9 | AJ1: 10 | AK1: 11 | AL1: 12 | AM1: 13 | AN1: 14 | AO1: 15 | AP1: 16 | AQ1: 17 | AR1: 18 | AS1: 19 | AT1: 20 | AV1: Suma | AZ1: 1 | BA1: 2 | BB1: 3 | BC1: 4 | BD1: 5 | BE1: 6 | BF1: 7 | BG1: 8 | BH1: 9 | BI1: 10 | BJ1: 11 | BK1: 12 | BL1: 13 | BM1: 14 | BN1: 15 | BO1: 16 | BP1: 17 | BQ1: 18 | BR1: 19 | BS1: 20 | BT1: Suma
A2: CA1 | B2: =Agua!B3 -> BIODIGESTORES | C2: ='2a. Componentes Agua'!R24 -> 0 | D2: =Agua!B6 -> ¿El proyecto incluye instalación de biodigestor? | E2: NO | F2: =IF(E2="NO",0,1) -> 0 | G2: =Agua!B7 -> Número de biodigestores | H2: ='2a. Componentes Agua'!V27 -> 0 | I2: =Agua!B8 -> Capacidad de los biodigestores (aproximada) | J2: ='2a. Componentes Agua'!V30 -> 0 | O2: =Agua!B12 -> El biodigestor contiene algún sistema de filtración del agua restante que evite la contaminación de los acuíferos? (humedal artificial, plantas filtrantes,…) | P2: ='2a. Componentes Agua'!V33 -> 0 | Q2: =IF(P2=0,1,IF(P2="SI",Agua!B15,Agua!B16)) -> 1 | R2: 1 | S2: 1 | T2: 1 | U2: 1 | V2: 1 | W2: 1 | X2: 1 | Y2: 1 | AA2: =IF($E2="SI",VLOOKUP((CONCATENATE($A2,AA$1)),'Impactos Data'!$F$2:$G$521,2,FALSE),0) -> 0 | AB2: =IF($E2="SI",VLOOKUP((CONCATENATE($A2,AB$1)),'Impactos Data'!$F$2:$G$521,2,FALSE),0) -> 0 | AC2: =IF($E2="SI",VLOOKUP((CONCATENATE($A2,AC$1)),'Impactos Data'!$F$2:$G$521,2,FALSE),0) -> 0 | AD2: =IF($E2="SI",VLOOKUP((CONCATENATE($A2,AD$1)),'Impactos Data'!$F$2:$G$521,2,FALSE),0) -> 0 | AE2: =IF($E2="SI",VLOOKUP((CONCATENATE($A2,AE$1)),'Impactos Data'!$F$2:$G$521,2,FALSE),0) -> 0 | AF2: =IF($E2="SI",VLOOKUP((CONCATENATE($A2,AF$1)),'Impactos Data'!$F$2:$G$521,2,FALSE),0) -> 0 | AG2: =IF($E2="SI",VLOOKUP((CONCATENATE($A2,AG$1)),'Impactos Data'!$F$2:$G$521,2,FALSE),0) -> 0 | AH2: =IF($E2="SI",VLOOKUP((CONCATENATE($A2,AH$1)),'Impactos Data'!$F$2:$G$521,2,FALSE),0) -> 0 | AI2: =IF($E2="SI",VLOOKUP((CONCATENATE($A2,AI$1)),'Impactos Data'!$F$2:$G$521,2,FALSE),0) -> 0 | AJ2: =IF($E2="SI",VLOOKUP((CONCATENATE($A2,AJ$1)),'Impactos Data'!$F$2:$G$521,2,FALSE),0) -> 0 | AK2: =IF($E2="SI",VLOOKUP((CONCATENATE($A2,AK$1)),'Impactos Data'!$F$2:$G$521,2,FALSE),0) -> 0 | AL2: =IF($E2="SI",VLOOKUP((CONCATENATE($A2,AL$1)),'Impactos Data'!$F$2:$G$521,2,FALSE),0) -> 0 | AM2: =IF($E2="SI",VLOOKUP((CONCATENATE($A2,AM$1)),'Impactos Data'!$F$2:$G$521,2,FALSE),0) -> 0 | AN2: =IF($E2="SI",VLOOKUP((CONCATENATE($A2,AN$1)),'Impactos Data'!$F$2:$G$521,2,FALSE),0) -> 0 | AO2: =IF($E2="SI",VLOOKUP((CONCATENATE($A2,AO$1)),'Impactos Data'!$F$2:$G$521,2,FALSE),0) -> 0 | AP2: =IF($E2="SI",VLOOKUP((CONCATENATE($A2,AP$1)),'Impactos Data'!$F$2:$G$521,2,FALSE),0) -> 0 | AQ2: =IF($E2="SI",VLOOKUP((CONCATENATE($A2,AQ$1)),'Impactos Data'!$F$2:$G$521,2,FALSE),0) -> 0 | AR2: =IF($E2="SI",VLOOKUP((CONCATENATE($A2,AR$1)),'Impactos Data'!$F$2:$G$521,2,FALSE),0) -> 0 | AS2: =IF($E2="SI",VLOOKUP((CONCATENATE($A2,AS$1)),'Impactos Data'!$F$2:$G$521,2,FALSE),0) -> 0 | AT2: =IF($E2="SI",VLOOKUP((CONCATENATE($A2,AT$1)),'Impactos Data'!$F$2:$G$521,2,FALSE),0) -> 0 | AV2: =SUM(AA2:AT2) -> 0 | AZ2: =AA2*$Q2*$S2 -> 0 | BA2: 0 | BB2: =AC2*$Q2*$S2 -> 0 | BC2: 0 | BD2: 0 | BE2: 0 | BF2: =AG2*$Q2*$S2 -> 0 | BG2: =AH2*$Q2*$U2 -> 0 | BH2: =AI2*$Q2*$U2 -> 0 | BI2: 0 | BJ2: 0 | BK2: 0 | BL2: 0 | BM2: =AN2*$Q2*$W2 -> 0 | BN2: =AO2*$Q2*$W2 -> 0 | BO2: 0 | BP2: 0 | BQ2: 0 | BR2: =AS2*$Q2*$Y2 -> 0 | BS2: =AT2*$Q2*$Y2 -> 0 | BT2: =SUM(AZ2:BS2) -> 0
A3: CA2 | B3: =Agua!C3 -> PRESAS FILTRANTES | C3: ='2a. Componentes Agua'!R42 -> 0 | D3: =Agua!C6 -> ¿El proyecto incluye presas filtrantes? | E3: NO | F3: =IF(E3="NO",0,1) -> 0 | G3: =Agua!C7 -> Superficie aproximada (m2) | H3: ='2a. Componentes Agua'!V45 -> 0 | O3: =Agua!C12 -> ¿El área de la presa es protegida (cerca y tapa) evitando la contaminación por agentes externos (hojas, animales, etc.)? | P3: ='2a. Componentes Agua'!V48 -> 0 | Q3: =IF(P3=0,1,IF(P3="SI",Agua!C15,Agua!C16)) -> 1 | R3: 1 | S3: 1 | T3: 1 | U3: 1 | V3: 1 | W3: 1 | X3: 1 | Y3: 1 | AA3: =IF($E3="SI",VLOOKUP((CONCATENATE($A3,AA$1)),'Impactos Data'!$F$2:$G$521,2,FALSE),0) -> 0 | AB3: =IF($E3="SI",VLOOKUP((CONCATENATE($A3,AB$1)),'Impactos Data'!$F$2:$G$521,2,FALSE),0) -> 0 | AC3: =IF($E3="SI",VLOOKUP((CONCATENATE($A3,AC$1)),'Impactos Data'!$F$2:$G$521,2,FALSE),0) -> 0 | AD3: =IF($E3="SI",VLOOKUP((CONCATENATE($A3,AD$1)),'Impactos Data'!$F$2:$G$521,2,FALSE),0) -> 0 | AE3: =IF($E3="SI",VLOOKUP((CONCATENATE($A3,AE$1)),'Impactos Data'!$F$2:$G$521,2,FALSE),0) -> 0 | AF3: =IF($E3="SI",VLOOKUP((CONCATENATE($A3,AF$1)),'Impactos Data'!$F$2:$G$521,2,FALSE),0) -> 0 | AG3: =IF($E3="SI",VLOOKUP((CONCATENATE($A3,AG$1)),'Impactos Data'!$F$2:$G$521,2,FALSE),0) -> 0 | AH3: =IF($E3="SI",VLOOKUP((CONCATENATE($A3,AH$1)),'Impactos Data'!$F$2:$G$521,2,FALSE),0) -> 0 | AI3: =IF($E3="SI",VLOOKUP((CONCATENATE($A3,AI$1)),'Impactos Data'!$F$2:$G$521,2,FALSE),0) -> 0 | AJ3: =IF($E3="SI",VLOOKUP((CONCATENATE($A3,AJ$1)),'Impactos Data'!$F$2:$G$521,2,FALSE),0) -> 0 | AK3: =IF($E3="SI",VLOOKUP((CONCATENATE($A3,AK$1)),'Impactos Data'!$F$2:$G$521,2,FALSE),0) -> 0 | AL3: =IF($E3="SI",VLOOKUP((CONCATENATE($A3,AL$1)),'Impactos Data'!$F$2:$G$521,2,FALSE),0) -> 0 | AM3: =IF($E3="SI",VLOOKUP((CONCATENATE($A3,AM$1)),'Impactos Data'!$F$2:$G$521,2,FALSE),0) -> 0 | AN3: =IF($E3="SI",VLOOKUP((CONCATENATE($A3,AN$1)),'Impactos Data'!$F$2:$G$521,2,FALSE),0) -> 0 | AO3: =IF($E3="SI",VLOOKUP((CONCATENATE($A3,AO$1)),'Impactos Data'!$F$2:$G$521,2,FALSE),0) -> 0 | AP3: =IF($E3="SI",VLOOKUP((CONCATENATE($A3,AP$1)),'Impactos Data'!$F$2:$G$521,2,FALSE),0) -> 0 | AQ3: =IF($E3="SI",VLOOKUP((CONCATENATE($A3,AQ$1)),'Impactos Data'!$F$2:$G$521,2,FALSE),0) -> 0 | AR3: =IF($E3="SI",VLOOKUP((CONCATENATE($A3,AR$1)),'Impactos Data'!$F$2:$G$521,2,FALSE),0) -> 0 | AS3: =IF($E3="SI",VLOOKUP((CONCATENATE($A3,AS$1)),'Impactos Data'!$F$2:$G$521,2,FALSE),0) -> 0 | AT3: =IF($E3="SI",VLOOKUP((CONCATENATE($A3,AT$1)),'Impactos Data'!$F$2:$G$521,2,FALSE),0) -> 0 | AV3: =SUM(AA3:AT3) -> 0 | AZ3: 0 | BA3: 0 | BB3: 0 | BC3: 0 | BD3: 0 | BE3: 0 | BF3: 0 | BG3: =AH3*$Q3*$U3 -> 0 | BH3: =AI3*$Q3*$U3 -> 0 | BI3: =AJ3*$Q3*$U3 -> 0 | BJ3: =AK3*$Q3*$U3 -> 0 | BK3: =AL3*$Q3*$U3 -> 0 | BL3: =AM3*$Q3*$U3 -> 0 | BM3: =AN3*$Q3*$W3 -> 0 | BN3: 0 | BO3: 0 | BP3: 0 | BQ3: 0 | BR3: =AS3*$Q3*$Y3 -> 0 | BS3: =AT3*$Q3*$Y3 -> 0 | BT3: =SUM(AZ3:BS3) -> 0
A4: CA3 | B4: =Agua!D3 -> CUNETAS VERDES | C4: ='2a. Componentes Agua'!R57 -> 0 | D4: =Agua!D6 -> ¿El proyecto incluye cunetas verdes? | E4: NO | F4: 0 | G4: =Agua!D7 -> metros lineales (promedio ancho de cuneta) | H4: ='2a. Componentes Agua'!V60 -> 0 | O4: =Agua!D12 -> ¿Cuál es la pendiente de la cuneta verde? | P4: ='2a. Componentes Agua'!V66 -> 0 | Q4: =IF(P4=0,1,IF(P4=Agua!D13,Agua!D15,Agua!D16)) -> 1 | R4: 1 | S4: 1 | T4: 1 | U4: 1 | V4: 1 | W4: 1 | X4: 1 | Y4: 1 | AA4: =IF($E4="SI",VLOOKUP((CONCATENATE($A4,AA$1)),'Impactos Data'!$F$2:$G$521,2,FALSE),0) -> 0 | AB4: =IF($E4="SI",VLOOKUP((CONCATENATE($A4,AB$1)),'Impactos Data'!$F$2:$G$521,2,FALSE),0) -> 0 | AC4: =IF($E4="SI",VLOOKUP((CONCATENATE($A4,AC$1)),'Impactos Data'!$F$2:$G$521,2,FALSE),0) -> 0 | AD4: =IF($E4="SI",VLOOKUP((CONCATENATE($A4,AD$1)),'Impactos Data'!$F$2:$G$521,2,FALSE),0) -> 0 | AE4: =IF($E4="SI",VLOOKUP((CONCATENATE($A4,AE$1)),'Impactos Data'!$F$2:$G$521,2,FALSE),0) -> 0 | AF4: =IF($E4="SI",VLOOKUP((CONCATENATE($A4,AF$1)),'Impactos Data'!$F$2:$G$521,2,FALSE),0) -> 0 | AG4: =IF($E4="SI",VLOOKUP((CONCATENATE($A4,AG$1)),'Impactos Data'!$F$2:$G$521,2,FALSE),0) -> 0 | AH4: =IF($E4="SI",VLOOKUP((CONCATENATE($A4,AH$1)),'Impactos Data'!$F$2:$G$521,2,FALSE),0) -> 0 | AI4: =IF($E4="SI",VLOOKUP((CONCATENATE($A4,AI$1)),'Impactos Data'!$F$2:$G$521,2,FALSE),0) -> 0 | AJ4: =IF($E4="SI",VLOOKUP((CONCATENATE($A4,AJ$1)),'Impactos Data'!$F$2:$G$521,2,FALSE),0) -> 0 | AK4: =IF($E4="SI",VLOOKUP((CONCATENATE($A4,AK$1)),'Impactos Data'!$F$2:$G$521,2,FALSE),0) -> 0 | AL4: =IF($E4="SI",VLOOKUP((CONCATENATE($A4,AL$1)),'Impactos Data'!$F$2:$G$521,2,FALSE),0) -> 0 | AM4: =IF($E4="SI",VLOOKUP((CONCATENATE($A4,AM$1)),'Impactos Data'!$F$2:$G$521,2,FALSE),0) -> 0 | AN4: =IF($E4="SI",VLOOKUP((CONCATENATE($A4,AN$1)),'Impactos Data'!$F$2:$G$521,2,FALSE),0) -> 0 | AO4: =IF($E4="SI",VLOOKUP((CONCATENATE($A4,AO$1)),'Impactos Data'!$F$2:$G$521,2,FALSE),0) -> 0 | AP4: =IF($E4="SI",VLOOKUP((CONCATENATE($A4,AP$1)),'Impactos Data'!$F$2:$G$521,2,FALSE),0) -> 0 | AQ4: =IF($E4="SI",VLOOKUP((CONCATENATE($A4,AQ$1)),'Impactos Data'!$F$2:$G$521,2,FALSE),0) -> 0 | AR4: =IF($E4="SI",VLOOKUP((CONCATENATE($A4,AR$1)),'Impactos Data'!$F$2:$G$521,2,FALSE),0) -> 0 | AS4: =IF($E4="SI",VLOOKUP((CONCATENATE($A4,AS$1)),'Impactos Data'!$F$2:$G$521,2,FALSE),0) -> 0 | AT4: =IF($E4="SI",VLOOKUP((CONCATENATE($A4,AT$1)),'Impactos Data'!$F$2:$G$521,2,FALSE),0) -> 0 | AV4: =SUM(AA4:AT4) -> 0 | AZ4: 0 | BA4: 0 | BB4: 0 | BC4: 0 | BD4: 0 | BE4: 0 | BF4: 0 | BG4: 0 | BH4: 0 | BI4: 0 | BJ4: 0 | BK4: 0 | BL4: 0 | BM4: 0 | BN4: 0 | BO4: 0 | BP4: 0 | BQ4: 0 | BR4: 0 | BS4: 0 | BT4: 0
A5: CA4 | B5: =Agua!E3 -> DRENAJE SEPARATIVO | C5: ='2a. Componentes Agua'!R75 -> 0 | D5: =Agua!E6 -> ¿El proyecto cuenta con drenaje separativo? | E5: NO | F5: 0 | G5: metros lineales conducto para aguas de lluvia | H5: ='2a. Componentes Agua'!V81 -> 0 | I5: ml conducto para aguas negras | J5: ='2a. Componentes Agua'!V84 -> 0 | O5: - | P5: - | Q5: 1 | R5: 1 | S5: 1 | T5: 1 | U5: 1 | V5: 1 | W5: 1 | X5: 1 | Y5: 1 | AA5: =IF($E5="SI",VLOOKUP((CONCATENATE($A5,AA$1)),'Impactos Data'!$F$2:$G$521,2,FALSE),0) -> 0 | AB5: =IF($E5="SI",VLOOKUP((CONCATENATE($A5,AB$1)),'Impactos Data'!$F$2:$G$521,2,FALSE),0) -> 0 | AC5: =IF($E5="SI",VLOOKUP((CONCATENATE($A5,AC$1)),'Impactos Data'!$F$2:$G$521,2,FALSE),0) -> 0 | AD5: =IF($E5="SI",VLOOKUP((CONCATENATE($A5,AD$1)),'Impactos Data'!$F$2:$G$521,2,FALSE),0) -> 0 | AE5: =IF($E5="SI",VLOOKUP((CONCATENATE($A5,AE$1)),'Impactos Data'!$F$2:$G$521,2,FALSE),0) -> 0 | AF5: =IF($E5="SI",VLOOKUP((CONCATENATE($A5,AF$1)),'Impactos Data'!$F$2:$G$521,2,FALSE),0) -> 0 | AG5: =IF($E5="SI",VLOOKUP((CONCATENATE($A5,AG$1)),'Impactos Data'!$F$2:$G$521,2,FALSE),0) -> 0 | AH5: =IF($E5="SI",VLOOKUP((CONCATENATE($A5,AH$1)),'Impactos Data'!$F$2:$G$521,2,FALSE),0) -> 0 | AI5: =IF($E5="SI",VLOOKUP((CONCATENATE($A5,AI$1)),'Impactos Data'!$F$2:$G$521,2,FALSE),0) -> 0 | AJ5: =IF($E5="SI",VLOOKUP((CONCATENATE($A5,AJ$1)),'Impactos Data'!$F$2:$G$521,2,FALSE),0) -> 0 | AK5: =IF($E5="SI",VLOOKUP((CONCATENATE($A5,AK$1)),'Impactos Data'!$F$2:$G$521,2,FALSE),0) -> 0 | AL5: =IF($E5="SI",VLOOKUP((CONCATENATE($A5,AL$1)),'Impactos Data'!$F$2:$G$521,2,FALSE),0) -> 0 | AM5: =IF($E5="SI",VLOOKUP((CONCATENATE($A5,AM$1)),'Impactos Data'!$F$2:$G$521,2,FALSE),0) -> 0 | AN5: =IF($E5="SI",VLOOKUP((CONCATENATE($A5,AN$1)),'Impactos Data'!$F$2:$G$521,2,FALSE),0) -> 0 | AO5: =IF($E5="SI",VLOOKUP((CONCATENATE($A5,AO$1)),'Impactos Data'!$F$2:$G$521,2,FALSE),0) -> 0 | AP5: =IF($E5="SI",VLOOKUP((CONCATENATE($A5,AP$1)),'Impactos Data'!$F$2:$G$521,2,FALSE),0) -> 0 | AQ5: =IF($E5="SI",VLOOKUP((CONCATENATE($A5,AQ$1)),'Impactos Data'!$F$2:$G$521,2,FALSE),0) -> 0 | AR5: =IF($E5="SI",VLOOKUP((CONCATENATE($A5,AR$1)),'Impactos Data'!$F$2:$G$521,2,FALSE),0) -> 0 | AS5: =IF($E5="SI",VLOOKUP((CONCATENATE($A5,AS$1)),'Impactos Data'!$F$2:$G$521,2,FALSE),0) -> 0 | AT5: =IF($E5="SI",VLOOKUP((CONCATENATE($A5,AT$1)),'Impactos Data'!$F$2:$G$521,2,FALSE),0) -> 0 | AV5: =SUM(AA5:AT5) -> 0 | AZ5: 0 | BA5: 0 | BB5: 0 | BC5: 0 | BD5: 0 | BE5: 0 | BF5: 0 | BG5: 0 | BH5: 0 | BI5: 0 | BJ5: 0 | BK5: 0 | BL5: 0 | BM5: 0 | BN5: 0 | BO5: 0 | BP5: 0 | BQ5: 0 | BR5: 0 | BS5: 0 | BT5: 0
A6: CA5 | B6: =Agua!F3 -> HUMEDAL SEMIARTIFICIAL | C6: ='2a. Componentes Agua'!R92 -> 0 | D6: =Agua!F6 -> ¿El proyecto cuenta con humedal artificial? | E6: NO | F6: 0 | G6: =Agua!F7 -> m2 | H6: ='2a. Componentes Agua'!V95 -> 0 | O6: =Agua!F12 -> ¿El humedal tiene una función para la purificación de agua? | P6: ='2a. Componentes Agua'!V101 -> 0 | Q6: =IF(P6=0,1,IF(P6="SI",Agua!F15,Agua!F16)) -> 1 | R6: ='2a. Componentes Agua'!V104 -> 0 | S6: =IF(R6=0,1,IF(R6=Agua!F18,Agua!F21,IF(R6=Agua!F19,Agua!F22,Agua!F23))) -> 1 | T6: ='2a. Componentes Agua'!V107 -> 0 | U6: =IF(T6=0,1,IF(T6=Agua!F25,Agua!F29,IF(T6=Agua!F26,Agua!F30,Agua!F32))) -> 1 | V6: ='2a. Componentes Agua'!V110 -> 0 | W6: =IF(V6=0,1,IF(V6=Agua!F34,Agua!F37,IF(V6=Agua!F35,Agua!F38,Agua!F39))) -> 1 | X6: ='2a. Componentes Agua'!V114 -> 0 | Y6: =IF(X6=0,1,IF(X6=Agua!F41,Agua!F44,IF(X6=Agua!F42,Agua!F45,Agua!F46))) -> 1 | AA6: =IF($E6="SI",VLOOKUP((CONCATENATE($A6,AA$1)),'Impactos Data'!$F$2:$G$521,2,FALSE),0) -> 0 | AB6: =IF($E6="SI",VLOOKUP((CONCATENATE($A6,AB$1)),'Impactos Data'!$F$2:$G$521,2,FALSE),0) -> 0 | AC6: =IF($E6="SI",VLOOKUP((CONCATENATE($A6,AC$1)),'Impactos Data'!$F$2:$G$521,2,FALSE),0) -> 0 | AD6: =IF($E6="SI",VLOOKUP((CONCATENATE($A6,AD$1)),'Impactos Data'!$F$2:$G$521,2,FALSE),0) -> 0 | AE6: =IF($E6="SI",VLOOKUP((CONCATENATE($A6,AE$1)),'Impactos Data'!$F$2:$G$521,2,FALSE),0) -> 0 | AF6: =IF($E6="SI",VLOOKUP((CONCATENATE($A6,AF$1)),'Impactos Data'!$F$2:$G$521,2,FALSE),0) -> 0 | AG6: =IF($E6="SI",VLOOKUP((CONCATENATE($A6,AG$1)),'Impactos Data'!$F$2:$G$521,2,FALSE),0) -> 0 | AH6: =IF($E6="SI",VLOOKUP((CONCATENATE($A6,AH$1)),'Impactos Data'!$F$2:$G$521,2,FALSE),0) -> 0 | AI6: =IF($E6="SI",VLOOKUP((CONCATENATE($A6,AI$1)),'Impactos Data'!$F$2:$G$521,2,FALSE),0) -> 0 | AJ6: =IF($E6="SI",VLOOKUP((CONCATENATE($A6,AJ$1)),'Impactos Data'!$F$2:$G$521,2,FALSE),0) -> 0 | AK6: =IF($E6="SI",VLOOKUP((CONCATENATE($A6,AK$1)),'Impactos Data'!$F$2:$G$521,2,FALSE),0) -> 0 | AL6: =IF($E6="SI",VLOOKUP((CONCATENATE($A6,AL$1)),'Impactos Data'!$F$2:$G$521,2,FALSE),0) -> 0 | AM6: =IF($E6="SI",VLOOKUP((CONCATENATE($A6,AM$1)),'Impactos Data'!$F$2:$G$521,2,FALSE),0) -> 0 | AN6: =IF($E6="SI",VLOOKUP((CONCATENATE($A6,AN$1)),'Impactos Data'!$F$2:$G$521,2,FALSE),0) -> 0 | AO6: =IF($E6="SI",VLOOKUP((CONCATENATE($A6,AO$1)),'Impactos Data'!$F$2:$G$521,2,FALSE),0) -> 0 | AP6: =IF($E6="SI",VLOOKUP((CONCATENATE($A6,AP$1)),'Impactos Data'!$F$2:$G$521,2,FALSE),0) -> 0 | AQ6: =IF($E6="SI",VLOOKUP((CONCATENATE($A6,AQ$1)),'Impactos Data'!$F$2:$G$521,2,FALSE),0) -> 0 | AR6: =IF($E6="SI",VLOOKUP((CONCATENATE($A6,AR$1)),'Impactos Data'!$F$2:$G$521,2,FALSE),0) -> 0 | AS6: =IF($E6="SI",VLOOKUP((CONCATENATE($A6,AS$1)),'Impactos Data'!$F$2:$G$521,2,FALSE),0) -> 0 | AT6: =IF($E6="SI",VLOOKUP((CONCATENATE($A6,AT$1)),'Impactos Data'!$F$2:$G$521,2,FALSE),0) -> 0 | AV6: =SUM(AA6:AT6) -> 0 | AZ6: 0 | BA6: 0 | BB6: 0 | BC6: 0 | BD6: 0 | BE6: 0 | BF6: =AG6*$Q6*$S6 -> 0 | BG6: =AH6*$Q6*$U6 -> 0 | BH6: 0 | BI6: 0 | BJ6: 0 | BK6: 0 | BL6: 0 | BM6: 0 | BN6: 0 | BO6: 0 | BP6: 0 | BQ6: 0 | BR6: 0 | BS6: 0 | BT6: 0
A7: CA6 | B7: =Agua!G3 -> PAVIMENTOS PERMEABLES | C7: ='2a. Componentes Agua'!S121 -> 0 | D7: =Agua!G6 -> ¿El proyecto cuenta con Pavimentos Permeables? | E7: NO | F7: 0 | G7: % del total del suelo antropizado con pavimento permeable | H7: ='2a. Componentes Agua'!V126 -> 0 | O7: - | P7: - | Q7: 1 | R7: 1 | S7: 1 | T7: 1 | U7: 1 | V7: 1 | W7: 1 | X7: 1 | Y7: 1 | AA7: =IF($E7="SI",VLOOKUP((CONCATENATE($A7,AA$1)),'Impactos Data'!$F$2:$G$521,2,FALSE),0) -> 0 | AB7: =IF($E7="SI",VLOOKUP((CONCATENATE($A7,AB$1)),'Impactos Data'!$F$2:$G$521,2,FALSE),0) -> 0 | AC7: =IF($E7="SI",VLOOKUP((CONCATENATE($A7,AC$1)),'Impactos Data'!$F$2:$G$521,2,FALSE),0) -> 0 | AD7: =IF($E7="SI",VLOOKUP((CONCATENATE($A7,AD$1)),'Impactos Data'!$F$2:$G$521,2,FALSE),0) -> 0 | AE7: =IF($E7="SI",VLOOKUP((CONCATENATE($A7,AE$1)),'Impactos Data'!$F$2:$G$521,2,FALSE),0) -> 0 | AF7: =IF($E7="SI",VLOOKUP((CONCATENATE($A7,AF$1)),'Impactos Data'!$F$2:$G$521,2,FALSE),0) -> 0 | AG7: =IF($E7="SI",VLOOKUP((CONCATENATE($A7,AG$1)),'Impactos Data'!$F$2:$G$521,2,FALSE),0) -> 0 | AH7: =IF($E7="SI",VLOOKUP((CONCATENATE($A7,AH$1)),'Impactos Data'!$F$2:$G$521,2,FALSE),0) -> 0 | AI7: =IF($E7="SI",VLOOKUP((CONCATENATE($A7,AI$1)),'Impactos Data'!$F$2:$G$521,2,FALSE),0) -> 0 | AJ7: =IF($E7="SI",VLOOKUP((CONCATENATE($A7,AJ$1)),'Impactos Data'!$F$2:$G$521,2,FALSE),0) -> 0 | AK7: =IF($E7="SI",VLOOKUP((CONCATENATE($A7,AK$1)),'Impactos Data'!$F$2:$G$521,2,FALSE),0) -> 0 | AL7: =IF($E7="SI",VLOOKUP((CONCATENATE($A7,AL$1)),'Impactos Data'!$F$2:$G$521,2,FALSE),0) -> 0 | AM7: =IF($E7="SI",VLOOKUP((CONCATENATE($A7,AM$1)),'Impactos Data'!$F$2:$G$521,2,FALSE),0) -> 0 | AN7: =IF($E7="SI",VLOOKUP((CONCATENATE($A7,AN$1)),'Impactos Data'!$F$2:$G$521,2,FALSE),0) -> 0 | AO7: =IF($E7="SI",VLOOKUP((CONCATENATE($A7,AO$1)),'Impactos Data'!$F$2:$G$521,2,FALSE),0) -> 0 | AP7: =IF($E7="SI",VLOOKUP((CONCATENATE($A7,AP$1)),'Impactos Data'!$F$2:$G$521,2,FALSE),0) -> 0 | AQ7: =IF($E7="SI",VLOOKUP((CONCATENATE($A7,AQ$1)),'Impactos Data'!$F$2:$G$521,2,FALSE),0) -> 0 | AR7: =IF($E7="SI",VLOOKUP((CONCATENATE($A7,AR$1)),'Impactos Data'!$F$2:$G$521,2,FALSE),0) -> 0 | AS7: =IF($E7="SI",VLOOKUP((CONCATENATE($A7,AS$1)),'Impactos Data'!$F$2:$G$521,2,FALSE),0) -> 0 | AT7: =IF($E7="SI",VLOOKUP((CONCATENATE($A7,AT$1)),'Impactos Data'!$F$2:$G$521,2,FALSE),0) -> 0 | AV7: 0 | AZ7: 0 | BA7: 0 | BB7: 0 | BC7: 0 | BD7: 0 | BE7: 0 | BF7: 0 | BG7: 0 | BH7: 0 | BI7: 0 | BJ7: =AK7*$Q7*$U7 -> 0 | BK7: 0 | BL7: 0 | BM7: 0 | BN7: 0 | BO7: 0 | BP7: 0 | BQ7: 0 | BR7: 0 | BS7: 0 | BT7: 0
A8: CA7 | B8: =Agua!H3 -> POZOS DE ABSORCIÓN/INFILTRACIÓN | C8: ='2a. Componentes Agua'!R137 -> 0 | D8: =Agua!H6 -> ¿El proyecto cuenta con pozos de absorción? | E8: NO | F8: 0 | G8: =Agua!H7 -> Número de pozos | H8: ='2a. Componentes Agua'!V140 -> 0 | O8: =Agua!H12 -> ¿Las dimensiones cumplen con el criterio de diseño que evita la colmatación (ancho menor de 7.5m y profundidad entre 1 -2 m) ? | P8: ='2a. Componentes Agua'!V143 -> 0 | Q8: =IF(P8=0,1,IF(P8="SI",Agua!H15,Agua!H16)) -> 1 | R8: 1 | S8: 1 | T8: 1 | U8: 1 | V8: 1 | W8: 1 | X8: 1 | Y8: 1 | AA8: =IF($E8="SI",VLOOKUP((CONCATENATE($A8,AA$1)),'Impactos Data'!$F$2:$G$521,2,FALSE),0) -> 0 | AB8: =IF($E8="SI",VLOOKUP((CONCATENATE($A8,AB$1)),'Impactos Data'!$F$2:$G$521,2,FALSE),0) -> 0 | AC8: =IF($E8="SI",VLOOKUP((CONCATENATE($A8,AC$1)),'Impactos Data'!$F$2:$G$521,2,FALSE),0) -> 0 | AD8: =IF($E8="SI",VLOOKUP((CONCATENATE($A8,AD$1)),'Impactos Data'!$F$2:$G$521,2,FALSE),0) -> 0 | AE8: =IF($E8="SI",VLOOKUP((CONCATENATE($A8,AE$1)),'Impactos Data'!$F$2:$G$521,2,FALSE),0) -> 0 | AF8: =IF($E8="SI",VLOOKUP((CONCATENATE($A8,AF$1)),'Impactos Data'!$F$2:$G$521,2,FALSE),0) -> 0 | AG8: =IF($E8="SI",VLOOKUP((CONCATENATE($A8,AG$1)),'Impactos Data'!$F$2:$G$521,2,FALSE),0) -> 0 | AH8: =IF($E8="SI",VLOOKUP((CONCATENATE($A8,AH$1)),'Impactos Data'!$F$2:$G$521,2,FALSE),0) -> 0 | AI8: =IF($E8="SI",VLOOKUP((CONCATENATE($A8,AI$1)),'Impactos Data'!$F$2:$G$521,2,FALSE),0) -> 0 | AJ8: =IF($E8="SI",VLOOKUP((CONCATENATE($A8,AJ$1)),'Impactos Data'!$F$2:$G$521,2,FALSE),0) -> 0 | AK8: =IF($E8="SI",VLOOKUP((CONCATENATE($A8,AK$1)),'Impactos Data'!$F$2:$G$521,2,FALSE),0) -> 0 | AL8: =IF($E8="SI",VLOOKUP((CONCATENATE($A8,AL$1)),'Impactos Data'!$F$2:$G$521,2,FALSE),0) -> 0 | AM8: =IF($E8="SI",VLOOKUP((CONCATENATE($A8,AM$1)),'Impactos Data'!$F$2:$G$521,2,FALSE),0) -> 0 | AN8: =IF($E8="SI",VLOOKUP((CONCATENATE($A8,AN$1)),'Impactos Data'!$F$2:$G$521,2,FALSE),0) -> 0 | AO8: =IF($E8="SI",VLOOKUP((CONCATENATE($A8,AO$1)),'Impactos Data'!$F$2:$G$521,2,FALSE),0) -> 0 | AP8: =IF($E8="SI",VLOOKUP((CONCATENATE($A8,AP$1)),'Impactos Data'!$F$2:$G$521,2,FALSE),0) -> 0 | AQ8: =IF($E8="SI",VLOOKUP((CONCATENATE($A8,AQ$1)),'Impactos Data'!$F$2:$G$521,2,FALSE),0) -> 0 | AR8: =IF($E8="SI",VLOOKUP((CONCATENATE($A8,AR$1)),'Impactos Data'!$F$2:$G$521,2,FALSE),0) -> 0 | AS8: =IF($E8="SI",VLOOKUP((CONCATENATE($A8,AS$1)),'Impactos Data'!$F$2:$G$521,2,FALSE),0) -> 0 | AT8: =IF($E8="SI",VLOOKUP((CONCATENATE($A8,AT$1)),'Impactos Data'!$F$2:$G$521,2,FALSE),0) -> 0 | AV8: 0 | AZ8: 0 | BA8: 0 | BB8: 0 | BC8: 0 | BD8: 0 | BE8: 0 | BF8: 0 | BG8: 0 | BH8: 0 | BI8: 0 | BJ8: 0 | BK8: 0 | BL8: =AM8*$Q8*$U8 -> 0 | BM8: 0 | BN8: 0 | BO8: 0 | BP8: 0 | BQ8: 0 | BR8: 0 | BS8: 0 | BT8: 0
A9: CA8 | B9: =Agua!I3 -> JARDINERAS FILTRANTES | C9: ='2a. Componentes Agua'!R155 -> 0 | D9: =Agua!I6 -> ¿Incluye jardineras filtrantes,zanjas o pozos de infiltración? | E9: NO | F9: 0 | G9: =Agua!I7 -> Superficie aproximada (m2) | H9: ='2a. Componentes Agua'!V158 -> 0 | O9: =Agua!I12 -> ¿Incluye especies vegetales, arbustos y/o herbaceas que resisten al encharcamiento y protége a los polinizadores? | P9: ='2a. Componentes Agua'!V161 -> 0 | Q9: =IF(P9=0,1,IF(P9="SI",Agua!H15,Agua!H16)) -> 1 | R9: 1 | S9: 1 | T9: 1 | U9: 1 | V9: 1 | W9: 1 | X9: 1 | Y9: 1 | AA9: =IF($E9="SI",VLOOKUP((CONCATENATE($A9,AA$1)),'Impactos Data'!$F$2:$G$521,2,FALSE),0) -> 0 | AB9: =IF($E9="SI",VLOOKUP((CONCATENATE($A9,AB$1)),'Impactos Data'!$F$2:$G$521,2,FALSE),0) -> 0 | AC9: =IF($E9="SI",VLOOKUP((CONCATENATE($A9,AC$1)),'Impactos Data'!$F$2:$G$521,2,FALSE),0) -> 0 | AD9: =IF($E9="SI",VLOOKUP((CONCATENATE($A9,AD$1)),'Impactos Data'!$F$2:$G$521,2,FALSE),0) -> 0 | AE9: =IF($E9="SI",VLOOKUP((CONCATENATE($A9,AE$1)),'Impactos Data'!$F$2:$G$521,2,FALSE),0) -> 0 | AF9: =IF($E9="SI",VLOOKUP((CONCATENATE($A9,AF$1)),'Impactos Data'!$F$2:$G$521,2,FALSE),0) -> 0 | AG9: =IF($E9="SI",VLOOKUP((CONCATENATE($A9,AG$1)),'Impactos Data'!$F$2:$G$521,2,FALSE),0) -> 0 | AH9: =IF($E9="SI",VLOOKUP((CONCATENATE($A9,AH$1)),'Impactos Data'!$F$2:$G$521,2,FALSE),0) -> 0 | AI9: =IF($E9="SI",VLOOKUP((CONCATENATE($A9,AI$1)),'Impactos Data'!$F$2:$G$521,2,FALSE),0) -> 0 | AJ9: =IF($E9="SI",VLOOKUP((CONCATENATE($A9,AJ$1)),'Impactos Data'!$F$2:$G$521,2,FALSE),0) -> 0 | AK9: =IF($E9="SI",VLOOKUP((CONCATENATE($A9,AK$1)),'Impactos Data'!$F$2:$G$521,2,FALSE),0) -> 0 | AL9: =IF($E9="SI",VLOOKUP((CONCATENATE($A9,AL$1)),'Impactos Data'!$F$2:$G$521,2,FALSE),0) -> 0 | AM9: =IF($E9="SI",VLOOKUP((CONCATENATE($A9,AM$1)),'Impactos Data'!$F$2:$G$521,2,FALSE),0) -> 0 | AN9: =IF($E9="SI",VLOOKUP((CONCATENATE($A9,AN$1)),'Impactos Data'!$F$2:$G$521,2,FALSE),0) -> 0 | AO9: =IF($E9="SI",VLOOKUP((CONCATENATE($A9,AO$1)),'Impactos Data'!$F$2:$G$521,2,FALSE),0) -> 0 | AP9: =IF($E9="SI",VLOOKUP((CONCATENATE($A9,AP$1)),'Impactos Data'!$F$2:$G$521,2,FALSE),0) -> 0 | AQ9: =IF($E9="SI",VLOOKUP((CONCATENATE($A9,AQ$1)),'Impactos Data'!$F$2:$G$521,2,FALSE),0) -> 0 | AR9: =IF($E9="SI",VLOOKUP((CONCATENATE($A9,AR$1)),'Impactos Data'!$F$2:$G$521,2,FALSE),0) -> 0 | AS9: =IF($E9="SI",VLOOKUP((CONCATENATE($A9,AS$1)),'Impactos Data'!$F$2:$G$521,2,FALSE),0) -> 0 | AT9: =IF($E9="SI",VLOOKUP((CONCATENATE($A9,AT$1)),'Impactos Data'!$F$2:$G$521,2,FALSE),0) -> 0 | AV9: 0 | AZ9: 0 | BA9: 0 | BB9: 0 | BC9: 0 | BD9: 0 | BE9: 0 | BF9: 0 | BG9: 0 | BH9: 0 | BI9: 0 | BJ9: 0 | BK9: 0 | BL9: =AM9*$Q9*$U9 -> 0 | BM9: 0 | BN9: 0 | BO9: 0 | BP9: 0 | BQ9: 0 | BR9: 0 | BS9: 0 | BT9: 0
AA19: =AA1 -> 1 | AB19: =AB1 -> 2 | AC19: 3 | AD19: 4 | AE19: 5 | AF19: 6 | AG19: 7 | AH19: 8 | AI19: 9 | AJ19: 10 | AK19: 11 | AL19: 12 | AM19: 13 | AN19: 14 | AO19: 15 | AP19: 16 | AQ19: 17 | AR19: 18 | AS19: 19 | AT19: 20 | AZ19: =AZ1 -> 1 | BA19: =BA1 -> 2 | BB19: 3 | BC19: 4 | BD19: 5 | BE19: 6 | BF19: 7 | BG19: 8 | BH19: 9 | BI19: 10 | BJ19: 11 | BK19: 12 | BL19: 13 | BM19: 14 | BN19: 15 | BO19: 16 | BP19: 17 | BQ19: 18 | BR19: 19 | BS19: 20
B20: SUM SI | C20: =SUMPRODUCT(C2:C10,F2:F10) -> 0 | D20: COUNT SI | E20: =COUNTIF(E2:E10,"SI") -> 0 | L20: SUMA | AA20: =SUM(AA2:AA10) -> 0 | AB20: =SUM(AB2:AB10) -> 0 | AC20: 0 | AD20: 0 | AE20: 0 | AF20: 0 | AG20: 0 | AH20: 0 | AI20: 0 | AJ20: 0 | AK20: 0 | AL20: 0 | AM20: 0 | AN20: 0 | AO20: 0 | AP20: 0 | AQ20: 0 | AR20: 0 | AS20: 0 | AT20: 0 | AZ20: =SUM(AZ2:AZ10) -> 0 | BA20: =SUM(BA2:BA10) -> 0 | BB20: 0 | BC20: 0 | BD20: 0 | BE20: 0 | BF20: 0 | BG20: 0 | BH20: 0 | BI20: 0 | BJ20: 0 | BK20: 0 | BL20: 0 | BM20: 0 | BN20: 0 | BO20: 0 | BP20: 0 | BQ20: 0 | BR20: 0 | BS20: 0

Sheet Impactos Data (hidden)
A1: ID | B1: Componente | C1: Eje | D1: ID | E1: Impacto | F1: SOP | G1: Valor (qué tan directo es el impacto) | H1: Efecto valor | I1: Razón | J1: Pregunta Contextualización | K1: Efecto valor2 | L1: Pregunta contextualización
A2: CA1 | B2: BIODIGESTORES | C2: AGUA | D2: 1 | E2: =VLOOKUP(D2,Impactos!$A$2:$C$21,3) -> Prevención de inundaciones, regulación de escorrentías | F2: =CONCATENATE(A2,D2) -> CA11 | G2: 0
A3: CA2 | B3: CISTERNAS/PRESAS FILTRANTES | C3: AGUA | D3: 1 | E3: =VLOOKUP(D3,Impactos!$A$2:$C$21,3) -> Prevención de inundaciones, regulación de escorrentías | F3: =CONCATENATE(A3,D3) -> CA21 | G3: 3
A4: CA3 | B4: CUNETAS VERDES | C4: AGUA | D4: 1 | E4: =VLOOKUP(D4,Impactos!$A$2:$C$21,3) -> Prevención de inundaciones, regulación de escorrentías | F4: CA31 | G4: 3
A5: CA4 | B5: DRENAJE SEPARATIVO | C5: AGUA | D5: 1 | E5: =VLOOKUP(D5,Impactos!$A$2:$C$21,3) -> Prevención de inundaciones, regulación de escorrentías | F5: CA41 | G5: 2
A6: CA5 | B6: HUMEDAL SEMIARTIFICIAL | C6: AGUA | D6: 1 | E6: =VLOOKUP(D6,Impactos!$A$2:$C$21,3) -> Prevención de inundaciones, regulación de escorrentías | F6: CA51 | G6: 2
A7: CA6 | B7: PAVIMENTOS PERMEABLES | C7: AGUA | D7: 1 | E7: =VLOOKUP(D7,Impactos!$A$2:$C$21,3) -> Prevención de inundaciones, regulación de escorrentías | F7: CA61 | G7: 3
A8: CA7 | B8: POZOS DE ABSORCIÓN | C8: AGUA | D8: 1 | E8: =VLOOKUP(D8,Impactos!$A$2:$C$21,3) -> Prevención de inundaciones, regulación de escorrentías | F8: CA71 | G8: 2
A9: CA1 | B9: BIODIGESTORES | C9: AGUA | D9: 2 | E9: =VLOOKUP(D9,Impactos!$A$2:$C$21,3) -> Reducción de los riesgos derivados de las inundaciones, regulación de avenidas. | F9: CA12 | G9: 0
A10: CA2 | B10: CISTERNAS/PRESAS FILTRANTES | C10: AGUA | D10: 2 | E10: =VLOOKUP(D10,Impactos!$A$2:$C$21,3) -> Reducción de los riesgos derivados de las inundaciones, regulación de avenidas. | F10: CA22 | G10: 2
A11: CA3 | B11: CUNETAS VERDES | C11: AGUA | D11: 2 | E11: =VLOOKUP(D11,Impactos!$A$2:$C$21,3) -> Reducción de los riesgos derivados de las inundaciones, regulación de avenidas. | F11: CA32 | G11: 2
A12: CA4 | B12: DRENAJE SEPARATIVO | C12: AGUA | D12: 2 | E12: =VLOOKUP(D12,Impactos!$A$2:$C$21,3) -> Reducción de los riesgos derivados de las inundaciones, regulación de avenidas. | F12: CA42 | G12: 2
A13: CA5 | B13: HUMEDAL SEMIARTIFICIAL | C13: AGUA | D13: 2 | E13: =VLOOKUP(D13,Impactos!$A$2:$C$21,3) -> Reducción de los riesgos derivados de las inundaciones, regulación de avenidas. | F13: CA52 | G13: 2
A14: CA6 | B14: PAVIMENTOS PERMEABLES | C14: AGUA | D14: 2 | E14: =VLOOKUP(D14,Impactos!$A$2:$C$21,3) -> Reducción de los riesgos derivados de las inundaciones, regulación de avenidas. | F14: CA62 | G14: 1
A15: CA7 | B15: POZOS DE ABSORCIÓN | C15: AGUA | D15: 2 | E15: =VLOOKUP(D15,Impactos!$A$2:$C$21,3) -> Reducción de los riesgos derivados de las inundaciones, regulación de avenidas. | F15: CA72 | G15: 2
A16: CA1 | B16: BIODIGESTORES | C16: AGUA | D16: 3 | E16: =VLOOKUP(D16,Impactos!$A$2:$C$21,3) -> Incremento de la recarga de agua de los acuíferos | F16: CA13 | G16: 0
A17: CA2 | B17: CISTERNAS/PRESAS FILTRANTES | C17: AGUA | D17: 3 | E17: =VLOOKUP(D17,Impactos!$A$2:$C$21,3) -> Incremento de la recarga de agua de los acuíferos | F17: CA23 | G17: 3
A18: CA3 | B18: CUNETAS VERDES | C18: AGUA | D18: 3 | E18: =VLOOKUP(D18,Impactos!$A$2:$C$21,3) -> Incremento de la recarga de agua de los acuíferos | F18: CA33 | G18: 3
A19: CA4 | B19: DRENAJE SEPARATIVO | C19: AGUA | D19: 3 | E19: =VLOOKUP(D19,Impactos!$A$2:$C$21,3) -> Incremento de la recarga de agua de los acuíferos | F19: CA43 | G19: 1
A20: CA5 | B20: HUMEDAL SEMIARTIFICIAL | C20: AGUA | D20: 3 | E20: =VLOOKUP(D20,Impactos!$A$2:$C$21,3) -> Incremento de la recarga de agua de los acuíferos | F20: CA53 | G20: 2
A21: CA6 | B21: PAVIMENTOS PERMEABLES | C21: AGUA | D21: 3 | E21: =VLOOKUP(D21,Impactos!$A$2:$C$21,3) -> Incremento de la recarga de agua de los acuíferos | F21: CA63 | G21: 2
A22: CA7 | B22: POZOS DE ABSORCIÓN | C22: AGUA | D22: 3 | E22: =VLOOKUP(D22,Impactos!$A$2:$C$21,3) -> Incremento de la recarga de agua de los acuíferos | F22: CA73 | G22: 3
A23: CA1 | B23: BIODIGESTORES | C23: AGUA | D23: 4 | E23: =VLOOKUP(D23,Impactos!$A$2:$C$21,3) -> Regulación térmica y disminución de las islas urbanas de calor | F23: CA14 | G23: 0
A24: CA2 | B24: CISTERNAS/PRESAS FILTRANTES | C24: AGUA | D24: 4 | E24: =VLOOKUP(D24,Impactos!$A$2:$C$21,3) -> Regulación térmica y disminución de las islas urbanas de calor | F24: CA24 | G24: 1
A25: CA3 | B25: CUNETAS VERDES | C25: AGUA | D25: 4 | E25: =VLOOKUP(D25,Impactos!$A$2:$C$21,3) -> Regulación térmica y disminución de las islas urbanas de calor | F25: CA34 | G25: 2
A26: CA4 | B26: DRENAJE SEPARATIVO | C26: AGUA | D26: 4 | E26: =VLOOKUP(D26,Impactos!$A$2:$C$21,3) -> Regulación térmica y disminución de las islas urbanas de calor | F26: CA44 | G26: 0
A27: CA5 | B27: HUMEDAL SEMIARTIFICIAL | C27: AGUA | D27: 4 | E27: =VLOOKUP(D27,Impactos!$A$2:$C$21,3) -> Regulación térmica y disminución de las islas urbanas de calor | F27: CA54 | G27: 2
A28: CA6 | B28: PAVIMENTOS PERMEABLES | C28: AGUA | D28: 4 | E28: =VLOOKUP(D28,Impactos!$A$2:$C$21,3) -> Regulación térmica y disminución de las islas urbanas de calor | F28: CA64 | G28: 1
A29: CA7 | B29: POZOS DE ABSORCIÓN | C29: AGUA | D29: 4 | E29: =VLOOKUP(D29,Impactos!$A$2:$C$21,3) -> Regulación térmica y disminución de las islas urbanas de calor | F29: CA74 | G29: 0
A30: CA1 | B30: BIODIGESTORES | C30: AGUA | D30: 5 | E30: =VLOOKUP(D30,Impactos!$A$2:$C$21,3) -> Mejora de la conectividad ecológica. | F30: CA15 | G30: 0
A31: CA2 | B31: CISTERNAS/PRESAS FILTRANTES | C31: AGUA | D31: 5 | E31: =VLOOKUP(D31,Impactos!$A$2:$C$21,3) -> Mejora de la conectividad ecológica. | F31: CA25 | G31: 0
A32: CA3 | B32: CUNETAS VERDES | C32: AGUA | D32: 5 | E32: =VLOOKUP(D32,Impactos!$A$2:$C$21,3) -> Mejora de la conectividad ecológica. | F32: CA35 | G32: 2
A33: CA4 | B33: DRENAJE SEPARATIVO | C33: AGUA | D33: 5 | E33: =VLOOKUP(D33,Impactos!$A$2:$C$21,3) -> Mejora de la conectividad ecológica. | F33: CA45 | G33: 0
A34: CA5 | B34: HUMEDAL SEMIARTIFICIAL | C34: AGUA | D34: 5 | E34: =VLOOKUP(D34,Impactos!$A$2:$C$21,3) -> Mejora de la conectividad ecológica. | F34: CA55 | G34: 3
A35: CA6 | B35: PAVIMENTOS PERMEABLES | C35: AGUA | D35: 5 | E35: =VLOOKUP(D35,Impactos!$A$2:$C$21,3) -> Mejora de la conectividad ecológica. | F35: CA65 | G35: 0
A36: CA7 | B36: POZOS DE ABSORCIÓN | C36: AGUA | D36: 5 | E36: =VLOOKUP(D36,Impactos!$A$2:$C$21,3) -> Mejora de la conectividad ecológica. | F36: CA75 | G36: 0
A37: CA1 | B37: BIODIGESTORES | C37: AGUA | D37: 6 | E37: =VLOOKUP(D37,Impactos!$A$2:$C$21,3) -> Secuestro de carbono | F37: CA16 | G37: 0
A38: CA2 | B38: CISTERNAS/PRESAS FILTRANTES | C38: AGUA | D38: 6 | E38: =VLOOKUP(D38,Impactos!$A$2:$C$21,3) -> Secuestro de carbono | F38: CA26 | G38: 0
A39: CA3 | B39: CUNETAS VERDES | C39: AGUA | D39: 6 | E39: =VLOOKUP(D39,Impactos!$A$2:$C$21,3) -> Secuestro de carbono | F39: CA36 | G39: 1
A40: CA4 | B40: DRENAJE SEPARATIVO | C40: AGUA | D40: 6 | E40: =VLOOKUP(D40,Impactos!$A$2:$C$21,3) -> Secuestro de carbono | F40: CA46 | G40: 0
A41: CA5 | B41: HUMEDAL SEMIARTIFICIAL | C41: AGUA | D41: 6 | E41: =VLOOKUP(D41,Impactos!$A$2:$C$21,3) -> Secuestro de carbono | F41: CA56 | G41: 2
A42: CA6 | B42: PAVIMENTOS PERMEABLES | C42: AGUA | D42: 6 | E42: =VLOOKUP(D42,Impactos!$A$2:$C$21,3) -> Secuestro de carbono | F42: CA66 | G42: 0
A43: CA7 | B43: POZOS DE ABSORCIÓN | C43: AGUA | D43: 6 | E43: =VLOOKUP(D43,Impactos!$A$2:$C$21,3) -> Secuestro de carbono | F43: CA76 | G43: 0
A44: CA1 | B44: BIODIGESTORES | C44: AGUA | D44: 7 | E44: =VLOOKUP(D44,Impactos!$A$2:$C$21,3) -> Reducción de emisiones de GEI | F44: CA17 | G44: 3
A45: CA2 | B45: CISTERNAS/PRESAS FILTRANTES | C45: AGUA | D45: 7 | E45: =VLOOKUP(D45,Impactos!$A$2:$C$21,3) -> Reducción de emisiones de GEI | F45: CA27 | G45: 0
A46: CA3 | B46: CUNETAS VERDES | C46: AGUA | D46: 7 | E46: =VLOOKUP(D46,Impactos!$A$2:$C$21,3) -> Reducción de emisiones de GEI | F46: CA37 | G46: 0
A47: CA4 | B47: DRENAJE SEPARATIVO | C47: AGUA | D47: 7 | E47: =VLOOKUP(D47,Impactos!$A$2:$C$21,3) -> Reducción de emisiones de GEI | F47: CA47 | G47: 0
A48: CA5 | B48: HUMEDAL SEMIARTIFICIAL | C48: AGUA | D48: 7 | E48: =VLOOKUP(D48,Impactos!$A$2:$C$21,3) -> Reducción de emisiones de GEI | F48: CA57 | G48: 0
A49: CA6 | B49: PAVIMENTOS PERMEABLES | C49: AGUA | D49: 7 | E49: =VLOOKUP(D49,Impactos!$A$2:$C$21,3) -> Reducción de emisiones de GEI | F49: CA67 | G49: 0
A50: CA7 | B50: POZOS DE ABSORCIÓN | C50: AGUA | D50: 7 | E50: =VLOOKUP(D50,Impactos!$A$2:$C$21,3) -> Reducción de emisiones de GEI | F50: CA77 | G50: 0
A51: CA1 | B51: BIODIGESTORES | C51: AGUA | D51: 8 | E51: =VLOOKUP(D51,Impactos!$A$2:$C$21,3) -> Mejora de la calidad del aire | F51: CA18 | G51: 0
A52: CA2 | B52: CISTERNAS/PRESAS FILTRANTES | C52: AGUA | D52: 8 | E52: =VLOOKUP(D52,Impactos!$A$2:$C$21,3) -> Mejora de la calidad del aire | F52: CA28 | G52: 0
A53: CA3 | B53: CUNETAS VERDES | C53: AGUA | D53: 8 | E53: =VLOOKUP(D53,Impactos!$A$2:$C$21,3) -> Mejora de la calidad del aire | F53: CA38 | G53: 0
A54: CA4 | B54: DRENAJE SEPARATIVO | C54: AGUA | D54: 8 | E54: =VLOOKUP(D54,Impactos!$A$2:$C$21,3) -> Mejora de la calidad del aire | F54: CA48 | G54: 0
A55: CA5 | B55: HUMEDAL SEMIARTIFICIAL | C55: AGUA | D55: 8 | E55: =VLOOKUP(D55,Impactos!$A$2:$C$21,3) -> Mejora de la calidad del aire | F55: CA58 | G55: 2
A56: CA6 | B56: PAVIMENTOS PERMEABLES | C56: AGUA | D56: 8 | E56: =VLOOKUP(D56,Impactos!$A$2:$C$21,3) -> Mejora de la calidad del aire | F56: CA68 | G56: 0
A57: CA7 | B57: POZOS DE ABSORCIÓN | C57: AGUA | D57: 8 | E57: =VLOOKUP(D57,Impactos!$A$2:$C$21,3) -> Mejora de la calidad del aire | F57: CA78 | G57: 0
A58: CA1 | B58: BIODIGESTORES | C58: AGUA | D58: 9 | E58: =VLOOKUP(D58,Impactos!$A$2:$C$21,3) -> Mejora de la calidad del agua (purificación del agua) | F58: CA19 | G58: 0
A59: CA2 | B59: CISTERNAS/PRESAS FILTRANTES | C59: AGUA | D59: 9 | E59: =VLOOKUP(D59,Impactos!$A$2:$C$21,3) -> Mejora de la calidad del agua (purificación del agua) | F59: CA29 | G59: 2
A60: CA3 | B60: CUNETAS VERDES | C60: AGUA | D60: 9 | E60: =VLOOKUP(D60,Impactos!$A$2:$C$21,3) -> Mejora de la calidad del agua (purificación del agua) | F60: CA39 | G60: 2
A61: CA4 | B61: DRENAJE SEPARATIVO | C61: AGUA | D61: 9 | E61: =VLOOKUP(D61,Impactos!$A$2:$C$21,3) -> Mejora de la calidad del agua (purificación del agua) | F61: CA49 | G61: 3
A62: CA5 | B62: HUMEDAL SEMIARTIFICIAL | C62: AGUA | D62: 9 | E62: =VLOOKUP(D62,Impactos!$A$2:$C$21,3) -> Mejora de la calidad del agua (purificación del agua) | F62: CA59 | G62: 2
A63: CA6 | B63: PAVIMENTOS PERMEABLES | C63: AGUA | D63: 9 | E63: =VLOOKUP(D63,Impactos!$A$2:$C$21,3) -> Mejora de la calidad del agua (purificación del agua) | F63: CA69 | G63: 2
A64: CA7 | B64: POZOS DE ABSORCIÓN | C64: AGUA | D64: 9 | E64: =VLOOKUP(D64,Impactos!$A$2:$C$21,3) -> Mejora de la calidad del agua (purificación del agua) | F64: CA79 | G64: 3
A65: CA1 | B65: BIODIGESTORES | C65: AGUA | D65: 10 | E65: =VLOOKUP(D65,Impactos!$A$2:$C$21,3) -> Reducción de la contaminación por ruido | F65: CA110 | G65: 0
A66: CA2 | B66: CISTERNAS/PRESAS FILTRANTES | C66: AGUA | D66: 10 | E66: =VLOOKUP(D66,Impactos!$A$2:$C$21,3) -> Reducción de la contaminación por ruido | F66: CA210 | G66: 0
A67: CA3 | B67: CUNETAS VERDES | C67: AGUA | D67: 10 | E67: =VLOOKUP(D67,Impactos!$A$2:$C$21,3) -> Reducción de la contaminación por ruido | F67: =CONCATENATE(A67,D67) -> CA310 | G67: 0
A68: CA4 | B68: DRENAJE SEPARATIVO | C68: AGUA | D68: 10 | E68: =VLOOKUP(D68,Impactos!$A$2:$C$21,3) -> Reducción de la contaminación por ruido | F68: CA410 | G68: 0
A69: CA5 | B69: HUMEDAL SEMIARTIFICIAL | C69: AGUA | D69: 10 | E69: =VLOOKUP(D69,Impactos!$A$2:$C$21,3) -> Reducción de la contaminación por ruido | F69: CA510 | G69: 1
A70: CA6 | B70: PAVIMENTOS PERMEABLES | C70: AGUA | D70: 10 | E70: =VLOOKUP(D70,Impactos!$A$2:$C$21,3) -> Reducción de la contaminación por ruido | F70: CA610 | G70: 1
A71: CA7 | B71: POZOS DE ABSORCIÓN | C71: AGUA | D71: 10 | E71: =VLOOKUP(D71,Impactos!$A$2:$C$21,3) -> Reducción de la contaminación por ruido | F71: CA710 | G71: 0
A72: CA1 | B72: BIODIGESTORES | C72: AGUA | D72: 11 | E72: =VLOOKUP(D72,Impactos!$A$2:$C$21,3) -> Control de la erosión del suelo | F72: CA111 | G72: 0
A73: CA2 | B73: CISTERNAS/PRESAS FILTRANTES | C73: AGUA | D73: 11 | E73: =VLOOKUP(D73,Impactos!$A$2:$C$21,3) -> Control de la erosión del suelo | F73: CA211 | G73: 1
A74: CA3 | B74: CUNETAS VERDES | C74: AGUA | D74: 11 | E74: =VLOOKUP(D74,Impactos!$A$2:$C$21,3) -> Control de la erosión del suelo | F74: CA311 | G74: 2
A75: CA4 | B75: DRENAJE SEPARATIVO | C75: AGUA | D75: 11 | E75: =VLOOKUP(D75,Impactos!$A$2:$C$21,3) -> Control de la erosión del suelo | F75: CA411 | G75: 1
A76: CA5 | B76: HUMEDAL SEMIARTIFICIAL | C76: AGUA | D76: 11 | E76: =VLOOKUP(D76,Impactos!$A$2:$C$21,3) -> Control de la erosión del suelo | F76: CA511 | G76: 1
A77: CA6 | B77: PAVIMENTOS PERMEABLES | C77: AGUA | D77: 11 | E77: =VLOOKUP(D77,Impactos!$A$2:$C$21,3) -> Control de la erosión del suelo | F77: CA611 | G77: 1
A78: CA7 | B78: POZOS DE ABSORCIÓN | C78: AGUA | D78: 11 | E78: =VLOOKUP(D78,Impactos!$A$2:$C$21,3) -> Control de la erosión del suelo | F78: CA711 | G78: 0
A79: CA1 | B79: BIODIGESTORES | C79: AGUA | D79: 12 | E79: =VLOOKUP(D79,Impactos!$A$2:$C$21,3) -> Mantenimiento, protección y mejora de hábitats, vida silvestre y biodiversidad | F79: CA112 | G79: 0
A80: CA2 | B80: CISTERNAS/PRESAS FILTRANTES | C80: AGUA | D80: 12 | E80: =VLOOKUP(D80,Impactos!$A$2:$C$21,3) -> Mantenimiento, protección y mejora de hábitats, vida silvestre y biodiversidad | F80: CA212 | G80: 0
A81: CA3 | B81: CUNETAS VERDES | C81: AGUA | D81: 12 | E81: =VLOOKUP(D81,Impactos!$A$2:$C$21,3) -> Mantenimiento, protección y mejora de hábitats, vida silvestre y biodiversidad | F81: CA312 | G81: 2
A82: CA4 | B82: DRENAJE SEPARATIVO | C82: AGUA | D82: 12 | E82: =VLOOKUP(D82,Impactos!$A$2:$C$21,3) -> Mantenimiento, protección y mejora de hábitats, vida silvestre y biodiversidad | F82: CA412 | G82: 0
A83: CA5 | B83: HUMEDAL SEMIARTIFICIAL | C83: AGUA | D83: 12 | E83: =VLOOKUP(D83,Impactos!$A$2:$C$21,3) -> Mantenimiento, protección y mejora de hábitats, vida silvestre y biodiversidad | F83: CA512 | G83: 3
A84: CA6 | B84: PAVIMENTOS PERMEABLES | C84: AGUA | D84: 12 | E84: =VLOOKUP(D84,Impactos!$A$2:$C$21,3) -> Mantenimiento, protección y mejora de hábitats, vida silvestre y biodiversidad | F84: CA612 | G84: 0
A85: CA7 | B85: POZOS DE ABSORCIÓN | C85: AGUA | D85: 12 | E85: =VLOOKUP(D85,Impactos!$A$2:$C$21,3) -> Mantenimiento, protección y mejora de hábitats, vida silvestre y biodiversidad | F85: CA712 | G85: 1
A86: CA1 | B86: BIODIGESTORES | C86: AGUA | D86: 13 | E86: =VLOOKUP(D86,Impactos!$A$2:$C$21,3) -> Producción de servicios ecosistémicos | F86: CA113 | G86: 0
A87: CA2 | B87: CISTERNAS/PRESAS FILTRANTES | C87: AGUA | D87: 13 | E87: =VLOOKUP(D87,Impactos!$A$2:$C$21,3) -> Producción de servicios ecosistémicos | F87: CA213 | G87: 0
A88: CA3 | B88: CUNETAS VERDES | C88: AGUA | D88: 13 | E88: =VLOOKUP(D88,Impactos!$A$2:$C$21,3) -> Producción de servicios ecosistémicos | F88: CA313 | G88: 2
A89: CA4 | B89: DRENAJE SEPARATIVO | C89: AGUA | D89: 13 | E89: =VLOOKUP(D89,Impactos!$A$2:$C$21,3) -> Producción de servicios ecosistémicos | F89: CA413 | G89: 0
A90: CA5 | B90: HUMEDAL SEMIARTIFICIAL | C90: AGUA | D90: 13 | E90: =VLOOKUP(D90,Impactos!$A$2:$C$21,3) -> Producción de servicios ecosistémicos | F90: CA513 | G90: 3
A91: CA6 | B91: PAVIMENTOS PERMEABLES | C91: AGUA | D91: 13 | E91: =VLOOKUP(D91,Impactos!$A$2:$C$21,3) -> Producción de servicios ecosistémicos | F91: CA613 | G91: 0
A92: CA7 | B92: POZOS DE ABSORCIÓN | C92: AGUA | D92: 13 | E92: =VLOOKUP(D92,Impactos!$A$2:$C$21,3) -> Producción de servicios ecosistémicos | F92: CA713 | G92: 0
A93: CA1 | B93: BIODIGESTORES | C93: AGUA | D93: 14 | E93: =VLOOKUP(D93,Impactos!$A$2:$C$21,3) -> Mejora de los valores estéticos | F93: CA114 | G93: 0
A94: CA2 | B94: CISTERNAS/PRESAS FILTRANTES | C94: AGUA | D94: 14 | E94: =VLOOKUP(D94,Impactos!$A$2:$C$21,3) -> Mejora de los valores estéticos | F94: CA214 | G94: 1
A95: CA3 | B95: CUNETAS VERDES | C95: AGUA | D95: 14 | E95: =VLOOKUP(D95,Impactos!$A$2:$C$21,3) -> Mejora de los valores estéticos | F95: CA314 | G95: 3
A96: CA4 | B96: DRENAJE SEPARATIVO | C96: AGUA | D96: 14 | E96: =VLOOKUP(D96,Impactos!$A$2:$C$21,3) -> Mejora de los valores estéticos | F96: CA414 | G96: 0
A97: CA5 | B97: HUMEDAL SEMIARTIFICIAL | C97: AGUA | D97: 14 | E97: =VLOOKUP(D97,Impactos!$A$2:$C$21,3) -> Mejora de los valores estéticos | F97: CA514 | G97: 2
A98: CA6 | B98: PAVIMENTOS PERMEABLES | C98: AGUA | D98: 14 | E98: =VLOOKUP(D98,Impactos!$A$2:$C$21,3) -> Mejora de los valores estéticos | F98: CA614 | G98: 1
A99: CA7 | B99: POZOS DE ABSORCIÓN | C99: AGUA | D99: 14 | E99: =VLOOKUP(D99,Impactos!$A$2:$C$21,3) -> Mejora de los valores estéticos | F99: CA714 | G99: 1
A100: CA1 | B100: BIODIGESTORES | C100: AGUA | D100: 15 | E100: =VLOOKUP(D100,Impactos!$A$2:$C$21,3) -> Mejora accesibilidad de recursos para deporte, cultura, formación y recreación | F100: CA115 | G100: 0
A101: CA2 | B101: CISTERNAS/PRESAS FILTRANTES | C101: AGUA | D101: 15 | E101: =VLOOKUP(D101,Impactos!$A$2:$C$21,3) -> Mejora accesibilidad de recursos para deporte, cultura, formación y recreación | F101: CA215 | G101: 0
A102: CA3 | B102: CUNETAS VERDES | C102: AGUA | D102: 15 | E102: =VLOOKUP(D102,Impactos!$A$2:$C$21,3) -> Mejora accesibilidad de recursos para deporte, cultura, formación y recreación | F102: CA315 | G102: 0
A103: CA4 | B103: DRENAJE SEPARATIVO | C103: AGUA | D103: 15 | E103: =VLOOKUP(D103,Impactos!$A$2:$C$21,3) -> Mejora accesibilidad de recursos para deporte, cultura, formación y recreación | F103: CA415 | G103: 0
A104: CA5 | B104: HUMEDAL SEMIARTIFICIAL | C104: AGUA | D104: 15 | E104: =VLOOKUP(D104,Impactos!$A$2:$C$21,3) -> Mejora accesibilidad de recursos para deporte, cultura, formación y recreación | F104: CA515 | G104: 2
A105: CA6 | B105: PAVIMENTOS PERMEABLES | C105: AGUA | D105: 15 | E105: =VLOOKUP(D105,Impactos!$A$2:$C$21,3) -> Mejora accesibilidad de recursos para deporte, cultura, formación y recreación | F105: CA615 | G105: 1
A106: CA7 | B106: POZOS DE ABSORCIÓN | C106: AGUA | D106: 15 | E106: =VLOOKUP(D106,Impactos!$A$2:$C$21,3) -> Mejora accesibilidad de recursos para deporte, cultura, formación y recreación | F106: CA715 | G106: 0
A107: CA1 | B107: BIODIGESTORES | C107: AGUA | D107: 16 | E107: =VLOOKUP(D107,Impactos!$A$2:$C$21,3) -> Mejora de la salud y bienestar | F107: CA116 | G107: 0
A108: CA2 | B108: CISTERNAS/PRESAS FILTRANTES | C108: AGUA | D108: 16 | E108: =VLOOKUP(D108,Impactos!$A$2:$C$21,3) -> Mejora de la salud y bienestar | F108: CA216 | G108: 0
A109: CA3 | B109: CUNETAS VERDES | C109: AGUA | D109: 16 | E109: =VLOOKUP(D109,Impactos!$A$2:$C$21,3) -> Mejora de la salud y bienestar | F109: CA316 | G109: 0
A110: CA4 | B110: DRENAJE SEPARATIVO | C110: AGUA | D110: 16 | E110: =VLOOKUP(D110,Impactos!$A$2:$C$21,3) -> Mejora de la salud y bienestar | F110: CA416 | G110: 0
A111: CA5 | B111: HUMEDAL SEMIARTIFICIAL | C111: AGUA | D111: 16 | E111: =VLOOKUP(D111,Impactos!$A$2:$C$21,3) -> Mejora de la salud y bienestar | F111: CA516 | G111: 2
A112: CA6 | B112: PAVIMENTOS PERMEABLES | C112: AGUA | D112: 16 | E112: =VLOOKUP(D112,Impactos!$A$2:$C$21,3) -> Mejora de la salud y bienestar | F112: CA616 | G112: 0
A113: CA7 | B113: POZOS DE ABSORCIÓN | C113: AGUA | D113: 16 | E113: =VLOOKUP(D113,Impactos!$A$2:$C$21,3) -> Mejora de la salud y bienestar | F113: CA716 | G113: 0
A114: CA1 | B114: BIODIGESTORES | C114: AGUA | D114: 17 | E114: =VLOOKUP(D114,Impactos!$A$2:$C$21,3) -> Generación de recursos comunitarios (fortalecimiento de la ciudadanía) | F114: CA117 | G114: 0
A115: CA2 | B115: CISTERNAS/PRESAS FILTRANTES | C115: AGUA | D115: 17 | E115: =VLOOKUP(D115,Impactos!$A$2:$C$21,3) -> Generación de recursos comunitarios (fortalecimiento de la ciudadanía) | F115: CA217 | G115: 0
A116: CA3 | B116: CUNETAS VERDES | C116: AGUA | D116: 17 | E116: =VLOOKUP(D116,Impactos!$A$2:$C$21,3) -> Generación de recursos comunitarios (fortalecimiento de la ciudadanía) | F116: CA317 | G116: 0
A117: CA4 | B117: DRENAJE SEPARATIVO | C117: AGUA | D117: 17 | E117: =VLOOKUP(D117,Impactos!$A$2:$C$21,3) -> Generación de recursos comunitarios (fortalecimiento de la ciudadanía) | F117: CA417 | G117: 0
A118: CA5 | B118: HUMEDAL SEMIARTIFICIAL | C118: AGUA | D118: 17 | E118: =VLOOKUP(D118,Impactos!$A$2:$C$21,3) -> Generación de recursos comunitarios (fortalecimiento de la ciudadanía) | F118: CA517 | G118: 0
A119: CA6 | B119: PAVIMENTOS PERMEABLES | C119: AGUA | D119: 17 | E119: =VLOOKUP(D119,Impactos!$A$2:$C$21,3) -> Generación de recursos comunitarios (fortalecimiento de la ciudadanía) | F119: CA617 | G119: 0
A120: CA7 | B120: POZOS DE ABSORCIÓN | C120: AGUA | D120: 17 | E120: =VLOOKUP(D120,Impactos!$A$2:$C$21,3) -> Generación de recursos comunitarios (fortalecimiento de la ciudadanía) | F120: CA717 | G120: 0
A121: CA1 | B121: BIODIGESTORES | C121: AGUA | D121: 18 | E121: =VLOOKUP(D121,Impactos!$A$2:$C$21,3) -> Fortalecimiento de sentimiento de pertenencia e identidad | F121: CA118 | G121: 0
A122: CA2 | B122: CISTERNAS/PRESAS FILTRANTES | C122: AGUA | D122: 18 | E122: =VLOOKUP(D122,Impactos!$A$2:$C$21,3) -> Fortalecimiento de sentimiento de pertenencia e identidad | F122: CA218 | G122: 0
A123: CA3 | B123: CUNETAS VERDES | C123: AGUA | D123: 18 | E123: =VLOOKUP(D123,Impactos!$A$2:$C$21,3) -> Fortalecimiento de sentimiento de pertenencia e identidad | F123: CA318 | G123: 0
A124: CA4 | B124: DRENAJE SEPARATIVO | C124: AGUA | D124: 18 | E124: =VLOOKUP(D124,Impactos!$A$2:$C$21,3) -> Fortalecimiento de sentimiento de pertenencia e identidad | F124: CA418 | G124: 0
A125: CA5 | B125: HUMEDAL SEMIARTIFICIAL | C125: AGUA | D125: 18 | E125: =VLOOKUP(D125,Impactos!$A$2:$C$21,3) -> Fortalecimiento de sentimiento de pertenencia e identidad | F125: CA518 | G125: 2
A126: CA6 | B126: PAVIMENTOS PERMEABLES | C126: AGUA | D126: 18 | E126: =VLOOKUP(D126,Impactos!$A$2:$C$21,3) -> Fortalecimiento de sentimiento de pertenencia e identidad | F126: CA618 | G126: 1
A127: CA7 | B127: POZOS DE ABSORCIÓN | C127: AGUA | D127: 18 | E127: =VLOOKUP(D127,Impactos!$A$2:$C$21,3) -> Fortalecimiento de sentimiento de pertenencia e identidad | F127: CA718 | G127: 0
A128: CA1 | B128: BIODIGESTORES | C128: AGUA | D128: 19 | E128: =VLOOKUP(D128,Impactos!$A$2:$C$21,3) -> Optimización de la inversión pública | F128: CA119 | G128: 2
A129: CA2 | B129: CISTERNAS/PRESAS FILTRANTES | C129: AGUA | D129: 19 | E129: =VLOOKUP(D129,Impactos!$A$2:$C$21,3) -> Optimización de la inversión pública | F129: CA219 | G129: 0
A130: CA3 | B130: CUNETAS VERDES | C130: AGUA | D130: 19 | E130: =VLOOKUP(D130,Impactos!$A$2:$C$21,3) -> Optimización de la inversión pública | F130: CA319 | G130: 0
A131: CA4 | B131: DRENAJE SEPARATIVO | C131: AGUA | D131: 19 | E131: =VLOOKUP(D131,Impactos!$A$2:$C$21,3) -> Optimización de la inversión pública | F131: =CONCATENATE(A131,D131) -> CA419 | G131: 0
A132: CA5 | B132: HUMEDAL SEMIARTIFICIAL | C132: AGUA | D132: 19 | E132: =VLOOKUP(D132,Impactos!$A$2:$C$21,3) -> Optimización de la inversión pública | F132: CA519 | G132: 2
A133: CA6 | B133: PAVIMENTOS PERMEABLES | C133: AGUA | D133: 19 | E133: =VLOOKUP(D133,Impactos!$A$2:$C$21,3) -> Optimización de la inversión pública | F133: CA619 | G133: 1
A134: CA7 | B134: POZOS DE ABSORCIÓN | C134: AGUA | D134: 19 | E134: =VLOOKUP(D134,Impactos!$A$2:$C$21,3) -> Optimización de la inversión pública | F134: CA719 | G134: 1
A135: CA1 | B135: BIODIGESTORES | C135: AGUA | D135: 20 | E135: =VLOOKUP(D135,Impactos!$A$2:$C$21,3) -> Atracción para negocios, turismo y economía verde | F135: CA120 | G135: 0
A136: CA2 | B136: CISTERNAS/PRESAS FILTRANTES | C136: AGUA | D136: 20 | E136: =VLOOKUP(D136,Impactos!$A$2:$C$21,3) -> Atracción para negocios, turismo y economía verde | F136: CA220 | G136: 0
A137: CA3 | B137: CUNETAS VERDES | C137: AGUA | D137: 20 | E137: =VLOOKUP(D137,Impactos!$A$2:$C$21,3) -> Atracción para negocios, turismo y economía verde | F137: CA320 | G137: 0
A138: CA4 | B138: DRENAJE SEPARATIVO | C138: AGUA | D138: 20 | E138: =VLOOKUP(D138,Impactos!$A$2:$C$21,3) -> Atracción para negocios, turismo y economía verde | F138: CA420 | G138: 0
A139: CA5 | B139: HUMEDAL SEMIARTIFICIAL | C139: AGUA | D139: 20 | E139: =VLOOKUP(D139,Impactos!$A$2:$C$21,3) -> Atracción para negocios, turismo y economía verde | F139: CA520 | G139: 2
A140: CA6 | B140: PAVIMENTOS PERMEABLES | C140: AGUA | D140: 20 | E140: =VLOOKUP(D140,Impactos!$A$2:$C$21,3) -> Atracción para negocios, turismo y economía verde | F140: CA620 | G140: 1
A141: CA7 | B141: POZOS DE ABSORCIÓN | C141: AGUA | D141: 20 | E141: =VLOOKUP(D141,Impactos!$A$2:$C$21,3) -> Atracción para negocios, turismo y economía verde | F141: CA720 | G141: 0
A142: CB1 | B142: ARBOLADO | C142: BIODIVERSIDAD | D142: 1 | E142: =VLOOKUP(D142,Impactos!$A$2:$C$21,3) -> Prevención de inundaciones, regulación de escorrentías | F142: =CONCATENATE(A142,D142) -> CB11 | G142: 3
A143: CB2 | B143: BOSQUE URBANO | C143: BIODIVERSIDAD | D143: 1 | E143: =VLOOKUP(D143,Impactos!$A$2:$C$21,3) -> Prevención de inundaciones, regulación de escorrentías | F143: =CONCATENATE(A143,D143) -> CB21 | G143: 3
A144: CB3 | B144: JARDINES EDUCATIVOS | C144: BIODIVERSIDAD | D144: 1 | E144: =VLOOKUP(D144,Impactos!$A$2:$C$21,3) -> Prevención de inundaciones, regulación de escorrentías | F144: CB31 | G144: 2
A145: CB4 | B145: HUERTOS URBANOS | C145: BIODIVERSIDAD | D145: 1 | E145: =VLOOKUP(D145,Impactos!$A$2:$C$21,3) -> Prevención de inundaciones, regulación de escorrentías | F145: CB41 | G145: 2
A146: CB5 | B146: RENATURALIZACION DE ELEMENTOS FLUVIALES | C146: BIODIVERSIDAD | D146: 1 | E146: =VLOOKUP(D146,Impactos!$A$2:$C$21,3) -> Prevención de inundaciones, regulación de escorrentías | F146: CB51 | G146: 2
A147: CB6 | B147: DESENTUBADO DE RIOS | C147: BIODIVERSIDAD | D147: 1 | E147: =VLOOKUP(D147,Impactos!$A$2:$C$21,3) -> Prevención de inundaciones, regulación de escorrentías | F147: CB61 | G147: 3
A148: CB1 | B148: ARBOLADO | C148: BIODIVERSIDAD | D148: 2 | E148: =VLOOKUP(D148,Impactos!$A$2:$C$21,3) -> Reducción de los riesgos derivados de las inundaciones, regulación de avenidas. | F148: CB12 | G148: 3
A149: CB2 | B149: BOSQUE URBANO | C149: BIODIVERSIDAD | D149: 2 | E149: =VLOOKUP(D149,Impactos!$A$2:$C$21,3) -> Reducción de los riesgos derivados de las inundaciones, regulación de avenidas. | F149: CB22 | G149: 3
A150: CB3 | B150: JARDINES EDUCATIVOS | C150: BIODIVERSIDAD | D150: 2 | E150: =VLOOKUP(D150,Impactos!$A$2:$C$21,3) -> Reducción de los riesgos derivados de las inundaciones, regulación de avenidas. | F150: CB32 | G150: 2
A151: CB4 | B151: HUERTOS URBANOS | C151: BIODIVERSIDAD | D151: 2 | E151: =VLOOKUP(D151,Impactos!$A$2:$C$21,3) -> Reducción de los riesgos derivados de las inundaciones, regulación de avenidas. | F151: CB42 | G151: 2
A152: CB5 | B152: RENATURALIZACION DE ELEMENTOS FLUVIALES | C152: BIODIVERSIDAD | D152: 2 | E152: =VLOOKUP(D152,Impactos!$A$2:$C$21,3) -> Reducción de los riesgos derivados de las inundaciones, regulación de avenidas. | F152: CB52 | G152: 3
A153: CB6 | B153: DESENTUBADO DE RIOS | C153: BIODIVERSIDAD | D153: 2 | E153: =VLOOKUP(D153,Impactos!$A$2:$C$21,3) -> Reducción de los riesgos derivados de las inundaciones, regulación de avenidas. | F153: CB62 | G153: 3
A154: CB1 | B154: ARBOLADO | C154: BIODIVERSIDAD | D154: 3 | E154: =VLOOKUP(D154,Impactos!$A$2:$C$21,3) -> Incremento de la recarga de agua de los acuíferos | F154: CB13 | G154: 3
A155: CB2 | B155: BOSQUE URBANO | C155: BIODIVERSIDAD | D155: 3 | E155: =VLOOKUP(D155,Impactos!$A$2:$C$21,3) -> Incremento de la recarga de agua de los acuíferos | F155: CB23 | G155: 3
A156: CB3 | B156: JARDINES EDUCATIVOS | C156: BIODIVERSIDAD | D156: 3 | E156: =VLOOKUP(D156,Impactos!$A$2:$C$21,3) -> Incremento de la recarga de agua de los acuíferos | F156: CB33 | G156: 2
A157: CB4 | B157: HUERTOS URBANOS | C157: BIODIVERSIDAD | D157: 3 | E157: =VLOOKUP(D157,Impactos!$A$2:$C$21,3) -> Incremento de la recarga de agua de los acuíferos | F157: CB43 | G157: 2
A158: CB5 | B158: RENATURALIZACION DE ELEMENTOS FLUVIALES | C158: BIODIVERSIDAD | D158: 3 | E158: =VLOOKUP(D158,Impactos!$A$2:$C$21,3) -> Incremento de la recarga de agua de los acuíferos | F158: CB53 | G158: 2
A159: CB6 | B159: DESENTUBADO DE RIOS | C159: BIODIVERSIDAD | D159: 3 | E159: =VLOOKUP(D159,Impactos!$A$2:$C$21,3) -> Incremento de la recarga de agua de los acuíferos | F159: CB63 | G159: 2
A160: CB1 | B160: ARBOLADO | C160: BIODIVERSIDAD | D160: 4 | E160: =VLOOKUP(D160,Impactos!$A$2:$C$21,3) -> Regulación térmica y disminución de las islas urbanas de calor | F160: CB14 | G160: 3
A161: CB2 | B161: BOSQUE URBANO | C161: BIODIVERSIDAD | D161: 4 | E161: =VLOOKUP(D161,Impactos!$A$2:$C$21,3) -> Regulación térmica y disminución de las islas urbanas de calor | F161: CB24 | G161: 3
A162: CB3 | B162: JARDINES EDUCATIVOS | C162: BIODIVERSIDAD | D162: 4 | E162: =VLOOKUP(D162,Impactos!$A$2:$C$21,3) -> Regulación térmica y disminución de las islas urbanas de calor | F162: CB34 | G162: 2
A163: CB4 | B163: HUERTOS URBANOS | C163: BIODIVERSIDAD | D163: 4 | E163: =VLOOKUP(D163,Impactos!$A$2:$C$21,3) -> Regulación térmica y disminución de las islas urbanas de calor | F163: CB44 | G163: 2
A164: CB5 | B164: RENATURALIZACION DE ELEMENTOS FLUVIALES | C164: BIODIVERSIDAD | D164: 4 | E164: =VLOOKUP(D164,Impactos!$A$2:$C$21,3) -> Regulación térmica y disminución de las islas urbanas de calor | F164: CB54 | G164: 2
A165: CB6 | B165: DESENTUBADO DE RIOS | C165: BIODIVERSIDAD | D165: 4 | E165: =VLOOKUP(D165,Impactos!$A$2:$C$21,3) -> Regulación térmica y disminución de las islas urbanas de calor | F165: CB64 | G165: 3
A166: CB1 | B166: ARBOLADO | C166: BIODIVERSIDAD | D166: 5 | E166: =VLOOKUP(D166,Impactos!$A$2:$C$21,3) -> Mejora de la conectividad ecológica. | F166: CB15 | G166: 3
A167: CB2 | B167: BOSQUE URBANO | C167: BIODIVERSIDAD | D167: 5 | E167: =VLOOKUP(D167,Impactos!$A$2:$C$21,3) -> Mejora de la conectividad ecológica. | F167: CB25 | G167: 3
A168: CB3 | B168: JARDINES EDUCATIVOS | C168: BIODIVERSIDAD | D168: 5 | E168: =VLOOKUP(D168,Impactos!$A$2:$C$21,3) -> Mejora de la conectividad ecológica. | F168: CB35 | G168: 3
A169: CB4 | B169: HUERTOS URBANOS | C169: BIODIVERSIDAD | D169: 5 | E169: =VLOOKUP(D169,Impactos!$A$2:$C$21,3) -> Mejora de la conectividad ecológica. | F169: CB45 | G169: 3
A170: CB5 | B170: RENATURALIZACION DE ELEMENTOS FLUVIALES | C170: BIODIVERSIDAD | D170: 5 | E170: =VLOOKUP(D170,Impactos!$A$2:$C$21,3) -> Mejora de la conectividad ecológica. | F170: CB55 | G170: 3
A171: CB6 | B171: DESENTUBADO DE RIOS | C171: BIODIVERSIDAD | D171: 5 | E171: =VLOOKUP(D171,Impactos!$A$2:$C$21,3) -> Mejora de la conectividad ecológica. | F171: CB65 | G171: 3
A172: CB1 | B172: ARBOLADO | C172: BIODIVERSIDAD | D172: 6 | E172: =VLOOKUP(D172,Impactos!$A$2:$C$21,3) -> Secuestro de carbono | F172: CB16 | G172: 3
A173: CB2 | B173: BOSQUE URBANO | C173: BIODIVERSIDAD | D173: 6 | E173: =VLOOKUP(D173,Impactos!$A$2:$C$21,3) -> Secuestro de carbono | F173: CB26 | G173: 3
A174: CB3 | B174: JARDINES EDUCATIVOS | C174: BIODIVERSIDAD | D174: 6 | E174: =VLOOKUP(D174,Impactos!$A$2:$C$21,3) -> Secuestro de carbono | F174: CB36 | G174: 2
A175: CB4 | B175: HUERTOS URBANOS | C175: BIODIVERSIDAD | D175: 6 | E175: =VLOOKUP(D175,Impactos!$A$2:$C$21,3) -> Secuestro de carbono | F175: CB46 | G175: 2
A176: CB5 | B176: RENATURALIZACION DE ELEMENTOS FLUVIALES | C176: BIODIVERSIDAD | D176: 6 | E176: =VLOOKUP(D176,Impactos!$A$2:$C$21,3) -> Secuestro de carbono | F176: CB56 | G176: 2
A177: CB6 | B177: DESENTUBADO DE RIOS | C177: BIODIVERSIDAD | D177: 6 | E177: =VLOOKUP(D177,Impactos!$A$2:$C$21,3) -> Secuestro de carbono | F177: CB66 | G177: 1
A178: CB1 | B178: ARBOLADO | C178: BIODIVERSIDAD | D178: 7 | E178: =VLOOKUP(D178,Impactos!$A$2:$C$21,3) -> Reducción de emisiones de GEI | F178: CB17 | G178: 0
A179: CB2 | B179: BOSQUE URBANO | C179: BIODIVERSIDAD | D179: 7 | E179: =VLOOKUP(D179,Impactos!$A$2:$C$21,3) -> Reducción de emisiones de GEI | F179: CB27 | G179: 0
A180: CB3 | B180: JARDINES EDUCATIVOS | C180: BIODIVERSIDAD | D180: 7 | E180: =VLOOKUP(D180,Impactos!$A$2:$C$21,3) -> Reducción de emisiones de GEI | F180: CB37 | G180: 0
A181: CB4 | B181: HUERTOS URBANOS | C181: BIODIVERSIDAD | D181: 7 | E181: =VLOOKUP(D181,Impactos!$A$2:$C$21,3) -> Reducción de emisiones de GEI | F181: CB47 | G181: 0
A182: CB5 | B182: RENATURALIZACION DE ELEMENTOS FLUVIALES | C182: BIODIVERSIDAD | D182: 7 | E182: =VLOOKUP(D182,Impactos!$A$2:$C$21,3) -> Reducción de emisiones de GEI | F182: CB57 | G182: 1
A183: CB6 | B183: DESENTUBADO DE RIOS | C183: BIODIVERSIDAD | D183: 7 | E183: =VLOOKUP(D183,Impactos!$A$2:$C$21,3) -> Reducción de emisiones de GEI | F183: CB67 | G183: 0
A184: CB1 | B184: ARBOLADO | C184: BIODIVERSIDAD | D184: 8 | E184: =VLOOKUP(D184,Impactos!$A$2:$C$21,3) -> Mejora de la calidad del aire | F184: CB18 | G184: 3
A185: CB2 | B185: BOSQUE URBANO | C185: BIODIVERSIDAD | D185: 8 | E185: =VLOOKUP(D185,Impactos!$A$2:$C$21,3) -> Mejora de la calidad del aire | F185: CB28 | G185: 3
A186: CB3 | B186: JARDINES EDUCATIVOS | C186: BIODIVERSIDAD | D186: 8 | E186: =VLOOKUP(D186,Impactos!$A$2:$C$21,3) -> Mejora de la calidad del aire | F186: CB38 | G186: 2
A187: CB4 | B187: HUERTOS URBANOS | C187: BIODIVERSIDAD | D187: 8 | E187: =VLOOKUP(D187,Impactos!$A$2:$C$21,3) -> Mejora de la calidad del aire | F187: CB48 | G187: 1
A188: CB5 | B188: RENATURALIZACION DE ELEMENTOS FLUVIALES | C188: BIODIVERSIDAD | D188: 8 | E188: =VLOOKUP(D188,Impactos!$A$2:$C$21,3) -> Mejora de la calidad del aire | F188: CB58 | G188: 2
A189: CB6 | B189: DESENTUBADO DE RIOS | C189: BIODIVERSIDAD | D189: 8 | E189: =VLOOKUP(D189,Impactos!$A$2:$C$21,3) -> Mejora de la calidad del aire | F189: CB68 | G189: 2
A190: CB1 | B190: ARBOLADO | C190: BIODIVERSIDAD | D190: 9 | E190: =VLOOKUP(D190,Impactos!$A$2:$C$21,3) -> Mejora de la calidad del agua (purificación del agua) | F190: CB19 | G190: 2
A191: CB2 | B191: BOSQUE URBANO | C191: BIODIVERSIDAD | D191: 9 | E191: =VLOOKUP(D191,Impactos!$A$2:$C$21,3) -> Mejora de la calidad del agua (purificación del agua) | F191: CB29 | G191: 3
A192: CB3 | B192: JARDINES EDUCATIVOS | C192: BIODIVERSIDAD | D192: 9 | E192: =VLOOKUP(D192,Impactos!$A$2:$C$21,3) -> Mejora de la calidad del agua (purificación del agua) | F192: CB39 | G192: 2
A193: CB4 | B193: HUERTOS URBANOS | C193: BIODIVERSIDAD | D193: 9 | E193: =VLOOKUP(D193,Impactos!$A$2:$C$21,3) -> Mejora de la calidad del agua (purificación del agua) | F193: CB49 | G193: 2
A194: CB5 | B194: RENATURALIZACION DE ELEMENTOS FLUVIALES | C194: BIODIVERSIDAD | D194: 9 | E194: =VLOOKUP(D194,Impactos!$A$2:$C$21,3) -> Mejora de la calidad del agua (purificación del agua) | F194: CB59 | G194: 2
A195: CB6 | B195: DESENTUBADO DE RIOS | C195: BIODIVERSIDAD | D195: 9 | E195: =VLOOKUP(D195,Impactos!$A$2:$C$21,3) -> Mejora de la calidad del agua (purificación del agua) | F195: CB69 | G195: 2
A196: CB1 | B196: ARBOLADO | C196: BIODIVERSIDAD | D196: 10 | E196: =VLOOKUP(D196,Impactos!$A$2:$C$21,3) -> Reducción de la contaminación por ruido | F196: CB110 | G196: 3
A197: CB2 | B197: BOSQUE URBANO | C197: BIODIVERSIDAD | D197: 10 | E197: =VLOOKUP(D197,Impactos!$A$2:$C$21,3) -> Reducción de la contaminación por ruido | F197: CB210 | G197: 3
A198: CB3 | B198: JARDINES EDUCATIVOS | C198: BIODIVERSIDAD | D198: 10 | E198: =VLOOKUP(D198,Impactos!$A$2:$C$21,3) -> Reducción de la contaminación por ruido | F198: CB310 | G198: 2
A199: CB4 | B199: HUERTOS URBANOS | C199: BIODIVERSIDAD | D199: 10 | E199: =VLOOKUP(D199,Impactos!$A$2:$C$21,3) -> Reducción de la contaminación por ruido | F199: CB410 | G199: 2
A200: CB5 | B200: RENATURALIZACION DE ELEMENTOS FLUVIALES | C200: BIODIVERSIDAD | D200: 10 | E200: =VLOOKUP(D200,Impactos!$A$2:$C$21,3) -> Reducción de la contaminación por ruido | F200: CB510 | G200: 2
... 321 more rows

Sheet 2b Componentes Biodiversidad (hidden)
B2: Herramienta para la estimación y evaluación de los impactos de la infraestructura verde
F4: 1. Introducción | J4: 2. Preparar evaluación | O4: 3. Recolección de datos | T4: 4. Impactos/Resultados
G6: 2a. Componentes AGUA | K6: 2b. Componentes BIODIVERSIDAD | P6: 2c. Componentes MOVILIDAD | U6: 2d. Componentes ESPACIO PUBLICO
B8: Acerca de esta pestaña:
B9: Esta pestaña tiene la definición de los componentes de IV del eje de Biodiversidad
B14: 2b. Selección de componentes de IV del eje BIODIVERSIDAD
B23: =" "&Biodiversidad!B3 -> ARBOLADO
O24: Presupuesto asignado | R24: 0 | V24: =Biodiversidad!B2 -> CB1
O26: =" "&Biodiversidad!B7 -> Número de ejemplares según su porte (altura) prevista en la edad adulta | T26: =Biodiversidad!B13 -> ¿Qué especie?
C27: =Biodiversidad!B4 -> Se refiere al conjunto de especies vegetales que integran la paleta vegetal de una ciudad y que incluyen árboles (grandes, medianos y chicos), arbustos y subarbustos, herbáceas y plantas; tanto nativos como especies adaptadas al clima y destinadas a espacios públicos como parques, banquetas, camellones, glorietas, bajopuentes, muros o superficies verticales y espacios residuales.
O29: =" "&Biodiversidad!B8 -> < 5m
O32: =" "&Biodiversidad!B9 -> 5m < 10m
O35: =" "&Biodiversidad!B10 -> 10m < 15m
O38: =" "&Biodiversidad!B11 -> 15m < 20m
O41: =" "&Biodiversidad!B12 -> >20m
O44: =" "&"No sé su altura" -> No sé su altura
O47: =" "&Biodiversidad!B25 -> ¿Cuál es la unidad de arbolado por hectárea? (uA/ha)(ID OMS - 1ud/3hab)
O50: =" "&Biodiversidad!B30 -> ¿Las especies elegidas generan sombra y regulan térmicamente el espacio?
O53: =" "&Biodiversidad!B44 -> ¿Las especies elegidas añaden valores aspectos estéticos y generan recursos comunitarios (como alimentos, plantas o elementos florales culturales)?
C57: =IF(D57=0," ","Fuente:") -> Fuente: | D57: =Biodiversidad!B5 -> Terrones Rincón, T.; Vittoria E. Partida Pizzini, Cristina González y Martín Tovar (2014) Plantas silvestres en el paisaje urbano. Municipio de León Guanajuato. Instituto Municipl de Planeación. México. 211p | O57: =" "&Biodiversidad!B51 -> ¿Las especies optimiza la inversión y carece de regadío y mantenimiento?
B61: =" "&Biodiversidad!C3 -> BOSQUE URBANO
O62: Presupuesto asignado | R62: 0 | V62: =Biodiversidad!C2 -> CB2
C65: =Biodiversidad!C4 -> Se refiere una superficie de cuando menos 5 hectárea inmerso en el área urbana (espacio artificializado) destinada a la preservación del entorno natural, la conservación de la biodiversidad urbana y la prestación de servicios ecosistémicos. Puede tener una mínima introducción de infraestructura para actividades recreativas, deportivas, científicas y culturales. | O65: =" "&Biodiversidad!C7 -> Hectáreas de bosque
O68: =" "&Biodiversidad!C8 -> ¿Cuenta con infraestructura recreativa y/o deportiva que promueva el encuentro?
O71: =" "&Biodiversidad!C25 -> ¿Cuál es la relación del bosque urbano por habitante? (M2av/hab) - (ID OMS 9m2 AV/hab)
O74: =" "&Biodiversidad!C30 -> ¿Qué superficie de suelo permeable contiene como pastos o pastizales que favorecen la infiltración de agua ?
O77: =" "&Biodiversidad!C37 -> ¿Contiene servicios de soporte (diversidad de especies y sus ecosistemas, humedales, polinizadores, etc.)?
C80: =IF(D80=0," ","Fuente:") -> Fuente: | D80: =Biodiversidad!C5 -> Pérez, María; Cristina R. de León, Luis, Romahn y Álvaro Gómez (2019) Grandes parques y bosques urbanos de México. Investigación para la toma de decisiones. Asociación Nacional de Parques y Recreación de México. México. 35p | O80: =" "&Biodiversidad!C51 -> ¿Contiene servicios de aprovisionamiento? (Alimentos, recursos naturales, genera empleo)
B84: =" " &Biodiversidad!D3 -> JARDINES EDUCATIVOS
O85: Presupuesto asignado | R85: 0 | V85: =Biodiversidad!D2 -> CB3
C88: =Biodiversidad!D4 -> Se refiere a un espacio, aula o conjunto de aulas habilitado al área libre, semicubierto o totalmente cubierto para llevar a cabo actividades educativas, deportivas, culturales y de apropiación de ciencia y tencología; por lo común inmerso en un parque urbano, metropolitano o en un bosque urbano. | O88: =" "&Biodiversidad!D7 -> ¿Cuenta con arbolado? | V88: SI
O91: =" "&Biodiversidad!D8 -> m2 de superficie
O94: =" "&Biodiversidad!D25 -> ¿El espacio reutiliza suelo que se encontraba artificializado o cubierto por concreto, asfalto u otro material? | V94: NO
O97: =" "&Biodiversidad!D30 -> ¿Está ubicado cerca de un núcleo urbano y/o accesible mediante movilidad activa? | V97: SI
C100: =IF(D100=0," ","Fuente:") ->  | D100: =Biodiversidad!D5 -> 0 | O100: =" "&Biodiversidad!D44 -> ¿Sirve como punto de encuentro vecinal, espacio para talleres sobre educación ambiental u otros temas? | V100: NO
B104: =" "&Biodiversidad!E3 -> HUERTOS URBANOS
O105: Presupuesto asignado | R105: 0 | V105: =Biodiversidad!E2 -> CB4
C108: =Biodiversidad!E4 -> Se refiere a un espacio limitado ubicado dentro de la ciudad donde se siembra una gran diversidad de plantas (medicinales, aromáticas, hortalizas, ornamientales) y árboles frutales cuyo principal objetivo es producir alimentos. | O108: =" "&Biodiversidad!E7 -> m2 superficie de huerto
O111: =" "&Biodiversidad!E8 -> kg de alimentos producidos / año (estimado)
O114: =" "&Biodiversidad!E25 -> ¿El espacio reutiliza suelo que se encontraba artificializado o cubierto por concreto, asfalto u otro material?
O117: =" "&Biodiversidad!E30 -> ¿Está ubicado cerca de un núcleo urbano y/o accesible mediante movilidad activa?
O120: =" "&Biodiversidad!E37 -> ¿Contiene especies nativas y fomenta la agroecología y sostenibilidad del uso de la tierra?
O123: =" "&Biodiversidad!E44 -> ¿Sirven como punto de encuentro vecinal, espacio de reivindicación de ideas y propuestas ?
C126: =IF(D126=0," ","Fuente:") -> Fuente: | D126: =Biodiversidad!E5 -> SEDEMA (2016) Guía de Huertos Urbanos. Secretaria de Medio Ambiente de la Ciudad de México. México. 47p. Disponible en: http://data.sedema.cdmx.gob.mx/flippingbook/guia-huertos-urbanos/#p=51. Última consulta: 23 de agosto de 2021 https://dialnet.unirioja.es/servlet/articulo?codigo=7596353 | O126: =" "&Biodiversidad!E51 -> ¿Incentiva la suficiencia para el consumo y producción alimentaria?
B130: =" "&Biodiversidad!F3 -> RENATURALIZACION DE ELEMENTOS FLUVIALES
O131: Presupuesto asignado | R131: 0 | V131: =Biodiversidad!F2 -> CB5
C134: =Biodiversidad!F4 -> Se refiere a la liberación de las laderas de cauces de ríos y cuerpos de agua superficial que fueron ocupadas por asentamientos humanos e infraestructura urbana con el propósito de que recuperen su capacidad de prestar bienes y servicios ambienales a la ciudad y contribuir a la preservación de los ecosistemas y la biodiversidad en la ciudad. | O134: =" "&Biodiversidad!F7 -> Hectáreas de la superficie de laderas recuperada
O137: =" "&Biodiversidad!F8 -> m2 de sección hidráulica de la propuesta
O140: =" "&Biodiversidad!F25 -> ¿La renaturalización se ha hecho de forma natural o sobre infraestructura gris?
O143: =" "&Biodiversidad!F30 -> ¿Está previsto el aumento de absorción de agua y escorrentías para los temporales futuros de variabilidad de precipitaciones?
O147: =" "&Biodiversidad!F37 -> ¿Contiene servicios de soporte? (diversidad de especies y sus ecosistemas, humedales, polinizadores, etc.)
O150: =" "&Biodiversidad!F44 -> ¿Incluye servicios culturales (deportes, ocio, etc)?
C153: =IF(D153=0," ","Fuente:") -> Fuente: | D153: =Biodiversidad!F5 -> https://www.euskadi.eus/contenidos/documentacion/soluciones_naturales/es_def/adjuntos/SOLUCIONESNATURALES.pdf | O153: =" "&Biodiversidad!F51 -> ¿Incentiva la economía local como resultado del manejo paisajístico urbano?
B157: =" "&Biodiversidad!G3 -> DESENTUBADO DE RIOS
O158: Presupuesto asignado | R158: 0 | V158: =Biodiversidad!G2 -> CB6
C161: =Biodiversidad!G4 -> Se refiere a la recuperación de las funciones ecológicas y ambientales de un río que fue entubado en años previos a través del desentubamiento y la recuperación de su cauce y su rehabilitación con elementos tanto naturales (arbolado) como artificiales (reencausamiento, represas, senderos peatonales y ciclistas, parques lineales, jardines, humedales y equipamiento e instalaciones deportivas, culturales y recreativas). | O161: =" "&Biodiversidad!G7 -> Superficie permeable recuperada (m2)
O164: =" "&Biodiversidad!G8 -> Superficie natural recuperada (m2)
O167: =" "&Biodiversidad!G9 -> Número ejemplares arbóreos (árboles, arbustos, plantas)
O170: =" "&Biodiversidad!G25 -> ¿El desentubado se ha hecho de forma natural (permeable) o sobre infraestructura gris (impermeable)?
O173: =" "&Biodiversidad!G30 -> ¿Está ubicada cerca de un núcleo urbano y conectado con otros?
O176: =" "&Biodiversidad!G37 -> ¿Genera algún tipo de conectividad ecológica (diversidad de especies y sus ecosistemas, humedales, polinizadores, etc.)
O180: =" "&Biodiversidad!G44 -> ¿Incluye servicios culturales (deportes, ocio, etc)?
C182: =IF(D182=0," ","Fuente:") -> Fuente: | D182: =Biodiversidad!G5 -> https://www.euskadi.eus/contenidos/documentacion/soluciones_naturales/es_def/adjuntos/SOLUCIONESNATURALES.pdf https://www.teseopress.com/pensarlasinfraestructurasenlatinoamerica/chapter/beneficios-y-desafios-en-la-implementacion-de-2/
O183: =" "&Biodiversidad!G51 -> ¿Incentiva la economía local y aumenta el valor de la propiedad como resultado del manejo paisajístico urbano?

Sheet Biodiversidad (hidden)
A1: Eje | B1: Biodiversidad | C1: Biodiversidad | D1: Biodiversidad | E1: Biodiversidad | F1: Biodiversidad | G1: Biodiversidad
A2: Código | B2: CB1 | C2: CB2 | D2: CB3 | E2: CB4 | F2: CB5 | G2: CB6
A3: Componentes | B3: ARBOLADO | C3: BOSQUE URBANO | D3: JARDINES EDUCATIVOS | E3: HUERTOS URBANOS | F3: RENATURALIZACION DE ELEMENTOS FLUVIALES | G3: DESENTUBADO DE RIOS
A4: Descripción | B4: Se refiere al conjunto de especies vegetales que integran la paleta vegetal de una ciudad y que incluyen árboles (grandes, medianos y chicos), arbustos y subarbustos, herbáceas y plantas; tanto nativos como especies adaptadas al clima y destinadas a espacios públicos como parques, banquetas, camellones, glorietas, bajopuentes, muros o superficies verticales y espacios residuales. | C4: Se refiere una superficie de cuando menos 5 hectárea inmerso en el área urbana (espacio artificializado) destinada a la preservación del entorno natural, la conservación de la biodiversidad urbana y la prestación de servicios ecosistémicos. Puede tener una mínima introducción de infraestructura para actividades recreativas, deportivas, científicas y culturales. | D4: Se refiere a un espacio, aula o conjunto de aulas habilitado al área libre, semicubierto o totalmente cubierto para llevar a cabo actividades educativas, deportivas, culturales y de apropiación de ciencia y tencología; por lo común inmerso en un parque urbano, metropolitano o en un bosque urbano. | E4: Se refiere a un espacio limitado ubicado dentro de la ciudad donde se siembra una gran diversidad de plantas (medicinales, aromáticas, hortalizas, ornamientales) y árboles frutales cuyo principal objetivo es producir alimentos. | F4: Se refiere a la liberación de las laderas de cauces de ríos y cuerpos de agua superficial que fueron ocupadas por asentamientos humanos e infraestructura urbana con el propósito de que recuperen su capacidad de prestar bienes y servicios ambienales a la ciudad y contribuir a la preservación de los ecosistemas y la biodiversidad en la ciudad. | G4: Se refiere a la recuperación de las funciones ecológicas y ambientales de un río que fue entubado en años previos a través del desentubamiento y la recuperación de su cauce y su rehabilitación con elementos tanto naturales (arbolado) como artificiales (reencausamiento, represas, senderos peatonales y ciclistas, parques lineales, jardines, humedales y equipamiento e instalaciones deportivas, culturales y recreativas).
A5: Referencia | B5: Terrones Rincón, T.; Vittoria E. Partida Pizzini, Cristina González y Martín Tovar (2014) Plantas silvestres en el paisaje urbano. Municipio de León Guanajuato. Instituto Municipl de Planeación. México. 211p | C5: Pérez, María; Cristina R. de León, Luis, Romahn y Álvaro Gómez (2019) Grandes parques y bosques urbanos de México. Investigación para la toma de decisiones. Asociación Nacional de Parques y Recreación de México. México. 35p | E5: SEDEMA (2016) Guía de Huertos Urbanos. Secretaria de Medio Ambiente de la Ciudad de México. México. 47p. Disponible en: http://data.sedema.cdmx.gob.mx/flippingbook/guia-huertos-urbanos/#p=51. Última consulta: 23 de agosto de 2021 https://dialnet.unirioja.es/servlet/articulo?codigo=7596353 | F5: https://www.euskadi.eus/contenidos/documentacion/soluciones_naturales/es_def/adjuntos/SOLUCIONESNATURALES.pdf | G5: https://www.euskadi.eus/contenidos/documentacion/soluciones_naturales/es_def/adjuntos/SOLUCIONESNATURALES.pdf https://www.teseopress.com/pensarlasinfraestructurasenlatinoamerica/chapter/beneficios-y-desafios-en-la-implementacion-de-2/
A6: Pregunta 1 | B6: ¿El proyecto incluye un área verde con árboles, pastos, y/o es una superficie permeable (pasto, adopasto, adoquín)? | C6: ¿El proyecto es o incluye un bosque urbano? | D6: ¿El proyecto es o incluye un jardín o parque educativo? | E6: ¿El proyecto es o incluye un huerto urbano? | F6: ¿El proyecto es o incluye una renaturalización de elementos fluviales ? | G6: ¿El proyecto es o incluye un desentubamiento del rio ?
A7: Pregunta 1SI | B7: Número de ejemplares según su porte (altura) prevista en la edad adulta | C7: Hectáreas de bosque | D7: ¿Cuenta con arbolado? | E7: m2 superficie de huerto | F7: Hectáreas de la superficie de laderas recuperada | G7: Superficie permeable recuperada (m2)
B8: < 5m | C8: ¿Cuenta con infraestructura recreativa y/o deportiva que promueva el encuentro? | D8: m2 de superficie | E8: kg de alimentos producidos / año (estimado) | F8: m2 de sección hidráulica de la propuesta | G8: Superficie natural recuperada (m2)
B9: 5m < 10m | G9: Número ejemplares arbóreos (árboles, arbustos, plantas)
B10: 10m < 15m
B11: 15m < 20m
B12: >20m
B13: ¿Qué especie?
B18: Nativo
B19: No nativo
B20: Ambas
B21: No sé
B22: Número de especies
B23: Número de especies
B24: Número de especies
A25: Pregunta Q1 | B25: ¿Cuál es la unidad de arbolado por hectárea? (uA/ha)(ID OMS - 1ud/3hab) | C25: ¿Cuál es la relación del bosque urbano por habitante? (M2av/hab) - (ID OMS 9m2 AV/hab) | D25: ¿El espacio reutiliza suelo que se encontraba artificializado o cubierto por concreto, asfalto u otro material? | E25: ¿El espacio reutiliza suelo que se encontraba artificializado o cubierto por concreto, asfalto u otro material? | F25: ¿La renaturalización se ha hecho de forma natural o sobre infraestructura gris? | G25: ¿El desentubado se ha hecho de forma natural (permeable) o sobre infraestructura gris (impermeable)?
A26: RQ1 | B26: 0 - 0,003 | C26: 0 - 9 | D26: SI | E26: SI | F26: NATURAL | G26: NATURAL
A27: RQ2 | B27: > 0.003 | C27: > 9 | D27: NO | E27: NO | F27: GRIS | G27: GRIS
A28: QSI | B28: 0.5 | C28: 0.5 | D28: 1 | E28: 1 | F28: 1 | G28: 1
A29: QNO | B29: 1 | C29: 1 | D29: 0.5 | E29: 0.5 | F29: 0.5 | G29: 0.5
A30: Adaptación/Mitigación | B30: ¿Las especies elegidas generan sombra y regulan térmicamente el espacio? | C30: ¿Qué superficie de suelo permeable contiene como pastos o pastizales que favorecen la infiltración de agua ? | D30: ¿Está ubicado cerca de un núcleo urbano y/o accesible mediante movilidad activa? | E30: ¿Está ubicado cerca de un núcleo urbano y/o accesible mediante movilidad activa? | F30: ¿Está previsto el aumento de absorción de agua y escorrentías para los temporales futuros de variabilidad de precipitaciones? | G30: ¿Está ubicada cerca de un núcleo urbano y conectado con otros?
A31: Adaptación/Mitigación | B31: SI | C31: >50% | D31: SI | E31: SI | F31: SI | G31: SI
A32: Adaptación/Mitigación | B32: NO | C32: <50% | D32: NO | E32: NO | F32: NO | G32: NO
A33: Adaptación/Mitigación | B33: NO SE | C33: NO SE | D33: NO SE | E33: NO SE | F33: NO SE | G33: NO SE
A34: Adaptación/Mitigación | B34: 1.25 | C34: 1.25 | D34: 1.25 | E34: 1.25 | F34: 1.25 | G34: 1.25
A35: Adaptación/Mitigación | B35: 0.75 | C35: 0.75 | D35: 0.75 | E35: 0.75 | F35: 0.75 | G35: 0.75
A36: Adaptación/Mitigación | B36: 1 | C36: 1 | D36: 1 | E36: 1 | F36: 1 | G36: 1
A37: Ambientales | C37: ¿Contiene servicios de soporte (diversidad de especies y sus ecosistemas, humedales, polinizadores, etc.)? | E37: ¿Contiene especies nativas y fomenta la agroecología y sostenibilidad del uso de la tierra? | F37: ¿Contiene servicios de soporte? (diversidad de especies y sus ecosistemas, humedales, polinizadores, etc.) | G37: ¿Genera algún tipo de conectividad ecológica (diversidad de especies y sus ecosistemas, humedales, polinizadores, etc.)
A38: Ambientales | B38: 1.25 | C38: SI | E38: SI | F38: SI | G38: SI
A39: Ambientales | B39: 0.75 | C39: NO | E39: NO | F39: NO | G39: NO
A40: Ambientales | B40: 0.05 | C40: NO SE | E40: NO SE | F40: NO SE | G40: NO SE
A41: Ambientales | B41: 1 | C41: 1.25 | E41: 1.25 | F41: 1.25 | G41: 1.25
C42: 0.75 | E42: 0.75 | F42: 0.75 | G42: 0.75
C43: 1 | E43: 1 | F43: 1 | G43: 1
A44: Sociales | B44: ¿Las especies elegidas añaden valores aspectos estéticos y generan recursos comunitarios (como alimentos, plantas o elementos florales culturales)? | D44: ¿Sirve como punto de encuentro vecinal, espacio para talleres sobre educación ambiental u otros temas? | E44: ¿Sirven como punto de encuentro vecinal, espacio de reivindicación de ideas y propuestas ? | F44: ¿Incluye servicios culturales (deportes, ocio, etc)? | G44: ¿Incluye servicios culturales (deportes, ocio, etc)?
A45: Sociales | B45: SI | C45: SI | D45: SI | E45: SI | F45: SI | G45: SI
A46: Sociales | B46: NO | C46: NO | D46: NO | E46: NO | F46: NO | G46: NO
A47: Sociales | B47: NO SE | C47: NO SE | D47: NO SE | E47: NO SE | F47: NO SE | G47: NO SE
A48: Sociales | B48: 1.25 | C48: 1.25 | D48: 1.25 | E48: 1.25 | F48: 1.25 | G48: 1.25
A49: Sociales | B49: 0.75 | C49: 0.75 | D49: 0.75 | E49: 0.75 | F49: 0.75 | G49: 0.75
A50: Sociales | B50: 1 | C50: 1 | D50: 1 | E50: 1 | F50: 1 | G50: 1
A51: Económicos | B51: ¿Las especies optimiza la inversión y carece de regadío y mantenimiento? | C51: ¿Contiene servicios de aprovisionamiento? (Alimentos, recursos naturales, genera empleo) | E51: ¿Incentiva la suficiencia para el consumo y producción alimentaria? | F51: ¿Incentiva la economía local como resultado del manejo paisajístico urbano? | G51: ¿Incentiva la economía local y aumenta el valor de la propiedad como resultado del manejo paisajístico urbano?
A52: Económicos | B52: SI | C52: SI | E52: SI | F52: SI | G52: SI
A53: Económicos | B53: NO | C53: NO | E53: NO | F53: NO | G53: NO
A54: Económicos | B54: NO SE | C54: NO SE | E54: NO SE | F54: NO SE | G54: NO SE
A55: Económicos | B55: 1.25 | C55: 1.25 | E55: 1.25 | F55: 1.25 | G55: 1.25
A56: Económicos | B56: 0.75 | C56: 0.75 | E56: 0.75 | F56: 0.75 | G56: 0.75
A57: Económicos | B57: 1 | C57: 1 | E57: 1 | F57: 1 | G57: 1

Sheet RegistroB (hidden)
A1: Código | B1: Componentes | C1: Presupuesto | D1: Pregunta 1 | E1: Respuesta | F1: Valor | G1: Pregunta 1 | H1: Dato 1 | I1: Pregunta 2 | J1: Dato 2 | K1: Pregunta 3 | L1: Dato 3 | M1: Pregunta 4 | N1: Dato 4 | O1: Pregunta 5 | P1: Dato 5 | Q1: Pregunta 6 | R1: Dato 6 | S1: Pregunta 7 | T1: Dato 7 | U1: Pregunta 8 | V1: Dato 8 | W1: Pregunta 9 | X1: Dato 9 | Y1: Pregunta 10 | Z1: Dato 10 | AB1: Pregunta clave | AC1: Dato Q | AD1: Dato q1 | AE1: Climático | AF1: β1 | AG1: Ambientales | AH1: β2 | AI1: Sociales | AJ1: β3 | AK1: Económicos | AL1: β4 | AP1: 1 | AQ1: 2 | AR1: 3 | AS1: 4 | AT1: 5 | AU1: 6 | AV1: 7 | AW1: 8 | AX1: 9 | AY1: 10 | AZ1: 11 | BA1: 12 | BB1: 13 | BC1: 14 | BD1: 15 | BE1: 16 | BF1: 17 | BG1: 18 | BH1: 19 | BI1: 20 | BJ1: Suma componente | BN1: 1 | BO1: 2 | BP1: 3 | BQ1: 4 | BR1: 5 | BS1: 6 | BT1: 7 | BU1: 8 | BV1: 9 | BW1: 10 | BX1: 11 | BY1: 12 | BZ1: 13 | CA1: 14 | CB1: 15 | CC1: 16 | CD1: 17 | CE1: 18 | CF1: 19 | CG1: 20 | CH1: Suma
A2: CB1 | B2: =Biodiversidad!B3 -> ARBOLADO | C2: ='2b Componentes Biodiversidad'!R24 -> 0 | D2: =Biodiversidad!B6 -> ¿El proyecto incluye un área verde con árboles, pastos, y/o es una superficie permeable (pasto, adopasto, adoquín)? | E2: NO | F2: =IF(E2="NO",0,1) -> 0 | G2: =Biodiversidad!B8 -> < 5m | H2: ='2b Componentes Biodiversidad'!R29 -> 0 | I2: =Biodiversidad!B13 -> ¿Qué especie? | J2: ='2b Componentes Biodiversidad'!T29 -> 0 | K2: =Biodiversidad!B9 -> 5m < 10m | L2: ='2b Componentes Biodiversidad'!R32:R33 -> 0 | M2: =Biodiversidad!B13 -> ¿Qué especie? | N2: ='2b Componentes Biodiversidad'!T32 -> 0 | O2: ='2b Componentes Biodiversidad'!O35 -> 10m < 15m | P2: ='2b Componentes Biodiversidad'!R35 -> 0 | Q2: =Biodiversidad!B13 -> ¿Qué especie? | R2: ='2b Componentes Biodiversidad'!T35 -> 0 | S2: =Biodiversidad!B11 -> 15m < 20m | T2: ='2b Componentes Biodiversidad'!R38 -> 0 | U2: =Biodiversidad!B13 -> ¿Qué especie? | V2: ='2b Componentes Biodiversidad'!T38 -> 0 | W2: ='2b Componentes Biodiversidad'!O41 -> >20m | X2: ='2b Componentes Biodiversidad'!R41 -> 0 | Y2: =Biodiversidad!B13 -> ¿Qué especie? | Z2: ='2b Componentes Biodiversidad'!T41 -> 0 | AB2: =Biodiversidad!B25 -> ¿Cuál es la unidad de arbolado por hectárea? (uA/ha)(ID OMS - 1ud/3hab) | AC2: ='2b Componentes Biodiversidad'!V47 -> 0 | AD2: =IF(AC2=0,1,IF(AC2="0 - 0,003",Biodiversidad!B28,Biodiversidad!B29)) -> 1 | AE2: ='2b Componentes Biodiversidad'!V50 -> 0 | AF2: =IF(AE2=0,1,IF(AE2=Biodiversidad!B31,Biodiversidad!B34,IF(AE2=Biodiversidad!B32,Biodiversidad!B35,Biodiversidad!B36))) -> 1 | AH2: =IF(COUNTIF(N2:Z2,Biodiversidad!B18)*Biodiversidad!B38+(COUNTIF(RegistroB!N2:Z2,Biodiversidad!B19)*Biodiversidad!B39)+(COUNTIF(RegistroB!N2:Z2,Biodiversidad!B20)*Biodiversidad!B40)=0,1,(COUNTIF(N2:Z2,Biodiversidad!B18)*Biodiversidad!B38+(COUNTIF(RegistroB!N2:Z2,Biodiversidad!B19)*Biodiversidad!B39)+(COUNTIF(RegistroB!N2:Z2,Biodiversidad!B20)*Biodiversidad!B40))/4) -> 1 | AI2: ='2b Componentes Biodiversidad'!V53 -> 0 | AJ2: =IF(AI2=0,1,IF(AI2=Biodiversidad!B45,Biodiversidad!B48,IF(AI2=Biodiversidad!B46,Biodiversidad!B49,Biodiversidad!B50))) -> 1 | AK2: ='2b Componentes Biodiversidad'!V57 -> 0 | AL2: =IF(AK2=0,1,IF(AK2=Biodiversidad!B52,Biodiversidad!B55,IF(AK2=Biodiversidad!B53,Biodiversidad!B56,Biodiversidad!B57))) -> 1 | AP2: =IF($E2="SI",VLOOKUP((CONCATENATE($A2,AP$1)),'Impactos Data'!$F$2:$G$521,2,FALSE),0) -> 0 | AQ2: =IF($E2="SI",VLOOKUP((CONCATENATE($A2,AQ$1)),'Impactos Data'!$F$2:$G$521,2,FALSE),0) -> 0 | AR2: =IF($E2="SI",VLOOKUP((CONCATENATE($A2,AR$1)),'Impactos Data'!$F$2:$G$521,2,FALSE),0) -> 0 | AS2: =IF($E2="SI",VLOOKUP((CONCATENATE($A2,AS$1)),'Impactos Data'!$F$2:$G$521,2,FALSE),0) -> 0 | AT2: =IF($E2="SI",VLOOKUP((CONCATENATE($A2,AT$1)),'Impactos Data'!$F$2:$G$521,2,FALSE),0) -> 0 | AU2: =IF($E2="SI",VLOOKUP((CONCATENATE($A2,AU$1)),'Impactos Data'!$F$2:$G$521,2,FALSE),0) -> 0 | AV2: =IF($E2="SI",VLOOKUP((CONCATENATE($A2,AV$1)),'Impactos Data'!$F$2:$G$521,2,FALSE),0) -> 0 | AW2: =IF($E2="SI",VLOOKUP((CONCATENATE($A2,AW$1)),'Impactos Data'!$F$2:$G$521,2,FALSE),0) -> 0 | AX2: =IF($E2="SI",VLOOKUP((CONCATENATE($A2,AX$1)),'Impactos Data'!$F$2:$G$521,2,FALSE),0) -> 0 | AY2: =IF($E2="SI",VLOOKUP((CONCATENATE($A2,AY$1)),'Impactos Data'!$F$2:$G$521,2,FALSE),0) -> 0 | AZ2: =IF($E2="SI",VLOOKUP((CONCATENATE($A2,AZ$1)),'Impactos Data'!$F$2:$G$521,2,FALSE),0) -> 0 | BA2: =IF($E2="SI",VLOOKUP((CONCATENATE($A2,BA$1)),'Impactos Data'!$F$2:$G$521,2,FALSE),0) -> 0 | BB2: =IF($E2="SI",VLOOKUP((CONCATENATE($A2,BB$1)),'Impactos Data'!$F$2:$G$521,2,FALSE),0) -> 0 | BC2: =IF($E2="SI",VLOOKUP((CONCATENATE($A2,BC$1)),'Impactos Data'!$F$2:$G$521,2,FALSE),0) -> 0 | BD2: =IF($E2="SI",VLOOKUP((CONCATENATE($A2,BD$1)),'Impactos Data'!$F$2:$G$521,2,FALSE),0) -> 0 | BE2: =IF($E2="SI",VLOOKUP((CONCATENATE($A2,BE$1)),'Impactos Data'!$F$2:$G$521,2,FALSE),0) -> 0 | BF2: =IF($E2="SI",VLOOKUP((CONCATENATE($A2,BF$1)),'Impactos Data'!$F$2:$G$521,2,FALSE),0) -> 0 | BG2: =IF($E2="SI",VLOOKUP((CONCATENATE($A2,BG$1)),'Impactos Data'!$F$2:$G$521,2,FALSE),0) -> 0 | BH2: =IF($E2="SI",VLOOKUP((CONCATENATE($A2,BH$1)),'Impactos Data'!$F$2:$G$521,2,FALSE),0) -> 0 | BI2: =IF($E2="SI",VLOOKUP((CONCATENATE($A2,BI$1)),'Impactos Data'!$F$2:$G$521,2,FALSE),0) -> 0 | BJ2: =SUM(AP2:BI2) -> 0 | BN2: =AP2*$AD2*$AF2 -> 0 | BO2: =AQ2*$AD2*$AF2 -> 0 | BP2: 0 | BQ2: 0 | BR2: 0 | BS2: 0 | BT2: 0 | BU2: =AW2*$AD2*$AH2 -> 0 | BV2: =AX2*$AD2*$AH2 -> 0 | BW2: 0 | BX2: 0 | BY2: 0 | BZ2: 0 | CA2: =BC2*$AD2*$AJ2 -> 0 | CB2: =BD2*$AD2*$AJ2 -> 0 | CC2: 0 | CD2: 0 | CE2: 0 | CF2: =BH2*$AD2*$AL2 -> 0 | CG2: =BI2*$AD2*$AL2 -> 0 | CH2: =SUM(BN2:CG2) -> 0
A3: CB2 | B3: =Biodiversidad!C3 -> BOSQUE URBANO | C3: ='2b Componentes Biodiversidad'!R62 -> 0 | D3: =Biodiversidad!C6 -> ¿El proyecto es o incluye un bosque urbano? | E3: NO | F3: =IF(E3="NO",0,1) -> 0 | G3: =Biodiversidad!C7 -> Hectáreas de bosque | H3: ='2b Componentes Biodiversidad'!V65 -> 0 | I3: =Biodiversidad!C8 -> ¿Cuenta con infraestructura recreativa y/o deportiva que promueva el encuentro? | J3: ='2b Componentes Biodiversidad'!V68 -> 0 | L3: 0 | AB3: =Biodiversidad!C25 -> ¿Cuál es la relación del bosque urbano por habitante? (M2av/hab) - (ID OMS 9m2 AV/hab) | AC3: ='2b Componentes Biodiversidad'!V71 -> 0 | AD3: =IF(AC3=0,1,IF(AC3="0 - 9",Biodiversidad!C28,Biodiversidad!C29)) -> 1 | AE3: ='2b Componentes Biodiversidad'!V74 -> 0 | AF3: =IF(AE3=0,1,IF(AE3=Biodiversidad!C31,Biodiversidad!C34,IF(AE3=Biodiversidad!C32,Biodiversidad!C35,Biodiversidad!C36))) -> 1 | AG3: ='2b Componentes Biodiversidad'!V77 -> 0 | AH3: =IF(AG3=0,1,IF(AG3=Biodiversidad!C38,Biodiversidad!C41,IF(AG3=Biodiversidad!C39,Biodiversidad!C42,Biodiversidad!C43))) -> 1 | AI3: ='2b Componentes Biodiversidad'!V68 -> 0 | AJ3: =IF(AI3=0,1,IF(AI3=Biodiversidad!C45,Biodiversidad!C48,IF(AI3=Biodiversidad!C46,Biodiversidad!C49,Biodiversidad!C50))) -> 1 | AK3: ='2b Componentes Biodiversidad'!V80 -> 0 | AL3: =IF(AK3=0,1,IF(AK3=Biodiversidad!C52,Biodiversidad!C55,IF(AK3=Biodiversidad!C53,Biodiversidad!C56,Biodiversidad!C57))) -> 1 | AP3: =IF($E3="SI",VLOOKUP((CONCATENATE($A3,AP$1)),'Impactos Data'!$F$2:$G$521,2,FALSE),0) -> 0 | AQ3: =IF($E3="SI",VLOOKUP((CONCATENATE($A3,AQ$1)),'Impactos Data'!$F$2:$G$521,2,FALSE),0) -> 0 | AR3: =IF($E3="SI",VLOOKUP((CONCATENATE($A3,AR$1)),'Impactos Data'!$F$2:$G$521,2,FALSE),0) -> 0 | AS3: =IF($E3="SI",VLOOKUP((CONCATENATE($A3,AS$1)),'Impactos Data'!$F$2:$G$521,2,FALSE),0) -> 0 | AT3: =IF($E3="SI",VLOOKUP((CONCATENATE($A3,AT$1)),'Impactos Data'!$F$2:$G$521,2,FALSE),0) -> 0 | AU3: =IF($E3="SI",VLOOKUP((CONCATENATE($A3,AU$1)),'Impactos Data'!$F$2:$G$521,2,FALSE),0) -> 0 | AV3: =IF($E3="SI",VLOOKUP((CONCATENATE($A3,AV$1)),'Impactos Data'!$F$2:$G$521,2,FALSE),0) -> 0 | AW3: =IF($E3="SI",VLOOKUP((CONCATENATE($A3,AW$1)),'Impactos Data'!$F$2:$G$521,2,FALSE),0) -> 0 | AX3: =IF($E3="SI",VLOOKUP((CONCATENATE($A3,AX$1)),'Impactos Data'!$F$2:$G$521,2,FALSE),0) -> 0 | AY3: =IF($E3="SI",VLOOKUP((CONCATENATE($A3,AY$1)),'Impactos Data'!$F$2:$G$521,2,FALSE),0) -> 0 | AZ3: =IF($E3="SI",VLOOKUP((CONCATENATE($A3,AZ$1)),'Impactos Data'!$F$2:$G$521,2,FALSE),0) -> 0 | BA3: =IF($E3="SI",VLOOKUP((CONCATENATE($A3,BA$1)),'Impactos Data'!$F$2:$G$521,2,FALSE),0) -> 0 | BB3: =IF($E3="SI",VLOOKUP((CONCATENATE($A3,BB$1)),'Impactos Data'!$F$2:$G$521,2,FALSE),0) -> 0 | BC3: =IF($E3="SI",VLOOKUP((CONCATENATE($A3,BC$1)),'Impactos Data'!$F$2:$G$521,2,FALSE),0) -> 0 | BD3: =IF($E3="SI",VLOOKUP((CONCATENATE($A3,BD$1)),'Impactos Data'!$F$2:$G$521,2,FALSE),0) -> 0 | BE3: =IF($E3="SI",VLOOKUP((CONCATENATE($A3,BE$1)),'Impactos Data'!$F$2:$G$521,2,FALSE),0) -> 0 | BF3: =IF($E3="SI",VLOOKUP((CONCATENATE($A3,BF$1)),'Impactos Data'!$F$2:$G$521,2,FALSE),0) -> 0 | BG3: =IF($E3="SI",VLOOKUP((CONCATENATE($A3,BG$1)),'Impactos Data'!$F$2:$G$521,2,FALSE),0) -> 0 | BH3: =IF($E3="SI",VLOOKUP((CONCATENATE($A3,BH$1)),'Impactos Data'!$F$2:$G$521,2,FALSE),0) -> 0 | BI3: =IF($E3="SI",VLOOKUP((CONCATENATE($A3,BI$1)),'Impactos Data'!$F$2:$G$521,2,FALSE),0) -> 0 | BJ3: =SUM(AP3:BI3) -> 0 | BN3: =AP3*$AD3*$AF3 -> 0 | BO3: =AQ3*$AD3*$AF3 -> 0 | BP3: =AR3*$AD3*$AF3 -> 0 | BQ3: =AS3*$AD3*$AF3 -> 0 | BR3: =AT3*$AD3*$AF3 -> 0 | BS3: =AU3*$AD3*$AF3 -> 0 | BT3: =AV3*$AD3*$AF3 -> 0 | BU3: =AW3*$AD3*$AH3 -> 0 | BV3: =AX3*$AD3*$AH3 -> 0 | BW3: =AY3*$AD3*$AH3 -> 0 | BX3: =AZ3*$AD3*$AH3 -> 0 | BY3: =BA3*$AD3*$AH3 -> 0 | BZ3: =BB3*$AD3*$AH3 -> 0 | CA3: =BC3*$AD3*$AJ3 -> 0 | CB3: =BD3*$AD3*$AJ3 -> 0 | CC3: =BE3*$AD3*$AJ3 -> 0 | CD3: =BF3*$AD3*$AJ3 -> 0 | CE3: =BG3*$AD3*$AJ3 -> 0 | CF3: =BH3*$AD3*$AL3 -> 0 | CG3: =BI3*$AD3*$AL3 -> 0 | CH3: =SUM(BN3:CG3) -> 0
A4: CB3 | B4: =Biodiversidad!D3 -> JARDINES EDUCATIVOS | C4: ='2b Componentes Biodiversidad'!R85 -> 0 | D4: =Biodiversidad!D6 -> ¿El proyecto es o incluye un jardín o parque educativo? | E4: NO | F4: 0 | G4: =Biodiversidad!D7 -> ¿Cuenta con arbolado? | H4: ='2b Componentes Biodiversidad'!V88 -> SI | I4: =Biodiversidad!D8 -> m2 de superficie | J4: ='2b Componentes Biodiversidad'!V91 -> 0 | AB4: =Biodiversidad!D25 -> ¿El espacio reutiliza suelo que se encontraba artificializado o cubierto por concreto, asfalto u otro material? | AC4: ='2b Componentes Biodiversidad'!V94 -> NO | AD4: =IF(AC4=0,1,IF(AC4=Biodiversidad!D26,Biodiversidad!D28,Biodiversidad!D29)) -> 0.5 | AE4: ='2b Componentes Biodiversidad'!V97 -> SI | AF4: =IF(AE4=0,1,IF(AE4=Biodiversidad!D31,Biodiversidad!D34,IF(AE4=Biodiversidad!D32,Biodiversidad!D35,Biodiversidad!D36))) -> 1.25 | AG4: 1 | AH4: 1 | AI4: ='2b Componentes Biodiversidad'!V100 -> NO | AJ4: =IF(AI4=0,1,IF(AI4=Biodiversidad!D45,Biodiversidad!D48,IF(AI4=Biodiversidad!D46,Biodiversidad!D49,Biodiversidad!D50))) -> 0.75 | AK4: 1 | AL4: 1 | AP4: =IF($E4="SI",VLOOKUP((CONCATENATE($A4,AP$1)),'Impactos Data'!$F$2:$G$521,2,FALSE),0) -> 0 | AQ4: =IF($E4="SI",VLOOKUP((CONCATENATE($A4,AQ$1)),'Impactos Data'!$F$2:$G$521,2,FALSE),0) -> 0 | AR4: =IF($E4="SI",VLOOKUP((CONCATENATE($A4,AR$1)),'Impactos Data'!$F$2:$G$521,2,FALSE),0) -> 0 | AS4: =IF($E4="SI",VLOOKUP((CONCATENATE($A4,AS$1)),'Impactos Data'!$F$2:$G$521,2,FALSE),0) -> 0 | AT4: =IF($E4="SI",VLOOKUP((CONCATENATE($A4,AT$1)),'Impactos Data'!$F$2:$G$521,2,FALSE),0) -> 0 | AU4: =IF($E4="SI",VLOOKUP((CONCATENATE($A4,AU$1)),'Impactos Data'!$F$2:$G$521,2,FALSE),0) -> 0 | AV4: =IF($E4="SI",VLOOKUP((CONCATENATE($A4,AV$1)),'Impactos Data'!$F$2:$G$521,2,FALSE),0) -> 0 | AW4: =IF($E4="SI",VLOOKUP((CONCATENATE($A4,AW$1)),'Impactos Data'!$F$2:$G$521,2,FALSE),0) -> 0 | AX4: =IF($E4="SI",VLOOKUP((CONCATENATE($A4,AX$1)),'Impactos Data'!$F$2:$G$521,2,FALSE),0) -> 0 | AY4: =IF($E4="SI",VLOOKUP((CONCATENATE($A4,AY$1)),'Impactos Data'!$F$2:$G$521,2,FALSE),0) -> 0 | AZ4: =IF($E4="SI",VLOOKUP((CONCATENATE($A4,AZ$1)),'Impactos Data'!$F$2:$G$521,2,FALSE),0) -> 0 | BA4: =IF($E4="SI",VLOOKUP((CONCATENATE($A4,BA$1)),'Impactos Data'!$F$2:$G$521,2,FALSE),0) -> 0 | BB4: =IF($E4="SI",VLOOKUP((CONCATENATE($A4,BB$1)),'Impactos Data'!$F$2:$G$521,2,FALSE),0) -> 0 | BC4: =IF($E4="SI",VLOOKUP((CONCATENATE($A4,BC$1)),'Impactos Data'!$F$2:$G$521,2,FALSE),0) -> 0 | BD4: =IF($E4="SI",VLOOKUP((CONCATENATE($A4,BD$1)),'Impactos Data'!$F$2:$G$521,2,FALSE),0) -> 0 | BE4: =IF($E4="SI",VLOOKUP((CONCATENATE($A4,BE$1)),'Impactos Data'!$F$2:$G$521,2,FALSE),0) -> 0 | BF4: =IF($E4="SI",VLOOKUP((CONCATENATE($A4,BF$1)),'Impactos Data'!$F$2:$G$521,2,FALSE),0) -> 0 | BG4: =IF($E4="SI",VLOOKUP((CONCATENATE($A4,BG$1)),'Impactos Data'!$F$2:$G$521,2,FALSE),0) -> 0 | BH4: =IF($E4="SI",VLOOKUP((CONCATENATE($A4,BH$1)),'Impactos Data'!$F$2:$G$521,2,FALSE),0) -> 0 | BI4: =IF($E4="SI",VLOOKUP((CONCATENATE($A4,BI$1)),'Impactos Data'!$F$2:$G$521,2,FALSE),0) -> 0 | BJ4: 0 | BN4: =AP4*$AD4*$AF4 -> 0 | BO4: 0 | BP4: 0 | BQ4: 0 | BR4: 0 | BS4: 0 | BT4: 0 | BU4: 0 | BV4: 0 | BW4: 0 | BX4: 0 | BY4: 0 | BZ4: =BB4*$AD4*$AH4 -> 0 | CA4: 0 | CB4: 0 | CC4: 0 | CD4: 0 | CE4: 0 | CF4: 0 | CG4: 0 | CH4: 0
A5: CB4 | B5: =Biodiversidad!E3 -> HUERTOS URBANOS | C5: ='2b Componentes Biodiversidad'!R105 -> 0 | D5: =Biodiversidad!E6 -> ¿El proyecto es o incluye un huerto urbano? | E5: NO | F5: 0 | G5: =Biodiversidad!E7 -> m2 superficie de huerto | H5: ='2b Componentes Biodiversidad'!V111 -> 0 | I5: =Biodiversidad!E8 -> kg de alimentos producidos / año (estimado) | J5: ='2b Componentes Biodiversidad'!V114 -> 0 | AB5: =Biodiversidad!E25 -> ¿El espacio reutiliza suelo que se encontraba artificializado o cubierto por concreto, asfalto u otro material? | AC5: ='2b Componentes Biodiversidad'!V114 -> 0 | AD5: =IF(AC5=0,1,IF(AC5=Biodiversidad!E26,Biodiversidad!E28,Biodiversidad!E29)) -> 1 | AE5: ='2b Componentes Biodiversidad'!V117 -> 0 | AF5: =IF(AE5=0,1,IF(AE5=Biodiversidad!E31,Biodiversidad!E34,IF(AE5=Biodiversidad!E32,Biodiversidad!E35,Biodiversidad!E36))) -> 1 | AG5: ='2b Componentes Biodiversidad'!V120 -> 0 | AH5: =IF(AG5=0,1,IF(AG5=Biodiversidad!E38,Biodiversidad!E41,IF(AG5=Biodiversidad!E39,Biodiversidad!E42,Biodiversidad!E43))) -> 1 | AI5: ='2b Componentes Biodiversidad'!V123 -> 0 | AJ5: =IF(AI5=0,1,IF(AI5=Biodiversidad!E45,Biodiversidad!E48,IF(AI5=Biodiversidad!E46,Biodiversidad!E49,Biodiversidad!E50))) -> 1 | AK5: ='2b Componentes Biodiversidad'!V126 -> 0 | AL5: =IF(AK5=0,1,IF(AK5=Biodiversidad!E52,Biodiversidad!E55,IF(AK5=Biodiversidad!E53,Biodiversidad!E56,Biodiversidad!E57))) -> 1 | AP5: =IF($E5="SI",VLOOKUP((CONCATENATE($A5,AP$1)),'Impactos Data'!$F$2:$G$521,2,FALSE),0) -> 0 | AQ5: =IF($E5="SI",VLOOKUP((CONCATENATE($A5,AQ$1)),'Impactos Data'!$F$2:$G$521,2,FALSE),0) -> 0 | AR5: =IF($E5="SI",VLOOKUP((CONCATENATE($A5,AR$1)),'Impactos Data'!$F$2:$G$521,2,FALSE),0) -> 0 | AS5: =IF($E5="SI",VLOOKUP((CONCATENATE($A5,AS$1)),'Impactos Data'!$F$2:$G$521,2,FALSE),0) -> 0 | AT5: =IF($E5="SI",VLOOKUP((CONCATENATE($A5,AT$1)),'Impactos Data'!$F$2:$G$521,2,FALSE),0) -> 0 | AU5: =IF($E5="SI",VLOOKUP((CONCATENATE($A5,AU$1)),'Impactos Data'!$F$2:$G$521,2,FALSE),0) -> 0 | AV5: =IF($E5="SI",VLOOKUP((CONCATENATE($A5,AV$1)),'Impactos Data'!$F$2:$G$521,2,FALSE),0) -> 0 | AW5: =IF($E5="SI",VLOOKUP((CONCATENATE($A5,AW$1)),'Impactos Data'!$F$2:$G$521,2,FALSE),0) -> 0 | AX5: =IF($E5="SI",VLOOKUP((CONCATENATE($A5,AX$1)),'Impactos Data'!$F$2:$G$521,2,FALSE),0) -> 0 | AY5: =IF($E5="SI",VLOOKUP((CONCATENATE($A5,AY$1)),'Impactos Data'!$F$2:$G$521,2,FALSE),0) -> 0 | AZ5: =IF($E5="SI",VLOOKUP((CONCATENATE($A5,AZ$1)),'Impactos Data'!$F$2:$G$521,2,FALSE),0) -> 0 | BA5: =IF($E5="SI",VLOOKUP((CONCATENATE($A5,BA$1)),'Impactos Data'!$F$2:$G$521,2,FALSE),0) -> 0 | BB5: =IF($E5="SI",VLOOKUP((CONCATENATE($A5,BB$1)),'Impactos Data'!$F$2:$G$521,2,FALSE),0) -> 0 | BC5: =IF($E5="SI",VLOOKUP((CONCATENATE($A5,BC$1)),'Impactos Data'!$F$2:$G$521,2,FALSE),0) -> 0 | BD5: =IF($E5="SI",VLOOKUP((CONCATENATE($A5,BD$1)),'Impactos Data'!$F$2:$G$521,2,FALSE),0) -> 0 | BE5: =IF($E5="SI",VLOOKUP((CONCATENATE($A5,BE$1)),'Impactos Data'!$F$2:$G$521,2,FALSE),0) -> 0 | BF5: =IF($E5="SI",VLOOKUP((CONCATENATE($A5,BF$1)),'Impactos Data'!$F$2:$G$521,2,FALSE),0) -> 0 | BG5: =IF($E5="SI",VLOOKUP((CONCATENATE($A5,BG$1)),'Impactos Data'!$F$2:$G$521,2,FALSE),0) -> 0 | BH5: =IF($E5="SI",VLOOKUP((CONCATENATE($A5,BH$1)),'Impactos Data'!$F$2:$G$521,2,FALSE),0) -> 0 | BI5: =IF($E5="SI",VLOOKUP((CONCATENATE($A5,BI$1)),'Impactos Data'!$F$2:$G$521,2,FALSE),0) -> 0 | BJ5: 0 | BN5: 0 | BO5: 0 | BP5: 0 | BQ5: 0 | BR5: 0 | BS5: 0 | BT5: 0 | BU5: 0 | BV5: 0 | BW5: 0 | BX5: 0 | BY5: 0 | BZ5: 0 | CA5: 0 | CB5: 0 | CC5: 0 | CD5: 0 | CE5: 0 | CF5: 0 | CG5: 0 | CH5: 0
A6: CB5 | B6: =Biodiversidad!F3 -> RENATURALIZACION DE ELEMENTOS FLUVIALES | C6: ='2b Componentes Biodiversidad'!R131 -> 0 | D6: =Biodiversidad!F6 -> ¿El proyecto es o incluye una renaturalización de elementos fluviales ? | E6: NO | F6: 0 | G6: =Biodiversidad!F7 -> Hectáreas de la superficie de laderas recuperada | H6: ='2b Componentes Biodiversidad'!V134 -> 0 | I6: =Biodiversidad!F8 -> m2 de sección hidráulica de la propuesta | J6: ='2b Componentes Biodiversidad'!V137 -> 0 | AB6: =Biodiversidad!F25 -> ¿La renaturalización se ha hecho de forma natural o sobre infraestructura gris? | AC6: ='2b Componentes Biodiversidad'!V140 -> 0 | AD6: =IF(AC6=0,1,IF(AC6=Biodiversidad!F26,Biodiversidad!F28,Biodiversidad!F29)) -> 1 | AE6: ='2b Componentes Biodiversidad'!V143 -> 0 | AF6: =IF(AE6=0,1,IF(AE6=Biodiversidad!F31,Biodiversidad!F34,IF(AE6=Biodiversidad!F32,Biodiversidad!F35,Biodiversidad!F36))) -> 1 | AG6: ='2b Componentes Biodiversidad'!V147 -> 0 | AH6: =IF(AG6=0,1,IF(AG6=Biodiversidad!F38,Biodiversidad!F41,IF(AG6=Biodiversidad!F39,Biodiversidad!F42,Biodiversidad!F43))) -> 1 | AI6: ='2b Componentes Biodiversidad'!V150 -> 0 | AJ6: =IF(AI6=0,1,IF(AI6=Biodiversidad!F45,Biodiversidad!F48,IF(AI6=Biodiversidad!F46,Biodiversidad!F49,Biodiversidad!F50))) -> 1 | AK6: ='2b Componentes Biodiversidad'!V153 -> 0 | AL6: =IF(AK6=0,1,IF(AK6=Biodiversidad!G52,Biodiversidad!G55,IF(AK6=Biodiversidad!G53,Biodiversidad!G56,Biodiversidad!G57))) -> 1 | AP6: =IF($E6="SI",VLOOKUP((CONCATENATE($A6,AP$1)),'Impactos Data'!$F$2:$G$521,2,FALSE),0) -> 0 | AQ6: =IF($E6="SI",VLOOKUP((CONCATENATE($A6,AQ$1)),'Impactos Data'!$F$2:$G$521,2,FALSE),0) -> 0 | AR6: =IF($E6="SI",VLOOKUP((CONCATENATE($A6,AR$1)),'Impactos Data'!$F$2:$G$521,2,FALSE),0) -> 0 | AS6: =IF($E6="SI",VLOOKUP((CONCATENATE($A6,AS$1)),'Impactos Data'!$F$2:$G$521,2,FALSE),0) -> 0 | AT6: =IF($E6="SI",VLOOKUP((CONCATENATE($A6,AT$1)),'Impactos Data'!$F$2:$G$521,2,FALSE),0) -> 0 | AU6: =IF($E6="SI",VLOOKUP((CONCATENATE($A6,AU$1)),'Impactos Data'!$F$2:$G$521,2,FALSE),0) -> 0 | AV6: =IF($E6="SI",VLOOKUP((CONCATENATE($A6,AV$1)),'Impactos Data'!$F$2:$G$521,2,FALSE),0) -> 0 | AW6: =IF($E6="SI",VLOOKUP((CONCATENATE($A6,AW$1)),'Impactos Data'!$F$2:$G$521,2,FALSE),0) -> 0 | AX6: =IF($E6="SI",VLOOKUP((CONCATENATE($A6,AX$1)),'Impactos Data'!$F$2:$G$521,2,FALSE),0) -> 0 | AY6: =IF($E6="SI",VLOOKUP((CONCATENATE($A6,AY$1)),'Impactos Data'!$F$2:$G$521,2,FALSE),0) -> 0 | AZ6: =IF($E6="SI",VLOOKUP((CONCATENATE($A6,AZ$1)),'Impactos Data'!$F$2:$G$521,2,FALSE),0) -> 0 | BA6: =IF($E6="SI",VLOOKUP((CONCATENATE($A6,BA$1)),'Impactos Data'!$F$2:$G$521,2,FALSE),0) -> 0 | BB6: =IF($E6="SI",VLOOKUP((CONCATENATE($A6,BB$1)),'Impactos Data'!$F$2:$G$521,2,FALSE),0) -> 0 | BC6: =IF($E6="SI",VLOOKUP((CONCATENATE($A6,BC$1)),'Impactos Data'!$F$2:$G$521,2,FALSE),0) -> 0 | BD6: =IF($E6="SI",VLOOKUP((CONCATENATE($A6,BD$1)),'Impactos Data'!$F$2:$G$521,2,FALSE),0) -> 0 | BE6: =IF($E6="SI",VLOOKUP((CONCATENATE($A6,BE$1)),'Impactos Data'!$F$2:$G$521,2,FALSE),0) -> 0 | BF6: =IF($E6="SI",VLOOKUP((CONCATENATE($A6,BF$1)),'Impactos Data'!$F$2:$G$521,2,FALSE),0) -> 0 | BG6: =IF($E6="SI",VLOOKUP((CONCATENATE($A6,BG$1)),'Impactos Data'!$F$2:$G$521,2,FALSE),0) -> 0 | BH6: =IF($E6="SI",VLOOKUP((CONCATENATE($A6,BH$1)),'Impactos Data'!$F$2:$G$521,2,FALSE),0) -> 0 | BI6: =IF($E6="SI",VLOOKUP((CONCATENATE($A6,BI$1)),'Impactos Data'!$F$2:$G$521,2,FALSE),0) -> 0 | BJ6: 0 | BN6: =AP6*$AD6*$AF6 -> 0 | BO6: 0 | BP6: 0 | BQ6: 0 | BR6: 0 | BS6: 0 | BT6: =AV6*$AD6*$AF6 -> 0 | BU6: =AW6*$AD6*$AH6 -> 0 | BV6: 0 | BW6: 0 | BX6: 0 | BY6: 0 | BZ6: =BB6*$AD6*$AH6 -> 0 | CA6: =BC6*$AD6*$AJ6 -> 0 | CB6: 0 | CC6: 0 | CD6: 0 | CE6: 0 | CF6: =BH6*$AD6*$AL6 -> 0 | CG6: =BI6*$AD6*$AL6 -> 0 | CH6: 0
A7: CB6 | B7: =Biodiversidad!G3 -> DESENTUBADO DE RIOS | C7: ='2b Componentes Biodiversidad'!R158 -> 0 | D7: ¿El proyecto es o incluye un desentubamiento del rio ? | E7: NO | F7: 0 | G7: =Biodiversidad!G7 -> Superficie permeable recuperada (m2) | H7: ='2b Componentes Biodiversidad'!V161 -> 0 | I7: =Biodiversidad!G8 -> Superficie natural recuperada (m2) | J7: ='2b Componentes Biodiversidad'!V164 -> 0 | K7: =Biodiversidad!G9 -> Número ejemplares arbóreos (árboles, arbustos, plantas) | L7: ='2b Componentes Biodiversidad'!V167 -> 0 | AB7: =Biodiversidad!G25 -> ¿El desentubado se ha hecho de forma natural (permeable) o sobre infraestructura gris (impermeable)? | AC7: ='2b Componentes Biodiversidad'!V170 -> 0 | AD7: =IF(AC7=0,1,IF(AC7=Biodiversidad!G26,Biodiversidad!G28,Biodiversidad!G29)) -> 1 | AE7: ='2b Componentes Biodiversidad'!V173 -> 0 | AF7: =IF(AE7=0,1,IF(AE7=Biodiversidad!G31,Biodiversidad!G34,IF(AE7=Biodiversidad!G32,Biodiversidad!G35,Biodiversidad!G36))) -> 1 | AG7: ='2b Componentes Biodiversidad'!V176 -> 0 | AH7: =IF(AG7=0,1,IF(AG7=Biodiversidad!G38,Biodiversidad!G41,IF(AG7=Biodiversidad!G39,Biodiversidad!G42,Biodiversidad!G43))) -> 1 | AI7: ='2b Componentes Biodiversidad'!V180 -> 0 | AJ7: =IF(AI7=0,1,IF(AI7=Biodiversidad!G45,Biodiversidad!G48,IF(AI7=Biodiversidad!G46,Biodiversidad!G49,Biodiversidad!G50))) -> 1 | AK7: ='2b Componentes Biodiversidad'!V183 -> 0 | AL7: =IF(AK7=0,1,IF(AK7=Biodiversidad!G52,Biodiversidad!G55,IF(AK7=Biodiversidad!G53,Biodiversidad!G56,Biodiversidad!G57))) -> 1 | AP7: =IF($E7="SI",VLOOKUP((CONCATENATE($A7,AP$1)),'Impactos Data'!$F$2:$G$521,2,FALSE),0) -> 0 | AQ7: =IF($E7="SI",VLOOKUP((CONCATENATE($A7,AQ$1)),'Impactos Data'!$F$2:$G$521,2,FALSE),0) -> 0 | AR7: =IF($E7="SI",VLOOKUP((CONCATENATE($A7,AR$1)),'Impactos Data'!$F$2:$G$521,2,FALSE),0) -> 0 | AS7: =IF($E7="SI",VLOOKUP((CONCATENATE($A7,AS$1)),'Impactos Data'!$F$2:$G$521,2,FALSE),0) -> 0 | AT7: =IF($E7="SI",VLOOKUP((CONCATENATE($A7,AT$1)),'Impactos Data'!$F$2:$G$521,2,FALSE),0) -> 0 | AU7: =IF($E7="SI",VLOOKUP((CONCATENATE($A7,AU$1)),'Impactos Data'!$F$2:$G$521,2,FALSE),0) -> 0 | AV7: =IF($E7="SI",VLOOKUP((CONCATENATE($A7,AV$1)),'Impactos Data'!$F$2:$G$521,2,FALSE),0) -> 0 | AW7: =IF($E7="SI",VLOOKUP((CONCATENATE($A7,AW$1)),'Impactos Data'!$F$2:$G$521,2,FALSE),0) -> 0 | AX7: =IF($E7="SI",VLOOKUP((CONCATENATE($A7,AX$1)),'Impactos Data'!$F$2:$G$521,2,FALSE),0) -> 0 | AY7: =IF($E7="SI",VLOOKUP((CONCATENATE($A7,AY$1)),'Impactos Data'!$F$2:$G$521,2,FALSE),0) -> 0 | AZ7: =IF($E7="SI",VLOOKUP((CONCATENATE($A7,AZ$1)),'Impactos Data'!$F$2:$G$521,2,FALSE),0) -> 0 | BA7: =IF($E7="SI",VLOOKUP((CONCATENATE($A7,BA$1)),'Impactos Data'!$F$2:$G$521,2,FALSE),0) -> 0 | BB7: =IF($E7="SI",VLOOKUP((CONCATENATE($A7,BB$1)),'Impactos Data'!$F$2:$G$521,2,FALSE),0) -> 0 | BC7: =IF($E7="SI",VLOOKUP((CONCATENATE($A7,BC$1)),'Impactos Data'!$F$2:$G$521,2,FALSE),0) -> 0 | BD7: =IF($E7="SI",VLOOKUP((CONCATENATE($A7,BD$1)),'Impactos Data'!$F$2:$G$521,2,FALSE),0) -> 0 | BE7: =IF($E7="SI",VLOOKUP((CONCATENATE($A7,BE$1)),'Impactos Data'!$F$2:$G$521,2,FALSE),0) -> 0 | BF7: =IF($E7="SI",VLOOKUP((CONCATENATE($A7,BF$1)),'Impactos Data'!$F$2:$G$521,2,FALSE),0) -> 0 | BG7: =IF($E7="SI",VLOOKUP((CONCATENATE($A7,BG$1)),'Impactos Data'!$F$2:$G$521,2,FALSE),0) -> 0 | BH7: =IF($E7="SI",VLOOKUP((CONCATENATE($A7,BH$1)),'Impactos Data'!$F$2:$G$521,2,FALSE),0) -> 0 | BI7: =IF($E7="SI",VLOOKUP((CONCATENATE($A7,BI$1)),'Impactos Data'!$F$2:$G$521,2,FALSE),0) -> 0 | BJ7: 0 | BN7: 0 | BO7: 0 | BP7: 0 | BQ7: 0 | BR7: 0 | BS7: 0 | BT7: 0 | BU7: 0 | BV7: 0 | BW7: 0 | BX7: 0 | BY7: 0 | BZ7: 0 | CA7: 0 | CB7: 0 | CC7: 0 | CD7: 0 | CE7: 0 | CF7: 0 | CG7: 0 | CH7: 0
AP19: =AP1 -> 1 | AQ19: =AQ1 -> 2 | AR19: 3 | AS19: 4 | AT19: 5 | AU19: 6 | AV19: 7 | AW19: 8 | AX19: 9 | AY19: 10 | AZ19: 11 | BA19: 12 | BB19: 13 | BC19: 14 | BD19: 15 | BE19: 16 | BF19: 17 | BG19: 18 | BH19: 19 | BI19: 20 | BN19: =BN1 -> 1 | BO19: =BO1 -> 2 | BP19: 3 | BQ19: 4 | BR19: 5 | BS19: 6 | BT19: 7 | BU19: 8 | BV19: 9 | BW19: 10 | BX19: 11 | BY19: 12 | BZ19: 13 | CA19: 14 | CB19: 15 | CC19: 16 | CD19: 17 | CE19: 18 | CF19: 19 | CG19: 20
B20: SUM SI | C20: =SUMPRODUCT(C2:C18,F2:F18) -> 0 | D20: COUNT SI | E20: =COUNTIF(E2:E18,"SI") -> 0 | M20: SUMA | AP20: =SUM(AP2:AP7) -> 0 | AQ20: =SUM(AQ2:AQ7) -> 0 | AR20: 0 | AS20: 0 | AT20: 0 | AU20: 0 | AV20: 0 | AW20: 0 | AX20: 0 | AY20: 0 | AZ20: 0 | BA20: 0 | BB20: 0 | BC20: 0 | BD20: 0 | BE20: 0 | BF20: 0 | BG20: 0 | BH20: 0 | BI20: 0 | BN20: =SUM(BN2:BN7) -> 0 | BO20: =SUM(BO2:BO10) -> 0 | BP20: 0 | BQ20: 0 | BR20: 0 | BS20: 0 | BT20: 0 | BU20: 0 | BV20: 0 | BW20: 0 | BX20: 0 | BY20: 0 | BZ20: 0 | CA20: 0 | CB20: 0 | CC20: 0 | CD20: 0 | CE20: 0 | CF20: 0 | CG20: 0

Sheet 2c. Componentes Movilidad (hidden)
B2: Herramienta para la estimación y evaluación de los impactos de la infraestructura verde
F4: 1. Introducción | J4: 2. Preparar evaluación | O4: 3. Recolección de datos | T4: 4. Impactos/Resultados
G6: 2a. Componentes AGUA | K6: 2b. Componentes BIODIVERSIDAD | P6: 2c. Componentes MOVILIDAD | U6: 2d. Componentes ESPACIO PUBLICO
B8: Acerca de esta pestaña:
B9: Esta pestaña tiene la definición de los componentes de IV del eje de Movilidad
B14: 2c. Selección de componentes de IV del eje MOVILIDAD
B23: =" "&Movilidad!B3 -> URBANISMO TÁCTICO
O24: Presupuesto asignado | R24: 0 | V24: =Movilidad!B2 -> CMO1
O26: =Movilidad!B6 -> ¿Qué elementos se incorporan?
C27: =Movilidad!B4 -> El urbanisto táctico se refiere a intervenciones de corto plazo en el espacio público, por lo general de carácter temporal, pero pueden ser también permanentes y que buscan generar un cambio en la forma de habitar la ciudad para hacerla más funcional, amigable y sustentable.
O28: =" "&Movilidad!B8 -> Mobiliario Artístico
P29: =IF(V28="SI",Movilidad!B13," ") ->  | V29: SI
O31: =" "&Movilidad!B9 -> Tratamiento de pavimentos
P32: =IF(V31="SI",Movilidad!B14," ") ->  | V32: SI
O34: =" "&Movilidad!B10 -> Mejoramiento de cruceros
P35: =IF(V34="SI",Movilidad!B15," ") -> 
O37: =" "&Movilidad!B11 -> Mejoramiento de la iluminación
P38: =IF(V37="SI",Movilidad!B16," ") ->  | V38: NO
P39: =IF(V37="SI",Movilidad!B17," ") ->  | V39: SI
C41: =IF(D41=0," ","Fuente:") -> Fuente: | D41: =Movilidad!B5 -> CAF (s.f.) Guía Rápida de Urbanismo Táctico. Caso Piloto: Pereira. Asociación Colectivo Ciudadano Espacio & Ciudad. 12p. Disponible en: http://espacioyciudad.com/wp-content/uploads/2019/02/Guia_de_Urbanismo_Tactico_CAF_y_Espacio_y_Ciudad_2018_Final.pdf. Última consulta: 25.08.21) | O41: =" "&Movilidad!B12 -> Transformación de muros artísticos
P42: =IF(V41="SI",""&Movilidad!B18," ") -> 
B45: =" "&Movilidad!C3 -> CICLOVÍAS
O46: Presupuesto asignado | R46: 0 | V46: =Movilidad!C2 -> CMO2
C49: =Movilidad!C4 -> Se refiere a la parte de la infraestructura pública destinada de forma exclusiva a la circulación de bicicletas que se encuentra delimitada con otro color o con símbolos pintados. | O49: =" "&Movilidad!C7 -> ¿Disuade el uso del automóvil?
O52: =" "&Movilidad!C8 -> ¿Hay tiendas y negocios alrededor?
O55: =" "&Movilidad!C9 -> ¿Incluye arbolado?
O58: =" "&Movilidad!C10 -> ¿Cuántos metros lineales de ciclovías?
C60: =IF(D60=0," ","Fuente:") ->  | D60: =Movilidad!C5 -> 0
B64: =" "&Movilidad!D3 -> CORREDOR PEATONAL
O65: Presupuesto asignado | R65: 0 | V65: =Movilidad!D2 -> CMO3
C68: =Movilidad!D4 -> Se refiere a una vía de uso peatonal tanto urbana como periurbana que conecta al menos 2 puntos de relevancia . | O68: =" "&Movilidad!D7 -> ¿Genera diferentes usos recreativos o deportivos?
O71: =" "&Movilidad!D8 -> ¿Incluye vegetación o arbolado?
O74: =" "&Movilidad!D20 -> ¿El corredor implantado genera usos recreativos, comerciales o deportivos?
C79: =IF(D79=0," ","Fuente:") ->  | D79: =Movilidad!D5 -> 0
B83: =" "&Movilidad!E3 -> BANQUETAS
O84: Presupuesto asignado | R84: 0 | V84: =Movilidad!E2 -> CMO4
C87: =Movilidad!E4 -> Se refiere a la franja de la calle cuya función es servir de superficie peatonal para su protección. Se encuentra entre la superficie de rodamiento y el alineamiento de los predios y puede incluir franjas para areas verdes, arbolado urbano y la introducción de infraestructurra hidráulica, sanitaria y eléctrica. | O87: =" "&Movilidad!E7 -> ¿Cuál es el ancho (superficie aprox) de la introducción o ampliación de banqueta?
O90: =" "&Movilidad!E8 -> ¿Cuenta con pavimento infiltrante, cuneta verde o jardinera?
C96: =IF(D96=0," ","Fuente:") -> Fuente: | D96: =Movilidad!E5 -> Curso de calles e infraestructura Verde del programa CiClim. GIZ, SEDATU y SEMARNA
B100: =" "&Movilidad!F3 -> ZONA TRANSPORTE PÚBLICO
O101: Presupuesto asignado | R101: 0 | V101: =Movilidad!F2 -> CMO5
C104: =Movilidad!F4 -> Se refiere a la parte de la infraestructura pública destinada de forma exclusiva a la circulación de transporte público. Se encuentra delimitada con otro color o con símbolos pintados. | O104: =" "&Movilidad!F7 -> metros lineales de carril transporte público
V105: SI
C112: =IF(D112=0," ","Fuente:") -> Fuente: | D112: =Movilidad!F5 -> Módulo 2_Diseño urbano e Infraestructura Verde del “Curso de calles e infraestructura Verde del programa CiClim. GIZ, SEDATU y SEMARNAT
B116: =" "&Movilidad!G3 -> ZONA CARGA SOSTENIBLE
O117: Presupuesto asignado | R117: 0 | V117: =Movilidad!G2 -> CMO6
C120: =Movilidad!G4 -> Se refiere a la parte de la infraestructura pública destinada de forma exclusiva a la carga y descarga de materiales. Se encuentra delimitada con otro color o con símbolos pintados. | O120: =" "&Movilidad!G7 -> metros lineales de carril para carga/descarga
V121: SI
C128: =IF(D128=0," ","Fuente:") -> Fuente: | D128: =Movilidad!G5 -> Módulo 2_Diseño urbano e Infraestructura Verde del “Curso de calles e infraestructura Verde del programa CiClim. GIZ, SEDATU y SEMARNAT
B132: =" "&Movilidad!H3 -> ZONA VEHÍCULO PRIVADO SOSTENIBLE
O133: Presupuesto asignado | R133: 0 | V133: =Movilidad!H2 -> CMO7
C136: =Movilidad!H4 -> Se refiere a la parte de la infraestructura pública destinada de forma exclusiva a la circulación de vehículo privado sostenible (Vehículos ECO/0 Emisiones). Se encuentra delimitada con otro color o con símbolos pintados. | O136: =" "&Movilidad!H7 -> metros lineales de carril para vehículo sostenible
V137: SI
C145: =IF(D145=0," ","Fuente:") -> Fuente: | D145: =Movilidad!H5 -> Nuevas tecnologías del “Curso de calles e infraestructura Verde del programa CiClim. GIZ, SEDATU y SEMARNAT

Sheet Movilidad (hidden)
A1: Eje | B1: Movilidad | C1: Movilidad | D1: Movilidad | E1: Movilidad | F1: Movilidad | G1: Movilidad | H1: Movilidad
A2: Código | B2: CMO1 | C2: CMO2 | D2: CMO3 | E2: CMO4 | F2: CMO5 | G2: CMO6 | H2: CMO7
A3: Componentes | B3: URBANISMO TÁCTICO | C3: CICLOVÍAS | D3: CORREDOR PEATONAL | E3: BANQUETAS | F3: ZONA TRANSPORTE PÚBLICO | G3: ZONA CARGA SOSTENIBLE | H3: ZONA VEHÍCULO PRIVADO SOSTENIBLE
A4: Descripción | B4: El urbanisto táctico se refiere a intervenciones de corto plazo en el espacio público, por lo general de carácter temporal, pero pueden ser también permanentes y que buscan generar un cambio en la forma de habitar la ciudad para hacerla más funcional, amigable y sustentable. | C4: Se refiere a la parte de la infraestructura pública destinada de forma exclusiva a la circulación de bicicletas que se encuentra delimitada con otro color o con símbolos pintados. | D4: Se refiere a una vía de uso peatonal tanto urbana como periurbana que conecta al menos 2 puntos de relevancia . | E4: Se refiere a la franja de la calle cuya función es servir de superficie peatonal para su protección. Se encuentra entre la superficie de rodamiento y el alineamiento de los predios y puede incluir franjas para areas verdes, arbolado urbano y la introducción de infraestructurra hidráulica, sanitaria y eléctrica. | F4: Se refiere a la parte de la infraestructura pública destinada de forma exclusiva a la circulación de transporte público. Se encuentra delimitada con otro color o con símbolos pintados. | G4: Se refiere a la parte de la infraestructura pública destinada de forma exclusiva a la carga y descarga de materiales. Se encuentra delimitada con otro color o con símbolos pintados. | H4: Se refiere a la parte de la infraestructura pública destinada de forma exclusiva a la circulación de vehículo privado sostenible (Vehículos ECO/0 Emisiones). Se encuentra delimitada con otro color o con símbolos pintados.
A5: Referencia | B5: CAF (s.f.) Guía Rápida de Urbanismo Táctico. Caso Piloto: Pereira. Asociación Colectivo Ciudadano Espacio & Ciudad. 12p. Disponible en: http://espacioyciudad.com/wp-content/uploads/2019/02/Guia_de_Urbanismo_Tactico_CAF_y_Espacio_y_Ciudad_2018_Final.pdf. Última consulta: 25.08.21) | E5: Curso de calles e infraestructura Verde del programa CiClim. GIZ, SEDATU y SEMARNA | F5: Módulo 2_Diseño urbano e Infraestructura Verde del “Curso de calles e infraestructura Verde del programa CiClim. GIZ, SEDATU y SEMARNAT | G5: Módulo 2_Diseño urbano e Infraestructura Verde del “Curso de calles e infraestructura Verde del programa CiClim. GIZ, SEDATU y SEMARNAT | H5: Nuevas tecnologías del “Curso de calles e infraestructura Verde del programa CiClim. GIZ, SEDATU y SEMARNAT
A6: Pregunta 1 | B6: ¿Qué elementos se incorporan? | C6: ¿El proyecto incluye cicovías? | D6: ¿En el proyecto dispone de algún corredor peatonal? | E6: ¿El proyecto propone la introducción o ampliación de las banquetas? | F6: ¿El proyecto incluye zonas de transporte público? | G6: ¿El proyecto incluye zona de carga y descarga sostenible? | H6: ¿El proyecto incluye zona de vehículo privado sostenible?
A7: Pregunta 1SI | C7: ¿Disuade el uso del automóvil? | D7: ¿Genera diferentes usos recreativos o deportivos? | E7: ¿Cuál es el ancho (superficie aprox) de la introducción o ampliación de banqueta? | F7: metros lineales de carril transporte público | G7: metros lineales de carril para carga/descarga | H7: metros lineales de carril para vehículo sostenible
A8: Pregunta 2SI | B8: Mobiliario Artístico | C8: ¿Hay tiendas y negocios alrededor? | D8: ¿Incluye vegetación o arbolado? | E8: ¿Cuenta con pavimento infiltrante, cuneta verde o jardinera?
A9: Pregunta 3SI | B9: Tratamiento de pavimentos | C9: ¿Incluye arbolado?
A10: Pregunta 4SI | B10: Mejoramiento de cruceros | C10: ¿Cuántos metros lineales de ciclovías?
A11: Pregunta5SI | B11: Mejoramiento de la iluminación
A12: Pregunta6SI | B12: Transformación de muros artísticos
A13: Pregunta2SISI | B13: ¿Cuenta con arbolado?
A14: Pregunta 3SISI | B14: ¿Incluye pavimentos filtrantes?
A15: Pregunta 4SISI | B15: ¿Disuade el uso del automóvil?
A16: Pregunta5SISIa | B16: ¿Genera ahorros de energética eléctrica?
A17: Pregunta5SISIb | B17: ¿Es un proyecto de energía renovable?
A18: Pregunta6SISI | B18: ¿Induce mobilidad activa?
A20: Pregunta Q1 | D20: ¿El corredor implantado genera usos recreativos, comerciales o deportivos? | E20: ¿Cuál es el ancho (superficie aprox) de la introducción o ampliación de banqueta?
A21: RQ1 | D21: SI | E21: <2,00 m
A22: RQ2 | D22: NO | E22: 2,00 a 5,20 m
A23: QSI | D23: 1 | E23: 5,20 a 7,60 m
A24: QNO | D24: 0.5 | E24: 0.25
E25: 0.5
E26: 1

Sheet RegistroM (hidden)
A1: Código | B1: Componentes | C1: Presupuesto | D1: Pregunta 1 | E1: Respuesta | F1: Valor | G1: Pregunta 1SI | H1: Dato 1 | I1: Pregunta 2SI | J1: Dato 2 | K1: Pregunta 3SI | L1: Dato 3 | M1: Pregunta 4SI | N1: Dato 4 | O1: Pregunta 5SI | P1: Dato 5 | Q1: Pregunta 6SI | T1: Pregunta clave | U1: Dato Q | V1: Dato q1 | AB1: 1 | AC1: 2 | AD1: 3 | AE1: 4 | AF1: 5 | AG1: 6 | AH1: 7 | AI1: 8 | AJ1: 9 | AK1: 10 | AL1: 11 | AM1: 12 | AN1: 13 | AO1: 14 | AP1: 15 | AQ1: 16 | AR1: 17 | AS1: 18 | AT1: 19 | AU1: 20 | AV1: Suma componente | AZ1: 1 | BA1: 2 | BB1: 3 | BC1: 4 | BD1: 5 | BE1: 6 | BF1: 7 | BG1: 8 | BH1: 9 | BI1: 10 | BJ1: 11 | BK1: 12 | BL1: 13 | BM1: 14 | BN1: 15 | BO1: 16 | BP1: 17 | BQ1: 18 | BR1: 19 | BS1: 20 | BT1: Suma
A2: CMO1 | B2: =Movilidad!B3 -> URBANISMO TÁCTICO | C2: ='2c. Componentes Movilidad'!R24 -> 0 | D2: =Movilidad!B$6 -> ¿Qué elementos se incorporan? | E2: NO | F2: =IF(E2="NO",0,1) -> 0 | G2: =Movilidad!B8 -> Mobiliario Artístico | H2: ='2c. Componentes Movilidad'!V28 -> 0 | I2: =Movilidad!B9 -> Tratamiento de pavimentos | J2: ='2c. Componentes Movilidad'!V31 -> 0 | K2: =Movilidad!B10 -> Mejoramiento de cruceros | L2: ='2c. Componentes Movilidad'!V34 -> 0 | M2: =Movilidad!B11 -> Mejoramiento de la iluminación | N2: ='2c. Componentes Movilidad'!V37 -> 0 | O2: =Movilidad!B12 -> Transformación de muros artísticos | P2: ='2c. Componentes Movilidad'!V41 -> 0 | V2: 1 | AB2: =IF($E2="SI",VLOOKUP((CONCATENATE($A2,AB$1)),'Impactos Data'!$F$2:$G$521,2,FALSE),0) -> 0 | AC2: =IF($E2="SI",VLOOKUP((CONCATENATE($A2,AC$1)),'Impactos Data'!$F$2:$G$521,2,FALSE),0) -> 0 | AD2: =IF($E2="SI",VLOOKUP((CONCATENATE($A2,AD$1)),'Impactos Data'!$F$2:$G$521,2,FALSE),0) -> 0 | AE2: =IF($E2="SI",VLOOKUP((CONCATENATE($A2,AE$1)),'Impactos Data'!$F$2:$G$521,2,FALSE),0) -> 0 | AF2: =IF($E2="SI",VLOOKUP((CONCATENATE($A2,AF$1)),'Impactos Data'!$F$2:$G$521,2,FALSE),0) -> 0 | AG2: =IF($E2="SI",VLOOKUP((CONCATENATE($A2,AG$1)),'Impactos Data'!$F$2:$G$521,2,FALSE),0) -> 0 | AH2: =IF($E2="SI",VLOOKUP((CONCATENATE($A2,AH$1)),'Impactos Data'!$F$2:$G$521,2,FALSE),0) -> 0 | AI2: =IF($E2="SI",VLOOKUP((CONCATENATE($A2,AI$1)),'Impactos Data'!$F$2:$G$521,2,FALSE),0) -> 0 | AJ2: =IF($E2="SI",VLOOKUP((CONCATENATE($A2,AJ$1)),'Impactos Data'!$F$2:$G$521,2,FALSE),0) -> 0 | AK2: =IF($E2="SI",VLOOKUP((CONCATENATE($A2,AK$1)),'Impactos Data'!$F$2:$G$521,2,FALSE),0) -> 0 | AL2: =IF($E2="SI",VLOOKUP((CONCATENATE($A2,AL$1)),'Impactos Data'!$F$2:$G$521,2,FALSE),0) -> 0 | AM2: =IF($E2="SI",VLOOKUP((CONCATENATE($A2,AM$1)),'Impactos Data'!$F$2:$G$521,2,FALSE),0) -> 0 | AN2: =IF($E2="SI",VLOOKUP((CONCATENATE($A2,AN$1)),'Impactos Data'!$F$2:$G$521,2,FALSE),0) -> 0 | AO2: =IF($E2="SI",VLOOKUP((CONCATENATE($A2,AO$1)),'Impactos Data'!$F$2:$G$521,2,FALSE),0) -> 0 | AP2: =IF($E2="SI",VLOOKUP((CONCATENATE($A2,AP$1)),'Impactos Data'!$F$2:$G$521,2,FALSE),0) -> 0 | AQ2: =IF($E2="SI",VLOOKUP((CONCATENATE($A2,AQ$1)),'Impactos Data'!$F$2:$G$521,2,FALSE),0) -> 0 | AR2: =IF($E2="SI",VLOOKUP((CONCATENATE($A2,AR$1)),'Impactos Data'!$F$2:$G$521,2,FALSE),0) -> 0 | AS2: =IF($E2="SI",VLOOKUP((CONCATENATE($A2,AS$1)),'Impactos Data'!$F$2:$G$521,2,FALSE),0) -> 0 | AT2: =IF($E2="SI",VLOOKUP((CONCATENATE($A2,AT$1)),'Impactos Data'!$F$2:$G$521,2,FALSE),0) -> 0 | AU2: =IF($E2="SI",VLOOKUP((CONCATENATE($A2,AU$1)),'Impactos Data'!$F$2:$G$521,2,FALSE),0) -> 0 | AV2: =SUM(AB2:AU2) -> 0 | AZ2: =AB2*$V2 -> 0 | BA2: =AC2*$V2 -> 0 | BB2: 0 | BC2: 0 | BD2: 0 | BE2: 0 | BF2: 0 | BG2: 0 | BH2: 0 | BI2: 0 | BJ2: 0 | BK2: 0 | BL2: 0 | BM2: 0 | BN2: 0 | BO2: 0 | BP2: 0 | BQ2: 0 | BR2: 0 | BS2: 0 | BT2: =SUM(AZ2:BS2) -> 0
A3: CMO2 | B3: =Movilidad!C3 -> CICLOVÍAS | C3: ='2c. Componentes Movilidad'!R46 -> 0 | D3: =Movilidad!C6 -> ¿El proyecto incluye cicovías? | E3: NO | F3: =IF(E3="NO",0,1) -> 0 | G3: =Movilidad!C7 -> ¿Disuade el uso del automóvil? | H3: ='2c. Componentes Movilidad'!V49 -> 0 | I3: =Movilidad!C8 -> ¿Hay tiendas y negocios alrededor? | J3: ='2c. Componentes Movilidad'!V52 -> 0 | K3: =Movilidad!C9 -> ¿Incluye arbolado? | L3: ='2c. Componentes Movilidad'!V55 -> 0 | M3: =Movilidad!C10 -> ¿Cuántos metros lineales de ciclovías? | N3: ='2c. Componentes Movilidad'!V58 -> 0 | V3: 1 | AB3: =IF($E3="SI",VLOOKUP((CONCATENATE($A3,AB$1)),'Impactos Data'!$F$2:$G$521,2,FALSE),0) -> 0 | AC3: =IF($E3="SI",VLOOKUP((CONCATENATE($A3,AC$1)),'Impactos Data'!$F$2:$G$521,2,FALSE),0) -> 0 | AD3: =IF($E3="SI",VLOOKUP((CONCATENATE($A3,AD$1)),'Impactos Data'!$F$2:$G$521,2,FALSE),0) -> 0 | AE3: =IF($E3="SI",VLOOKUP((CONCATENATE($A3,AE$1)),'Impactos Data'!$F$2:$G$521,2,FALSE),0) -> 0 | AF3: =IF($E3="SI",VLOOKUP((CONCATENATE($A3,AF$1)),'Impactos Data'!$F$2:$G$521,2,FALSE),0) -> 0 | AG3: =IF($E3="SI",VLOOKUP((CONCATENATE($A3,AG$1)),'Impactos Data'!$F$2:$G$521,2,FALSE),0) -> 0 | AH3: =IF($E3="SI",VLOOKUP((CONCATENATE($A3,AH$1)),'Impactos Data'!$F$2:$G$521,2,FALSE),0) -> 0 | AI3: =IF($E3="SI",VLOOKUP((CONCATENATE($A3,AI$1)),'Impactos Data'!$F$2:$G$521,2,FALSE),0) -> 0 | AJ3: =IF($E3="SI",VLOOKUP((CONCATENATE($A3,AJ$1)),'Impactos Data'!$F$2:$G$521,2,FALSE),0) -> 0 | AK3: =IF($E3="SI",VLOOKUP((CONCATENATE($A3,AK$1)),'Impactos Data'!$F$2:$G$521,2,FALSE),0) -> 0 | AL3: =IF($E3="SI",VLOOKUP((CONCATENATE($A3,AL$1)),'Impactos Data'!$F$2:$G$521,2,FALSE),0) -> 0 | AM3: =IF($E3="SI",VLOOKUP((CONCATENATE($A3,AM$1)),'Impactos Data'!$F$2:$G$521,2,FALSE),0) -> 0 | AN3: =IF($E3="SI",VLOOKUP((CONCATENATE($A3,AN$1)),'Impactos Data'!$F$2:$G$521,2,FALSE),0) -> 0 | AO3: =IF($E3="SI",VLOOKUP((CONCATENATE($A3,AO$1)),'Impactos Data'!$F$2:$G$521,2,FALSE),0) -> 0 | AP3: =IF($E3="SI",VLOOKUP((CONCATENATE($A3,AP$1)),'Impactos Data'!$F$2:$G$521,2,FALSE),0) -> 0 | AQ3: =IF($E3="SI",VLOOKUP((CONCATENATE($A3,AQ$1)),'Impactos Data'!$F$2:$G$521,2,FALSE),0) -> 0 | AR3: =IF($E3="SI",VLOOKUP((CONCATENATE($A3,AR$1)),'Impactos Data'!$F$2:$G$521,2,FALSE),0) -> 0 | AS3: =IF($E3="SI",VLOOKUP((CONCATENATE($A3,AS$1)),'Impactos Data'!$F$2:$G$521,2,FALSE),0) -> 0 | AT3: =IF($E3="SI",VLOOKUP((CONCATENATE($A3,AT$1)),'Impactos Data'!$F$2:$G$521,2,FALSE),0) -> 0 | AU3: =IF($E3="SI",VLOOKUP((CONCATENATE($A3,AU$1)),'Impactos Data'!$F$2:$G$521,2,FALSE),0) -> 0 | AV3: =SUM(AB3:AU3) -> 0 | AZ3: =AB3*$V3 -> 0 | BA3: 0 | BB3: 0 | BC3: 0 | BD3: 0 | BE3: 0 | BF3: 0 | BG3: 0 | BH3: 0 | BI3: 0 | BJ3: 0 | BK3: 0 | BL3: 0 | BM3: 0 | BN3: 0 | BO3: 0 | BP3: 0 | BQ3: 0 | BR3: 0 | BS3: 0 | BT3: =SUM(AZ3:BS3) -> 0
A4: CMO3 | B4: =Movilidad!D3 -> CORREDOR PEATONAL | C4: ='2c. Componentes Movilidad'!R65 -> 0 | D4: =Movilidad!D6 -> ¿En el proyecto dispone de algún corredor peatonal? | E4: NO | F4: 0 | G4: =Movilidad!D7 -> ¿Genera diferentes usos recreativos o deportivos? | H4: ='2c. Componentes Movilidad'!V68 -> 0 | I4: =Movilidad!D8 -> ¿Incluye vegetación o arbolado? | J4: ='2c. Componentes Movilidad'!V71 -> 0 | T4: =Movilidad!D20 -> ¿El corredor implantado genera usos recreativos, comerciales o deportivos? | U4: ='2c. Componentes Movilidad'!V74 -> 0 | V4: =IF(U4=0,1,IF(U4=Movilidad!D21,Movilidad!D23,Movilidad!D24)) -> 1 | AB4: =IF($E4="SI",VLOOKUP((CONCATENATE($A4,AB$1)),'Impactos Data'!$F$2:$G$521,2,FALSE),0) -> 0 | AC4: =IF($E4="SI",VLOOKUP((CONCATENATE($A4,AC$1)),'Impactos Data'!$F$2:$G$521,2,FALSE),0) -> 0 | AD4: =IF($E4="SI",VLOOKUP((CONCATENATE($A4,AD$1)),'Impactos Data'!$F$2:$G$521,2,FALSE),0) -> 0 | AE4: =IF($E4="SI",VLOOKUP((CONCATENATE($A4,AE$1)),'Impactos Data'!$F$2:$G$521,2,FALSE),0) -> 0 | AF4: =IF($E4="SI",VLOOKUP((CONCATENATE($A4,AF$1)),'Impactos Data'!$F$2:$G$521,2,FALSE),0) -> 0 | AG4: =IF($E4="SI",VLOOKUP((CONCATENATE($A4,AG$1)),'Impactos Data'!$F$2:$G$521,2,FALSE),0) -> 0 | AH4: =IF($E4="SI",VLOOKUP((CONCATENATE($A4,AH$1)),'Impactos Data'!$F$2:$G$521,2,FALSE),0) -> 0 | AI4: =IF($E4="SI",VLOOKUP((CONCATENATE($A4,AI$1)),'Impactos Data'!$F$2:$G$521,2,FALSE),0) -> 0 | AJ4: =IF($E4="SI",VLOOKUP((CONCATENATE($A4,AJ$1)),'Impactos Data'!$F$2:$G$521,2,FALSE),0) -> 0 | AK4: =IF($E4="SI",VLOOKUP((CONCATENATE($A4,AK$1)),'Impactos Data'!$F$2:$G$521,2,FALSE),0) -> 0 | AL4: =IF($E4="SI",VLOOKUP((CONCATENATE($A4,AL$1)),'Impactos Data'!$F$2:$G$521,2,FALSE),0) -> 0 | AM4: =IF($E4="SI",VLOOKUP((CONCATENATE($A4,AM$1)),'Impactos Data'!$F$2:$G$521,2,FALSE),0) -> 0 | AN4: =IF($E4="SI",VLOOKUP((CONCATENATE($A4,AN$1)),'Impactos Data'!$F$2:$G$521,2,FALSE),0) -> 0 | AO4: =IF($E4="SI",VLOOKUP((CONCATENATE($A4,AO$1)),'Impactos Data'!$F$2:$G$521,2,FALSE),0) -> 0 | AP4: =IF($E4="SI",VLOOKUP((CONCATENATE($A4,AP$1)),'Impactos Data'!$F$2:$G$521,2,FALSE),0) -> 0 | AQ4: =IF($E4="SI",VLOOKUP((CONCATENATE($A4,AQ$1)),'Impactos Data'!$F$2:$G$521,2,FALSE),0) -> 0 | AR4: =IF($E4="SI",VLOOKUP((CONCATENATE($A4,AR$1)),'Impactos Data'!$F$2:$G$521,2,FALSE),0) -> 0 | AS4: =IF($E4="SI",VLOOKUP((CONCATENATE($A4,AS$1)),'Impactos Data'!$F$2:$G$521,2,FALSE),0) -> 0 | AT4: =IF($E4="SI",VLOOKUP((CONCATENATE($A4,AT$1)),'Impactos Data'!$F$2:$G$521,2,FALSE),0) -> 0 | AU4: =IF($E4="SI",VLOOKUP((CONCATENATE($A4,AU$1)),'Impactos Data'!$F$2:$G$521,2,FALSE),0) -> 0 | AV4: 0 | AZ4: 0 | BA4: 0 | BB4: 0 | BC4: 0 | BD4: 0 | BE4: 0 | BF4: 0 | BG4: 0 | BH4: 0 | BI4: 0 | BJ4: 0 | BK4: 0 | BL4: 0 | BM4: 0 | BN4: 0 | BO4: 0 | BP4: 0 | BQ4: 0 | BR4: 0 | BS4: 0 | BT4: 0
A5: CMO4 | B5: =Movilidad!E3 -> BANQUETAS | C5: ='2c. Componentes Movilidad'!R84 -> 0 | D5: =Movilidad!E6 -> ¿El proyecto propone la introducción o ampliación de las banquetas? | E5: NO | F5: 0 | G5: =Movilidad!E7 -> ¿Cuál es el ancho (superficie aprox) de la introducción o ampliación de banqueta? | H5: ='2c. Componentes Movilidad'!V87 -> 0 | I5: =Movilidad!E8 -> ¿Cuenta con pavimento infiltrante, cuneta verde o jardinera? | J5: ='2c. Componentes Movilidad'!V90 -> 0 | T5: =Movilidad!E20 -> ¿Cuál es el ancho (superficie aprox) de la introducción o ampliación de banqueta? | U5: ='2c. Componentes Movilidad'!V87 -> 0 | V5: =IF(U5=0,1,IF(U5=Movilidad!E21,Movilidad!E24,IF(U5=Movilidad!E22,Movilidad!E25,Movilidad!E26))) -> 1 | AB5: =IF($E5="SI",VLOOKUP((CONCATENATE($A5,AB$1)),'Impactos Data'!$F$2:$G$521,2,FALSE),0) -> 0 | AC5: =IF($E5="SI",VLOOKUP((CONCATENATE($A5,AC$1)),'Impactos Data'!$F$2:$G$521,2,FALSE),0) -> 0 | AD5: =IF($E5="SI",VLOOKUP((CONCATENATE($A5,AD$1)),'Impactos Data'!$F$2:$G$521,2,FALSE),0) -> 0 | AE5: =IF($E5="SI",VLOOKUP((CONCATENATE($A5,AE$1)),'Impactos Data'!$F$2:$G$521,2,FALSE),0) -> 0 | AF5: =IF($E5="SI",VLOOKUP((CONCATENATE($A5,AF$1)),'Impactos Data'!$F$2:$G$521,2,FALSE),0) -> 0 | AG5: =IF($E5="SI",VLOOKUP((CONCATENATE($A5,AG$1)),'Impactos Data'!$F$2:$G$521,2,FALSE),0) -> 0 | AH5: =IF($E5="SI",VLOOKUP((CONCATENATE($A5,AH$1)),'Impactos Data'!$F$2:$G$521,2,FALSE),0) -> 0 | AI5: =IF($E5="SI",VLOOKUP((CONCATENATE($A5,AI$1)),'Impactos Data'!$F$2:$G$521,2,FALSE),0) -> 0 | AJ5: =IF($E5="SI",VLOOKUP((CONCATENATE($A5,AJ$1)),'Impactos Data'!$F$2:$G$521,2,FALSE),0) -> 0 | AK5: =IF($E5="SI",VLOOKUP((CONCATENATE($A5,AK$1)),'Impactos Data'!$F$2:$G$521,2,FALSE),0) -> 0 | AL5: =IF($E5="SI",VLOOKUP((CONCATENATE($A5,AL$1)),'Impactos Data'!$F$2:$G$521,2,FALSE),0) -> 0 | AM5: =IF($E5="SI",VLOOKUP((CONCATENATE($A5,AM$1)),'Impactos Data'!$F$2:$G$521,2,FALSE),0) -> 0 | AN5: =IF($E5="SI",VLOOKUP((CONCATENATE($A5,AN$1)),'Impactos Data'!$F$2:$G$521,2,FALSE),0) -> 0 | AO5: =IF($E5="SI",VLOOKUP((CONCATENATE($A5,AO$1)),'Impactos Data'!$F$2:$G$521,2,FALSE),0) -> 0 | AP5: =IF($E5="SI",VLOOKUP((CONCATENATE($A5,AP$1)),'Impactos Data'!$F$2:$G$521,2,FALSE),0) -> 0 | AQ5: =IF($E5="SI",VLOOKUP((CONCATENATE($A5,AQ$1)),'Impactos Data'!$F$2:$G$521,2,FALSE),0) -> 0 | AR5: =IF($E5="SI",VLOOKUP((CONCATENATE($A5,AR$1)),'Impactos Data'!$F$2:$G$521,2,FALSE),0) -> 0 | AS5: =IF($E5="SI",VLOOKUP((CONCATENATE($A5,AS$1)),'Impactos Data'!$F$2:$G$521,2,FALSE),0) -> 0 | AT5: =IF($E5="SI",VLOOKUP((CONCATENATE($A5,AT$1)),'Impactos Data'!$F$2:$G$521,2,FALSE),0) -> 0 | AU5: =IF($E5="SI",VLOOKUP((CONCATENATE($A5,AU$1)),'Impactos Data'!$F$2:$G$521,2,FALSE),0) -> 0 | AV5: 0 | AZ5: 0 | BA5: 0 | BB5: 0 | BC5: 0 | BD5: 0 | BE5: 0 | BF5: 0 | BG5: 0 | BH5: 0 | BI5: 0 | BJ5: 0 | BK5: 0 | BL5: 0 | BM5: 0 | BN5: 0 | BO5: 0 | BP5: 0 | BQ5: 0 | BR5: 0 | BS5: 0 | BT5: 0
A6: CMO5 | B6: =Movilidad!F3 -> ZONA TRANSPORTE PÚBLICO | C6: ='2c. Componentes Movilidad'!R101 -> 0 | D6: =Movilidad!F6 -> ¿El proyecto incluye zonas de transporte público? | E6: NO | F6: 0 | G6: =Movilidad!F7 -> metros lineales de carril transporte público | H6: ='2c. Componentes Movilidad'!V104 -> 0 | V6: 1 | AB6: =IF($E6="SI",VLOOKUP((CONCATENATE($A6,AB$1)),'Impactos Data'!$F$2:$G$521,2,FALSE),0) -> 0 | AC6: =IF($E6="SI",VLOOKUP((CONCATENATE($A6,AC$1)),'Impactos Data'!$F$2:$G$521,2,FALSE),0) -> 0 | AD6: =IF($E6="SI",VLOOKUP((CONCATENATE($A6,AD$1)),'Impactos Data'!$F$2:$G$521,2,FALSE),0) -> 0 | AE6: =IF($E6="SI",VLOOKUP((CONCATENATE($A6,AE$1)),'Impactos Data'!$F$2:$G$521,2,FALSE),0) -> 0 | AF6: =IF($E6="SI",VLOOKUP((CONCATENATE($A6,AF$1)),'Impactos Data'!$F$2:$G$521,2,FALSE),0) -> 0 | AG6: =IF($E6="SI",VLOOKUP((CONCATENATE($A6,AG$1)),'Impactos Data'!$F$2:$G$521,2,FALSE),0) -> 0 | AH6: =IF($E6="SI",VLOOKUP((CONCATENATE($A6,AH$1)),'Impactos Data'!$F$2:$G$521,2,FALSE),0) -> 0 | AI6: =IF($E6="SI",VLOOKUP((CONCATENATE($A6,AI$1)),'Impactos Data'!$F$2:$G$521,2,FALSE),0) -> 0 | AJ6: =IF($E6="SI",VLOOKUP((CONCATENATE($A6,AJ$1)),'Impactos Data'!$F$2:$G$521,2,FALSE),0) -> 0 | AK6: =IF($E6="SI",VLOOKUP((CONCATENATE($A6,AK$1)),'Impactos Data'!$F$2:$G$521,2,FALSE),0) -> 0 | AL6: =IF($E6="SI",VLOOKUP((CONCATENATE($A6,AL$1)),'Impactos Data'!$F$2:$G$521,2,FALSE),0) -> 0 | AM6: =IF($E6="SI",VLOOKUP((CONCATENATE($A6,AM$1)),'Impactos Data'!$F$2:$G$521,2,FALSE),0) -> 0 | AN6: =IF($E6="SI",VLOOKUP((CONCATENATE($A6,AN$1)),'Impactos Data'!$F$2:$G$521,2,FALSE),0) -> 0 | AO6: =IF($E6="SI",VLOOKUP((CONCATENATE($A6,AO$1)),'Impactos Data'!$F$2:$G$521,2,FALSE),0) -> 0 | AP6: =IF($E6="SI",VLOOKUP((CONCATENATE($A6,AP$1)),'Impactos Data'!$F$2:$G$521,2,FALSE),0) -> 0 | AQ6: =IF($E6="SI",VLOOKUP((CONCATENATE($A6,AQ$1)),'Impactos Data'!$F$2:$G$521,2,FALSE),0) -> 0 | AR6: =IF($E6="SI",VLOOKUP((CONCATENATE($A6,AR$1)),'Impactos Data'!$F$2:$G$521,2,FALSE),0) -> 0 | AS6: =IF($E6="SI",VLOOKUP((CONCATENATE($A6,AS$1)),'Impactos Data'!$F$2:$G$521,2,FALSE),0) -> 0 | AT6: =IF($E6="SI",VLOOKUP((CONCATENATE($A6,AT$1)),'Impactos Data'!$F$2:$G$521,2,FALSE),0) -> 0 | AU6: =IF($E6="SI",VLOOKUP((CONCATENATE($A6,AU$1)),'Impactos Data'!$F$2:$G$521,2,FALSE),0) -> 0 | AV6: 0 | AZ6: 0 | BA6: 0 | BB6: 0 | BC6: 0 | BD6: 0 | BE6: 0 | BF6: 0 | BG6: 0 | BH6: 0 | BI6: 0 | BJ6: 0 | BK6: 0 | BL6: 0 | BM6: 0 | BN6: 0 | BO6: 0 | BP6: 0 | BQ6: 0 | BR6: 0 | BS6: 0 | BT6: 0
A7: CMO6 | B7: =Movilidad!G3 -> ZONA CARGA SOSTENIBLE | C7: ='2c. Componentes Movilidad'!R117 -> 0 | D7: =Movilidad!G6 -> ¿El proyecto incluye zona de carga y descarga sostenible? | E7: NO | F7: 0 | G7: =Movilidad!G7 -> metros lineales de carril para carga/descarga | H7: ='2c. Componentes Movilidad'!V120 -> 0 | V7: 1 | AB7: =IF($E7="SI",VLOOKUP((CONCATENATE($A7,AB$1)),'Impactos Data'!$F$2:$G$521,2,FALSE),0) -> 0 | AC7: =IF($E7="SI",VLOOKUP((CONCATENATE($A7,AC$1)),'Impactos Data'!$F$2:$G$521,2,FALSE),0) -> 0 | AD7: =IF($E7="SI",VLOOKUP((CONCATENATE($A7,AD$1)),'Impactos Data'!$F$2:$G$521,2,FALSE),0) -> 0 | AE7: =IF($E7="SI",VLOOKUP((CONCATENATE($A7,AE$1)),'Impactos Data'!$F$2:$G$521,2,FALSE),0) -> 0 | AF7: =IF($E7="SI",VLOOKUP((CONCATENATE($A7,AF$1)),'Impactos Data'!$F$2:$G$521,2,FALSE),0) -> 0 | AG7: =IF($E7="SI",VLOOKUP((CONCATENATE($A7,AG$1)),'Impactos Data'!$F$2:$G$521,2,FALSE),0) -> 0 | AH7: =IF($E7="SI",VLOOKUP((CONCATENATE($A7,AH$1)),'Impactos Data'!$F$2:$G$521,2,FALSE),0) -> 0 | AI7: =IF($E7="SI",VLOOKUP((CONCATENATE($A7,AI$1)),'Impactos Data'!$F$2:$G$521,2,FALSE),0) -> 0 | AJ7: =IF($E7="SI",VLOOKUP((CONCATENATE($A7,AJ$1)),'Impactos Data'!$F$2:$G$521,2,FALSE),0) -> 0 | AK7: =IF($E7="SI",VLOOKUP((CONCATENATE($A7,AK$1)),'Impactos Data'!$F$2:$G$521,2,FALSE),0) -> 0 | AL7: =IF($E7="SI",VLOOKUP((CONCATENATE($A7,AL$1)),'Impactos Data'!$F$2:$G$521,2,FALSE),0) -> 0 | AM7: =IF($E7="SI",VLOOKUP((CONCATENATE($A7,AM$1)),'Impactos Data'!$F$2:$G$521,2,FALSE),0) -> 0 | AN7: =IF($E7="SI",VLOOKUP((CONCATENATE($A7,AN$1)),'Impactos Data'!$F$2:$G$521,2,FALSE),0) -> 0 | AO7: =IF($E7="SI",VLOOKUP((CONCATENATE($A7,AO$1)),'Impactos Data'!$F$2:$G$521,2,FALSE),0) -> 0 | AP7: =IF($E7="SI",VLOOKUP((CONCATENATE($A7,AP$1)),'Impactos Data'!$F$2:$G$521,2,FALSE),0) -> 0 | AQ7: =IF($E7="SI",VLOOKUP((CONCATENATE($A7,AQ$1)),'Impactos Data'!$F$2:$G$521,2,FALSE),0) -> 0 | AR7: =IF($E7="SI",VLOOKUP((CONCATENATE($A7,AR$1)),'Impactos Data'!$F$2:$G$521,2,FALSE),0) -> 0 | AS7: =IF($E7="SI",VLOOKUP((CONCATENATE($A7,AS$1)),'Impactos Data'!$F$2:$G$521,2,FALSE),0) -> 0 | AT7: =IF($E7="SI",VLOOKUP((CONCATENATE($A7,AT$1)),'Impactos Data'!$F$2:$G$521,2,FALSE),0) -> 0 | AU7: =IF($E7="SI",VLOOKUP((CONCATENATE($A7,AU$1)),'Impactos Data'!$F$2:$G$521,2,FALSE),0) -> 0 | AV7: 0 | AZ7: 0 | BA7: 0 | BB7: 0 | BC7: 0 | BD7: 0 | BE7: 0 | BF7: 0 | BG7: 0 | BH7: 0 | BI7: 0 | BJ7: 0 | BK7: 0 | BL7: 0 | BM7: 0 | BN7: 0 | BO7: 0 | BP7: 0 | BQ7: 0 | BR7: 0 | BS7: 0 | BT7: 0
A8: CMO7 | B8: =Movilidad!H3 -> ZONA VEHÍCULO PRIVADO SOSTENIBLE | C8: ='2c. Componentes Movilidad'!R133 -> 0 | D8: =Movilidad!H6 -> ¿El proyecto incluye zona de vehículo privado sostenible? | E8: NO | F8: =IF(E8="NO",0,1) -> 0 | G8: =Movilidad!H7 -> metros lineales de carril para vehículo sostenible | H8: ='2c. Componentes Movilidad'!V136 -> 0 | V8: 1 | AB8: =IF($E8="SI",VLOOKUP((CONCATENATE($A8,AB$1)),'Impactos Data'!$F$2:$G$521,2,FALSE),0) -> 0 | AC8: =IF($E8="SI",VLOOKUP((CONCATENATE($A8,AC$1)),'Impactos Data'!$F$2:$G$521,2,FALSE),0) -> 0 | AD8: =IF($E8="SI",VLOOKUP((CONCATENATE($A8,AD$1)),'Impactos Data'!$F$2:$G$521,2,FALSE),0) -> 0 | AE8: =IF($E8="SI",VLOOKUP((CONCATENATE($A8,AE$1)),'Impactos Data'!$F$2:$G$521,2,FALSE),0) -> 0 | AF8: =IF($E8="SI",VLOOKUP((CONCATENATE($A8,AF$1)),'Impactos Data'!$F$2:$G$521,2,FALSE),0) -> 0 | AG8: =IF($E8="SI",VLOOKUP((CONCATENATE($A8,AG$1)),'Impactos Data'!$F$2:$G$521,2,FALSE),0) -> 0 | AH8: =IF($E8="SI",VLOOKUP((CONCATENATE($A8,AH$1)),'Impactos Data'!$F$2:$G$521,2,FALSE),0) -> 0 | AI8: =IF($E8="SI",VLOOKUP((CONCATENATE($A8,AI$1)),'Impactos Data'!$F$2:$G$521,2,FALSE),0) -> 0 | AJ8: =IF($E8="SI",VLOOKUP((CONCATENATE($A8,AJ$1)),'Impactos Data'!$F$2:$G$521,2,FALSE),0) -> 0 | AK8: =IF($E8="SI",VLOOKUP((CONCATENATE($A8,AK$1)),'Impactos Data'!$F$2:$G$521,2,FALSE),0) -> 0 | AL8: =IF($E8="SI",VLOOKUP((CONCATENATE($A8,AL$1)),'Impactos Data'!$F$2:$G$521,2,FALSE),0) -> 0 | AM8: =IF($E8="SI",VLOOKUP((CONCATENATE($A8,AM$1)),'Impactos Data'!$F$2:$G$521,2,FALSE),0) -> 0 | AN8: =IF($E8="SI",VLOOKUP((CONCATENATE($A8,AN$1)),'Impactos Data'!$F$2:$G$521,2,FALSE),0) -> 0 | AO8: =IF($E8="SI",VLOOKUP((CONCATENATE($A8,AO$1)),'Impactos Data'!$F$2:$G$521,2,FALSE),0) -> 0 | AP8: =IF($E8="SI",VLOOKUP((CONCATENATE($A8,AP$1)),'Impactos Data'!$F$2:$G$521,2,FALSE),0) -> 0 | AQ8: =IF($E8="SI",VLOOKUP((CONCATENATE($A8,AQ$1)),'Impactos Data'!$F$2:$G$521,2,FALSE),0) -> 0 | AR8: =IF($E8="SI",VLOOKUP((CONCATENATE($A8,AR$1)),'Impactos Data'!$F$2:$G$521,2,FALSE),0) -> 0 | AS8: =IF($E8="SI",VLOOKUP((CONCATENATE($A8,AS$1)),'Impactos Data'!$F$2:$G$521,2,FALSE),0) -> 0 | AT8: =IF($E8="SI",VLOOKUP((CONCATENATE($A8,AT$1)),'Impactos Data'!$F$2:$G$521,2,FALSE),0) -> 0 | AU8: =IF($E8="SI",VLOOKUP((CONCATENATE($A8,AU$1)),'Impactos Data'!$F$2:$G$521,2,FALSE),0) -> 0 | AV8: 0 | AZ8: 0 | BA8: 0 | BB8: 0 | BC8: 0 | BD8: 0 | BE8: 0 | BF8: 0 | BG8: 0 | BH8: 0 | BI8: 0 | BJ8: 0 | BK8: 0 | BL8: 0 | BM8: 0 | BN8: 0 | BO8: 0 | BP8: 0 | BQ8: 0 | BR8: 0 | BS8: 0 | BT8: 0
AB19: =AB1 -> 1 | AC19: =AC1 -> 2 | AD19: 3 | AE19: 4 | AF19: 5 | AG19: 6 | AH19: 7 | AI19: 8 | AJ19: 9 | AK19: 10 | AL19: 11 | AM19: 12 | AN19: 13 | AO19: 14 | AP19: 15 | AQ19: 16 | AR19: 17 | AS19: 18 | AT19: 19 | AU19: 20 | AZ19: =AZ1 -> 1 | BA19: =BA1 -> 2 | BB19: 3 | BC19: 4 | BD19: 5 | BE19: 6 | BF19: 7 | BG19: 8 | BH19: 9 | BI19: 10 | BJ19: 11 | BK19: 12 | BL19: 13 | BM19: 14 | BN19: 15 | BO19: 16 | BP19: 17 | BQ19: 18 | BR19: 19 | BS19: 20
AA20: SUMA | AB20: =SUM(AB2:AB8) -> 0 | AC20: =SUM(AC2:AC8) -> 0 | AD20: 0 | AE20: 0 | AF20: 0 | AG20: 0 | AH20: 0 | AI20: 0 | AJ20: 0 | AK20: 0 | AL20: 0 | AM20: 0 | AN20: 0 | AO20: 0 | AP20: 0 | AQ20: 0 | AR20: 0 | AS20: 0 | AT20: 0 | AU20: 0 | AZ20: =SUM(AZ2:AZ10) -> 0 | BA20: =SUM(BA2:BA10) -> 0 | BB20: 0 | BC20: 0 | BD20: 0 | BE20: 0 | BF20: 0 | BG20: 0 | BH20: 0 | BI20: 0 | BJ20: 0 | BK20: 0 | BL20: 0 | BM20: 0 | BN20: 0 | BO20: 0 | BP20: 0 | BQ20: 0 | BR20: 0 | BS20: 0
B21: SUM SI | C21: =SUMPRODUCT(C3:C19,F3:F19) -> 0 | D21: COUNT SI | E21: =COUNTIF(E2:E18,"SI") -> 0

Sheet 2d Componentes Espacio Público (hidden)
B2: Herramienta para la estimación y evaluación de los impactos de la infraestructura verde
F4: 1. Introducción | J4: 2. Preparar evaluación | O4: 3. Recolección de datos | T4: 4. Impactos/Resultados
G6: 2a. Componentes AGUA | K6: 2b. Componentes BIODIVERSIDAD | P6: 2c. Componentes MOVILIDAD | U6: 2d. Componentes ESPACIO PUBLICO
B8: Acerca de esta pestaña:
B9: Esta pestaña tiene la definición de los componentes de IV del eje de Espacio Público
B14: 2d. Selección de componentes de IV del eje ESPACIO PÚBLICO
B23: =" "&'Espacio Público'!B3 -> MOBILIARIO URBANO SOSTENIBLE
O24: Presupuesto asignado | R24: 0 | V24: ='Espacio Público'!B2 -> CEP1
C27: ='Espacio Público'!B4 -> Se refiere al conjunto de instalaciones facilitadas por los ayuntamientos para la prestación de servicios urbanos cuya función es la de equipar a la ciudad y el espacio público de elementos que permitan adecuado funcionamiento como bancas, botes de basura, marquesinas en paradas de autobuses, farolas, quioscos, sanitarios públicos, paneles luminosos, jardineras, señalización luminosa, etc. La etiqueta sostenible se refiere al uso de materiales autóctonos o reciclados, uso de pinturas ecológicas, certificaciones, inclusión de dispositivos para la cosecha de agua, instalación de parquímetros, centros de recarga y en general, criterios ambientales en la manufactura, fabricación y uso de este tipo de mobiliario en el espacio público. | O27: =" "&'Espacio Público'!B7 -> ¿Qué mobiliario se utiliza?
O34: =" "&'Espacio Público'!B14 -> ¿El mobiliario sostenible utilizado tiene algún certificado ambiental, de ahorro de agua en su producción o uso, de eficiencia energética o de uso de materiales reciclados durante su manufactura?
C39: =IF(D39=0," ","Fuente:") -> Fuente: | D39: ='Espacio Público'!B5 -> Comunidad de Madrid (s.f.) Guía de Mobiliario Urbano Sostenible con Eficiencia Energética. Consejería de Economía y Hacienda. Comunidad de Madrid. Madrid Solar. Madrid. 92p. Disponible en: http://www.madrid.org/bvirtual/BVCM005915.pdf. Última consulta: 23 de agosto de 2021
B44: =" "&'Espacio Público'!C3 -> MOBILIARIO HIDRÁULICO CERTIFICADO
O45: Presupuesto asignado | R45: 0 | V45: ='Espacio Público'!C2 -> CEP2
C48: ='Espacio Público'!C4 -> Se refiere a mobiliario cuyo sistema hidráulico permite la reutilización de las las aguas grises, negras y lluvias, para usos de regadío o usos compatibles. Permite la renovación y depurado utilizando 4 componentes; trampa para grasa, tanque séptico, zanja de arena filtrante y pozo de absorción. | O48: =" "&'Espacio Público'!C7 -> m3 de agua reciclados (m3 /día)
O51: =" "&'Espacio Público'!C8 -> ¿Qué porcentaje de abastecimiento de agua para regadío proporciona?
C57: =IF(D57=0," ","Fuente:") ->  | D57: ='Espacio Público'!C5 -> 0
B61: =" " &'Espacio Público'!D3 -> LUMINARIAS SUSTENTABLES
O62: Presupuesto asignado | R62: 0 | V62: ='Espacio Público'!D2 -> CEP3
C65: ='Espacio Público'!D4 -> Se refiere a las lámparas de alumbrado público o utilizadas al interior de los proyectos, cuya fuente energética proviene de fuentes sustentables, tales como paneles fotovoltaícos, energía eólica, etc. | O65: =" "&'Espacio Público'!D7 -> ¿Cuántas luminarias fueron en total instaladas?
O68: =" "&'Espacio Público'!D14 -> ¿Las luminarias disponen algún sistema dentro del proyecto que produzca su propia fuente energética? (fotovoltaico, etc.)
C74: =IF(D74=0," ","Fuente:") ->  | D74: ='Espacio Público'!D5 -> 0
B78: =" "&'Espacio Público'!E3 -> PAVIMENTOS RECICLADOS
O79: Presupuesto asignado | R79: 0 | V79: ='Espacio Público'!E2 -> CEP4
C82: ='Espacio Público'!E4 -> Se entiende como reciclado de pavimentos, la reutilización de los materiales procedentes de la demolición de las capas de firmes que ya han estado en servicio, en la construcción de otras nuevas. El reciclado de pavimentos asfálticos se realiza sobre materiales deteriorados que han perdido en gran medida sus propiedades iniciales, aunque en casos muy especiales puede actuarse también sobre materiales en condiciones de servicio para mejorar sus características. | O82: =" "&'Espacio Público'!E7 -> ¿Qué porcentaje del suelo ocupa? | V82: <50%
O85: =" "&'Espacio Público'!E11 -> ¿El pavimento utilizado permite la infiltración del agua?
C93: =IF(D93=0," ","Fuente:") -> Fuente: | D93: ='Espacio Público'!E5 -> http://www.cedex.es/NR/rdonlyres/26C518BE-1802-4803-82B1-FBE634B03B03/119932/RECICLADODEPAVIMENTOSASFALTICOS.pdf. Última consulta: 8 de septiembre de 2021.
B97: =" "&'Espacio Público'!F3 -> ELEMENTOS DE SOMBREAMIENTO
O98: Presupuesto asignado | R98: 0 | V98: ='Espacio Público'!F2 -> CEP5
O101: =" "&'Espacio Público'!F7 -> ¿Producen sombra en la orientación sur?
C102: ='Espacio Público'!F4 -> Se refiere a los elementos de diseño o estructuras en el espacio a analizar cuyo objetivo sea la proporcionar sombra (aleros, pérgolas, marquesinas, etc.) *No se incluye nada de arbolado urbano. Son únicamente son elementos artificiales de sonbreamiento.
O104: =" "&'Espacio Público'!F10 -> Respecto al total de m2 del espacio abierto del proyecto, ¿qué superficie ocupan?
O107: =" "&'Espacio Público'!F14 -> ¿Incorpora plantas trepadoras o enredaderas de sombra?
C111: =IF(D111=0," ","Fuente:") -> Fuente: | D111: ='Espacio Público'!F5 -> International Journal of Design &Nature and Ecodynamics. Vol 15, Nº1, February, 2020, pp33-38. Urban Regreeneration: Green Urban Infrastructure as a Response to Climate Change Mitigation and Adaptation by Jon Laurenz Senosiain

Sheet Espacio Público (hidden)
A1: Eje | B1: Espacio Público | C1: Espacio Público | D1: Espacio Público | E1: Espacio Público | F1: Espacio Público
A2: Código | B2: CEP1 | C2: CEP2 | D2: CEP3 | E2: CEP4 | F2: CEP5
A3: Componentes | B3: MOBILIARIO URBANO SOSTENIBLE | C3: MOBILIARIO HIDRÁULICO CERTIFICADO | D3: LUMINARIAS SUSTENTABLES | E3: PAVIMENTOS RECICLADOS | F3: ELEMENTOS DE SOMBREAMIENTO
A4: Descripción | B4: Se refiere al conjunto de instalaciones facilitadas por los ayuntamientos para la prestación de servicios urbanos cuya función es la de equipar a la ciudad y el espacio público de elementos que permitan adecuado funcionamiento como bancas, botes de basura, marquesinas en paradas de autobuses, farolas, quioscos, sanitarios públicos, paneles luminosos, jardineras, señalización luminosa, etc. La etiqueta sostenible se refiere al uso de materiales autóctonos o reciclados, uso de pinturas ecológicas, certificaciones, inclusión de dispositivos para la cosecha de agua, instalación de parquímetros, centros de recarga y en general, criterios ambientales en la manufactura, fabricación y uso de este tipo de mobiliario en el espacio público. | C4: Se refiere a mobiliario cuyo sistema hidráulico permite la reutilización de las las aguas grises, negras y lluvias, para usos de regadío o usos compatibles. Permite la renovación y depurado utilizando 4 componentes; trampa para grasa, tanque séptico, zanja de arena filtrante y pozo de absorción. | D4: Se refiere a las lámparas de alumbrado público o utilizadas al interior de los proyectos, cuya fuente energética proviene de fuentes sustentables, tales como paneles fotovoltaícos, energía eólica, etc. | E4: Se entiende como reciclado de pavimentos, la reutilización de los materiales procedentes de la demolición de las capas de firmes que ya han estado en servicio, en la construcción de otras nuevas. El reciclado de pavimentos asfálticos se realiza sobre materiales deteriorados que han perdido en gran medida sus propiedades iniciales, aunque en casos muy especiales puede actuarse también sobre materiales en condiciones de servicio para mejorar sus características. | F4: Se refiere a los elementos de diseño o estructuras en el espacio a analizar cuyo objetivo sea la proporcionar sombra (aleros, pérgolas, marquesinas, etc.) *No se incluye nada de arbolado urbano. Son únicamente son elementos artificiales de sonbreamiento.
A5: Referencia | B5: Comunidad de Madrid (s.f.) Guía de Mobiliario Urbano Sostenible con Eficiencia Energética. Consejería de Economía y Hacienda. Comunidad de Madrid. Madrid Solar. Madrid. 92p. Disponible en: http://www.madrid.org/bvirtual/BVCM005915.pdf. Última consulta: 23 de agosto de 2021 | E5: http://www.cedex.es/NR/rdonlyres/26C518BE-1802-4803-82B1-FBE634B03B03/119932/RECICLADODEPAVIMENTOSASFALTICOS.pdf. Última consulta: 8 de septiembre de 2021. | F5: International Journal of Design &Nature and Ecodynamics. Vol 15, Nº1, February, 2020, pp33-38. Urban Regreeneration: Green Urban Infrastructure as a Response to Climate Change Mitigation and Adaptation by Jon Laurenz Senosiain
A6: Pregunta 1 | B6: ¿En el proyecto se utiliza mobiliario urbano sostenible? | C6: ¿En el proyecto se utiliza mobiliario hidraulico certificado? | D6: ¿En el proyecto se utiliza luminarias sustentables? | E6: ¿En el proyecto se utilizan pavimentos reciclados? | F6: ¿En el proyecto se utilizan elementos de sombreamiento?
A7: Pregunta 1a | B7: ¿Qué mobiliario se utiliza? | C7: m3 de agua reciclados (m3 /día) | D7: ¿Cuántas luminarias fueron en total instaladas? | E7: ¿Qué porcentaje del suelo ocupa? | F7: ¿Producen sombra en la orientación sur?
C8: ¿Qué porcentaje de abastecimiento de agua para regadío proporciona? | E8: <50% | F8: SI
C9: <50% | E9: 51% - 99%, | F9: NO
C10: 51% - 99%, | E10: 1 | F10: Respecto al total de m2 del espacio abierto del proyecto, ¿qué superficie ocupan?
C11: 1 | E11: ¿El pavimento utilizado permite la infiltración del agua? | F11: <20%
E12: SI | F12: 21% - 49%
E13: NO | F13: >50%
A14: Pregunta Q1 | B14: ¿El mobiliario sostenible utilizado tiene algún certificado ambiental, de ahorro de agua en su producción o uso, de eficiencia energética o de uso de materiales reciclados durante su manufactura? | D14: ¿Las luminarias disponen algún sistema dentro del proyecto que produzca su propia fuente energética? (fotovoltaico, etc.) | F14: ¿Incorpora plantas trepadoras o enredaderas de sombra?
A15: RQ1 | B15: SI | D15: SI | F15: SI
A16: RQ2 | B16: NO | D16: NO | F16: NO
A17: QSI | B17: 1 | D17: 1 | F17: 1
A18: QNO | B18: 0.5 | D18: 0.5 | F18: 0.5

Sheet RegistroP (hidden)
A1: Código | B1: Componentes | C1: Presupuesto | D1: Pregunta 1 | E1: Respuesta | F1: Valor | G1: Pregunta 1SI | H1: Dato 1 | I1: Pregunta 2SI | J1: Dato 2 | K1: Pregunta 3SI | L1: Dato 3 | M1: Pregunta 4SI | N1: Dato 4 | O1: Pregunta 5SI | P1: Dato 5 | Q1: Pregunta 6SI | R1: Dato 6 | S1: PreguntaDato1SI | V1: Pregunta clave | W1: Dato Q | X1: Dato q1 | AB1: 1 | AC1: 2 | AD1: 3 | AE1: 4 | AF1: 5 | AG1: 6 | AH1: 7 | AI1: 8 | AJ1: 9 | AK1: 10 | AL1: 11 | AM1: 12 | AN1: 13 | AO1: 14 | AP1: 15 | AQ1: 16 | AR1: 17 | AS1: 18 | AT1: 19 | AU1: 20 | AV1: Suma componente | AZ1: 1 | BA1: 2 | BB1: 3 | BC1: 4 | BD1: 5 | BE1: 6 | BF1: 7 | BG1: 8 | BH1: 9 | BI1: 10 | BJ1: 11 | BK1: 12 | BL1: 13 | BM1: 14 | BN1: 15 | BO1: 16 | BP1: 17 | BQ1: 18 | BR1: 19 | BS1: 20 | BT1: Suma
A2: CEP1 | B2: ='Espacio Público'!B3 -> MOBILIARIO URBANO SOSTENIBLE | C2: ='2d Componentes Espacio Público'!S24 -> 0 | D2: ='Espacio Público'!B6 -> ¿En el proyecto se utiliza mobiliario urbano sostenible? | E2: NO | F2: =IF(E2="NO",0,1) -> 0 | G2: ='Espacio Público'!B7 -> ¿Qué mobiliario se utiliza? | H2: ='2d Componentes Espacio Público'!P29 -> 0 | V2: ='Espacio Público'!B14 -> ¿El mobiliario sostenible utilizado tiene algún certificado ambiental, de ahorro de agua en su producción o uso, de eficiencia energética o de uso de materiales reciclados durante su manufactura? | W2: ='2d Componentes Espacio Público'!V34 -> 0 | X2: =IF(W2=0,1,IF(W2='Espacio Público'!B15,'Espacio Público'!B17,'Espacio Público'!B18)) -> 1 | AB2: =IF($E2="SI",VLOOKUP((CONCATENATE($A2,AB$1)),'Impactos Data'!$F$2:$G$521,2,FALSE),0) -> 0 | AC2: =IF($E2="SI",VLOOKUP((CONCATENATE($A2,AC$1)),'Impactos Data'!$F$2:$G$521,2,FALSE),0) -> 0 | AD2: =IF($E2="SI",VLOOKUP((CONCATENATE($A2,AD$1)),'Impactos Data'!$F$2:$G$521,2,FALSE),0) -> 0 | AE2: =IF($E2="SI",VLOOKUP((CONCATENATE($A2,AE$1)),'Impactos Data'!$F$2:$G$521,2,FALSE),0) -> 0 | AF2: =IF($E2="SI",VLOOKUP((CONCATENATE($A2,AF$1)),'Impactos Data'!$F$2:$G$521,2,FALSE),0) -> 0 | AG2: =IF($E2="SI",VLOOKUP((CONCATENATE($A2,AG$1)),'Impactos Data'!$F$2:$G$521,2,FALSE),0) -> 0 | AH2: =IF($E2="SI",VLOOKUP((CONCATENATE($A2,AH$1)),'Impactos Data'!$F$2:$G$521,2,FALSE),0) -> 0 | AI2: =IF($E2="SI",VLOOKUP((CONCATENATE($A2,AI$1)),'Impactos Data'!$F$2:$G$521,2,FALSE),0) -> 0 | AJ2: =IF($E2="SI",VLOOKUP((CONCATENATE($A2,AJ$1)),'Impactos Data'!$F$2:$G$521,2,FALSE),0) -> 0 | AK2: =IF($E2="SI",VLOOKUP((CONCATENATE($A2,AK$1)),'Impactos Data'!$F$2:$G$521,2,FALSE),0) -> 0 | AL2: =IF($E2="SI",VLOOKUP((CONCATENATE($A2,AL$1)),'Impactos Data'!$F$2:$G$521,2,FALSE),0) -> 0 | AM2: =IF($E2="SI",VLOOKUP((CONCATENATE($A2,AM$1)),'Impactos Data'!$F$2:$G$521,2,FALSE),0) -> 0 | AN2: =IF($E2="SI",VLOOKUP((CONCATENATE($A2,AN$1)),'Impactos Data'!$F$2:$G$521,2,FALSE),0) -> 0 | AO2: =IF($E2="SI",VLOOKUP((CONCATENATE($A2,AO$1)),'Impactos Data'!$F$2:$G$521,2,FALSE),0) -> 0 | AP2: =IF($E2="SI",VLOOKUP((CONCATENATE($A2,AP$1)),'Impactos Data'!$F$2:$G$521,2,FALSE),0) -> 0 | AQ2: =IF($E2="SI",VLOOKUP((CONCATENATE($A2,AQ$1)),'Impactos Data'!$F$2:$G$521,2,FALSE),0) -> 0 | AR2: =IF($E2="SI",VLOOKUP((CONCATENATE($A2,AR$1)),'Impactos Data'!$F$2:$G$521,2,FALSE),0) -> 0 | AS2: =IF($E2="SI",VLOOKUP((CONCATENATE($A2,AS$1)),'Impactos Data'!$F$2:$G$521,2,FALSE),0) -> 0 | AT2: =IF($E2="SI",VLOOKUP((CONCATENATE($A2,AT$1)),'Impactos Data'!$F$2:$G$521,2,FALSE),0) -> 0 | AU2: =IF($E2="SI",VLOOKUP((CONCATENATE($A2,AU$1)),'Impactos Data'!$F$2:$G$521,2,FALSE),0) -> 0 | AV2: =SUM(AB2:AU2) -> 0 | AZ2: =AB2*$X2 -> 0 | BA2: =AC2*$X2 -> 0 | BB2: 0 | BC2: 0 | BD2: 0 | BE2: 0 | BF2: 0 | BG2: 0 | BH2: 0 | BI2: 0 | BJ2: 0 | BK2: 0 | BL2: 0 | BM2: 0 | BN2: 0 | BO2: 0 | BP2: 0 | BQ2: 0 | BR2: 0 | BS2: 0 | BT2: =SUM(AZ2:BS2) -> 0
A3: CEP2 | B3: ='Espacio Público'!C3 -> MOBILIARIO HIDRÁULICO CERTIFICADO | C3: ='2d Componentes Espacio Público'!S45 -> 0 | D3: ='Espacio Público'!C6 -> ¿En el proyecto se utiliza mobiliario hidraulico certificado? | E3: NO | F3: =IF(E3="NO",0,1) -> 0 | G3: ='Espacio Público'!C7 -> m3 de agua reciclados (m3 /día) | H3: ='2d Componentes Espacio Público'!V48 -> 0 | I3: ='Espacio Público'!C8 -> ¿Qué porcentaje de abastecimiento de agua para regadío proporciona? | J3: ='2d Componentes Espacio Público'!V51 -> 0 | X3: 1 | AB3: =IF($E3="SI",VLOOKUP((CONCATENATE($A3,AB$1)),'Impactos Data'!$F$2:$G$521,2,FALSE),0) -> 0 | AC3: =IF($E3="SI",VLOOKUP((CONCATENATE($A3,AC$1)),'Impactos Data'!$F$2:$G$521,2,FALSE),0) -> 0 | AD3: =IF($E3="SI",VLOOKUP((CONCATENATE($A3,AD$1)),'Impactos Data'!$F$2:$G$521,2,FALSE),0) -> 0 | AE3: =IF($E3="SI",VLOOKUP((CONCATENATE($A3,AE$1)),'Impactos Data'!$F$2:$G$521,2,FALSE),0) -> 0 | AF3: =IF($E3="SI",VLOOKUP((CONCATENATE($A3,AF$1)),'Impactos Data'!$F$2:$G$521,2,FALSE),0) -> 0 | AG3: =IF($E3="SI",VLOOKUP((CONCATENATE($A3,AG$1)),'Impactos Data'!$F$2:$G$521,2,FALSE),0) -> 0 | AH3: =IF($E3="SI",VLOOKUP((CONCATENATE($A3,AH$1)),'Impactos Data'!$F$2:$G$521,2,FALSE),0) -> 0 | AI3: =IF($E3="SI",VLOOKUP((CONCATENATE($A3,AI$1)),'Impactos Data'!$F$2:$G$521,2,FALSE),0) -> 0 | AJ3: =IF($E3="SI",VLOOKUP((CONCATENATE($A3,AJ$1)),'Impactos Data'!$F$2:$G$521,2,FALSE),0) -> 0 | AK3: =IF($E3="SI",VLOOKUP((CONCATENATE($A3,AK$1)),'Impactos Data'!$F$2:$G$521,2,FALSE),0) -> 0 | AL3: =IF($E3="SI",VLOOKUP((CONCATENATE($A3,AL$1)),'Impactos Data'!$F$2:$G$521,2,FALSE),0) -> 0 | AM3: =IF($E3="SI",VLOOKUP((CONCATENATE($A3,AM$1)),'Impactos Data'!$F$2:$G$521,2,FALSE),0) -> 0 | AN3: =IF($E3="SI",VLOOKUP((CONCATENATE($A3,AN$1)),'Impactos Data'!$F$2:$G$521,2,FALSE),0) -> 0 | AO3: =IF($E3="SI",VLOOKUP((CONCATENATE($A3,AO$1)),'Impactos Data'!$F$2:$G$521,2,FALSE),0) -> 0 | AP3: =IF($E3="SI",VLOOKUP((CONCATENATE($A3,AP$1)),'Impactos Data'!$F$2:$G$521,2,FALSE),0) -> 0 | AQ3: =IF($E3="SI",VLOOKUP((CONCATENATE($A3,AQ$1)),'Impactos Data'!$F$2:$G$521,2,FALSE),0) -> 0 | AR3: =IF($E3="SI",VLOOKUP((CONCATENATE($A3,AR$1)),'Impactos Data'!$F$2:$G$521,2,FALSE),0) -> 0 | AS3: =IF($E3="SI",VLOOKUP((CONCATENATE($A3,AS$1)),'Impactos Data'!$F$2:$G$521,2,FALSE),0) -> 0 | AT3: =IF($E3="SI",VLOOKUP((CONCATENATE($A3,AT$1)),'Impactos Data'!$F$2:$G$521,2,FALSE),0) -> 0 | AU3: =IF($E3="SI",VLOOKUP((CONCATENATE($A3,AU$1)),'Impactos Data'!$F$2:$G$521,2,FALSE),0) -> 0 | AV3: =SUM(AB3:AU3) -> 0 | AZ3: =AB3*$X3 -> 0 | BA3: 0 | BB3: 0 | BC3: 0 | BD3: 0 | BE3: 0 | BF3: 0 | BG3: 0 | BH3: 0 | BI3: 0 | BJ3: 0 | BK3: 0 | BL3: 0 | BM3: 0 | BN3: 0 | BO3: 0 | BP3: 0 | BQ3: 0 | BR3: 0 | BS3: 0 | BT3: =SUM(AZ3:BS3) -> 0
A4: CEP3 | B4: ='Espacio Público'!D3 -> LUMINARIAS SUSTENTABLES | C4: ='2d Componentes Espacio Público'!S62 -> 0 | D4: ='Espacio Público'!D6 -> ¿En el proyecto se utiliza luminarias sustentables? | E4: NO | F4: 0 | G4: ='Espacio Público'!D7 -> ¿Cuántas luminarias fueron en total instaladas? | H4: ='2d Componentes Espacio Público'!V65 -> 0 | I4: ='Espacio Público'!D12 -> 0 | J4: ='2d Componentes Espacio Público'!V68 -> 0 | V4: ='Espacio Público'!D14 -> ¿Las luminarias disponen algún sistema dentro del proyecto que produzca su propia fuente energética? (fotovoltaico, etc.) | W4: ='2d Componentes Espacio Público'!V68 -> 0 | X4: =IF(W4=0,1,IF(W4='Espacio Público'!D15,'Espacio Público'!D17,'Espacio Público'!D18)) -> 1 | AB4: =IF($E4="SI",VLOOKUP((CONCATENATE($A4,AB$1)),'Impactos Data'!$F$2:$G$521,2,FALSE),0) -> 0 | AC4: =IF($E4="SI",VLOOKUP((CONCATENATE($A4,AC$1)),'Impactos Data'!$F$2:$G$521,2,FALSE),0) -> 0 | AD4: =IF($E4="SI",VLOOKUP((CONCATENATE($A4,AD$1)),'Impactos Data'!$F$2:$G$521,2,FALSE),0) -> 0 | AE4: =IF($E4="SI",VLOOKUP((CONCATENATE($A4,AE$1)),'Impactos Data'!$F$2:$G$521,2,FALSE),0) -> 0 | AF4: =IF($E4="SI",VLOOKUP((CONCATENATE($A4,AF$1)),'Impactos Data'!$F$2:$G$521,2,FALSE),0) -> 0 | AG4: =IF($E4="SI",VLOOKUP((CONCATENATE($A4,AG$1)),'Impactos Data'!$F$2:$G$521,2,FALSE),0) -> 0 | AH4: =IF($E4="SI",VLOOKUP((CONCATENATE($A4,AH$1)),'Impactos Data'!$F$2:$G$521,2,FALSE),0) -> 0 | AI4: =IF($E4="SI",VLOOKUP((CONCATENATE($A4,AI$1)),'Impactos Data'!$F$2:$G$521,2,FALSE),0) -> 0 | AJ4: =IF($E4="SI",VLOOKUP((CONCATENATE($A4,AJ$1)),'Impactos Data'!$F$2:$G$521,2,FALSE),0) -> 0 | AK4: =IF($E4="SI",VLOOKUP((CONCATENATE($A4,AK$1)),'Impactos Data'!$F$2:$G$521,2,FALSE),0) -> 0 | AL4: =IF($E4="SI",VLOOKUP((CONCATENATE($A4,AL$1)),'Impactos Data'!$F$2:$G$521,2,FALSE),0) -> 0 | AM4: =IF($E4="SI",VLOOKUP((CONCATENATE($A4,AM$1)),'Impactos Data'!$F$2:$G$521,2,FALSE),0) -> 0 | AN4: =IF($E4="SI",VLOOKUP((CONCATENATE($A4,AN$1)),'Impactos Data'!$F$2:$G$521,2,FALSE),0) -> 0 | AO4: =IF($E4="SI",VLOOKUP((CONCATENATE($A4,AO$1)),'Impactos Data'!$F$2:$G$521,2,FALSE),0) -> 0 | AP4: =IF($E4="SI",VLOOKUP((CONCATENATE($A4,AP$1)),'Impactos Data'!$F$2:$G$521,2,FALSE),0) -> 0 | AQ4: =IF($E4="SI",VLOOKUP((CONCATENATE($A4,AQ$1)),'Impactos Data'!$F$2:$G$521,2,FALSE),0) -> 0 | AR4: =IF($E4="SI",VLOOKUP((CONCATENATE($A4,AR$1)),'Impactos Data'!$F$2:$G$521,2,FALSE),0) -> 0 | AS4: =IF($E4="SI",VLOOKUP((CONCATENATE($A4,AS$1)),'Impactos Data'!$F$2:$G$521,2,FALSE),0) -> 0 | AT4: =IF($E4="SI",VLOOKUP((CONCATENATE($A4,AT$1)),'Impactos Data'!$F$2:$G$521,2,FALSE),0) -> 0 | AU4: =IF($E4="SI",VLOOKUP((CONCATENATE($A4,AU$1)),'Impactos Data'!$F$2:$G$521,2,FALSE),0) -> 0 | AV4: 0 | AZ4: 0 | BA4: 0 | BB4: 0 | BC4: 0 | BD4: 0 | BE4: 0 | BF4: 0 | BG4: 0 | BH4: 0 | BI4: 0 | BJ4: 0 | BK4: 0 | BL4: 0 | BM4: 0 | BN4: 0 | BO4: 0 | BP4: 0 | BQ4: 0 | BR4: 0 | BS4: 0 | BT4: 0
A5: CEP4 | B5: ='Espacio Público'!E3 -> PAVIMENTOS RECICLADOS | C5: ='2d Componentes Espacio Público'!S79 -> 0 | D5: ='Espacio Público'!E6 -> ¿En el proyecto se utilizan pavimentos reciclados? | E5: NO | F5: 0 | G5: ='Espacio Público'!E7 -> ¿Qué porcentaje del suelo ocupa? | H5: ='2d Componentes Espacio Público'!V82 -> <50% | X5: 1 | AB5: =IF($E5="SI",VLOOKUP((CONCATENATE($A5,AB$1)),'Impactos Data'!$F$2:$G$521,2,FALSE),0) -> 0 | AC5: =IF($E5="SI",VLOOKUP((CONCATENATE($A5,AC$1)),'Impactos Data'!$F$2:$G$521,2,FALSE),0) -> 0 | AD5: =IF($E5="SI",VLOOKUP((CONCATENATE($A5,AD$1)),'Impactos Data'!$F$2:$G$521,2,FALSE),0) -> 0 | AE5: =IF($E5="SI",VLOOKUP((CONCATENATE($A5,AE$1)),'Impactos Data'!$F$2:$G$521,2,FALSE),0) -> 0 | AF5: =IF($E5="SI",VLOOKUP((CONCATENATE($A5,AF$1)),'Impactos Data'!$F$2:$G$521,2,FALSE),0) -> 0 | AG5: =IF($E5="SI",VLOOKUP((CONCATENATE($A5,AG$1)),'Impactos Data'!$F$2:$G$521,2,FALSE),0) -> 0 | AH5: =IF($E5="SI",VLOOKUP((CONCATENATE($A5,AH$1)),'Impactos Data'!$F$2:$G$521,2,FALSE),0) -> 0 | AI5: =IF($E5="SI",VLOOKUP((CONCATENATE($A5,AI$1)),'Impactos Data'!$F$2:$G$521,2,FALSE),0) -> 0 | AJ5: =IF($E5="SI",VLOOKUP((CONCATENATE($A5,AJ$1)),'Impactos Data'!$F$2:$G$521,2,FALSE),0) -> 0 | AK5: =IF($E5="SI",VLOOKUP((CONCATENATE($A5,AK$1)),'Impactos Data'!$F$2:$G$521,2,FALSE),0) -> 0 | AL5: =IF($E5="SI",VLOOKUP((CONCATENATE($A5,AL$1)),'Impactos Data'!$F$2:$G$521,2,FALSE),0) -> 0 | AM5: =IF($E5="SI",VLOOKUP((CONCATENATE($A5,AM$1)),'Impactos Data'!$F$2:$G$521,2,FALSE),0) -> 0 | AN5: =IF($E5="SI",VLOOKUP((CONCATENATE($A5,AN$1)),'Impactos Data'!$F$2:$G$521,2,FALSE),0) -> 0 | AO5: =IF($E5="SI",VLOOKUP((CONCATENATE($A5,AO$1)),'Impactos Data'!$F$2:$G$521,2,FALSE),0) -> 0 | AP5: =IF($E5="SI",VLOOKUP((CONCATENATE($A5,AP$1)),'Impactos Data'!$F$2:$G$521,2,FALSE),0) -> 0 | AQ5: =IF($E5="SI",VLOOKUP((CONCATENATE($A5,AQ$1)),'Impactos Data'!$F$2:$G$521,2,FALSE),0) -> 0 | AR5: =IF($E5="SI",VLOOKUP((CONCATENATE($A5,AR$1)),'Impactos Data'!$F$2:$G$521,2,FALSE),0) -> 0 | AS5: =IF($E5="SI",VLOOKUP((CONCATENATE($A5,AS$1)),'Impactos Data'!$F$2:$G$521,2,FALSE),0) -> 0 | AT5: =IF($E5="SI",VLOOKUP((CONCATENATE($A5,AT$1)),'Impactos Data'!$F$2:$G$521,2,FALSE),0) -> 0 | AU5: =IF($E5="SI",VLOOKUP((CONCATENATE($A5,AU$1)),'Impactos Data'!$F$2:$G$521,2,FALSE),0) -> 0 | AV5: 0 | AZ5: 0 | BA5: 0 | BB5: 0 | BC5: 0 | BD5: 0 | BE5: 0 | BF5: 0 | BG5: 0 | BH5: 0 | BI5: 0 | BJ5: 0 | BK5: 0 | BL5: 0 | BM5: 0 | BN5: 0 | BO5: 0 | BP5: 0 | BQ5: 0 | BR5: 0 | BS5: 0 | BT5: 0
A6: CEP5 | B6: ='Espacio Público'!F3 -> ELEMENTOS DE SOMBREAMIENTO | C6: ='2d Componentes Espacio Público'!S98 -> 0 | D6: ='Espacio Público'!F6 -> ¿En el proyecto se utilizan elementos de sombreamiento? | E6: NO | F6: 0 | G6: ='Espacio Público'!F7 -> ¿Producen sombra en la orientación sur? | H6: ='2d Componentes Espacio Público'!V105 -> 0 | I6: ='Espacio Público'!F10 -> Respecto al total de m2 del espacio abierto del proyecto, ¿qué superficie ocupan? | J6: ='2d Componentes Espacio Público'!V104 -> 0 | V6: ='Espacio Público'!F14 -> ¿Incorpora plantas trepadoras o enredaderas de sombra? | W6: ='2d Componentes Espacio Público'!V107 -> 0 | X6: =IF(W6=0,1,IF(W6='Espacio Público'!F15,'Espacio Público'!F17,'Espacio Público'!F18)) -> 1 | AB6: =IF($E6="SI",VLOOKUP((CONCATENATE($A6,AB$1)),'Impactos Data'!$F$2:$G$521,2,FALSE),0) -> 0 | AC6: =IF($E6="SI",VLOOKUP((CONCATENATE($A6,AC$1)),'Impactos Data'!$F$2:$G$521,2,FALSE),0) -> 0 | AD6: =IF($E6="SI",VLOOKUP((CONCATENATE($A6,AD$1)),'Impactos Data'!$F$2:$G$521,2,FALSE),0) -> 0 | AE6: =IF($E6="SI",VLOOKUP((CONCATENATE($A6,AE$1)),'Impactos Data'!$F$2:$G$521,2,FALSE),0) -> 0 | AF6: =IF($E6="SI",VLOOKUP((CONCATENATE($A6,AF$1)),'Impactos Data'!$F$2:$G$521,2,FALSE),0) -> 0 | AG6: =IF($E6="SI",VLOOKUP((CONCATENATE($A6,AG$1)),'Impactos Data'!$F$2:$G$521,2,FALSE),0) -> 0 | AH6: =IF($E6="SI",VLOOKUP((CONCATENATE($A6,AH$1)),'Impactos Data'!$F$2:$G$521,2,FALSE),0) -> 0 | AI6: =IF($E6="SI",VLOOKUP((CONCATENATE($A6,AI$1)),'Impactos Data'!$F$2:$G$521,2,FALSE),0) -> 0 | AJ6: =IF($E6="SI",VLOOKUP((CONCATENATE($A6,AJ$1)),'Impactos Data'!$F$2:$G$521,2,FALSE),0) -> 0 | AK6: =IF($E6="SI",VLOOKUP((CONCATENATE($A6,AK$1)),'Impactos Data'!$F$2:$G$521,2,FALSE),0) -> 0 | AL6: =IF($E6="SI",VLOOKUP((CONCATENATE($A6,AL$1)),'Impactos Data'!$F$2:$G$521,2,FALSE),0) -> 0 | AM6: =IF($E6="SI",VLOOKUP((CONCATENATE($A6,AM$1)),'Impactos Data'!$F$2:$G$521,2,FALSE),0) -> 0 | AN6: =IF($E6="SI",VLOOKUP((CONCATENATE($A6,AN$1)),'Impactos Data'!$F$2:$G$521,2,FALSE),0) -> 0 | AO6: =IF($E6="SI",VLOOKUP((CONCATENATE($A6,AO$1)),'Impactos Data'!$F$2:$G$521,2,FALSE),0) -> 0 | AP6: =IF($E6="SI",VLOOKUP((CONCATENATE($A6,AP$1)),'Impactos Data'!$F$2:$G$521,2,FALSE),0) -> 0 | AQ6: =IF($E6="SI",VLOOKUP((CONCATENATE($A6,AQ$1)),'Impactos Data'!$F$2:$G$521,2,FALSE),0) -> 0 | AR6: =IF($E6="SI",VLOOKUP((CONCATENATE($A6,AR$1)),'Impactos Data'!$F$2:$G$521,2,FALSE),0) -> 0 | AS6: =IF($E6="SI",VLOOKUP((CONCATENATE($A6,AS$1)),'Impactos Data'!$F$2:$G$521,2,FALSE),0) -> 0 | AT6: =IF($E6="SI",VLOOKUP((CONCATENATE($A6,AT$1)),'Impactos Data'!$F$2:$G$521,2,FALSE),0) -> 0 | AU6: =IF($E6="SI",VLOOKUP((CONCATENATE($A6,AU$1)),'Impactos Data'!$F$2:$G$521,2,FALSE),0) -> 0 | AV6: 0 | AZ6: 0 | BA6: 0 | BB6: 0 | BC6: 0 | BD6: 0 | BE6: 0 | BF6: 0 | BG6: 0 | BH6: 0 | BI6: 0 | BJ6: 0 | BK6: 0 | BL6: 0 | BM6: 0 | BN6: 0 | BO6: 0 | BP6: 0 | BQ6: 0 | BR6: 0 | BS6: 0 | BT6: 0
AB19: =AB1 -> 1 | AC19: =AC1 -> 2 | AD19: 3 | AE19: 4 | AF19: 5 | AG19: 6 | AH19: 7 | AI19: 8 | AJ19: 9 | AK19: 10 | AL19: 11 | AM19: 12 | AN19: 13 | AO19: 14 | AP19: 15 | AQ19: 16 | AR19: 17 | AS19: 18 | AT19: 19 | AU19: 20 | AZ19: =AZ1 -> 1 | BA19: =BA1 -> 2 | BB19: 3 | BC19: 4 | BD19: 5 | BE19: 6 | BF19: 7 | BG19: 8 | BH19: 9 | BI19: 10 | BJ19: 11 | BK19: 12 | BL19: 13 | BM19: 14 | BN19: 15 | BO19: 16 | BP19: 17 | BQ19: 18 | BR19: 19 | BS19: 20
AA20: SUMA | AB20: =SUM(AB2:AB8) -> 0 | AC20: =SUM(AC2:AC8) -> 0 | AD20: 0 | AE20: 0 | AF20: 0 | AG20: 0 | AH20: 0 | AI20: 0 | AJ20: 0 | AK20: 0 | AL20: 0 | AM20: 0 | AN20: 0 | AO20: 0 | AP20: 0 | AQ20: 0 | AR20: 0 | AS20: 0 | AT20: 0 | AU20: 0 | AY20: SUMA | AZ20: =SUM(AZ2:AZ6) -> 0 | BA20: =SUM(BA2:BA6) -> 0 | BB20: 0 | BC20: 0 | BD20: 0 | BE20: 0 | BF20: 0 | BG20: 0 | BH20: 0 | BI20: 0 | BJ20: 0 | BK20: 0 | BL20: 0 | BM20: 0 | BN20: 0 | BO20: 0 | BP20: 0 | BQ20: 0 | BR20: 0 | BS20: 0
B21: SUM SI | C21: =SUMPRODUCT(C3:C19,F3:F19) -> 0 | D21: COUNT SI | E21: =COUNTIF(E2:E18,"SI") -> 0

Sheet 3. Recoleccion de datos
B2: Herramienta para la estimación y evaluación de los impactos de la infraestructura verde
F4: 1. Introducción | J4: 2. Preparar evaluación | O4: 3. Recolección de datos | T4: 4. Impactos/Resultados
B8: Acerca de esta pestaña:
B9: Esta pestaña recolecta los datos necesarios para la estimación de GEI y otros impactos relevantes
B14: 3. Recolección de datos
C17: No hay datos adicionales por registrar
C22: Supone que: Luminarias Sustentables LED: Sustitución de luminarias que generan en un ahorro de la demanda o consumo de energía eléctrica. Si no se conoce el wataje anterior o es instalación de luminarias nuevas se recomienda asignar el valor del wataje anterior, como el wataje correspondiente a una luminaria con luminosidad similar de vapor de sodio. Luminarias sustentables: renovables Instalación de luminarias nuevas que generan electricidad por una fuente de energía renovable. Si no se conocen las horas de uso por año, asume 12 horas de uso diario ** Para ambos casos, si no se conocen las horas de uso por año, se asumen 12 horas de uso diario. Para el caso de vida útil se asignará un valor default de 50,000 horas. | G22: Luminarias Sustentables - LED
G24: Año de sustitución | J24: ='1c. Registrar datos proyecto'!H20 -> 0 | L24: Vida útil promedio
G26: Número de luminarias | I26: Wataje de luminarias nuevas | K26: Wataje anterior | M26: Horas de uso por año
G39: Luminarias sustentables - Renovables
G41: Año de sustitución | J41: ='1c. Registrar datos proyecto'!H20 -> 0 | L41: Vida útil promedio
G43: Número de luminarias | I43: Wataje de luminarias nuevas | K43: Horas de uso por día
C59: Supone que: Línea base: se utiliza Gas LP Medida: biodigestores que utilizan excretas de bovinos para la generación de metano. | G59: Biodigestores
G61: Número de biodigestores (equipos/año)
G62: Número de Equipos que sustituyen el uso de gas LP
G64: Capacidad almacenamiento de excretas (bovinos/equipo)
C70: Para la Ia generación de estos datos, se sugiere utilizar la herramienta Itree. Estos datos se encuentran en el reporte que genera la herramienta. El Manual del Itree lo puedes descargar aquí. | G70: Arbolado y Bosque Urbano
G72: Eliminación contaminación (gramos/año)
G75: Secuestro de carbono (kg/año)
G77: Escurrimiento evitado (metros cúbicos/año)

Sheet RegistroDatos (hidden)
B2: Ahorro de energía
B4: Número de luminarias | C4: Wataje de luminarias nuevas | D4: Wataje anterior | E4: Horas/año | F4: Factor emisión tCO2e / MWh | G4: KwH ahorrados | H4: tCO2e | J4: Año | K4: ='3. Recoleccion de datos'!J24 -> 0
B5: ='3. Recoleccion de datos'!G27 -> 0 | C5: ='3. Recoleccion de datos'!I27 -> 0 | D5: ='3. Recoleccion de datos'!K27 -> 0 | E5: =IF(ISBLANK('3. Recoleccion de datos'!M27),4380,'3. Recoleccion de datos'!M27) -> 4380 | F5: =IF(K4=O34,M34,IF(K4=O35,M35,IF(K4=O36,M36))) -> FALSE | G5: =((D5-C5)*E5*B5)/1000 -> 0 | H5: =G5*F5/1000 -> 0 | J5: Vida útil | K5: =IF(ISBLANK('3. Recoleccion de datos'!O24),50000,'3. Recoleccion de datos'!O24)/4380 -> 11.41552511
B6: ='3. Recoleccion de datos'!G28 -> 0 | C6: ='3. Recoleccion de datos'!H28 -> 0 | D6: ='3. Recoleccion de datos'!I28 -> 0 | E6: =IF(ISBLANK('3. Recoleccion de datos'!M28),4380,'3. Recoleccion de datos'!M28) -> 4380 | F6: =F5 -> FALSE | G6: =((D6-C6)*E6*B6)/1000 -> 0 | H6: =G6*F6/1000 -> 0
B7: ='3. Recoleccion de datos'!G29 -> 0 | C7: ='3. Recoleccion de datos'!H29 -> 0 | D7: ='3. Recoleccion de datos'!I29 -> 0 | E7: =IF(ISBLANK('3. Recoleccion de datos'!M29),4380,'3. Recoleccion de datos'!M29) -> 4380 | F7: =F6 -> FALSE | G7: 0 | H7: 0
B8: ='3. Recoleccion de datos'!G30 -> 0 | C8: ='3. Recoleccion de datos'!H30 -> 0 | D8: ='3. Recoleccion de datos'!I30 -> 0 | E8: =IF(ISBLANK('3. Recoleccion de datos'!M30),4380,'3. Recoleccion de datos'!M30) -> 4380 | F8: FALSE | G8: 0 | H8: 0
B9: ='3. Recoleccion de datos'!G31 -> 0 | C9: ='3. Recoleccion de datos'!H31 -> 0 | D9: ='3. Recoleccion de datos'!I31 -> 0 | E9: =IF(ISBLANK('3. Recoleccion de datos'!M31),4380,'3. Recoleccion de datos'!M31) -> 4380 | F9: FALSE | G9: 0 | H9: 0
B10: ='3. Recoleccion de datos'!G32 -> 0 | C10: ='3. Recoleccion de datos'!H32 -> 0 | D10: ='3. Recoleccion de datos'!I32 -> 0 | E10: =IF(ISBLANK('3. Recoleccion de datos'!M32),4380,'3. Recoleccion de datos'!M32) -> 4380 | F10: FALSE | G10: 0 | H10: 0
B11: ='3. Recoleccion de datos'!G33 -> 0 | C11: ='3. Recoleccion de datos'!H33 -> 0 | D11: ='3. Recoleccion de datos'!I33 -> 0 | E11: =IF(ISBLANK('3. Recoleccion de datos'!M33),4380,'3. Recoleccion de datos'!M33) -> 4380 | F11: FALSE | G11: 0 | H11: 0
B12: ='3. Recoleccion de datos'!G34 -> 0 | C12: ='3. Recoleccion de datos'!H34 -> 0 | D12: ='3. Recoleccion de datos'!I34 -> 0 | E12: =IF(ISBLANK('3. Recoleccion de datos'!M34),4380,'3. Recoleccion de datos'!M34) -> 4380 | F12: FALSE | G12: 0 | H12: 0
B13: ='3. Recoleccion de datos'!G35 -> 0 | C13: ='3. Recoleccion de datos'!H35 -> 0 | D13: ='3. Recoleccion de datos'!I35 -> 0 | E13: =IF(ISBLANK('3. Recoleccion de datos'!M35),4380,'3. Recoleccion de datos'!M35) -> 4380 | F13: FALSE | G13: 0 | H13: 0
B14: ='3. Recoleccion de datos'!G36 -> 0 | C14: ='3. Recoleccion de datos'!H36 -> 0 | D14: ='3. Recoleccion de datos'!I36 -> 0 | E14: =IF(ISBLANK('3. Recoleccion de datos'!M36),4380,'3. Recoleccion de datos'!M36) -> 4380 | F14: FALSE | G14: 0 | H14: 0
B16: Emisiones GEI reducidas | F16: =SUM(H4:H13) -> 0 | G16: tCO2e
B17: Emisiones GEI reducidas total | F17: =F16*K5 -> 0 | G17: tCO2e
B19: Luminarias sustentables
B21: Número de luminarias | C21: Wataje de luminarias nuevas | D21: Horas/año | E21: Factor emisión tCO2e / MWh | F21: tCO2e | J21: Año | K21: ='3. Recoleccion de datos'!J41 -> 0
B22: ='3. Recoleccion de datos'!G44 -> 0 | C22: ='3. Recoleccion de datos'!I44 -> 0 | D22: =IF(ISBLANK('3. Recoleccion de datos'!K44),4380,'3. Recoleccion de datos'!K44) -> 4380 | E22: =IF(K21=O34,M34,IF(K21=O35,M35,IF(K21=O36,M36))) -> FALSE | F22: =E22*D22*C22*B22/1000/1000 -> 0 | J22: Vida útil | K22: =IF(ISBLANK('3. Recoleccion de datos'!O42),50000,'3. Recoleccion de datos'!O42)/4380 -> 11.41552511
B23: ='3. Recoleccion de datos'!G45 -> 0 | C23: ='3. Recoleccion de datos'!I45 -> 0 | D23: =IF(ISBLANK('3. Recoleccion de datos'!K45),4380,'3. Recoleccion de datos'!K45) -> 4380 | E23: =E22 -> FALSE | F23: =E23*D23*C23*B23/1000/1000 -> 0
B24: ='3. Recoleccion de datos'!G46 -> 0 | C24: ='3. Recoleccion de datos'!I46 -> 0 | D24: =IF(ISBLANK('3. Recoleccion de datos'!K46),4380,'3. Recoleccion de datos'!K46) -> 4380 | E24: =E23 -> FALSE | F24: 0
B25: ='3. Recoleccion de datos'!G47 -> 0 | C25: ='3. Recoleccion de datos'!I47 -> 0 | D25: =IF(ISBLANK('3. Recoleccion de datos'!K47),4380,'3. Recoleccion de datos'!K47) -> 4380 | E25: FALSE | F25: 0
B26: ='3. Recoleccion de datos'!G48 -> 0 | C26: ='3. Recoleccion de datos'!I48 -> 0 | D26: =IF(ISBLANK('3. Recoleccion de datos'!K48),4380,'3. Recoleccion de datos'!K48) -> 4380 | E26: FALSE | F26: 0
B27: ='3. Recoleccion de datos'!G49 -> 0 | C27: ='3. Recoleccion de datos'!I49 -> 0 | D27: =IF(ISBLANK('3. Recoleccion de datos'!K49),4380,'3. Recoleccion de datos'!K49) -> 4380 | E27: FALSE | F27: 0
B28: ='3. Recoleccion de datos'!G50 -> 0 | C28: ='3. Recoleccion de datos'!I50 -> 0 | D28: =IF(ISBLANK('3. Recoleccion de datos'!K50),4380,'3. Recoleccion de datos'!K50) -> 4380 | E28: FALSE | F28: 0
B29: ='3. Recoleccion de datos'!G51 -> 0 | C29: ='3. Recoleccion de datos'!I51 -> 0 | D29: =IF(ISBLANK('3. Recoleccion de datos'!K51),4380,'3. Recoleccion de datos'!K51) -> 4380 | E29: FALSE | F29: 0
B30: ='3. Recoleccion de datos'!G52 -> 0 | C30: ='3. Recoleccion de datos'!I52 -> 0 | D30: =IF(ISBLANK('3. Recoleccion de datos'!K52),4380,'3. Recoleccion de datos'!K52) -> 4380 | E30: FALSE | F30: 0
B31: ='3. Recoleccion de datos'!G53 -> 0 | C31: ='3. Recoleccion de datos'!I53 -> 0 | D31: =IF(ISBLANK('3. Recoleccion de datos'!K53),4380,'3. Recoleccion de datos'!K53) -> 4380 | E31: FALSE | F31: 0
B32: ='3. Recoleccion de datos'!G54 -> 0 | C32: ='3. Recoleccion de datos'!I54 -> 0 | D32: =IF(ISBLANK('3. Recoleccion de datos'!K54),4380,'3. Recoleccion de datos'!K54) -> 4380 | E32: FALSE | F32: 0
B34: Emisiones GEI reducidas | F34: =SUM(F22:F32) -> 0 | G34: tCO2e | M34: 0.527 | N34: tCO2e / MWh | O34: 2018 | P34: https://www.gob.mx/cms/uploads/attachment/file/442714/Aviso_Factor_de_Emisiones_2018.pdf
B35: Energía | F35: =F34*K22 -> 0 | M35: 0.505 | N35: tCO2e / MWh | O35: 2019 | P35: https://www.gob.mx/cms/uploads/attachment/file/538473/Factor_emision_electrico_2019.pdf
M36: 0.494 | N36: tCO2e / MWh | O36: 2020 | P36: https://www.gob.mx/cms/uploads/attachment/file/630693/Aviso_FEE_2020.pdf
B38: Biodigestores de excretas animales
B40: DA | F40: Valor | G40: Unidades
B41: Número de biodigestores | F41: ='3. Recoleccion de datos'!N61 -> 0 | G41: equipos/año | I41: A insertar
B42: Fracción de biodigestores que sustituyen uso de gas LP | F42: ='3. Recoleccion de datos'!N62 -> 0 | G42: Equipos que sustituyen el uso de gas LP | I42: A insertar
B43: Capacidad almacenamiento de excretas | F43: ='3. Recoleccion de datos'!N64 -> 0 | G43: bovinos/equipo | I43: A insertar
B44: Animales | F44: =F43*F41*F42 -> 0 | G44: bovinos/año | I44: Cálculo
B45: Vs | F45: 2.14 | G45: kg ms/animal-día | I45: CAR
B46: Bo | F46: 0.1 | G46: m3 CH4/ kg VS | I46: IPCC y CAR
B47: MCF biodigestor | F47: 0.0355 | G47: % | I47: CAR para biodigestores fugas bajas
B48: MCF almacenaje de sólidos (en LB) | F48: 0.015 | G48: % | I48: CAR
B49: Biogás producido por biodigestor apoyado | F49: =F44*F45*F46*(1-F47) -> 0 | G49: m3 biogás/día | I49: Cálculo
B50: Equivalencia de biogás a gas LP | F50: 0.5 | G50: kg gas LP/m3 biogás | I50: Reportado por sistema biobolsa
B51: Gas LP sustituido por día | F51: =F49*F50 -> 0 | G51: kg gas LP/día | I51: cálculo
B52: Consumo de Gas LP anual en LB | F52: =F51*365*1000/1000000000 -> 0 | G52: Gg gas LP/año | I52: cálculo
B53: Factor emisión CO2 para gas LP | F53: 63100 | G53: kg/TJ | I53: IPCC 2006
B54: Factor emisión CH4 para gas LP | F54: 1 | G54: kg/TJ | I54: IPCC 2006
B55: Factor emisión N2O para gas LP | F55: 0.1 | G55: kg/TJ | I55: IPCC 2006
B56: PC neto de gas LP | F56: 47.3 | G56: TJ/Gg | I56: IPCC 2006
B57: Gas LP a sustituir por año | F57: =F56*F52 -> 0 | G57: TJ/año | I57: cálculo
B58: Emisiones de CO2 de gas LP a sustituir | F58: =F57*F53 -> 0 | G58: kg CO2e/año | I58: cálculo
B59: Emisiones de CH4 de gas LP a sustituir | F59: =F57*F54*28 -> 0 | G59: kg CO2e/año | I59: cálculo
B60: Emisiones de N2O de gas LP a sustituir | F60: =F57*F55*265 -> 0 | G60: kg CO2e/año | I60: cálculo
B61: Emisiones de gas LP en LB | F61: =SUM(F58:F60) -> 0 | G61: kg CO2e/año | I61: cálculo
B62: FE LB de manejo de excretas | F62: =F45*F46*F48*0.67*365 -> 0.7850055 | G62: kg CH4/ cabeza-año | I62: Cálculo
B63: Emisiones de LB en manejo de excretas | F63: =F62*F44*28 -> 0 | G63: kg CO2e/año | I63: Cálculo
B64: Emisiones totales de LB | F64: =F63+F61 -> 0 | G64: kg CO2e/año | I64: Cálculo
B65: FE de biodigestor por fugitivas | F65: =F45*F46*F47*0.67*365 -> 1.85784635 | G65: kg CH4/ cabeza-año | I65: Cálculo
B66: Emisiones fugitivas del biodigestor | F66: =F65*F44*28 -> 0 | G66: kg CO2e/año | I66: Cálculo
B67: Mitigación | F67: =F64-F66 -> 0 | G67: kg CO2e/año | I67: Cálculo
B68: Mitigación | F68: =F67/1000 -> 0 | G68: tCo2e | I68: Cálculo
B72: Bosque Urbano
B74: Gramos de la contaminación del aire (ozono (O3), monóxido de carbono (CO), dióxido de nitrógeno (NO2), material particulado menor a 2.5 micrones (PM2.5) y dióxido de sulfuro (SO2)) | F74: ='3. Recoleccion de datos'!N72 -> 0 | G74: gramos contaminación aire | I74: A insertar | L74: 1 kilo | M74: 0.001 | N74: tonelada
B75: Kilogramos de carbono al año secuestradas | F75: ='3. Recoleccion de datos'!N75 -> 0 | G75: kg/año | I75: A insertar | L75: 1 libra | M75: 0.000454 | N75: tonelada
B76: Escurrimiento evitado (metros cúbicos) | F76: ='3. Recoleccion de datos'!N77 -> 0 | G76: metros cúbicos | I76: A insertar | L76: 1 pie cúbico | M76: 0.028317 | N76: metro cúbico
B77: Toneladas de carbono al año | F77: =F75*M74 -> 0 | G77: toneladas CO2 / año | I77: Cálculo
B78: Escurrimiento evitado (metros cúbicos) | F78: =F76 -> 0 | G78: Escurrimiento evitado m3/año | I78: Cálculo

Sheet RegistroTotal (hidden)
B1: IDText | C1: =F2&" "&F3&" "&RIGHT(C2,3) -> 0 0 0
B2: Clave proyecto | C2: ='1c. Registrar datos proyecto'!H17 -> 0 | E2: Estado | F2: ='1c. Registrar datos proyecto'!H18 -> 0 | H2: Población beneficiaria | I2: ='1c. Registrar datos proyecto'!H25 -> 0
B3: Nombre | C3: ='1c. Registrar datos proyecto'!R17 -> 0 | E3: Año ejecución | F3: ='1c. Registrar datos proyecto'!H20 -> 0
B5: Grupo impacto | C5: Total beneficios | D5: % | H5: Total presupuesto | I5: ='1c. Registrar datos proyecto'!H24 -> 0
B6: =N8 -> Adaptación | C6: =SUM(N14:R14) -> 0 | D6: =C6/SUM($C$6:$C$10) ->  | H6: Total presupuesto IV | I6: =RegistroP!C21+RegistroM!C21+RegistroB!C20+RegistroA!C20 -> 0
B7: =S8 -> Mitigación | C7: =SUM(S14:T14) -> 0 | D7: =C7/SUM($C$6:$C$10) -> 
B8: =U8 -> Ambiental | C8: =SUM(U14:Z14) -> 0 | I8: =IF(I6>I5,CORREGIR REGISTRO,0) -> 0 | N8: Adaptación | O8: Adaptación | P8: Adaptación | Q8: Adaptación | R8: Adaptación | S8: Mitigación | T8: Mitigación | U8: Ambiental | V8: Ambiental | W8: Ambiental | X8: Ambiental | Y8: Ambiental | Z8: Ambiental | AA8: Social | AB8: Social | AC8: Sociales | AD8: Social | AE8: Social | AF8: Económicos | AG8: Económicos
B9: =AA8 -> Social | C9: =SUM(AA14:AE14) -> 0 | M9: Eje | N9: 1 | O9: 2 | P9: 3 | Q9: 4 | R9: 5 | S9: 6 | T9: 7 | U9: 8 | V9: 9 | W9: 10 | X9: 11 | Y9: 12 | Z9: 13 | AA9: 14 | AB9: 15 | AC9: 16 | AD9: 17 | AE9: 18 | AF9: 19 | AG9: 20
B10: =AF8 -> Económicos | C10: =SUM(AF14:AG14) -> 0 | M10: Agua | N10: =RegistroA!AZ20 -> 0 | O10: =RegistroA!BA20 -> 0 | P10: =RegistroA!BB20 -> 0 | Q10: =RegistroA!BC20 -> 0 | R10: =RegistroA!BD20 -> 0 | S10: =RegistroA!BE20 -> 0 | T10: =RegistroA!BF20 -> 0 | U10: =RegistroA!BG20 -> 0 | V10: =RegistroA!BH20 -> 0 | W10: =RegistroA!BI20 -> 0 | X10: =RegistroA!BJ20 -> 0 | Y10: =RegistroA!BK20 -> 0 | Z10: =RegistroA!BL20 -> 0 | AA10: =RegistroA!BM20 -> 0 | AB10: =RegistroA!BN20 -> 0 | AC10: =RegistroA!BO20 -> 0 | AD10: =RegistroA!BP20 -> 0 | AE10: =RegistroA!BQ20 -> 0 | AF10: =RegistroA!BR20 -> 0 | AG10: =RegistroA!BS20 -> 0
M11: Biodiversidad | N11: =RegistroB!BN20 -> 0 | O11: =RegistroB!BO20 -> 0 | P11: =RegistroB!BP20 -> 0 | Q11: =RegistroB!BQ20 -> 0 | R11: =RegistroB!BR20 -> 0 | S11: =RegistroB!BS20 -> 0 | T11: =RegistroB!BT20 -> 0 | U11: =RegistroB!BU20 -> 0 | V11: =RegistroB!BV20 -> 0 | W11: =RegistroB!BW20 -> 0 | X11: =RegistroB!BX20 -> 0 | Y11: =RegistroB!BY20 -> 0 | Z11: =RegistroB!BZ20 -> 0 | AA11: =RegistroB!CA20 -> 0 | AB11: =RegistroB!CB20 -> 0 | AC11: =RegistroB!CC20 -> 0 | AD11: =RegistroB!CD20 -> 0 | AE11: =RegistroB!CE20 -> 0 | AF11: =RegistroB!CF20 -> 0 | AG11: =RegistroB!CG20 -> 0
B12: CODIGO | C12: COMPONENTE | D12: SELECCIONADO | E12: TOTAL IMPACTO | F12: % IMPACTO | G12: DETALLE DATO | H12: DATO INPUT | M12: Movilidad | N12: =RegistroM!AZ20 -> 0 | O12: =RegistroM!BA20 -> 0 | P12: =RegistroM!BB20 -> 0 | Q12: =RegistroM!BC20 -> 0 | R12: =RegistroM!BD20 -> 0 | S12: =RegistroM!BE20 -> 0 | T12: =RegistroM!BF20 -> 0 | U12: =RegistroM!BG20 -> 0 | V12: =RegistroM!BH20 -> 0 | W12: =RegistroM!BI20 -> 0 | X12: =RegistroM!BJ20 -> 0 | Y12: =RegistroM!BK20 -> 0 | Z12: =RegistroM!BL20 -> 0 | AA12: =RegistroM!BM20 -> 0 | AB12: =RegistroM!BN20 -> 0 | AC12: =RegistroM!BO20 -> 0 | AD12: =RegistroM!BP20 -> 0 | AE12: =RegistroM!BQ20 -> 0 | AF12: =RegistroM!BR20 -> 0 | AG12: =RegistroM!BS20 -> 0
B13: =RegistroA!A2 -> CA1 | C13: =RegistroA!B2 -> BIODIGESTORES | D13: =RegistroA!E2 -> NO | E13: =RegistroA!AV2 -> 0 | F13: =E13/SUM($C$6:$C$10) ->  | G13: =RegistroA!H2 -> 0 | H13: biodigestores | M13: Espacio Público | N13: =RegistroP!AZ20 -> 0 | O13: =RegistroP!BA20 -> 0 | P13: =RegistroP!BB20 -> 0 | Q13: =RegistroP!BC20 -> 0 | R13: =RegistroP!BD20 -> 0 | S13: =RegistroP!BE20 -> 0 | T13: =RegistroP!BF20 -> 0 | U13: =RegistroP!BG20 -> 0 | V13: =RegistroP!BH20 -> 0 | W13: =RegistroP!BI20 -> 0 | X13: =RegistroP!BJ20 -> 0 | Y13: =RegistroP!BK20 -> 0 | Z13: =RegistroP!BL20 -> 0 | AA13: =RegistroP!BM20 -> 0 | AB13: =RegistroP!BN20 -> 0 | AC13: =RegistroP!BO20 -> 0 | AD13: =RegistroP!BP20 -> 0 | AE13: =RegistroP!BQ20 -> 0 | AF13: =RegistroP!BR20 -> 0 | AG13: =RegistroP!BS20 -> 0
B14: =RegistroA!A3 -> CA2 | C14: =RegistroA!B3 -> PRESAS FILTRANTES | D14: =RegistroA!E3 -> NO | E14: =RegistroA!AV3 -> 0 | F14: =E14/SUM($C$6:$C$10) ->  | G14: =RegistroA!H3 -> 0 | H14: superficie aproximada (m2) | M14: Total impacto | N14: =SUM(N10:N13) -> 0 | O14: =SUM(O10:O13) -> 0 | P14: 0 | Q14: 0 | R14: 0 | S14: 0 | T14: 0 | U14: 0 | V14: 0 | W14: 0 | X14: 0 | Y14: 0 | Z14: 0 | AA14: 0 | AB14: 0 | AC14: 0 | AD14: 0 | AE14: 0 | AF14: =SUM(AF10:AF13) -> 0 | AG14: =SUM(AG10:AG13) -> 0
B15: =RegistroA!A4 -> CA3 | C15: =RegistroA!B4 -> CUNETAS VERDES | D15: =RegistroA!E4 -> NO | E15: =RegistroA!AV4 -> 0 | G15: =RegistroA!H4 -> 0 | H15: metros lineales
B16: =RegistroA!A5 -> CA4 | C16: =RegistroA!B5 -> DRENAJE SEPARATIVO | D16: =RegistroA!E5 -> NO | E16: =RegistroA!AV5 -> 0 | G16: =RegistroA!H5 -> 0 | H16: =RegistroA!G5 -> metros lineales conducto para aguas de lluvia
B17: =RegistroA!A6 -> CA5 | C17: =RegistroA!B6 -> HUMEDAL SEMIARTIFICIAL | D17: =RegistroA!E6 -> NO | E17: =RegistroA!AV6 -> 0 | G17: =RegistroA!H6 -> 0 | H17: m2
B18: =RegistroA!A7 -> CA6 | C18: =RegistroA!B7 -> PAVIMENTOS PERMEABLES | D18: =RegistroA!E7 -> NO | E18: =RegistroA!AV7 -> 0 | G18: =RegistroA!H7 -> 0 | H18: =RegistroA!G7 -> % del total del suelo antropizado con pavimento permeable
B19: =RegistroA!A8 -> CA7 | C19: =RegistroA!B8 -> POZOS DE ABSORCIÓN/INFILTRACIÓN | D19: =RegistroA!E8 -> NO | E19: =RegistroA!AV8 -> 0 | G19: =RegistroA!H8 -> 0 | H19: número de pozos
B20: =RegistroA!A9 -> CA8 | C20: =RegistroA!B9 -> JARDINERAS FILTRANTES | D20: =RegistroA!E9 -> NO | E20: =RegistroA!AV9 -> 0 | G20: =RegistroA!H9 -> 0 | H20: superficie aproximada (m2) | AC20: 40.25
B21: =RegistroB!A2 -> CB1 | C21: =RegistroB!B2 -> ARBOLADO | D21: =RegistroB!E2 -> NO | E21: =RegistroB!AV2 -> 0 | G21: =RegistroB!H2+RegistroB!L2+RegistroB!P2+RegistroB!T2+RegistroB!X2 -> 0 | H21: número de especies | AC21: 36.5
B22: =RegistroB!A3 -> CB2 | C22: =RegistroB!B3 -> BOSQUE URBANO | D22: =RegistroB!E3 -> NO | E22: =RegistroB!AV3 -> 0 | G22: =RegistroB!H3 -> 0 | H22: hectáreas de bosque | AC22: 39
B23: =RegistroB!A4 -> CB3 | C23: =RegistroB!B4 -> JARDINES EDUCATIVOS | D23: =RegistroB!E4 -> NO | E23: =RegistroB!AV4 -> 0 | G23: =RegistroB!J4 -> 0 | H23: m2 total de superficie | AC23: 35.25
B24: =RegistroB!A5 -> CB4 | C24: =RegistroB!B5 -> HUERTOS URBANOS | D24: =RegistroB!E5 -> NO | E24: =RegistroB!AV5 -> 0 | G24: =RegistroB!H5 -> 0 | H24: =RegistroB!G5 -> m2 superficie de huerto | AC24: 33.25
B25: =RegistroB!A6 -> CB5 | C25: =RegistroB!B6 -> RENATURALIZACION DE ELEMENTOS FLUVIALES | D25: =RegistroB!E6 -> NO | E25: =RegistroB!AV6 -> 0 | G25: =RegistroB!H6 -> 0 | H25: hectáreas de la superficie de laderas recuperada | AC25: 26.75
B26: =RegistroB!A7 -> CB6 | C26: =RegistroB!B7 -> DESENTUBADO DE RIOS | D26: =RegistroB!E7 -> NO | E26: =RegistroB!AV7 -> 0 | G26: =RegistroB!H7+RegistroB!J7 -> 0 | H26: superficie total (m2) recuperada | AC26: 25.25
B27: =RegistroM!A2 -> CMO1 | C27: =RegistroM!B2 -> URBANISMO TÁCTICO | D27: =RegistroM!E2 -> NO | E27: =RegistroM!AV2 -> 0 | G27: =RegistroM!T2 -> 0 | H27: elementos integrados | AC27: 29.25
B28: =RegistroM!A3 -> CMO2 | C28: =RegistroM!B3 -> CICLOVÍAS | D28: =RegistroM!E3 -> NO | E28: =RegistroM!AV3 -> 0 | G28: =RegistroM!N3 -> 0 | H28: metros lineales de ciclovías | AC28: 35.25
B29: =RegistroM!A4 -> CMO3 | C29: =RegistroM!B4 -> CORREDOR PEATONAL | D29: =RegistroM!E4 -> NO | E29: =RegistroM!AV4 -> 0 | AC29: 29.5
B30: =RegistroM!A5 -> CMO4 | C30: =RegistroM!B5 -> BANQUETAS | D30: =RegistroM!E5 -> NO | E30: =RegistroM!AV5 -> 0 | G30: =RegistroM!H5 -> 0 | H30: ancho aproximado de banqueta | AC30: 27.75
B31: =RegistroM!A6 -> CMO5 | C31: =RegistroM!B6 -> ZONA TRANSPORTE PÚBLICO | D31: =RegistroM!E6 -> NO | E31: =RegistroM!AV6 -> 0 | G31: =RegistroM!H6 -> 0 | H31: =RegistroM!G6 -> metros lineales de carril transporte público | AC31: 32.25
B32: =RegistroM!A7 -> CMO6 | C32: =RegistroM!B7 -> ZONA CARGA SOSTENIBLE | D32: =RegistroM!E7 -> NO | E32: =RegistroM!AV7 -> 0 | G32: =RegistroM!H7 -> 0 | H32: =RegistroM!G7 -> metros lineales de carril para carga/descarga | AC32: 31.25
B33: =RegistroM!A8 -> CMO7 | C33: =RegistroM!B8 -> ZONA VEHÍCULO PRIVADO SOSTENIBLE | D33: =RegistroM!E8 -> NO | E33: =RegistroM!AV8 -> 0 | G33: =RegistroM!H8 -> 0 | H33: =RegistroM!G8 -> metros lineales de carril para vehículo sostenible | AC33: 49.5
B34: =RegistroP!A2 -> CEP1 | C34: =RegistroP!B2 -> MOBILIARIO URBANO SOSTENIBLE | D34: =RegistroP!E2 -> NO | E34: =RegistroP!AV2 -> 0 | G34: =RegistroP!H2 -> 0 | H34: mobiliario que se utiliza | AC34: 38
B35: =RegistroP!A3 -> CEP2 | C35: =RegistroP!B3 -> MOBILIARIO HIDRÁULICO CERTIFICADO | D35: =RegistroP!E3 -> NO | E35: =RegistroP!AV3 -> 0 | G35: =RegistroP!H3 -> 0 | H35: =RegistroP!G3 -> m3 de agua reciclados (m3 /día) | AC35: 29.25
B36: =RegistroP!A4 -> CEP3 | C36: =RegistroP!B4 -> LUMINARIAS SUSTENTABLES | D36: =RegistroP!E4 -> NO | E36: =RegistroP!AV4 -> 0 | G36: =RegistroP!H4 -> 0 | H36: de luminarias que utilizan energía renovable | AC36: 39.25
B37: =RegistroP!A5 -> CEP4 | C37: =RegistroP!B5 -> PAVIMENTOS RECICLADOS | D37: =RegistroP!E5 -> NO | E37: =RegistroP!AV5 -> 0 | G37: =RegistroP!H5 -> <50% | H37: de suelo | AC37: 35.25
B38: =RegistroP!A6 -> CEP5 | C38: =RegistroP!B6 -> ELEMENTOS DE SOMBREAMIENTO | D38: =RegistroP!E6 -> NO | E38: =RegistroP!AV6 -> 0 | G38: =RegistroP!J6 -> 0 | H38: del espacio abierto | AC38: 30.75
AC39: 40.75
C40: =COUNTIF(D13:D38,"SI") -> 0 | F40: =SUM(F13:F38) -> 
B42: Mitigación
C43: =RegistroDatos!F17 -> 0 | D43: Emisiones reducidas al año por iluminación eficiente
C44: =RegistroDatos!F34 -> 0 | D44: Emisiones reducidas por iluminación con energía renovable
C45: =RegistroDatos!F68 -> 0 | D45: Emisiones reducidas por la instalación de biodigestor

Sheet 4. Impactos-Resultados
B2: Herramienta para la estimación y la evaluación de los impactos de la infraestructura verde
F4: 1. Introducción | J4: 2. Preparar evaluación | O4: 3. Recolección de datos | T4: 4. Impactos/Resultados
B8: Acerca de esta pestaña:
B9: Esta pestaña muestra los resultados de la valoración de los impactos climáticos, ambientales, sociales y económicos de los compuestos de infraestructura verde seleccionados.
B14: 4a. Mapa de impactos | O14: Resumen de resultados
B17: ='1c. Registrar datos proyecto'!B17 -> Clave del Proyecto | E17: ='1c. Registrar datos proyecto'!H17 -> 0 | I17: ='1c. Registrar datos proyecto'!N17 -> Nombre del Proyecto | L17: ='1c. Registrar datos proyecto'!R17 -> 0
B19: ='1c. Registrar datos proyecto'!B20 -> Año de ejecución | E19: ='1c. Registrar datos proyecto'!H20 -> 0
B21: Estado
B22: Contribución por grupo de impactos | I22: Componentes de infraestructura verde | O22: Contribución de impactos | Q22: Detalles del componente
B52: Componentes de infraestructura verde | J52: Mapa de impactos
Z54: 0.1 | AA54: 0.15 | AB54: 0.2 | AC54: 0.3
J55: Adaptación | L55: =" "&Impactos!C2 -> Prevención de inundaciones, regulación de escorrentías | U55: =RegistroTotal!$N$14 -> 0 | W55: =IF(U55<=Z55,"Muy Bajo",IF(AND(U55>Z55,U55<AA55),"Bajo",IF(AND(U55>AA55,U55<AB55),"Medio",IF(AND(U55>AB55,U55<AC55)," Alto",IF(U55>=AC55,"Muy Alto"))))) -> Muy Bajo | Y55: 40.25 | Z55: =Y55*$Z$54 -> 4.025 | AA55: =Y55*$AA$54 -> 6.0375 | AB55: =Y55*$AB$54 -> 8.05 | AC55: =Y55*$AC$54 -> 12.075
L56: =" "&Impactos!C3 -> Reducción de los riesgos derivados de las inundaciones, regulación de avenidas. | U56: =RegistroTotal!$O$14 -> 0 | W56: =IF(U56<=Z56,"Muy Bajo",IF(AND(U56>Z56,U56<AA56),"Bajo",IF(AND(U56>AA56,U56<AB56),"Medio",IF(AND(U56>AB56,U56<AC56)," Alto",IF(U56>=AC56,"Muy Alto"))))) -> Muy Bajo | Y56: 36.5 | Z56: =Y56*$Z$54 -> 3.65 | AA56: =Y56*$AA$54 -> 5.475 | AB56: =Y56*$AB$54 -> 7.3 | AC56: =Y56*$AC$54 -> 10.95
L57: =" "&Impactos!C4 -> Incremento de la recarga de agua de los acuíferos | U57: =RegistroTotal!$P$14 -> 0 | W57: Muy Bajo | Y57: 39 | Z57: 3.9 | AA57: 5.85 | AB57: 7.8 | AC57: 11.7
L58: =" "&Impactos!C5 -> Regulación térmica y disminución de las islas urbanas de calor | U58: =RegistroTotal!$Q$14 -> 0 | W58: Muy Bajo | Y58: 35.25 | Z58: 3.525 | AA58: 5.2875 | AB58: 7.05 | AC58: 10.575
L59: =" "&Impactos!C6 -> Mejora de la conectividad ecológica. | U59: =RegistroTotal!R14 -> 0 | W59: Muy Bajo | Y59: 33.25 | Z59: 3.325 | AA59: 4.9875 | AB59: 6.65 | AC59: 9.975
J60: Mitigación | L60: =" "&Impactos!C7 -> Secuestro de carbono | U60: =RegistroTotal!S14 -> 0 | W60: Muy Bajo | Y60: 26.75 | Z60: 2.675 | AA60: 4.0125 | AB60: 5.35 | AC60: 8.025
L61: =" "&Impactos!C8 -> Reducción de emisiones de GEI | U61: =RegistroTotal!T14 -> 0 | W61: Muy Bajo | Y61: 25.25 | Z61: 2.525 | AA61: 3.7875 | AB61: 5.05 | AC61: 7.575
J62: Ambientales | L62: =" "&Impactos!C9 -> Mejora de la calidad del aire | U62: =RegistroTotal!U14 -> 0 | W62: Muy Bajo | Y62: 29.25 | Z62: 2.925 | AA62: 4.3875 | AB62: 5.85 | AC62: 8.775
L63: =" "&Impactos!C10 -> Mejora de la calidad del agua (purificación del agua) | U63: =RegistroTotal!V14 -> 0 | W63: Muy Bajo | Y63: 35.25 | Z63: 3.525 | AA63: 5.2875 | AB63: 7.05 | AC63: 10.575
L64: =" "&Impactos!C11 -> Reducción de la contaminación por ruido | U64: =RegistroTotal!W14 -> 0 | W64: Muy Bajo | Y64: 29.5 | Z64: 2.95 | AA64: 4.425 | AB64: 5.9 | AC64: 8.85
L65: =" "&Impactos!C12 -> Control de la erosión del suelo | U65: =RegistroTotal!X14 -> 0 | W65: Muy Bajo | Y65: 27.75 | Z65: 2.775 | AA65: 4.1625 | AB65: 5.55 | AC65: 8.325
A66: =RegistroTotal!C40*3 -> 0 | L66: =" "&Impactos!C13 -> Mantenimiento, protección y mejora de hábitats, vida silvestre y biodiversidad | U66: =RegistroTotal!Y14 -> 0 | W66: Muy Bajo | Y66: 32.25 | Z66: 3.225 | AA66: 4.8375 | AB66: 6.45 | AC66: 9.675
L67: =" "&Impactos!C14 -> Producción de servicios ecosistémicos | U67: =RegistroTotal!Z14 -> 0 | W67: Muy Bajo | Y67: 31.25 | Z67: 3.125 | AA67: 4.6875 | AB67: 6.25 | AC67: 9.375
J68: Sociales | L68: =" "&Impactos!C15 -> Mejora de los valores estéticos | U68: =RegistroTotal!AA14 -> 0 | W68: Muy Bajo | Y68: 49.5 | Z68: 4.95 | AA68: 7.425 | AB68: 9.9 | AC68: 14.85
L69: =" "&Impactos!C16 -> Mejora accesibilidad de recursos para deporte, cultura, formación y recreación | U69: =RegistroTotal!AB14 -> 0 | W69: Muy Bajo | Y69: 38 | Z69: 3.8 | AA69: 5.7 | AB69: 7.6 | AC69: 11.4
L70: =" "&Impactos!C17 -> Mejora de la salud y bienestar | U70: =RegistroTotal!AC14 -> 0 | W70: Muy Bajo | Y70: 29.25 | Z70: 2.925 | AA70: 4.3875 | AB70: 5.85 | AC70: 8.775
L71: =" "&Impactos!C18 -> Generación de recursos comunitarios (fortalecimiento de la ciudadanía) | U71: =RegistroTotal!AD14 -> 0 | W71: Muy Bajo | Y71: 39.25 | Z71: 3.925 | AA71: 5.8875 | AB71: 7.85 | AC71: 11.775
L72: =" "&Impactos!C19 -> Fortalecimiento de sentimiento de pertenencia e identidad | U72: =RegistroTotal!AE14 -> 0 | W72: Muy Bajo | Y72: 35.25 | Z72: 3.525 | AA72: 5.2875 | AB72: 7.05 | AC72: 10.575
J73: Económicos | L73: =" "&Impactos!C20 -> Optimización de la inversión pública | U73: =RegistroTotal!AF14 -> 0 | W73: Muy Bajo | Y73: 30.75 | Z73: 3.075 | AA73: 4.6125 | AB73: 6.15 | AC73: 9.225
L74: =" "&Impactos!C21 -> Atracción para negocios, turismo y economía verde | U74: =RegistroTotal!AG14 -> 0 | W74: Muy Bajo | Y74: 40.75 | Z74: 4.075 | AA74: 6.1125 | AB74: 8.15 | AC74: 12.225
P76: 17
P78: 18

Sheet Resumen Resultados (hidden)
B3: Herramienta para la estimación y la evaluación de los impactos de la infraestructura verde
B7: Resumen de resultados | U7: Guardar
B10: ='4. Impactos-Resultados'!B17 -> Clave del Proyecto | E10: =RegistroTotal!C2 -> 0 | G10: ='1c. Registrar datos proyecto'!N17 -> Nombre del Proyecto | J10: ='1c. Registrar datos proyecto'!R17 -> 0
B12: ='4. Impactos-Resultados'!B19 -> Año de ejecución | E12: =RegistroTotal!F3 -> 0
B15: Presupuesto total | E15: =RegistroTotal!I5 -> 0 | F15: =RegistroTotal!I8 -> 0 | G15: Estado | J15: ='1c. Registrar datos proyecto'!H18 -> 0 | O15: Población beneficiaria | R15: ='1c. Registrar datos proyecto'!H25 -> 0
B16: % Infraestructura verde | E16: =IF(ISERROR(RegistroTotal!I8/RegistroTotal!I7),0,RegistroTotal!I8/RegistroTotal!I7) -> 0 | G16: Municipio | J16: ='1c. Registrar datos proyecto'!H19 -> 0
B18: Listado de componentes de Infraestructura Verde | I18: Mapa de impactos
B21: ='4. Impactos-Resultados'!B55 -> 0 | C21: ='4. Impactos-Resultados'!C55 -> 0 | I21: Adaptación | K21: ='4. Impactos-Resultados'!L55 -> Prevención de inundaciones, regulación de escorrentías | T21: ='4. Impactos-Resultados'!U55 -> 0 | V21: ='4. Impactos-Resultados'!W55 -> Muy Bajo | X21: ='4. Impactos-Resultados'!Y55 -> 40.25
B22: ='4. Impactos-Resultados'!B56 -> 0 | C22: ='4. Impactos-Resultados'!C56 -> 0 | K22: ='4. Impactos-Resultados'!L56 -> Reducción de los riesgos derivados de las inundaciones, regulación de avenidas. | T22: ='4. Impactos-Resultados'!U56 -> 0 | V22: ='4. Impactos-Resultados'!W56 -> Muy Bajo | X22: ='4. Impactos-Resultados'!Y56 -> 36.5
B23: ='4. Impactos-Resultados'!B57 -> 0 | C23: ='4. Impactos-Resultados'!C57 -> 0 | K23: ='4. Impactos-Resultados'!L57 -> Incremento de la recarga de agua de los acuíferos | T23: ='4. Impactos-Resultados'!U57 -> 0 | V23: ='4. Impactos-Resultados'!W57 -> Muy Bajo | X23: ='4. Impactos-Resultados'!Y57 -> 39
B24: ='4. Impactos-Resultados'!B58 -> 0 | C24: ='4. Impactos-Resultados'!C58 -> 0 | K24: ='4. Impactos-Resultados'!L58 -> Regulación térmica y disminución de las islas urbanas de calor | T24: ='4. Impactos-Resultados'!U58 -> 0 | V24: ='4. Impactos-Resultados'!W58 -> Muy Bajo | X24: ='4. Impactos-Resultados'!Y58 -> 35.25
B25: ='4. Impactos-Resultados'!B59 -> 0 | C25: ='4. Impactos-Resultados'!C59 -> 0 | K25: ='4. Impactos-Resultados'!L59 -> Mejora de la conectividad ecológica. | T25: ='4. Impactos-Resultados'!U59 -> 0 | V25: ='4. Impactos-Resultados'!W59 -> Muy Bajo | X25: ='4. Impactos-Resultados'!Y59 -> 33.25
B26: ='4. Impactos-Resultados'!B60 -> 0 | C26: ='4. Impactos-Resultados'!C60 -> 0 | I26: Mitigación | K26: ='4. Impactos-Resultados'!L60 -> Secuestro de carbono | T26: ='4. Impactos-Resultados'!U60 -> 0 | V26: ='4. Impactos-Resultados'!W60 -> Muy Bajo | X26: ='4. Impactos-Resultados'!Y60 -> 26.75
B27: ='4. Impactos-Resultados'!B61 -> 0 | C27: ='4. Impactos-Resultados'!C61 -> 0 | K27: ='4. Impactos-Resultados'!L61 -> Reducción de emisiones de GEI | T27: ='4. Impactos-Resultados'!U61 -> 0 | V27: ='4. Impactos-Resultados'!W61 -> Muy Bajo | X27: ='4. Impactos-Resultados'!Y61 -> 25.25
B28: ='4. Impactos-Resultados'!B62 -> 0 | C28: ='4. Impactos-Resultados'!C62 -> 0 | I28: Ambientales | K28: ='4. Impactos-Resultados'!L62 -> Mejora de la calidad del aire | T28: ='4. Impactos-Resultados'!U62 -> 0 | V28: ='4. Impactos-Resultados'!W62 -> Muy Bajo | X28: ='4. Impactos-Resultados'!Y62 -> 29.25
B29: ='4. Impactos-Resultados'!B63 -> 0 | C29: ='4. Impactos-Resultados'!C63 -> 0 | K29: ='4. Impactos-Resultados'!L63 -> Mejora de la calidad del agua (purificación del agua) | T29: ='4. Impactos-Resultados'!U63 -> 0 | V29: ='4. Impactos-Resultados'!W63 -> Muy Bajo | X29: ='4. Impactos-Resultados'!Y63 -> 35.25
B30: ='4. Impactos-Resultados'!B64 -> 0 | C30: ='4. Impactos-Resultados'!C64 -> 0 | K30: ='4. Impactos-Resultados'!L64 -> Reducción de la contaminación por ruido | T30: ='4. Impactos-Resultados'!U64 -> 0 | V30: ='4. Impactos-Resultados'!W64 -> Muy Bajo | X30: ='4. Impactos-Resultados'!Y64 -> 29.5
B31: ='4. Impactos-Resultados'!B65 -> 0 | C31: ='4. Impactos-Resultados'!C65 -> 0 | K31: ='4. Impactos-Resultados'!L65 -> Control de la erosión del suelo | T31: ='4. Impactos-Resultados'!U65 -> 0 | V31: ='4. Impactos-Resultados'!W65 -> Muy Bajo | X31: ='4. Impactos-Resultados'!Y65 -> 27.75
B32: ='4. Impactos-Resultados'!B66 -> 0 | C32: ='4. Impactos-Resultados'!C66 -> 0 | K32: ='4. Impactos-Resultados'!L66 -> Mantenimiento, protección y mejora de hábitats, vida silvestre y biodiversidad | T32: ='4. Impactos-Resultados'!U66 -> 0 | V32: ='4. Impactos-Resultados'!W66 -> Muy Bajo | X32: ='4. Impactos-Resultados'!Y66 -> 32.25
B33: ='4. Impactos-Resultados'!B67 -> 0 | C33: ='4. Impactos-Resultados'!C67 -> 0 | K33: ='4. Impactos-Resultados'!L67 -> Producción de servicios ecosistémicos | T33: ='4. Impactos-Resultados'!U67 -> 0 | V33: ='4. Impactos-Resultados'!W67 -> Muy Bajo | X33: ='4. Impactos-Resultados'!Y67 -> 31.25
B34: ='4. Impactos-Resultados'!B68 -> 0 | C34: ='4. Impactos-Resultados'!C68 -> 0 | I34: Sociales | K34: ='4. Impactos-Resultados'!L68 -> Mejora de los valores estéticos | T34: ='4. Impactos-Resultados'!U68 -> 0 | V34: ='4. Impactos-Resultados'!W68 -> Muy Bajo | X34: ='4. Impactos-Resultados'!Y68 -> 49.5
B35: ='4. Impactos-Resultados'!B69 -> 0 | C35: ='4. Impactos-Resultados'!C69 -> 0 | K35: ='4. Impactos-Resultados'!L69 -> Mejora accesibilidad de recursos para deporte, cultura, formación y recreación | T35: ='4. Impactos-Resultados'!U69 -> 0 | V35: ='4. Impactos-Resultados'!W69 -> Muy Bajo | X35: ='4. Impactos-Resultados'!Y69 -> 38
B36: ='4. Impactos-Resultados'!B70 -> 0 | C36: ='4. Impactos-Resultados'!C70 -> 0 | K36: ='4. Impactos-Resultados'!L70 -> Mejora de la salud y bienestar | T36: ='4. Impactos-Resultados'!U70 -> 0 | V36: ='4. Impactos-Resultados'!W70 -> Muy Bajo | X36: ='4. Impactos-Resultados'!Y70 -> 29.25
B37: ='4. Impactos-Resultados'!B71 -> 0 | C37: ='4. Impactos-Resultados'!C71 -> 0 | K37: ='4. Impactos-Resultados'!L71 -> Generación de recursos comunitarios (fortalecimiento de la ciudadanía) | T37: ='4. Impactos-Resultados'!U71 -> 0 | V37: ='4. Impactos-Resultados'!W71 -> Muy Bajo | X37: ='4. Impactos-Resultados'!Y71 -> 39.25
B38: ='4. Impactos-Resultados'!B72 -> 0 | C38: ='4. Impactos-Resultados'!C72 -> 0 | K38: ='4. Impactos-Resultados'!L72 -> Fortalecimiento de sentimiento de pertenencia e identidad | T38: ='4. Impactos-Resultados'!U72 -> 0 | V38: ='4. Impactos-Resultados'!W72 -> Muy Bajo | X38: ='4. Impactos-Resultados'!Y72 -> 35.25
B39: ='4. Impactos-Resultados'!B73 -> 0 | C39: ='4. Impactos-Resultados'!C73 -> 0 | I39: Económicos | K39: ='4. Impactos-Resultados'!L73 -> Optimización de la inversión pública | T39: ='4. Impactos-Resultados'!U73 -> 0 | V39: ='4. Impactos-Resultados'!W73 -> Muy Bajo | X39: ='4. Impactos-Resultados'!Y73 -> 30.75
B40: ='4. Impactos-Resultados'!B74 -> 0 | C40: ='4. Impactos-Resultados'!C74 -> 0 | K40: ='4. Impactos-Resultados'!L74 -> Atracción para negocios, turismo y economía verde | T40: ='4. Impactos-Resultados'!U74 -> 0 | V40: ='4. Impactos-Resultados'!W74 -> Muy Bajo | X40: ='4. Impactos-Resultados'!Y74 -> 40.75
B41: ='4. Impactos-Resultados'!B75 -> 0 | C41: ='4. Impactos-Resultados'!C75 -> 0
B42: ='4. Impactos-Resultados'!B76 -> 0 | C42: ='4. Impactos-Resultados'!C76 -> 0
B43: ='4. Impactos-Resultados'!B77 -> 0 | C43: ='4. Impactos-Resultados'!C77 -> 0 | I43: Evaluación de impactos
B44: ='4. Impactos-Resultados'!B78 -> 0 | C44: ='4. Impactos-Resultados'!C78 -> 0
B45: ='4. Impactos-Resultados'!B79 -> 0 | C45: ='4. Impactos-Resultados'!C79 -> 0
I46: Mitigación | K46: =K26 -> Secuestro de carbono | S46: =RegistroDatos!F77 -> 0 | T46: =RegistroDatos!G77 -> toneladas CO2 / año
K48: =K27 -> Reducción de emisiones de GEI | S48: =L50+L52+L54 -> 0 | T48: toneladas CO2e/año
L50: =RegistroDatos!F17 -> 0 | M50: =RegistroDatos!G17 -> tCO2e | N50: Emisiones reducidas al año por iluminación eficiente
L52: =+RegistroDatos!F34 -> 0 | M52: =RegistroDatos!G34 -> tCO2e | N52: Emisiones reducidas por iluminación con energía renovable
L54: =RegistroDatos!F68 -> 0 | M54: =RegistroDatos!G68 -> tCo2e | N54: Emisiones reducidas por la instalación de biodigestor
I57: Ambiental | K57: =K28 -> Mejora de la calidad del aire | S57: =RegistroDatos!F74 -> 0 | T57: =RegistroDatos!G74 -> gramos contaminación aire
K60: =K31 -> Control de la erosión del suelo | S60: =RegistroDatos!F78 -> 0 | T60: =RegistroDatos!G78 -> Escurrimiento evitado m3/año

Sheet Datos (hidden)
C2: û
C3: ü
B4: Modalidad PMU-Vertiente Mejoramiento Integral de Barrios | C4: Situación antes del proyecto | D4: Elemento de IV asociados al agua presentes en el proyecto | E4: Elemento de IV asociados a la biodiversidad presentes en el proyecto | F4: Elemento de IV asociados al espacio público presentes en el proyecto | G4: Elemento de IV asociados a la movilidad presentes en el proyecto | H4: Estados | I4: Aguascalientes | J4: Baja California | K4: Baja California Sur | L4: Campeche | M4: Chiapas | N4: Chihuahua | O4: Ciudad de México | P4: Coahuila de Zaragoza | Q4: Colima | R4: Durango | S4: Guanajuato | T4: Guerrero | U4: Hidalgo | V4: Jalisco | W4: Estado de México | X4: Michoacán de Ocampo | Y4: Morelos | Z4: Nayarit | AA4: Nuevo León | AB4: Oaxaca | AC4: Puebla | AD4: Querétaro | AE4: Quintana Roo | AF4: San Luis Potosí | AG4: Sinaloa | AH4: Sonora | AI4: Tabasco | AJ4: Tamaulipas | AK4: Tlaxcala | AL4: Veracruz de Ignacio de la Llave | AM4: Yucatán | AN4: Zacatecas | AO4: Año | AP4: Modalidad | AQ4: Clima
B5: a. Equipamiento urbano y espacio público | C5: Lote baldío | D5: BIODIGESTORES | E5: ARBOLADO | F5: MOBILIARIO URBANO SOSTENIBLE | G5: CICLOVIAS | H5: Aguascalientes | I5: Aguascalientes | J5: Ensenada | K5: Comondú | L5: Calakmul | M5: Acacoyagua | N5: Ahumada | O5: Álvaro Obregón | P5: Abasolo | Q5: Armería | R5: Canatlán | S5: Abasolo | T5: Acapulco de Juárez | U5: Acatlán | V5: Acatic | W5: Acambay de Ruíz Castañeda | X5: Acuitzio | Y5: Amacuzac | Z5: Acaponeta | AA5: Abasolo | AB5: Abejones | AC5: Acajete | AD5: Amealco de Bonfil | AE5: Bacalar | AF5: Ahualulco | AG5: Ahome | AH5: Aconchi | AI5: Balancán | AJ5: Abasolo | AK5: Acuamanala de Miguel Hidalgo | AL5: Acajete | AM5: Abalá | AN5: Apozol | AO5: 2019 | AP5: Diseño urbano y servicios relacionados con la obra | AQ5: Cálido húmero
B6: b. Participación comunitaria | C6: Lote semiocupado pero en desuso | D6: CISTERNAS/PRESAS FILTRANTES | E6: ARBOLADO URBANO NATIVO | F6: MOBILIARIO HIDRÁULICO CERTIFICADO | G6: CORREDOR PEATONAL ARBOLADO | H6: Baja California | I6: Asientos | J6: Mexicali | K6: La Paz | L6: Calkiní | M6: Acala | N6: Aldama | O6: Azcapotzalco | P6: Acuña | Q6: Colima | R6: Canelas | S6: Acámbaro | T6: Acatepec | U6: Acaxochitlán | V6: Acatlán de Juárez | W6: Acolman | X6: Aguililla | Y6: Atlatlahucan | Z6: Ahuacatlán | AA6: Agualeguas | AB6: Acatlán de Pérez Figueroa | AC6: Acateno | AD6: Arroyo Seco | AE6: Benito Juárez | AF6: Alaquines | AG6: Angostura | AH6: Agua Prieta | AI6: Cárdenas | AJ6: Aldama | AK6: Amaxac de Guerrero | AL6: Acatlán | AM6: Acanceh | AN6: Apulco | AO6: 2020 | AP6: Equipamiento urbano y espacio público | AQ6: Templado
B7: c. Movilidad y conectividad | C7: Lote con uso de suelo urbano (H, C, I, S, M) | D7: CUNETAS VERDES | E7: BOSQUE URBANO | F7: LUMINARIAS | G7: CINTURÓN VERDE | H7: Baja California Sur | I7: Clavillo | J7: Playas de Rosarito | K7: Loreto | L7: Campeche | M7: Acapetahua | N7: Allende | O7: Benito Juárez | P7: Allende | Q7: Comala | R7: Coneto de Comonfort | S7: Apaseo el Alto | T7: Ahuacuotzingo | U7: Actopan | V7: Ahualulco de Mercado | W7: Aculco | X7: Álvaro Obregón | Y7: Axochiapan | Z7: Amatlán de Cañas | AA7: Allende | AB7: Ánimas Trujano | AC7: Acatlán | AD7: Cadereyta de Montes | AE7: Cozumel | AF7: Aquismón | AG7: Badiraguato | AH7: Alamos | AI7: Centla | AJ7: Altamira | AK7: Apetatitlán de Antonio Carvajal | AL7: Acayucan | AM7: Akil | AN7: Atolinga | AO7: 2021 | AP7: Infraestructura urbana | AQ7: Cálido seco
B8: d. Infraestructura urbana | C8: Lote con uso de suelo no urbano | D8: DRENAJE SEPARATIVO | E8: JARDINES EDUCATIVOS | F8: LUMINARIAS CON PANELES SOLARES | G8: URBANISMO TÁCTICO | H8: Campeche | I8: Cosío | J8: San Quintín | K8: Los Cabos | L8: Candelaria | M8: Aldama | N8: Aquiles Serdán | O8: Coyoacán | P8: Arteaga | Q8: Coquimatlán | R8: Cuencamé | S8: Apaseo el Grande | T8: Ajuchitlán del Progreso | U8: Agua Blanca de Iturbide | V8: Amacueca | W8: Almoloya de Alquisiras | X8: Angamacutiro | Y8: Ayala | Z8: Bahía de Banderas | AA8: Anáhuac | AB8: Asunción Cacalotepec | AC8: Acatzingo | AD8: Colón | AE8: Felipe Carrillo Puerto | AF8: Armadillo de los Infante | AG8: Choix | AH8: Altar | AI8: Centro | AJ8: Antiguo Morelos | AK8: Apizaco | AL8: Actopan | AM8: Baca | AN8: Benito Juárez | AP8: Movilidad y conectividad
B9: e. Diseño urbano y servicios relacionados con la obra | C9: Area Natural Protegida | D9: HUMEDAL SEMIARTIFICIAL | E9: JARDINES Y HUERTOS COMUNITARIOS | F9: AREAS INFILTRANTES MULTIPROPOSITO | G9: BANQUETAS | H9: Chiapas | I9: El Llano | J9: Tecate | K9: Mulegé | L9: Carmen | M9: Altamirano | N9: Ascensión | O9: Cuajimalpa de Morelos | P9: Candela | Q9: Cuauhtémoc | R9: Durango | S9: Atarjea | T9: Alcozauca de Guerrero | U9: Ajacuba | V9: Amatitán | W9: Almoloya de Juárez | X9: Angangueo | Y9: Coatetelco | Z9: Compostela | AA9: Apodaca | AB9: Asunción Cuyotepeji | AC9: Acteopan | AD9: Corregidora | AE9: Isla Mujeres | AF9: Axtla de Terrazas | AG9: Concordia | AH9: Arivechi | AI9: Comalcalco | AJ9: Burgos | AK9: Atlangatepec | AL9: Acula | AM9: Bokobá | AN9: Calera | AP9: Participación comunitaria
C10: Relleno sanitario | D10: PAVIMENTOS PERMEABLES | E10: RENATURALIZACION DE ELEMENTOS FLUVIALES | F10: JARDIN LLUVIA | G10: ZONA TRANSPORTE PÚBLICO | H10: Chihuahua | I10: Jesús María | J10: Tijuana | L10: Champotón | M10: Amatán | N10: Bachíniva | O10: Cuauhtémoc | P10: Castaños | Q10: Ixtlahuacán | R10: El Oro | S10: Celaya | T10: Alpoyeca | U10: Alfajayucan | V10: Ameca | W10: Almoloya del Río | X10: Apatzingán | Y10: Coatlán del Río | Z10: Del Nayar | AA10: Aramberri | AB10: Asunción Ixtaltepec | AC10: Ahuacatlán | AD10: El Marqués | AE10: José María Morelos | AF10: Cárdenas | AG10: Cosalá | AH10: Arizpe | AI10: Cunduacán | AJ10: Bustamante | AK10: Atltzayanca | AL10: Acultzingo | AM10: Buctzotz | AN10: Cañitas de Felipe Pescador
C11: Tiradero a cielo abierto | D11: POZOS DE ABSORCIÓN | E11: DESENTUBADO DE RIOS | F11: PAVIMENTOS RECICLADOS | G11: ZONA CARGA SOSTENIBLE | H11: Ciudad de México | I11: Pabellón de Arteaga | L11: Escárcega | M11: Amatenango de la Frontera | N11: Balleza | O11: Gustavo A. Madero | P11: Cuatro Ciénegas | Q11: Manzanillo | R11: General Simón Bolívar | S11: Comonfort | T11: Apaxtla | U11: Almoloya | V11: Arandas | W11: Amanalco | X11: Aporo | Y11: Cuautla | Z11: Huajicori | AA11: Bustamante | AB11: Asunción Nochixtlán | AC11: Ahuatlán | AD11: Ezequiel Montes | AE11: Lázaro Cárdenas | AF11: Catorce | AG11: Culiacán | AH11: Atil | AI11: Emiliano Zapata | AJ11: Camargo | AK11: Benito Juárez | AL11: Agua Dulce | AM11: Cacalchén | AN11: Chalchihuites
C12: Otro | D12: PTAR | F12: ELEMENTOS DE SOMBREAMIENTO | G12: ZONA VEHÍCULO PRIVADO SOSTENIBLE | H12: Coahuila | I12: Rincón de los Romos | L12: Hecelchakán | M12: Amatenango del Valle | N12: Batopilas de Manuel Gómez Morín | O12: Iztacalco | P12: Escobedo | Q12: Minatitlán | R12: Gómez Palacio | S12: Coroneo | T12: Arcelia | U12: Apan | V12: Atemajac de Brizuela | W12: Amatepec | X12: Aquila | Y12: Cuernavaca | Z12: Ixtlán del Río | AA12: Cadereyta Jiménez | AB12: Asunción Ocotlán | AC12: Ahuazotepec | AD12: Huimilpan | AE12: Othón P. Blanco | AF12: Cedral | AG12: El Fuerte | AH12: Bacadéhuachi | AI12: Huimanguillo | AJ12: Casas | AK12: Calpulalpan | AL12: Álamo Temapache | AM12: Calotmul | AN12: Concepción del Oro
D13: SUDS/ JARDINERAS, ZANJAS Y/O POZOS INFILTRACION | H13: Colima | I13: San Francisco de los Romo | L13: Hopelchén | M13: Ángel Albino Corzo | N13: Bocoyna | O13: Iztapalapa | P13: Francisco I. Madero | Q13: Tecomán | R13: Guadalupe Victoria | S13: Cortazar | T13: Atenango del Río | U13: Atitalaquia | V13: Atengo | W13: Amecameca | X13: Ario | Y13: Emiliano Zapata | Z13: Jala | AA13: Cerralvo | AB13: Asunción Tlacolulita | AC13: Ahuehuetitla | AD13: Jalpan de Serra | AE13: Puerto Morelos | AF13: Cerritos | AG13: Elota | AH13: Bacanora | AI13: Jalapa | AJ13: Ciudad Madero | AK13: Chiautempan | AL13: Alpatláhuac | AM13: Cansahcab | AN13: Cuauhtémoc
H14: Durango | I14: San José de Gracias | L14: Palizada | M14: Arriaga | N14: Buenaventura | O14: Magdalena Contreras | P14: Frontera | Q14: Villa de Álvarez | R14: Guanaceví | S14: Cuerámaro | T14: Atlamajalcingo del Monte | U14: Atlapexco | V14: Atenguillo | W14: Apaxco | X14: Arteaga | Y14: Hueyapan | Z14: La Yesca | AA14: China | AB14: Ayoquezco de Aldama | AC14: Ajalpan | AD14: Landa de Matamoros | AE14: Solidaridad | AF14: Cerro de San Pedro | AG14: Escuinapa | AH14: Bacerac | AI14: Jalpa de Méndez | AJ14: Cruillas | AK14: Contla de Juan Cuamatzi | AL14: Alto Lucero de Gutiérrez Barrios | AM14: Cantamayec | AN14: El Plateado de Joaquín Amaro
H15: Guanajuato | I15: Tepezala | L15: Seyba | M15: Bejucal de Ocampo | N15: Camargo | O15: Miguel Hidalgo | P15: General Cepeda | R15: Hidalgo | S15: Doctor Mora | T15: Atlixtac | U15: Atotonilco de Tula | V15: Atotonilco el Alto | W15: Atenco | X15: Briseñas | Y15: Huitzilac | Z15: Rosamorada | AA15: Ciénega de Flores | AB15: Ayotzintepec | AC15: Albino Zertuche | AD15: Pedro Escobedo | AE15: Tulum | AF15: Charcas | AG15: Guasave | AH15: Bacoachi | AI15: Jonuta | AJ15: El Mante | AK15: Cuapiaxtla | AL15: Altotonga | AM15: Celestún | AN15: El Salvador
H16: Guerrero | L16: Tenabo | M16: Bella Vista | N16: Carichí | O16: Milpa Alta | P16: Guerrero | R16: Indé | S16: Dolores Hidalgo Cuna de la Independencia Nacional | T16: Atoyac de Álvarez | U16: Atotonilco el Grande | V16: Atoyac | W16: Atizapán | X16: Buenavista | Y16: Jantetelco | Z16: Ruíz | AA16: Doctor Arroyo | AB16: Calihualá | AC16: Aljojuca | AD16: Peñamiller | AF16: Ciudad del Maíz | AG16: Mazatlán | AH16: Bácum | AI16: Macuspana | AJ16: Gómez Farías | AK16: Cuaxomulco | AL16: Alvarado | AM16: Cenotillo | AN16: Fresnillo
H17: Hidalgo | M17: Benemérito de las Américas | N17: Casas Grandes | O17: Tláhuac | P17: Hidalgo | R17: Lerdo | S17: Guanajuato | T17: Ayutla de los Libres | U17: Calnali | V17: Autlán de Navarro | W17: Atizapán de Zaragoza | X17: Carácuaro | Y17: Jiutepec | Z17: San Blas | AA17: Doctor Coss | AB17: Candelaria Loxicha | AC17: Altepexi | AD17: Pinal de Amoles | AF17: Ciudad Fernández | AG17: Mocorito | AH17: Banámichi | AI17: Nacajuca | AJ17: González | AK17: El Carmen Tequexquitla | AL17: Amatitlán | AM17: Chacsinkín | AN17: Genaro Codina
H18: Jalisco | M18: Berriozábal | N18: Chihuahua | O18: Tlalpan | P18: Jiménez | R18: Mapimí | S18: Huanímaro | T18: Azoyú | U18: Cardonal | V18: Ayotlán | W18: Atlacomulco | X18: Charapan | Y18: Jojutla | Z18: San Pedro Lagunillas | AA18: Doctor González | AB18: Capulálpam de Méndez | AC18: Amixtlán | AD18: Querétaro | AF18: Ciudad Valles | AG18: Navolato | AH18: Baviácora | AI18: Paraíso | AJ18: Güémez | AK18: Emiliano Zapata | AL18: Amatlán de los Reyes | AM18: Chankom | AN18: General Enrique Estrada
H19: Estado de México | M19: Bochil | N19: Chínipas | O19: Venustiano Carranza | P19: Juárez | R19: Mezquital | S19: Irapuato | T19: Benito Juárez | U19: Chapantongo | V19: Ayutla | W19: Atlautla | X19: Charo | Y19: Jonacatepec de Leandro Valle | Z19: Santa María del Oro | AA19: El Carmen | AB19: Chahuites | AC19: Amozoc | AD19: San Joaquín | AF19: Coxcatlán | AG19: Rosario | AH19: Bavispe | AI19: Tacotalpa | AJ19: Guerrero | AK19: Españita | AL19: Angel R. Cabada | AM19: Chapab | AN19: General Francisco R. Murguía
H20: Michoacán de Ocampo | M20: Cacahoatán | N20: Coronado | O20: Xochimilco | P20: Lamadrid | R20: Nazas | S20: Jaral del Progreso | T20: Buenavista de Cuéllar | U20: Chapulhuacán | V20: Bolaños | W20: Axapusco | X20: Chavinda | Y20: Mazatepec | Z20: Santiago Ixcuintla | AA20: Galeana | AB20: Chalcatongo de Hidalgo | AC20: Aquixtla | AD20: San Juan del Río | AF20: Ebano | AG20: Salvador Alvarado | AH20: Benito Juárez | AI20: Teapa | AJ20: Gustavo Díaz Ordaz | AK20: Huamantla | AL20: Apazapan | AM20: Chemax | AN20: General Pánfilo Natera
H21: Morelos | M21: Capitán Luis Ángel Vidal | N21: Coyame del Sotol | P21: Matamoros | R21: Nombre de Dios | S21: Jerécuaro | T21: Chilapa de Álvarez | U21: Chilcuautla | V21: Cabo Corrientes | W21: Ayapango | X21: Cherán | Y21: Miacatlán | Z21: Tecuala | AA21: García | AB21: Chiquihuitlán de Benito Juárez | AC21: Atempan | AD21: Tequisquiapan | AF21: El Naranjo | AG21: San Ignacio | AH21: Benjamín Hill | AI21: Tenosique | AJ21: Hidalgo | AK21: Hueyotlipan | AL21: Aquila | AM21: Chichimilá | AN21: Guadalupe
H22: Nayarit | M22: Catazajá | N22: Cuauhtémoc | P22: Monclova | R22: Nuevo Ideal | S22: León | T22: Chilpancingo de los Bravo | U22: Cuautepec de Hinojosa | V22: Cañadas de Obregón | W22: Calimaya | X22: Chilchota | Y22: Ocuituco | Z22: Tepic | AA22: General Bravo | AB22: Ciénega de Zimatlán | AC22: Atexcal | AD22: Tolimán | AF22: Guadalcázar | AG22: Sinaloa | AH22: Caborca | AJ22: Jaumave | AK22: Ixtacuixtla de Mariano Matamoros | AL22: Astacinga | AM22: Chicxulub Pueblo | AN22: Huanusco
H23: Nuevo León | M23: Chalchihuitán | N23: Cusihuiriachi | P23: Morelos | R23: Ocampo | S23: Manuel Doblado | T23: Coahuayutla de José María Izazaga | U23: El Arenal | V23: Casimiro Castillo | W23: Capulhuac | X23: Chinicuila | Y23: Puente de Ixtla | Z23: Tuxpan | AA23: General Escobedo | AB23: Ciudad Ixtepec | AC23: Atlequizayan | AF23: Huehuetlán | AH23: Cajeme | AJ23: Jiménez | AK23: Ixtenco | AL23: Atlahuilco | AM23: Chikindzonot | AN23: Jalpa
H24: Oaxaca | M24: Chamula | N24: Delicias | P24: Múzquiz | R24: Otáez | S24: Moroleón | T24: Cochoapa el Grande | U24: Eloxochitlán | V24: Chapala | W24: Chalco | X24: Chucándiro | Y24: Temixco | Z24: Xalisco | AA24: General Terán | AB24: Coatecas Altas | AC24: Atlixco | AF24: Lagunillas | AH24: Cananea | AJ24: Llera | AK24: La Magdalena Tlaltelulco | AL24: Atoyac | AM24: Chocholá | AN24: Jerez
H25: Puebla | M25: Chanal | N25: Dr. Belisario Domínguez | P25: Nadadores | R25: Pánuco de Coronado | S25: Ocampo | T25: Cocula | U25: Emiliano Zapata | V25: Chimaltitán | W25: Chapa de Mota | X25: Churintzio | Y25: Temoac | AA25: General Treviño | AB25: Coicoyán de las Flores | AC25: Atoyatempan | AF25: Matehuala | AH25: Carbó | AJ25: Mainero | AK25: Lázaro Cárdenas | AL25: Atzacan | AM25: Chumayel | AN25: Jiménez del Teul
H26: Querétaro | M26: Chapultenango | N26: El Tule | P26: Nava | R26: Peñón Blanco | S26: Pénjamo | T26: Copala | U26: Epazoyucan | V26: Chiquilistlán | W26: Chapultepec | X26: Churumuco | Y26: Tepalcingo | AA26: General Zaragoza | AB26: Concepción Buenavista | AC26: Atzala | AF26: Matlapa | AH26: Cucurpe | AJ26: Matamoros | AK26: Mazatecochco de José María Morelos | AL26: Atzalan | AM26: Conkal | AN26: Juan Aldama
H27: Quintana Roo | M27: Chenalhó | N27: Galeana | P27: Ocampo | R27: Poanas | S27: Pueblo Nuevo | T27: Copalillo | U27: Francisco I. Madero | V27: Cihuatlán | W27: Chiautla | X27: Coahuayana | Y27: Tepoztlán | AA27: General Zuazua | AB27: Concepción Pápalo | AC27: Atzitzihuacán | AF27: Mexquitic de Carmona | AH27: Cumpas | AJ27: Méndez | AK27: Muñoz de Domingo Arenas | AL27: Ayahualulco | AM27: Cuncunul | AN27: Juchipila
H28: San Luis Potosí | M28: Chiapa de Corzo | N28: Gómez Farías | P28: Parras | R28: Pueblo Nuevo | S28: Purísima del Rincón | T28: Copanatoyac | U28: Huasca de Ocampo | V28: Cocula | W28: Chicoloapan | X28: Coalcomán de Vázquez Pallares | Y28: Tetecala | AA28: Guadalupe | AB28: Constancia del Rosario | AC28: Atzitzintla | AF28: Moctezuma | AH28: Divisaderos | AJ28: Mier | AK28: Nanacamilpa de Mariano Arista | AL28: Banderilla | AM28: Cuzamá | AN28: Loreto
H29: Sinaloa | M29: Chiapilla | N29: Gran Morelos | P29: Piedras Negras | R29: Rodeo | S29: Romita | T29: Coyuca de Benítez | U29: Huautla | V29: Colotlán | W29: Chiconcuac | X29: Coeneo | Y29: Tetela del Volcán | AA29: Hidalgo | AB29: Cosolapa | AC29: Axutla | AF29: Rayón | AH29: Empalme | AJ29: Miguel Alemán | AK29: Natívitas | AL29: Benito Juárez | AM29: Dzán | AN29: Luis Moya
H30: Sonora | M30: Chicoasén | N30: Guachochi | P30: Progreso | R30: San Bernardo | S30: Salamanca | T30: Coyuca de Catalán | U30: Huazalingo | V30: Concepción de Buenos Aires | W30: Chimalhuacán | X30: Cojumatlán de Régules | Y30: Tlalnepantla | AA30: Higueras | AB30: Cosoltepec | AC30: Ayotoxco de Guerrero | AF30: Rioverde | AH30: Etchojoa | AJ30: Miquihuana | AK30: Panotla | AL30: Boca del Río | AM30: Dzemul | AN30: Mazapil
H31: Tabasco | M31: Chicomuselo | N31: Guadalupe | P31: Ramos Arizpe | R31: San Dimas | S31: Salvatierra | T31: Cuajinicuilapa | U31: Huehuetla | V31: Cuautitlán de García Barragán | W31: Coacalco de Berriozábal | X31: Contepec | Y31: Tlaltizapán de Zapata | AA31: Hualahuises | AB31: Cuilápam de Guerrero | AC31: Calpan | AF31: Salinas | AH31: Fronteras | AJ31: Nuevo Laredo | AK31: Papalotla de Xicohténcatl | AL31: Calcahualco | AM31: Dzidzantún | AN31: Melchor Ocampo
H32: Tamaulipas | M32: Chilón | N32: Guadalupe y Calvo | P32: Sabinas | R32: San Juan de Guadalupe | S32: San Diego de la Unión | T32: Cualác | U32: Huejutla de Reyes | V32: Cuautla | W32: Coatepec Harinas | X32: Copándaro | Y32: Tlaquiltenango | AA32: Iturbide | AB32: Cuyamecalco Villa de Zaragoza | AC32: Caltepec | AF32: San Antonio | AH32: General Plutarco Elías Calles | AJ32: Nuevo Morelos | AK32: San Damián Texóloc | AL32: Camarón de Tejeda | AM32: Dzilam de Bravo | AN32: Mezquital del Oro
H33: Tlaxcala | M33: Cintalapa | N33: Guazapares | P33: Sacramento | R33: San Juan del Río | S33: San Felipe | T33: Cuautepec | U33: Huichapan | V33: Cuquío | W33: Cocotitlán | X33: Cotija | Y33: Tlayacapan | AA33: Juárez | AB33: El Barrio de la Soledad | AC33: Camocuautla | AF33: San Ciro de Acosta | AH33: Granados | AJ33: Ocampo | AK33: San Francisco Tetlanohcan | AL33: Camerino Z. Mendoza | AM33: Dzilam González | AN33: Miguel Auza
H34: Veracruz | M34: Coapilla | N34: Guerrero | P34: Saltillo | R34: San Luis del Cordero | S34: San Francisco del Rincón | T34: Cuetzala del Progreso | U34: Ixmiquilpan | V34: Degollado | W34: Coyotepec | X34: Cuitzeo | Y34: Totolapan | AA34: Lampazos de Naranjo | AB34: El Espinal | AC34: Cañada Morelos | AF34: San Luis Potosí | AH34: Guaymas | AJ34: Padilla | AK34: San Jerónimo Zacualpan | AL34: Carlos A. Carrillo | AM34: Dzitás | AN34: Momax
H35: Yucatán | M35: Comitán de Domínguez | N35: Hidalgo del Parral | P35: San Buenaventura | R35: San Pedro del Gallo | S35: San José Iturbide | T35: Cutzamala de Pinzón | U35: Jacala de Ledezma | V35: Ejutla | W35: Cuautitlán | X35: Ecuandureo | Y35: Xochitepec | AA35: Linares | AB35: Eloxochitlán de Flores Magón | AC35: Caxhuacan | AF35: San Martín Chalchicuautla | AH35: Hermosillo | AJ35: Palmillas | AK35: San José Teacalco | AL35: Carrillo Puerto | AM35: Dzoncauich | AN35: Monte Escobedo
H36: Zacatecas | M36: Copainalá | N36: Huejotitán | P36: San Juan de Sabinas | R36: Santa Clara | S36: San Luis de la Paz | T36: Eduardo Neri | U36: Jaltocán | V36: El Arenal | W36: Cuautitlán Izcalli | X36: Epitacio Huerta | Y36: Xoxocotla | AA36: Los Aldamas | AB36: Fresnillo de Trujano | AC36: Chalchicomula de Sesma | AF36: San Nicolás Tolentino | AH36: Huachinera | AJ36: Reynosa | AK36: San Juan Huactzinco | AL36: Castillo de Teayo | AM36: Espita | AN36: Morelos
M37: El Bosque | N37: Ignacio Zaragoza | P37: San Pedro | R37: Santiago Papasquiaro | S37: San Miguel de Allende | T37: Florencio Villarreal | U37: Juárez Hidalgo | V37: El Grullo | W37: Donato Guerra | X37: Erongarícuaro | Y37: Yautepec | AA37: Los Herreras | AB37: Guadalupe de Ramírez | AC37: Chapulco | AF37: San Vicente Tancuayalab | AH37: Huásabas | AJ37: Río Bravo | AK37: San Lorenzo Axocomanitla | AL37: Catemaco | AM37: Halachó | AN37: Moyahua de Estrada
M38: El Parral | N38: Janos | P38: Sierra Mojada | R38: Súchil | S38: Santa Catarina | T38: General Canuto A. Neri | U38: La Misión | V38: El Limón | W38: Ecatepec de Morelos | X38: Gabriel Zamora | Y38: Yecapixtla | AA38: Los Ramones | AB38: Guadalupe Etla | AC38: Chiautla | AF38: Santa Catarina | AH38: Huatabampo | AJ38: San Carlos | AK38: San Lucas Tecopilco | AL38: Cazones de Herrera | AM38: Hocabá | AN38: Nochistlán de Mejía
M39: El Porvenir | N39: Jiménez | P39: Torreón | R39: Tamazula | S39: Santa Cruz de Juventino Rosas | T39: General Heliodoro Castillo | U39: Lolotla | V39: El Salto | W39: Ecatzingo | X39: Hidalgo | Y39: Zacatepec | AA39: Marín | AB39: Guelatao de Juárez | AC39: Chiautzingo | AF39: Santa María del Río | AH39: Huépac | AJ39: San Fernando | AK39: San Pablo del Monte | AL39: Cerro Azul | AM39: Hoctún | AN39: Noria de Ángeles
M40: Emiliano Zapata | N40: Juárez | P40: Viesca | R40: Tepehuanes | S40: Santiago Maravatío | T40: Huamuxtitlán | U40: Metepec | V40: Encarnación de Díaz | W40: El Oro | X40: Huandacareo | Y40: Zacualpan de Amilpas | AA40: Melchor Ocampo | AB40: Guevea de Humboldt | AC40: Chichiquila | AF40: Santo Domingo | AH40: Imuris | AJ40: San Nicolás | AK40: Sanctórum de Lázaro Cárdenas | AL40: Chacaltianguis | AM40: Homún | AN40: Ojocaliente
M41: Escuintla | N41: Julimes | P41: Villa Unión | R41: Tlahualilo | S41: Silao de la Victoria | T41: Huitzuco de los Figueroa | U41: Metztitlán | V41: Etzatlán | W41: Huehuetoca | X41: Huaniqueo | AA41: Mier y Noriega | AB41: Heroica Ciudad de Ejutla de Crespo | AC41: Chiconcuautla | AF41: Soledad de Graciano Sánchez | AH41: La Colorada | AJ41: Soto la Marina | AK41: Santa Ana Nopalucan | AL41: Chalma | AM41: Huhí | AN41: Pánuco
M42: Francisco León | N42: La Cruz | P42: Zaragoza | R42: Topia | S42: Tarandacuao | T42: Iguala de la Independencia | U42: Mineral de la Reforma | V42: Gómez Farías | W42: Hueypoxtla | X42: Huetamo | AA42: Mina | AB42: Heroica Ciudad de Huajuapan de León | AC42: Chietla | AF42: Tamasopo | AH42: Magdalena | AJ42: Tampico | AK42: Santa Apolonia Teacalco | AL42: Chiconamel | AM42: Hunucmá | AN42: Pinos
M43: Frontera Comalapa | N43: López | R43: Vicente Guerrero | S43: Tarimoro | T43: Igualapa | U43: Mineral del Chico | V43: Guachinango | W43: Huixquilucan | X43: Huiramba | AA43: Montemorelos | AB43: Heroica Ciudad de Tlaxiaco | AC43: Chigmecatitlán | AF43: Tamazunchale | AH43: Mazatán | AJ43: Tula | AK43: Santa Catarina Ayometla | AL43: Chiconquiaco | AM43: Ixil | AN43: Río Grande
M44: Frontera Hidalgo | N44: Madera | S44: Tierra Blanca | T44: Iliatenco | U44: Mineral del Monte | V44: Guadalajara | W44: Isidro Fabela | X44: Indaparapeo | AA44: Monterrey | AB44: Heroica Villa Tezoatlán de Segura y Luna, Cuna de la Independencia de Oaxaca | AC44: Chignahuapan | AF44: Tampacán | AH44: Moctezuma | AJ44: Valle Hermoso | AK44: Santa Cruz Quilehtla | AL44: Chicontepec | AM44: Izamal | AN44: Sain Alto
M45: Honduras de la Sierra | N45: Maguarichi | S45: Uriangato | T45: Ixcateopan de Cuauhtémoc | U45: Mixquiahuala de Juárez | V45: Hostotipaquillo | W45: Ixtapaluca | X45: Irimbo | AA45: Parás | AB45: Huautepec | AC45: Chignautla | AF45: Tampamolón Corona | AH45: Naco | AJ45: Victoria | AK45: Santa Cruz Tlaxcala | AL45: Chinameca | AM45: Kanasín | AN45: Santa María de la Paz
M46: Huehuetán | N46: Manuel Benavides | S46: Valle de Santiago | T46: José Joaquín de Herrera | U46: Molango de Escamilla | V46: Huejúcar | W46: Ixtapan de la Sal | X46: Ixtlán | AA46: Pesquería | AB46: Huautla de Jiménez | AC46: Chila | AF46: Tamuín | AH46: Nácori Chico | AJ46: Villagrán | AK46: Santa Isabel Xiloxoxtla | AL46: Chinampa de Gorostiza | AM46: Kantunil | AN46: Sombrerete
M47: Huitiupán | N47: Matachí | S47: Victoria | T47: Juan R. Escudero | U47: Nicolás Flores | V47: Huejuquilla el Alto | W47: Ixtapan del Oro | X47: Jacona | AA47: Rayones | AB47: Ixpantepec Nieves | AC47: Chila de la Sal | AF47: Tancanhuitz | AH47: Nacozari de García | AJ47: Xicoténcatl | AK47: Tenancingo | AL47: Chocamán | AM47: Kaua | AN47: Susticacán
M48: Huixtán | N48: Matamoros | S48: Villagrán | T48: Juchitán | U48: Nopala de Villagrán | V48: Ixtlahuacán de los Membrillos | W48: Ixtlahuaca | X48: Jiménez | AA48: Sabinas Hidalgo | AB48: Ixtlán de Juárez | AC48: Chilchotla | AF48: Tanlajás | AH48: Navojoa | AK48: Teolocholco | AL48: Chontla | AM48: Kinchil | AN48: Tabasco
M49: Huixtla | N49: Meoqui | S49: Xichú | T49: La Unión de Isidoro Montes de Oca | U49: Omitlán de Juárez | V49: Ixtlahuacán del Río | W49: Jaltenco | X49: Jiquilpan | AA49: Salinas Victoria | AB49: Juchitán de Zaragoza | AC49: Chinantla | AF49: Tanquián de Escobedo | AH49: Nogales | AK49: Tepetitla de Lardizábal | AL49: Chumatlán | AM49: Kopomá | AN49: Tepechitlán
M50: Ixhuatán | N50: Morelos | S50: Yuriria | T50: Leonardo Bravo | U50: Pachuca de Soto | V50: Jalostotitlán | W50: Jilotepec | X50: José Sixto Verduzco | AA50: San Nicolás de los Garza | AB50: La Compañía | AC50: Coatepec | AF50: Tierra Nueva | AH50: Ónavas | AK50: Tepeyanco | AL50: Citlaltépetl | AM50: Mama | AN50: Tepetongo
M51: Ixtacomitán | N51: Moris | T51: Malinaltepec | U51: Pacula | V51: Jamay | W51: Jilotzingo | X51: Juárez | AA51: San Pedro Garza García | AB51: La Pe | AC51: Coatzingo | AF51: Vanegas | AH51: Opodepe | AK51: Terrenate | AL51: Coacoatzintla | AM51: Maní | AN51: Teúl de González Ortega
M52: Ixtapa | N52: Namiquipa | T52: Marquelia | U52: Pisaflores | V52: Jesús María | W52: Jiquipilco | X52: Jungapeo | AA52: Santa Catarina | AB52: La Reforma | AC52: Cohetzala | AF52: Venado | AH52: Oquitoa | AK52: Tetla de la Solidaridad | AL52: Coahuitlán | AM52: Maxcanú | AN52: Tlaltenango de Sánchez Román
M53: Ixtapangajoya | N53: Nonoava | T53: Mártir de Cuilapan | U53: Progreso de Obregón | V53: Jilotlán de los Dolores | W53: Jocotitlán | X53: La Huacana | AA53: Santiago | AB53: La Trinidad Vista Hermosa | AC53: Cohuecan | AF53: Villa de Arista | AH53: Pitiquito | AK53: Tetlatlahuca | AL53: Coatepec | AM53: Mayapán | AN53: Trancoso
M54: Jiquipilas | N54: Nuevo Casas Grandes | T54: Metlatónoc | U54: San Agustín Metzquititlán | V54: Jocotepec | W54: Joquicingo | X54: La Piedad | AA54: Vallecillo | AB54: Loma Bonita | AC54: Coronango | AF54: Villa de Arriaga | AH54: Puerto Peñasco | AK54: Tlaxcala | AL54: Coatzacoalcos | AM54: Mérida | AN54: Trinidad García de la Cadena
M55: Jitotol | N55: Ocampo | T55: Mochitlán | U55: San Agustín Tlaxiaca | V55: Juanacatlán | W55: Juchitepec | X55: Lagunillas | AA55: Villaldama | AB55: Magdalena Apasco | AC55: Coxcatlán | AF55: Villa de Guadalupe | AH55: Quiriego | AK55: Tlaxco | AL55: Coatzintla | AM55: Mocochá | AN55: Valparaíso
M56: Juárez | N56: Ojinaga | T56: Olinalá | U56: San Bartolo Tutotepec | V56: Juchitlán | W56: La Paz | X56: Lázaro Cárdenas | AB56: Magdalena Jaltepec | AC56: Coyomeapan | AF56: Villa de la Paz | AH56: Rayón | AK56: Tocatlán | AL56: Coetzala | AM56: Motul | AN56: Vetagrande
M57: La Concordia | N57: Praxedis G. Guerrero | T57: Ometepec | U57: San Felipe Orizatlán | V57: La Barca | W57: Lerma | X57: Los Reyes | AB57: Magdalena Mixtepec | AC57: Coyotepec | AF57: Villa de Ramos | AH57: Rosario | AK57: Totolac | AL57: Colipa | AM57: Muna | AN57: Villa de Cos
M58: La Grandeza | N58: Riva Palacio | T58: Pedro Ascencio Alquisiras | U58: San Salvador | V58: La Huerta | W58: Luvianos | X58: Madero | AB58: Magdalena Ocotlán | AC58: Cuapiaxtla de Madero | AF58: Villa de Reyes | AH58: Sahuaripa | AK58: Tzompantepec | AL58: Comapa | AM58: Muxupip | AN58: Villa García
M59: La Independencia | N59: Rosales | T59: Petatlán | U59: Santiago de Anaya | V59: La Manzanilla de la Paz | W59: Malinalco | X59: Maravatío | AB59: Magdalena Peñasco | AC59: Cuautempan | AF59: Villa Hidalgo | AH59: San Felipe de Jesús | AK59: Xaloztoc | AL59: Córdoba | AM59: Opichén | AN59: Villa González Ortega
M60: La Libertad | N60: Rosario | T60: Pilcaya | U60: Santiago Tulantepec de Lugo Guerrero | V60: Lagos de Moreno | W60: Melchor Ocampo | X60: Marcos Castellanos | AB60: Magdalena Teitipac | AC60: Cuautinchán | AF60: Villa Juárez | AH60: San Ignacio Río Muerto | AK60: Xaltocan | AL60: Cosamaloapan de Carpio | AM60: Oxkutzcab | AN60: Villa Hidalgo
M61: La Trinitaria | N61: San Francisco de Borja | T61: Pungarabato | U61: Singuilucan | V61: Magdalena | W61: Metepec | X61: Morelia | AB61: Magdalena Tequisistlán | AC61: Cuautlancingo | AF61: Xilitla | AH61: San Javier | AK61: Xicohtzinco | AL61: Cosautlán de Carvajal | AM61: Panabá | AN61: Villanueva
M62: Larráinzar | N62: San Francisco de Conchos | T62: Quechultenango | U62: Tasquillo | V62: Mascota | W62: Mexicaltzingo | X62: Morelos | AB62: Magdalena Tlacotepec | AC62: Cuayuca de Andrade | AF62: Zaragoza | AH62: San Luis Río Colorado | AK62: Yauhquemehcan | AL62: Coscomatepec | AM62: Peto | AN62: Zacatecas
M63: Las Margaritas | N63: San Francisco del Oro | T63: San Luis Acatlán | U63: Tecozautla | V63: Mazamitla | W63: Morelos | X63: Múgica | AB63: Magdalena Yodocono de Porfirio Díaz | AC63: Cuetzalan del Progreso | AH63: San Miguel de Horcasitas | AK63: Zacatelco | AL63: Cosoleacaque | AM63: Progreso
M64: Las Rosas | N64: Santa Bárbara | T64: San Marcos | U64: Tenango de Doria | V64: Mexticacán | W64: Naucalpan de Juárez | X64: Nahuatzen | AB64: Magdalena Zahuatlán | AC64: Cuyoaco | AH64: San Pedro de la Cueva | AK64: Ziltlaltépec de Trinidad Sánchez Santos | AL64: Cotaxtla | AM64: Quintana Roo
M65: Mapastepec | N65: Santa Isabel | T65: San Miguel Totolapan | U65: Tepeapulco | V65: Mezquitic | W65: Nextlalpan | X65: Nocupétaro | AB65: Mariscala de Juárez | AC65: Domingo Arenas | AH65: Santa Ana | AL65: Coxquihui | AM65: Río Lagartos
M66: Maravilla Tenejapa | N66: Satevó | T66: Taxco de Alarcón | U66: Tepehuacán de Guerrero | V66: Mixtlán | W66: Nezahualcóyotl | X66: Nuevo Parangaricutiro | AB66: Mártires de Tacubaya | AC66: Eloxochitlán | AH66: Santa Cruz | AL66: Coyutla | AM66: Sacalum
M67: Marqués de Comillas | N67: Saucillo | T67: Tecoanapa | U67: Tepeji del Río de Ocampo | V67: Ocotlán | W67: Nicolás Romero | X67: Nuevo Urecho | AB67: Matías Romero Avendaño | AC67: Epatlán | AH67: Sáric | AL67: Cuichapa | AM67: Samahil
M68: Mazapa de Madero | N68: Temósachic | T68: Técpan de Galeana | U68: Tepetitlán | V68: Ojuelos de Jalisco | W68: Nopaltepec | X68: Numarán | AB68: Mazatlán Villa de Flores | AC68: Esperanza | AH68: Soyopa | AL68: Cuitláhuac | AM68: San Felipe
M69: Mazatán | N69: Urique | T69: Teloloapan | U69: Tetepango | V69: Pihuamo | W69: Ocoyoacac | X69: Ocampo | AB69: Mesones Hidalgo | AC69: Francisco Z. Mena | AH69: Suaqui Grande | AL69: El Higo | AM69: Sanahcat
M70: Metapa | N70: Uruachi | T70: Tepecoacuilco de Trujano | U70: Tezontepec de Aldama | V70: Poncitlán | W70: Ocuilan | X70: Pajacuarán | AB70: Miahuatlán de Porfirio Díaz | AC70: General Felipe Ángeles | AH70: Tepache | AL70: Emiliano Zapata | AM70: Santa Elena
M71: Mezcalapa | N71: Valle de Zaragoza | T71: Tetipac | U71: Tianguistengo | V71: Puerto Vallarta | W71: Otumba | X71: Panindícuaro | AB71: Mixistlán de la Reforma | AC71: Guadalupe | AH71: Trincheras | AL71: Espinal | AM71: Seyé
M72: Mitontic | T72: Tixtla de Guerrero | U72: Tizayuca | V72: Quitupan | W72: Otzoloapan | X72: Paracho | AB72: Monjas | AC72: Guadalupe Victoria | AH72: Tubutama | AL72: Filomeno Mata | AM72: Sinanché
M73: Montecristo de Guerrero | T73: Tlacoachistlahuaca | U73: Tlahuelilpan | V73: San Cristóbal de la Barranca | W73: Otzolotepec | X73: Parácuaro | AB73: Natividad | AC73: Hermenegildo Galeana | AH73: Ures | AL73: Fortín | AM73: Sotuta
M74: Motozintla | T74: Tlacoapa | U74: Tlahuiltepa | V74: San Diego de Alejandría | W74: Ozumba | X74: Pátzcuaro | AB74: Nazareno Etla | AC74: Honey | AH74: Villa Hidalgo | AL74: Gutiérrez Zamora | AM74: Sucilá
M75: Nicolás Ruíz | T75: Tlalchapa | U75: Tlanalapa | V75: San Gabriel | W75: Papalotla | X75: Penjamillo | AB75: Nejapa de Madero | AC75: Huaquechula | AH75: Villa Pesqueira | AL75: Hidalgotitlán | AM75: Sudzal
M76: Ocosingo | T76: Tlalixtaquilla de Maldonado | U76: Tlanchinol | V76: San Ignacio Cerro Gordo | W76: Polotitlán | X76: Peribán | AB76: Nuevo Zoquiápam | AC76: Huatlatlauca | AH76: Yécora | AL76: Huatusco | AM76: Suma
M77: Ocotepec | T77: Tlapa de Comonfort | U77: Tlaxcoapan | V77: San Juan de los Lagos | W77: Rayón | X77: Purépero | AB77: Oaxaca de Juárez | AC77: Huauchinango | AL77: Huayacocotla | AM77: Tahdziú
M78: Ocozocoautla de Espinosa | T78: Tlapehuala | U78: Tolcayuca | V78: San Juanito de Escobedo | W78: San Antonio la Isla | X78: Puruándiro | AB78: Ocotlán de Morelos | AC78: Huehuetla | AL78: Hueyapan de Ocampo | AM78: Tahmek
M79: Ostuacán | T79: Xalpatláhuac | U79: Tula de Allende | V79: San Julián | W79: San Felipe del Progreso | X79: Queréndaro | AB79: Pinotepa de Don Luis | AC79: Huehuetlán el Chico | AL79: Huiloapan de Cuauhtémoc | AM79: Teabo
M80: Osumacinta | T80: Xochihuehuetlán | U80: Tulancingo de Bravo | V80: San Marcos | W80: San José del Rincón | X80: Quiroga | AB80: Pluma Hidalgo | AC80: Huehuetlán el Grande | AL80: Ignacio de la Llave | AM80: Tecoh
M81: Oxchuc | T81: Xochistlahuaca | U81: Villa de Tezontepec | V81: San Martín de Bolaños | W81: San Martín de las Pirámides | X81: Sahuayo | AB81: Putla Villa de Guerrero | AC81: Huejotzingo | AL81: Ilamatlán | AM81: Tekal de Venegas
M82: Palenque | T82: Zapotitlán Tablas | U82: Xochiatipan | V82: San Martín Hidalgo | W82: San Mateo Atenco | X82: Salvador Escalante | AB82: Reforma de Pineda | AC82: Hueyapan | AL82: Isla | AM82: Tekantó
M83: Pantelhó | T83: Zihuatanejo de Azueta | U83: Xochicoatlán | V83: San Miguel el Alto | W83: San Simón de Guerrero | X83: San Lucas | AB83: Reyes Etla | AC83: Hueytamalco | AL83: Ixcatepec | AM83: Tekax
M84: Pantepec | T84: Zirándaro | U84: Yahualica | V84: San Pedro Tlaquepaque | W84: Santo Tomás | X84: Santa Ana Maya | AB84: Rojas de Cuauhtémoc | AC84: Hueytlalpan | AL84: Ixhuacán de los Reyes | AM84: Tekit
M85: Pichucalco | T85: Zitlala | U85: Zacualtipán de Ángeles | V85: San Sebastián del Oeste | W85: Soyaniquilpan de Juárez | X85: Senguio | AB85: Salina Cruz | AC85: Huitzilan de Serdán | AL85: Ixhuatlán de Madero | AM85: Tekom
M86: Pijijiapan | U86: Zapotlán de Juárez | V86: Santa María de los Ángeles | W86: Sultepec | X86: Susupuato | AB86: San Agustín Amatengo | AC86: Huitziltepec | AL86: Ixhuatlán del Café | AM86: Telchac Pueblo
M87: Pueblo Nuevo Solistahuacán | U87: Zempoala | V87: Santa María del Oro | W87: Tecámac | X87: Tacámbaro | AB87: San Agustín Atenango | AC87: Ixcamilpa de Guerrero | AL87: Ixhuatlán del Sureste | AM87: Telchac Puerto
M88: Rayón | U88: Zimapán | V88: Sayula | W88: Tejupilco | X88: Tancítaro | AB88: San Agustín Chayuco | AC88: Ixcaquixtla | AL88: Ixhuatlancillo | AM88: Temax
M89: Reforma | V89: Tala | W89: Temamatla | X89: Tangamandapio | AB89: San Agustín de las Juntas | AC89: Ixtacamaxtitlán | AL89: Ixmatlahuacan | AM89: Temozón
M90: Rincón Chamula San Pedro | V90: Talpa de Allende | W90: Temascalapa | X90: Tangancícuaro | AB90: San Agustín Etla | AC90: Ixtepec | AL90: Ixtaczoquitlán | AM90: Tepakán
M91: Sabanilla | V91: Tamazula de Gordiano | W91: Temascalcingo | X91: Tanhuato | AB91: San Agustín Loxicha | AC91: Izúcar de Matamoros | AL91: Jalacingo | AM91: Tetiz
M92: Salto de Agua | V92: Tapalpa | W92: Temascaltepec | X92: Taretan | AB92: San Agustín Tlacotepec | AC92: Jalpan | AL92: Jalcomulco | AM92: Teya
M93: San Andrés Duraznal | V93: Tecalitlán | W93: Temoaya | X93: Tarímbaro | AB93: San Agustín Yatareni | AC93: Jolalpan | AL93: Jáltipan | AM93: Ticul
M94: San Cristóbal de las Casas | V94: Techaluta de Montenegro | W94: Tenancingo | X94: Tepalcatepec | AB94: San Andrés Cabecera Nueva | AC94: Jonotla | AL94: Jamapa | AM94: Timucuy
M95: San Fernando | V95: Tecolotlán | W95: Tenango del Aire | X95: Tingambato | AB95: San Andrés Dinicuiti | AC95: Jopala | AL95: Jesús Carranza | AM95: Tinum
M96: San Juan Cancuc | V96: Tenamaxtlán | W96: Tenango del Valle | X96: Tingüindín | AB96: San Andrés Huaxpaltepec | AC96: Juan C. Bonilla | AL96: Jilotepec | AM96: Tixcacalcupul
M97: San Lucas | V97: Teocaltiche | W97: Teoloyucan | X97: Tiquicheo de Nicolás Romero | AB97: San Andrés Huayápam | AC97: Juan Galindo | AL97: José Azueta | AM97: Tixkokob
M98: Santiago el Pinar | V98: Teocuitatlán de Corona | W98: Teotihuacán | X98: Tlalpujahua | AB98: San Andrés Ixtlahuaca | AC98: Juan N. Méndez | AL98: Juan Rodríguez Clara | AM98: Tixmehuac
M99: Siltepec | V99: Tepatitlán de Morelos | W99: Tepetlaoxtoc | X99: Tlazazalca | AB99: San Andrés Lagunas | AC99: La Magdalena Tlatlauquitepec | AL99: Juchique de Ferrer | AM99: Tixpéhual
M100: Simojovel | V100: Tequila | W100: Tepetlixpa | X100: Tocumbo | AB100: San Andrés Nuxiño | AC100: Lafragua | AL100: La Antigua | AM100: Tizimín
M101: Sitalá | V101: Teuchitlán | W101: Tepotzotlán | X101: Tumbiscatío | AB101: San Andrés Paxtlán | AC101: Libres | AL101: La Perla | AM101: Tunkás
M102: Socoltenango | V102: Tizapán el Alto | W102: Tequixquiac | X102: Turicato | AB102: San Andrés Sinaxtla | AC102: Los Reyes de Juárez | AL102: Landero y Coss | AM102: Tzucacab
M103: Solosuchiapa | V103: Tlajomulco de Zúñiga | W103: Texcaltitlán | X103: Tuxpan | AB103: San Andrés Solaga | AC103: Mazapiltepec de Juárez | AL103: Las Choapas | AM103: Uayma
M104: Soyaló | V104: Tolimán | W104: Texcalyacac | X104: Tuzantla | AB104: San Andrés Teotilálpam | AC104: Mixtla | AL104: Las Minas | AM104: Ucú
M105: Suchiapa | V105: Tomatlán | W105: Texcoco | X105: Tzintzuntzan | AB105: San Andrés Tepetlapa | AC105: Molcaxac | AL105: Las Vigas de Ramírez | AM105: Umán
M106: Suchiate | V106: Tonalá | W106: Tezoyuca | X106: Tzitzio | AB106: San Andrés Yaá | AC106: Naupan | AL106: Lerdo de Tejada | AM106: Valladolid
M107: Sunuapa | V107: Tonaya | W107: Tianguistenco | X107: Uruapan | AB107: San Andrés Zabache | AC107: Nauzontla | AL107: Los Reyes | AM107: Xocchel
M108: Tapachula | V108: Tonila | W108: Timilpan | X108: Venustiano Carranza | AB108: San Andrés Zautla | AC108: Nealtican | AL108: Magdalena | AM108: Yaxcabá
M109: Tapalapa | V109: Totatiche | W109: Tlalmanalco | X109: Villamar | AB109: San Antonino Castillo Velasco | AC109: Nicolás Bravo | AL109: Maltrata | AM109: Yaxkukul
M110: Tapilula | V110: Tototlán | W110: Tlalnepantla de Baz | X110: Vista Hermosa | AB110: San Antonino el Alto | AC110: Nopalucan | AL110: Manlio Fabio Altamirano | AM110: Yobaín
M111: Tecpatán | V111: Tuxcacuesco | W111: Tlatlaya | X111: Yurécuaro | AB111: San Antonino Monte Verde | AC111: Ocotepec | AL111: Mariano Escobedo
M112: Tenejapa | V112: Tuxcueca | W112: Toluca | X112: Zacapu | AB112: San Antonio Acutla | AC112: Ocoyucan | AL112: Martínez de la Torre
M113: Teopisca | V113: Tuxpan | W113: Tonanitla | X113: Zamora | AB113: San Antonio de la Cal | AC113: Olintla | AL113: Mecatlán
M114: Tila | V114: Unión de San Antonio | W114: Tonatico | X114: Zináparo | AB114: San Antonio Huitepec | AC114: Oriental | AL114: Mecayapan
M115: Tonalá | V115: Unión de Tula | W115: Tultepec | X115: Zinapécuaro | AB115: San Antonio Nanahuatípam | AC115: Pahuatlán | AL115: Medellín de Bravo
M116: Totolapa | V116: Valle de Guadalupe | W116: Tultitlán | X116: Ziracuaretiro | AB116: San Antonio Sinicahua | AC116: Palmar de Bravo | AL116: Miahuatlán
M117: Tumbalá | V117: Valle de Juárez | W117: Valle de Bravo | X117: Zitácuaro | AB117: San Antonio Tepetlapa | AC117: Pantepec | AL117: Minatitlán
M118: Tuxtla Chico | V118: Villa Corona | W118: Valle de Chalco Solidaridad | AB118: San Baltazar Chichicápam | AC118: Petlalcingo | AL118: Misantla
M119: Tuxtla Gutiérrez | V119: Villa Guerrero | W119: Villa de Allende | AB119: San Baltazar Loxicha | AC119: Piaxtla | AL119: Mixtla de Altamirano
M120: Tuzantán | V120: Villa Hidalgo | W120: Villa del Carbón | AB120: San Baltazar Yatzachi el Bajo | AC120: Puebla | AL120: Moloacán
M121: Tzimol | V121: Villa Purificación | W121: Villa Guerrero | AB121: San Bartolo Coyotepec | AC121: Quecholac | AL121: Nanchital de Lázaro Cárdenas del Río
M122: Unión Juárez | V122: Yahualica de González Gallo | W122: Villa Victoria | AB122: San Bartolo Soyaltepec | AC122: Quimixtlán | AL122: Naolinco
M123: Venustiano Carranza | V123: Zacoalco de Torres | W123: Xalatlaco | AB123: San Bartolo Yautepec | AC123: Rafael Lara Grajales | AL123: Naranjal
M124: Villa Comaltitlán | V124: Zapopan | W124: Xonacatlán | AB124: San Bartolomé Ayautla | AC124: San Andrés Cholula | AL124: Naranjos Amatlán
M125: Villa Corzo | V125: Zapotiltic | W125: Zacazonapan | AB125: San Bartolomé Loxicha | AC125: San Antonio Cañada | AL125: Nautla
M126: Villaflores | V126: Zapotitlán de Vadillo | W126: Zacualpan | AB126: San Bartolomé Quialana | AC126: San Diego la Mesa Tochimiltzingo | AL126: Nogales
M127: Yajalón | V127: Zapotlán del Rey | W127: Zinacantepec | AB127: San Bartolomé Yucuañe | AC127: San Felipe Teotlalcingo | AL127: Oluta
M128: Zinacantán | V128: Zapotlán el Grande | W128: Zumpahuacán | AB128: San Bartolomé Zoogocho | AC128: San Felipe Tepatlán | AL128: Omealca
V129: Zapotlanejo | W129: Zumpango | AB129: San Bernardo Mixtepec | AC129: San Gabriel Chilac | AL129: Orizaba
AB130: San Blas Atempa | AC130: San Gregorio Atzompa | AL130: Otatitlán
AB131: San Carlos Yautepec | AC131: San Jerónimo Tecuanipan | AL131: Oteapan
AB132: San Cristóbal Amatlán | AC132: San Jerónimo Xayacatlán | AL132: Ozuluama de Mascareñas
AB133: San Cristóbal Amoltepec | AC133: San José Chiapa | AL133: Pajapan
AB134: San Cristóbal Lachirioag | AC134: San José Miahuatlán | AL134: Pánuco
AB135: San Cristóbal Suchixtlahuaca | AC135: San Juan Atenco | AL135: Papantla
AB136: San Dionisio del Mar | AC136: San Juan Atzompa | AL136: Paso de Ovejas
AB137: San Dionisio Ocotepec | AC137: San Martín Texmelucan | AL137: Paso del Macho
AB138: San Dionisio Ocotlán | AC138: San Martín Totoltepec | AL138: Perote
AB139: San Esteban Atatlahuca | AC139: San Matías Tlalancaleca | AL139: Platón Sánchez
AB140: San Felipe Jalapa de Díaz | AC140: San Miguel Ixitlán | AL140: Playa Vicente
AB141: San Felipe Tejalápam | AC141: San Miguel Xoxtla | AL141: Poza Rica de Hidalgo
AB142: San Felipe Usila | AC142: San Nicolás Buenos Aires | AL142: Pueblo Viejo
AB143: San Francisco Cahuacuá | AC143: San Nicolás de los Ranchos | AL143: Puente Nacional
AB144: San Francisco Cajonos | AC144: San Pablo Anicano | AL144: Rafael Delgado
AB145: San Francisco Chapulapa | AC145: San Pedro Cholula | AL145: Rafael Lucio
AB146: San Francisco Chindúa | AC146: San Pedro Yeloixtlahuaca | AL146: Río Blanco
AB147: San Francisco del Mar | AC147: San Salvador el Seco | AL147: Saltabarranca
AB148: San Francisco Huehuetlán | AC148: San Salvador el Verde | AL148: San Andrés Tenejapan
AB149: San Francisco Ixhuatán | AC149: San Salvador Huixcolotla | AL149: San Andrés Tuxtla
AB150: San Francisco Jaltepetongo | AC150: San Sebastián Tlacotepec | AL150: San Juan Evangelista
AB151: San Francisco Lachigoló | AC151: Santa Catarina Tlaltempan | AL151: San Rafael
AB152: San Francisco Logueche | AC152: Santa Inés Ahuatempan | AL152: Santiago Sochiapan
AB153: San Francisco Nuxaño | AC153: Santa Isabel Cholula | AL153: Santiago Tuxtla
AB154: San Francisco Ozolotepec | AC154: Santiago Miahuatlán | AL154: Sayula de Alemán
AB155: San Francisco Sola | AC155: Santo Tomás Hueyotlipan | AL155: Sochiapa
AB156: San Francisco Telixtlahuaca | AC156: Soltepec | AL156: Soconusco
AB157: San Francisco Teopan | AC157: Tecali de Herrera | AL157: Soledad Atzompa
AB158: San Francisco Tlapancingo | AC158: Tecamachalco | AL158: Soledad de Doblado
AB159: San Gabriel Mixtepec | AC159: Tecomatlán | AL159: Soteapan
AB160: San Ildefonso Amatlán | AC160: Tehuacán | AL160: Tamalín
AB161: San Ildefonso Sola | AC161: Tehuitzingo | AL161: Tamiahua
AB162: San Ildefonso Villa Alta | AC162: Tenampulco | AL162: Tampico Alto
AB163: San Jacinto Amilpas | AC163: Teopantlán | AL163: Tancoco
AB164: San Jacinto Tlacotepec | AC164: Teotlalco | AL164: Tantima
AB165: San Jerónimo Coatlán | AC165: Tepanco de López | AL165: Tantoyuca
AB166: San Jerónimo Silacayoapilla | AC166: Tepango de Rodríguez | AL166: Tatahuicapan de Juárez
AB167: San Jerónimo Sosola | AC167: Tepatlaxco de Hidalgo | AL167: Tatatila
AB168: San Jerónimo Taviche | AC168: Tepeaca | AL168: Tecolutla
AB169: San Jerónimo Tecóatl | AC169: Tepemaxalco | AL169: Tehuipango
AB170: San Jerónimo Tlacochahuaya | AC170: Tepeojuma | AL170: Tempoal
AB171: San Jorge Nuchita | AC171: Tepetzintla | AL171: Tenampa
AB172: San José Ayuquila | AC172: Tepexco | AL172: Tenochtitlán
AB173: San José Chiltepec | AC173: Tepexi de Rodríguez | AL173: Teocelo
AB174: San José del Peñasco | AC174: Tepeyahualco | AL174: Tepatlaxco
AB175: San José del Progreso | AC175: Tepeyahualco de Cuauhtémoc | AL175: Tepetlán
AB176: San José Estancia Grande | AC176: Tetela de Ocampo | AL176: Tepetzintla
AB177: San José Independencia | AC177: Teteles de Ávila Castillo | AL177: Tequila
AB178: San José Lachiguiri | AC178: Teziutlán | AL178: Texcatepec
AB179: San José Tenango | AC179: Tianguismanalco | AL179: Texhuacán
AB180: San Juan Achiutla | AC180: Tilapa | AL180: Texistepec
AB181: San Juan Atepec | AC181: Tlachichuca | AL181: Tezonapa
AB182: San Juan Bautista Atatlahuca | AC182: Tlacotepec de Benito Juárez | AL182: Tierra Blanca
AB183: San Juan Bautista Coixtlahuaca | AC183: Tlacuilotepec | AL183: Tihuatlán
AB184: San Juan Bautista Cuicatlán | AC184: Tlahuapan | AL184: Tlachichilco
AB185: San Juan Bautista Guelache | AC185: Tlaltenango | AL185: Tlacojalpan
AB186: San Juan Bautista Jayacatlán | AC186: Tlanepantla | AL186: Tlacolulan
AB187: San Juan Bautista Lo de Soto | AC187: Tlaola | AL187: Tlacotalpan
AB188: San Juan Bautista Suchitepec | AC188: Tlapacoya | AL188: Tlacotepec de Mejía
AB189: San Juan Bautista Tlachichilco | AC189: Tlapanalá | AL189: Tlalixcoyan
AB190: San Juan Bautista Tlacoatzintepec | AC190: Tlatlauquitepec | AL190: Tlalnelhuayocan
AB191: San Juan Bautista Tuxtepec | AC191: Tlaxco | AL191: Tlaltetela
AB192: San Juan Bautista Valle Nacional | AC192: Tochimilco | AL192: Tlapacoyan
AB193: San Juan Cacahuatepec | AC193: Tochtepec | AL193: Tlaquilpa
AB194: San Juan Chicomezúchil | AC194: Totoltepec de Guerrero | AL194: Tlilapan
AB195: San Juan Chilateca | AC195: Tulcingo | AL195: Tomatlán
AB196: San Juan Cieneguilla | AC196: Tuzamapan de Galeana | AL196: Tonayán
AB197: San Juan Coatzóspam | AC197: Tzicatlacoyan | AL197: Totutla
AB198: San Juan Colorado | AC198: Venustiano Carranza | AL198: Tres Valles
AB199: San Juan Comaltepec | AC199: Vicente Guerrero | AL199: Tuxpan
AB200: San Juan Cotzocón | AC200: Xayacatlán de Bravo | AL200: Tuxtilla
AB201: San Juan de los Cués | AC201: Xicotepec | AL201: Ursulo Galván
... 373 more rows

Sheet Impactos (hidden)
A1: ID | B1: Nombre completo | C1: Nombre corto | D1: Grupo | E1: Definición | F1: Referencia | G1: Indicador | H1: Sugerencias de indicador | I1: Referencia | J1: Comentarios
A2: 1 | B2: Prevención de inundaciones, regulación de escorrentías | C2: Prevención de inundaciones, regulación de escorrentías | D2: Adaptación | E2: Potencial de reducir y/o ralentizar las escorrentías para evitar la saturación de los sistemas de drenaje y alcantarillado.
A3: 2 | B3: Reducción de los riesgos derivados de las inundaciones, regulación de avenidas. | C3: Reducción de los riesgos derivados de las inundaciones, regulación de avenidas. | D3: Adaptación | E3: Potencial de reducir y ralentizar las escorrentías para evitar inundaciones y el colapso de la infraestructura hidráulica y sanitaria y en consecuecia, daños materiales y pérdidas humanas
A4: 3 | B4: Incremento de la recarga de agua de los acuíferos | C4: Incremento de la recarga de agua de los acuíferos | D4: Adaptación | E4: Potencial para inflitrar agua al subsuelo y evitar la subsidencia de los acuíferos y daño en la infraestructura urbana y en las edificaciones por hundimientos
A5: 4 | B5: Regulación térmica y disminución de las islas urbanas de calor | C5: Regulación térmica y disminución de las islas urbanas de calor | D5: Adaptación | E5: Se refiere a contener el incremento de temperatura por efecto de la creación de sobreamientos por medios naturales (arbolado urbano) o humanos (lonas, toldos, pérgolas, etc.)
A6: 5 | B6: Mejora de la conectividad ecológica. | C6: Mejora de la conectividad ecológica. | D6: Adaptación | E6: Se refiere a la capacidad de conexión de los ecosistemas similares en un paisaje fragmentado y que permite a las especies animales, vegetales e insectos, moverse, migrar, posarse, polinizar, alimentarse y reproducirse.
A7: 6 | B7: Secuestro de carbono | C7: Secuestro de carbono | D7: Mitigación | E7: La cantidad de carbono almacenado en la biomasa (hojas, tallos, tronco, raíces y materia orgánica del suelo). | F7: Nowak et al. (2008)
A8: 7 | B8: Reducción de emisiones de GEI | C8: Reducción de emisiones de GEI | D8: Mitigación | E8: El potencial de reducir las emisiones de GEI | F8: IPCC 2014
A9: 8 | B9: Mejora de la calidad del aire | C9: Mejora de la calidad del aire | D9: Ambiental | E9: Se refiere a una disminución de los contaminantes del aire causados por la actividad humano: CO2, CO, NOx, PM10, PM2.5, etc.
A10: 9 | B10: Mejora de la calidad del agua (purificación del agua) | C10: Mejora de la calidad del agua (purificación del agua) | D10: Ambiental | E10: Se refiere a una disminución en los contaminantes del agua causdos por la actividad humana: Metales pesados, coliformes fecales…
A11: 10 | B11: Reducción de la contaminación por ruido | C11: Reducción de la contaminación por ruido | D11: Ambiental | E11: Se refiere a la disminución en la intensidad del ruido a niveles permitidos por la normatividad (¿Cuántos desibeles?)
A12: 11 | B12: Control de la erosión del suelo | C12: Control de la erosión del suelo | D12: Ambiental | E12: Se refiere a la capacidad para retener el suelo
A13: 12 | B13: Mantenimiento, protección y mejora de los hábitats naturales, la vida silvestre y la biodiversidad | C13: Mantenimiento, protección y mejora de hábitats, vida silvestre y biodiversidad | D13: Ambiental
A14: 13 | B14: Producción de servicios ecosistémicos | C14: Producción de servicios ecosistémicos | D14: Ambiental
A15: 14 | B15: Mejora de los valores estéticos | C15: Mejora de los valores estéticos | D15: Sociales
A16: 15 | B16: Mejora de accesibilidad de recursos para la práctica del deporte, el ocio, cultura, recreación y educación | C16: Mejora accesibilidad de recursos para deporte, cultura, formación y recreación | D16: Sociales | E16: Diversidad y número de personas que tienen la oportunidad de experimentar y disfrutar del entorno para diferntes actividades como resultado de las intervenciones urbanas | G16: SI | H16: (número de visitantes, número de actividades recreativas) o cultural (número de eventos culturales, personas involucradas, niños en actividades educativas) | I16: Kabisch and Haase, 2014.
A17: 16 | B17: Mejora de la salud y bienestar | C17: Mejora de la salud y bienestar | D17: Sociales
A18: 17 | B18: Generación de recursos comunitarios (fortalecimiento de la ciudadanía) | C18: Generación de recursos comunitarios (fortalecimiento de la ciudadanía) | D18: Sociales | E18: Grado en el que la ciudades se percibe más allá del territorio físico e involucra a la personas en una construcción conjunta que hace que la personas construyan ciudad y ciudadanía en el espacio público. | F18: Guía Rápida de Urbanismo Táctico. Caso Piloto: Pereira. Asociación Colectivo Ciudadano Espacio & Ciudad. 12p
A19: 18 | B19: Fortalecimiento de sentimiento de pertenencia, identidad y humanización de las ciudades | C19: Fortalecimiento de sentimiento de pertenencia e identidad | D19: Sociales | E19: Grado de mejoría en la experiencia humana del espacio público
A20: 19 | B20: Optimización de la inversión pública al atender distintos objetivos e incentivar la coordinación entre actores clave | C20: Optimización de la inversión pública | D20: Económicos | E20: Grado de involucramiento de de actores externos : actores sociales, comerciales, institucionales, accionistas, empresas públicas y privadas e instituciones financieras.
A21: 20 | B21: Atracción para negocios, turismo y economía verde | C21: Atracción para negocios, turismo y economía verde | D21: Económicos | E21: Análisis de conexión de la IV con la red principal de transporte y con los negocios que fomentan la economia de proximidad y turismo sostenible. | F21: https://www.aprendedeturismo.org/el-turismo-y-los-objetivos-de-desarrollo-sostenible-de-naciones-unidas/
H22: Cycling may help to prevent 10 deaths in Mexico City per year due to the protective benefits of increased physical activity.
H23: Total greenhouse gas emissions savings due to use of EcoBici instead of motorised modes are nearly 1,190 tonnes per year, equivalent to almost 2.6 million miles driven by an average passenger vehicle.13
